Workbook

Sheet ImportData
B1: Step | C1: Instruction
B2: Step 1 | C2: Unzip all CSV output files into a single directory | G2: =IF(AND(FuelAllocation!E53="OK",FuelAllocation!E68="OK",FuelAllocation!E70="OK"),"","ERROR - in Fuel Allocation") -> 
B3: Step 2 | C3: Enter the file prefix and the directory containing all CSV output files.
B4: Step 3 | C4: Click the import data buttion to import data from the directory | IM4: Month | IN4: Y
C5: Study Name: | D5: =G10 -> UT 2012.Q4 - 05b - AC Case - Solar PDDRR | IM5: Annual | IN5: N
C7: Directory: | D7: F:\CLIENTS & PROJECTS\UCE RMP 2012 Renewable QF Avoided Cost 12-035-100\GRID\GRID Runs with Solar\NPC Output\Salt Lake City 5b\
C8: Period: | D8: Month
F9: Base Case | G9: UT 2012.Q4 - 01b - Base Case
F10: Avoided Cost Case | G10: UT 2012.Q4 - 05b - AC Case - Solar PDDRR
B13: Import (Y/N) | C13: Data Type | D13: Filename | E13: Dimension | F13: Data Column Label | G13: Date Imported | H13: Min Date in Extract | I13: Max Date in Extract
B14: Y | C14: Emergency Purchase ($) | D14: Imbalance.csv | E14: Transmission Area | F14: Imbalance CostSum | G14: 2013-03-27T12:59:33 | H14: 2023-01-01 | I14: 2032-12-01
B15: Y | C15: Emergency Purchase (MWh) | D15: Imbalance.csv | E15: Transmission Area | F15: ImbalanceSum | G15: 2013-03-27T12:59:34 | H15: 2023-01-01 | I15: 2032-12-01
B16: Y | C16: Fuel Price ($MMBtu) | D16: Fuel Price.csv | E16: Facility | F16: Fuel Price | G16: 2013-03-27T12:59:35 | H16: 2023-01-01 | I16: 2032-12-01
B17: Y | C17: Fuel Used (MMBtu) | D17: Thermal MMBTU.csv | E17: Facility | F17: MMBTUSum | G17: 2013-03-27T12:59:36 | H17: 2023-01-01 | I17: 2032-12-01
B18: Y | C18: Hydro Generation (MWH) | D18: Hydro Dispatch.csv | E18: Unit | F18: DispatchSum | G18: 2013-03-27T12:59:37 | H18: 2023-01-01 | I18: 2032-12-01
B19: Y | C19: Load (MWH) | D19: Retail Load.csv | E19: Retail Load | F19: LoadSum | G19: 2013-03-27T12:59:37 | H19: 2023-01-01 | I19: 2032-12-01
B20: Y | C20: LTC ($) | D20: LTC Cost.csv | E20: Contract | F20: LTC Total Variable Cost | G20: 2013-03-27T12:59:39 | H20: 2023-01-01 | I20: 2032-12-01
B21: Y | C21: LTC (MWH) | D21: LTC Dispatch.csv | E21: Contract | F21: DispatchSum | G21: 2013-03-27T12:59:40 | H21: 2023-01-01 | I21: 2032-12-01
B22: Y | C22: Nameplate (MW) | D22: Nameplate.csv | E22: Facility | F22: Nameplate CapacityMax | G22: 2013-03-27T12:59:41 | H22: 2023-01-01 | I22: 2032-12-01
B23: Y | C23: Purchases ($) | D23: Purchases.csv | E23: Transmission Area | F23: Purchases CostSum | G23: 2013-03-27T12:59:42 | H23: 2023-01-01 | I23: 2032-12-01
B24: Y | C24: Purchases (MWH) | D24: Purchases.csv | E24: Transmission Area | F24: Purchases AmountSum | G24: 2013-03-27T12:59:43 | H24: 2023-01-01 | I24: 2032-12-01
B25: Y | C25: Sales ($) | D25: Sales.csv | E25: Transmission Area | F25: Sales CostSum | G25: 2013-03-27T12:59:44 | H25: 2023-01-01 | I25: 2032-12-01
B26: Y | C26: Sales (MWH) | D26: Sales.csv | E26: Transmission Area | F26: Sales AmountSum | G26: 2013-03-27T12:59:44 | H26: 2023-01-01 | I26: 2032-12-01
B27: Y | C27: ST Firm Purchases ($) | D27: Short Term Firm.csv | E27: Transmission Area | F27: ST Firm Purchases ValueSum | G27: 2013-03-27T12:59:45
B28: Y | C28: ST Firm Purchases (MWH) | D28: Short Term Firm.csv | E28: Transmission Area | F28: ST Firm PurchasesSum | G28: 2013-03-27T12:59:45
B29: Y | C29: ST Firm Sales ($) | D29: Short Term Firm.csv | E29: Transmission Area | F29: ST Firm Sales ValueSum | G29: 2013-03-27T12:59:45
B30: Y | C30: ST Firm Sales (MWH) | D30: Short Term Firm.csv | E30: Transmission Area | F30: ST Firm SalesSum | G30: 2013-03-27T12:59:46
B31: Y | C31: Thermal Fuel Burn ($) | D31: Thermal Fuel Cost.csv | E31: Facility | F31: Fuel CostSum | G31: 2013-03-27T12:59:47 | H31: 2023-01-01 | I31: 2032-12-01
B32: Y | C32: Thermal Generation (MWH) | D32: Thermal Dispatch.csv | E32: Facility | F32: DispatchSum | G32: 2013-03-27T12:59:48 | H32: 2023-01-01 | I32: 2032-12-01
B33: Y | C33: Transmission Costs ($) | D33: Transmission Cost.csv | E33: Link | F33: CostSum | G33: 2013-03-27T12:59:49 | H33: 2023-01-01 | I33: 2032-12-01
B35: =IF(AND(D5=G10,ISNUMBER(FIND("Base",G9)),ISNUMBER(FIND("AC",G10))),"Y","N") -> Y | C35: Avoided Costs include the Allocation of Gas Physical and Gas Swaps

Sheet Avoided Costs
B1: Avoided Costs by Month
D3: Winter Season | I3: Summer Season | M3: Winter Season
B4: Year | C4: Annual | D4: Jan | E4: Feb | F4: Mar | G4: Apr | H4: May | I4: Jun | J4: Jul | K4: Aug | L4: Sep | M4: Oct | N4: Nov | O4: Dec
B6: =ImportData!G10 -> UT 2012.Q4 - 05b - AC Case - Solar PDDRR
B7: =NPC!E3 -> 2023 | C7: =Delta!E301 -> 56.15570896 | D7: =Delta!F301 -> 42.90000656 | E7: =Delta!G301 -> 44.96518083 | F7: =Delta!H301 -> 48.75080049 | G7: =Delta!I301 -> 44.86190704 | H7: =Delta!J301 -> 54.82349542 | I7: =Delta!K301 -> 61.23413252 | J7: =Delta!L301 -> 76.69754807 | K7: =Delta!M301 -> 75.67881406 | L7: =Delta!N301 -> 52.81141941 | M7: =Delta!O301 -> 57.92264225 | N7: =Delta!P301 -> 50.14612728 | O7: =Delta!Q301 -> 40.02447525
B8: =B7+1 -> 2024 | C8: =Delta!R301 -> 59.09979534 | D8: =Delta!S301 -> 51.34575662 | E8: =Delta!T301 -> 53.06032615 | F8: =Delta!U301 -> 50.96961193 | G8: =Delta!V301 -> 43.74531144 | H8: =Delta!W301 -> 55.62562302 | I8: =Delta!X301 -> 64.82567688 | J8: =Delta!Y301 -> 78.20975526 | K8: =Delta!Z301 -> 74.61685815 | L8: =Delta!AA301 -> 55.90370166 | M8: =Delta!AB301 -> 61.62919481 | N8: =Delta!AC301 -> 55.86194715 | O8: =Delta!AD301 -> 47.83396673
B9: =B8+1 -> 2025 | C9: =Delta!AE301 -> 55.53218638 | D9: =Delta!AF301 -> 48.72062982 | E9: =Delta!AG301 -> 51.38340854 | F9: =Delta!AH301 -> 50.58617482 | G9: =Delta!AI301 -> 43.46177598 | H9: =Delta!AJ301 -> 55.26594377 | I9: =Delta!AK301 -> 63.33563608 | J9: =Delta!AL301 -> 66.99559683 | K9: =Delta!AM301 -> 69.41699586 | L9: =Delta!AN301 -> 44.90106971 | M9: =Delta!AO301 -> 59.9838409 | N9: =Delta!AP301 -> 52.93869454 | O9: =Delta!AQ301 -> 47.84014838
B10: 2026 | C10: =Delta!AR301 -> 58.88735958 | D10: =Delta!AS301 -> 52.65357418 | E10: =Delta!AT301 -> 54.5657645 | F10: =Delta!AU301 -> 55.58854442 | G10: =Delta!AV301 -> 49.00776472 | H10: =Delta!AW301 -> 59.55011722 | I10: =Delta!AX301 -> 62.81537725 | J10: =Delta!AY301 -> 70.2350721 | K10: =Delta!AZ301 -> 72.86873123 | L10: =Delta!BA301 -> 48.14759015 | M10: =Delta!BB301 -> 63.45206135 | N10: =Delta!BC301 -> 57.03349278 | O10: =Delta!BD301 -> 48.42165217
B11: 2027 | C11: =Delta!BE301 -> 59.46487946 | D11: =Delta!BF301 -> 54.05806837 | E11: =Delta!BG301 -> 55.46561785 | F11: =Delta!BH301 -> 56.61084241 | G11: =Delta!BI301 -> 50.33387981 | H11: =Delta!BJ301 -> 60.71684588 | I11: =Delta!BK301 -> 65.547431 | J11: =Delta!BL301 -> 70.2835412 | K11: =Delta!BM301 -> 70.50606985 | L11: =Delta!BN301 -> 47.13710361 | M11: =Delta!BO301 -> 63.53756404 | N11: =Delta!BP301 -> 57.20943502 | O11: =Delta!BQ301 -> 52.15854143
B12: 2028 | C12: =Delta!BR301 -> 61.47505504 | D12: =Delta!BS301 -> 56.18903713 | E12: =Delta!BT301 -> 57.52613796 | F12: =Delta!BU301 -> 58.18089066 | G12: =Delta!BV301 -> 49.81209081 | H12: =Delta!BW301 -> 61.95146134 | I12: =Delta!BX301 -> 71.38915188 | J12: =Delta!BY301 -> 72.92789369 | K12: =Delta!BZ301 -> 71.80905024 | L12: =Delta!CA301 -> 48.03468696 | M12: =Delta!CB301 -> 65.98952868 | N12: =Delta!CC301 -> 59.9508896 | O12: =Delta!CD301 -> 54.3592819
B13: 2029 | C13: =Delta!CE301 -> 59.67672603 | D13: =Delta!CF301 -> 56.80956418 | E13: =Delta!CG301 -> 57.25126399 | F13: =Delta!CH301 -> 57.06499017 | G13: =Delta!CI301 -> 46.88671166 | H13: =Delta!CJ301 -> 62.62495412 | I13: =Delta!CK301 -> 63.67301483 | J13: =Delta!CL301 -> 72.52436119 | K13: =Delta!CM301 -> 71.46792125 | L13: =Delta!CN301 -> 48.88160679 | M13: =Delta!CO301 -> 64.97917432 | N13: =Delta!CP301 -> 51.23543306 | O13: =Delta!CQ301 -> 50.62227798
B14: 2030 | C14: =Delta!CR301 -> 60.11356075 | D14: =Delta!CS301 -> 60.26742849 | E14: =Delta!CT301 -> 61.32700386 | F14: =Delta!CU301 -> 58.74949453 | G14: =Delta!CV301 -> 50.25699974 | H14: =Delta!CW301 -> 64.29163689 | I14: =Delta!CX301 -> 63.84914349 | J14: =Delta!CY301 -> 63.93820718 | K14: =Delta!CZ301 -> 65.42480628 | L14: =Delta!DA301 -> 46.28391912 | M14: =Delta!DB301 -> 68.42083972 | N14: =Delta!DC301 -> 57.50681189 | O14: =Delta!DD301 -> 58.68255207
B15: 2031 | C15: =Delta!DE301 -> 62.31020539 | D15: =Delta!DF301 -> 59.97054554 | E15: =Delta!DG301 -> 62.06778027 | F15: =Delta!DH301 -> 58.49835113 | G15: =Delta!DI301 -> 53.18354543 | H15: =Delta!DJ301 -> 66.06630241 | I15: =Delta!DK301 -> 68.60975604 | J15: =Delta!DL301 -> 67.90688696 | K15: =Delta!DM301 -> 71.24991139 | L15: =Delta!DN301 -> 49.54336808 | M15: =Delta!DO301 -> 68.39688315 | N15: =Delta!DP301 -> 57.93695401 | O15: =Delta!DQ301 -> 57.42601375
B16: =B15+1 -> 2032 | C16: =Delta!DR301 -> 65.92018503 | D16: =Delta!DS301 -> 61.48297173 | E16: =Delta!DT301 -> 62.60502618 | F16: =Delta!DU301 -> 61.66106275 | G16: =Delta!DV301 -> 56.45845936 | H16: =Delta!DW301 -> 67.274061 | I16: =Delta!DX301 -> 70.64505106 | J16: =Delta!DY301 -> 75.04095867 | K16: =Delta!DZ301 -> 73.94744644 | L16: =Delta!EA301 -> 62.07098205 | M16: =Delta!EB301 -> 69.64239012 | N16: =Delta!EC301 -> 59.57355844 | O16: =Delta!ED301 -> 61.31453518

Sheet Delta
A1: =NPC!$A$1 -> PacifiCorp | E1: =NPC!$J$1&" minus "&BASE!$J$1 -> UT 2012.Q4 - 05b - AC Case - Solar PDDRR minus UT 2012.Q4 - 01b - Base Case
A2: =NPC!$A$2 -> Avoided Cost Study
A3: =NPC!$A$3 -> Period = 2023-2032 | E3: =NPC!E3 -> 2023 | F3: =NPC!F3 -> 2023-01-01 | G3: =NPC!G3 -> 2023-02-01 | H3: =NPC!H3 -> 2023-03-01 | I3: =NPC!I3 -> 2023-04-01 | J3: =NPC!J3 -> 2023-05-01 | K3: =NPC!K3 -> 2023-06-01 | L3: =NPC!L3 -> 2023-07-01 | M3: =NPC!M3 -> 2023-08-01 | N3: =NPC!N3 -> 2023-09-01 | O3: =NPC!O3 -> 2023-10-01 | P3: =NPC!P3 -> 2023-11-01 | Q3: =NPC!Q3 -> 2023-12-01 | R3: =NPC!R3 -> 2024 | S3: =NPC!S3 -> 2024-01-01 | T3: =NPC!T3 -> 2024-02-01 | U3: =NPC!U3 -> 2024-03-01 | V3: =NPC!V3 -> 2024-04-01 | W3: =NPC!W3 -> 2024-05-01 | X3: =NPC!X3 -> 2024-06-01 | Y3: =NPC!Y3 -> 2024-07-01 | Z3: =NPC!Z3 -> 2024-08-01 | AA3: =NPC!AA3 -> 2024-09-01 | AB3: =NPC!AB3 -> 2024-10-01 | AC3: =NPC!AC3 -> 2024-11-01 | AD3: =NPC!AD3 -> 2024-12-01 | AE3: =NPC!AE3 -> 2025 | AF3: =NPC!AF3 -> 2025-01-01 | AG3: =NPC!AG3 -> 2025-02-01 | AH3: =NPC!AH3 -> 2025-03-01 | AI3: =NPC!AI3 -> 2025-04-01 | AJ3: =NPC!AJ3 -> 2025-05-01 | AK3: =NPC!AK3 -> 2025-06-01 | AL3: =NPC!AL3 -> 2025-07-01 | AM3: =NPC!AM3 -> 2025-08-01 | AN3: =NPC!AN3 -> 2025-09-01 | AO3: =NPC!AO3 -> 2025-10-01 | AP3: =NPC!AP3 -> 2025-11-01 | AQ3: =NPC!AQ3 -> 2025-12-01 | AR3: =NPC!AR3 -> 2026 | AS3: =NPC!AS3 -> 2026-01-01 | AT3: =NPC!AT3 -> 2026-02-01 | AU3: =NPC!AU3 -> 2026-03-01 | AV3: =NPC!AV3 -> 2026-04-01 | AW3: =NPC!AW3 -> 2026-05-01 | AX3: =NPC!AX3 -> 2026-06-01 | AY3: =NPC!AY3 -> 2026-07-01 | AZ3: =NPC!AZ3 -> 2026-08-01 | BA3: =NPC!BA3 -> 2026-09-01 | BB3: =NPC!BB3 -> 2026-10-01 | BC3: =NPC!BC3 -> 2026-11-01 | BD3: =NPC!BD3 -> 2026-12-01 | BE3: =NPC!BE3 -> 2027 | BF3: =NPC!BF3 -> 2027-01-01 | BG3: =NPC!BG3 -> 2027-02-01 | BH3: =NPC!BH3 -> 2027-03-01 | BI3: =NPC!BI3 -> 2027-04-01 | BJ3: =NPC!BJ3 -> 2027-05-01 | BK3: =NPC!BK3 -> 2027-06-01 | BL3: =NPC!BL3 -> 2027-07-01 | BM3: =NPC!BM3 -> 2027-08-01 | BN3: =NPC!BN3 -> 2027-09-01 | BO3: =NPC!BO3 -> 2027-10-01 | BP3: =NPC!BP3 -> 2027-11-01 | BQ3: =NPC!BQ3 -> 2027-12-01 | BR3: =NPC!BR3 -> 2028 | BS3: =NPC!BS3 -> 2028-01-01 | BT3: =NPC!BT3 -> 2028-02-01 | BU3: =NPC!BU3 -> 2028-03-01 | BV3: =NPC!BV3 -> 2028-04-01 | BW3: =NPC!BW3 -> 2028-05-01 | BX3: =NPC!BX3 -> 2028-06-01 | BY3: =NPC!BY3 -> 2028-07-01 | BZ3: =NPC!BZ3 -> 2028-08-01 | CA3: =NPC!CA3 -> 2028-09-01 | CB3: =NPC!CB3 -> 2028-10-01 | CC3: =NPC!CC3 -> 2028-11-01 | CD3: =NPC!CD3 -> 2028-12-01 | CE3: =NPC!CE3 -> 2029 | CF3: =NPC!CF3 -> 2029-01-01 | CG3: =NPC!CG3 -> 2029-02-01 | CH3: =NPC!CH3 -> 2029-03-01 | CI3: =NPC!CI3 -> 2029-04-01 | CJ3: =NPC!CJ3 -> 2029-05-01 | CK3: =NPC!CK3 -> 2029-06-01 | CL3: =NPC!CL3 -> 2029-07-01 | CM3: =NPC!CM3 -> 2029-08-01 | CN3: =NPC!CN3 -> 2029-09-01 | CO3: =NPC!CO3 -> 2029-10-01 | CP3: =NPC!CP3 -> 2029-11-01 | CQ3: =NPC!CQ3 -> 2029-12-01 | CR3: =NPC!CR3 -> 2030 | CS3: =NPC!CS3 -> 2030-01-01 | CT3: =NPC!CT3 -> 2030-02-01 | CU3: =NPC!CU3 -> 2030-03-01 | CV3: =NPC!CV3 -> 2030-04-01 | CW3: =NPC!CW3 -> 2030-05-01 | CX3: =NPC!CX3 -> 2030-06-01 | CY3: =NPC!CY3 -> 2030-07-01 | CZ3: =NPC!CZ3 -> 2030-08-01 | DA3: =NPC!DA3 -> 2030-09-01 | DB3: =NPC!DB3 -> 2030-10-01 | DC3: =NPC!DC3 -> 2030-11-01 | DD3: =NPC!DD3 -> 2030-12-01 | DE3: =NPC!DE3 -> 2031 | DF3: =NPC!DF3 -> 2031-01-01 | DG3: =NPC!DG3 -> 2031-02-01 | DH3: =NPC!DH3 -> 2031-03-01 | DI3: =NPC!DI3 -> 2031-04-01 | DJ3: =NPC!DJ3 -> 2031-05-01 | DK3: =NPC!DK3 -> 2031-06-01 | DL3: =NPC!DL3 -> 2031-07-01 | DM3: =NPC!DM3 -> 2031-08-01 | DN3: =NPC!DN3 -> 2031-09-01 | DO3: =NPC!DO3 -> 2031-10-01 | DP3: =NPC!DP3 -> 2031-11-01 | DQ3: =NPC!DQ3 -> 2031-12-01 | DR3: =NPC!DR3 -> 2032 | DS3: =NPC!DS3 -> 2032-01-01 | DT3: =NPC!DT3 -> 2032-02-01 | DU3: =NPC!DU3 -> 2032-03-01 | DV3: =NPC!DV3 -> 2032-04-01 | DW3: =NPC!DW3 -> 2032-05-01 | DX3: =NPC!DX3 -> 2032-06-01 | DY3: =NPC!DY3 -> 2032-07-01 | DZ3: =NPC!DZ3 -> 2032-08-01 | EA3: =NPC!EA3 -> 2032-09-01 | EB3: =NPC!EB3 -> 2032-10-01 | EC3: =NPC!EC3 -> 2032-11-01 | ED3: =NPC!ED3 -> 2032-12-01 | ER3: Check Hide Row
E5: =NPC!E5 -> $ | R5: =NPC!R5 -> $ | AE5: =NPC!AE5 -> $ | AR5: =NPC!AR5 -> $ | BE5: =NPC!BE5 -> $ | BR5: =NPC!BR5 -> $ | CE5: =NPC!CE5 -> $ | CR5: =NPC!CR5 -> $ | DE5: =NPC!DE5 -> $ | DR5: =NPC!DR5 -> $
A7: =NPC!A7 -> Special Sales For Resale
B8: Long Term Firm Sales
C9: =NPC!C9 -> Black Hills s27013/s28160 | E9: =NPC!E9-BASE!E9 -> 0 | F9: =NPC!F9-BASE!F9 -> 0 | G9: =NPC!G9-BASE!G9 -> 0 | H9: =NPC!H9-BASE!H9 -> 0 | I9: =NPC!I9-BASE!I9 -> 0 | J9: =NPC!J9-BASE!J9 -> 0 | K9: =NPC!K9-BASE!K9 -> 0 | L9: =NPC!L9-BASE!L9 -> 0 | M9: =NPC!M9-BASE!M9 -> 0 | N9: =NPC!N9-BASE!N9 -> 0 | O9: =NPC!O9-BASE!O9 -> 0 | P9: =NPC!P9-BASE!P9 -> 0 | Q9: =NPC!Q9-BASE!Q9 -> 0 | R9: =NPC!R9-BASE!R9 -> 0 | S9: =NPC!S9-BASE!S9 -> 0 | T9: =NPC!T9-BASE!T9 -> 0 | U9: =NPC!U9-BASE!U9 -> 0 | V9: =NPC!V9-BASE!V9 -> 0 | W9: =NPC!W9-BASE!W9 -> 0 | X9: =NPC!X9-BASE!X9 -> 0 | Y9: =NPC!Y9-BASE!Y9 -> 0 | Z9: =NPC!Z9-BASE!Z9 -> 0 | AA9: =NPC!AA9-BASE!AA9 -> 0 | AB9: =NPC!AB9-BASE!AB9 -> 0 | AC9: =NPC!AC9-BASE!AC9 -> 0 | AD9: =NPC!AD9-BASE!AD9 -> 0 | AE9: =NPC!AE9-BASE!AE9 -> 0 | AF9: =NPC!AF9-BASE!AF9 -> 0 | AG9: =NPC!AG9-BASE!AG9 -> 0 | AH9: =NPC!AH9-BASE!AH9 -> 0 | AI9: =NPC!AI9-BASE!AI9 -> 0 | AJ9: =NPC!AJ9-BASE!AJ9 -> 0 | AK9: =NPC!AK9-BASE!AK9 -> 0 | AL9: =NPC!AL9-BASE!AL9 -> 0 | AM9: =NPC!AM9-BASE!AM9 -> 0 | AN9: =NPC!AN9-BASE!AN9 -> 0 | AO9: =NPC!AO9-BASE!AO9 -> 0 | AP9: =NPC!AP9-BASE!AP9 -> 0 | AQ9: =NPC!AQ9-BASE!AQ9 -> 0 | AR9: =NPC!AR9-BASE!AR9 -> 0 | AS9: =NPC!AS9-BASE!AS9 -> 0 | AT9: =NPC!AT9-BASE!AT9 -> 0 | AU9: =NPC!AU9-BASE!AU9 -> 0 | AV9: =NPC!AV9-BASE!AV9 -> 0 | AW9: =NPC!AW9-BASE!AW9 -> 0 | AX9: =NPC!AX9-BASE!AX9 -> 0 | AY9: =NPC!AY9-BASE!AY9 -> 0 | AZ9: =NPC!AZ9-BASE!AZ9 -> 0 | BA9: =NPC!BA9-BASE!BA9 -> 0 | BB9: =NPC!BB9-BASE!BB9 -> 0 | BC9: =NPC!BC9-BASE!BC9 -> 0 | BD9: =NPC!BD9-BASE!BD9 -> 0 | BE9: =NPC!BE9-BASE!BE9 -> 0 | BF9: =NPC!BF9-BASE!BF9 -> 0 | BG9: =NPC!BG9-BASE!BG9 -> 0 | BH9: =NPC!BH9-BASE!BH9 -> 0 | BI9: =NPC!BI9-BASE!BI9 -> 0 | BJ9: =NPC!BJ9-BASE!BJ9 -> 0 | BK9: =NPC!BK9-BASE!BK9 -> 0 | BL9: =NPC!BL9-BASE!BL9 -> 0 | BM9: =NPC!BM9-BASE!BM9 -> 0 | BN9: =NPC!BN9-BASE!BN9 -> 0 | BO9: =NPC!BO9-BASE!BO9 -> 0 | BP9: =NPC!BP9-BASE!BP9 -> 0 | BQ9: =NPC!BQ9-BASE!BQ9 -> 0 | BR9: =NPC!BR9-BASE!BR9 -> 0 | BS9: =NPC!BS9-BASE!BS9 -> 0 | BT9: =NPC!BT9-BASE!BT9 -> 0 | BU9: =NPC!BU9-BASE!BU9 -> 0 | BV9: =NPC!BV9-BASE!BV9 -> 0 | BW9: =NPC!BW9-BASE!BW9 -> 0 | BX9: =NPC!BX9-BASE!BX9 -> 0 | BY9: =NPC!BY9-BASE!BY9 -> 0 | BZ9: =NPC!BZ9-BASE!BZ9 -> 0 | CA9: =NPC!CA9-BASE!CA9 -> 0 | CB9: =NPC!CB9-BASE!CB9 -> 0 | CC9: =NPC!CC9-BASE!CC9 -> 0 | CD9: =NPC!CD9-BASE!CD9 -> 0 | CE9: =NPC!CE9-BASE!CE9 -> 0 | CF9: =NPC!CF9-BASE!CF9 -> 0 | CG9: =NPC!CG9-BASE!CG9 -> 0 | CH9: =NPC!CH9-BASE!CH9 -> 0 | CI9: =NPC!CI9-BASE!CI9 -> 0 | CJ9: =NPC!CJ9-BASE!CJ9 -> 0 | CK9: =NPC!CK9-BASE!CK9 -> 0 | CL9: =NPC!CL9-BASE!CL9 -> 0 | CM9: =NPC!CM9-BASE!CM9 -> 0 | CN9: =NPC!CN9-BASE!CN9 -> 0 | CO9: =NPC!CO9-BASE!CO9 -> 0 | CP9: =NPC!CP9-BASE!CP9 -> 0 | CQ9: =NPC!CQ9-BASE!CQ9 -> 0 | CR9: =NPC!CR9-BASE!CR9 -> 0 | CS9: =NPC!CS9-BASE!CS9 -> 0 | CT9: =NPC!CT9-BASE!CT9 -> 0 | CU9: =NPC!CU9-BASE!CU9 -> 0 | CV9: =NPC!CV9-BASE!CV9 -> 0 | CW9: =NPC!CW9-BASE!CW9 -> 0 | CX9: =NPC!CX9-BASE!CX9 -> 0 | CY9: =NPC!CY9-BASE!CY9 -> 0 | CZ9: =NPC!CZ9-BASE!CZ9 -> 0 | DA9: =NPC!DA9-BASE!DA9 -> 0 | DB9: =NPC!DB9-BASE!DB9 -> 0 | DC9: =NPC!DC9-BASE!DC9 -> 0 | DD9: =NPC!DD9-BASE!DD9 -> 0 | DE9: =NPC!DE9-BASE!DE9 -> 0 | DF9: =NPC!DF9-BASE!DF9 -> 0 | DG9: =NPC!DG9-BASE!DG9 -> 0 | DH9: =NPC!DH9-BASE!DH9 -> 0 | DI9: =NPC!DI9-BASE!DI9 -> 0 | DJ9: =NPC!DJ9-BASE!DJ9 -> 0 | DK9: =NPC!DK9-BASE!DK9 -> 0 | DL9: =NPC!DL9-BASE!DL9 -> 0 | DM9: =NPC!DM9-BASE!DM9 -> 0 | DN9: =NPC!DN9-BASE!DN9 -> 0 | DO9: =NPC!DO9-BASE!DO9 -> 0 | DP9: =NPC!DP9-BASE!DP9 -> 0 | DQ9: =NPC!DQ9-BASE!DQ9 -> 0 | DR9: =NPC!DR9-BASE!DR9 -> 0 | DS9: =NPC!DS9-BASE!DS9 -> 0 | DT9: =NPC!DT9-BASE!DT9 -> 0 | DU9: =NPC!DU9-BASE!DU9 -> 0 | DV9: =NPC!DV9-BASE!DV9 -> 0 | DW9: =NPC!DW9-BASE!DW9 -> 0 | DX9: =NPC!DX9-BASE!DX9 -> 0 | DY9: =NPC!DY9-BASE!DY9 -> 0 | DZ9: =NPC!DZ9-BASE!DZ9 -> 0 | EA9: =NPC!EA9-BASE!EA9 -> 0 | EB9: =NPC!EB9-BASE!EB9 -> 0 | EC9: =NPC!EC9-BASE!EC9 -> 0 | ED9: =NPC!ED9-BASE!ED9 -> 0 | ER9: =NPC!ER9 -> -
C10: =NPC!C10 -> BPA Wind s42818 | E10: =NPC!E10-BASE!E10 -> 0 | F10: =NPC!F10-BASE!F10 -> 0 | G10: =NPC!G10-BASE!G10 -> 0 | H10: =NPC!H10-BASE!H10 -> 0 | I10: =NPC!I10-BASE!I10 -> 0 | J10: =NPC!J10-BASE!J10 -> 0 | K10: =NPC!K10-BASE!K10 -> 0 | L10: =NPC!L10-BASE!L10 -> 0 | M10: =NPC!M10-BASE!M10 -> 0 | N10: =NPC!N10-BASE!N10 -> 0 | O10: =NPC!O10-BASE!O10 -> 0 | P10: =NPC!P10-BASE!P10 -> 0 | Q10: =NPC!Q10-BASE!Q10 -> 0 | R10: =NPC!R10-BASE!R10 -> 0 | S10: =NPC!S10-BASE!S10 -> 0 | T10: =NPC!T10-BASE!T10 -> 0 | U10: =NPC!U10-BASE!U10 -> 0 | V10: =NPC!V10-BASE!V10 -> 0 | W10: =NPC!W10-BASE!W10 -> 0 | X10: =NPC!X10-BASE!X10 -> 0 | Y10: =NPC!Y10-BASE!Y10 -> 0 | Z10: =NPC!Z10-BASE!Z10 -> 0 | AA10: =NPC!AA10-BASE!AA10 -> 0 | AB10: =NPC!AB10-BASE!AB10 -> 0 | AC10: =NPC!AC10-BASE!AC10 -> 0 | AD10: =NPC!AD10-BASE!AD10 -> 0 | AE10: =NPC!AE10-BASE!AE10 -> 0 | AF10: =NPC!AF10-BASE!AF10 -> 0 | AG10: =NPC!AG10-BASE!AG10 -> 0 | AH10: =NPC!AH10-BASE!AH10 -> 0 | AI10: =NPC!AI10-BASE!AI10 -> 0 | AJ10: =NPC!AJ10-BASE!AJ10 -> 0 | AK10: =NPC!AK10-BASE!AK10 -> 0 | AL10: =NPC!AL10-BASE!AL10 -> 0 | AM10: =NPC!AM10-BASE!AM10 -> 0 | AN10: =NPC!AN10-BASE!AN10 -> 0 | AO10: =NPC!AO10-BASE!AO10 -> 0 | AP10: =NPC!AP10-BASE!AP10 -> 0 | AQ10: =NPC!AQ10-BASE!AQ10 -> 0 | AR10: =NPC!AR10-BASE!AR10 -> 0 | AS10: =NPC!AS10-BASE!AS10 -> 0 | AT10: =NPC!AT10-BASE!AT10 -> 0 | AU10: =NPC!AU10-BASE!AU10 -> 0 | AV10: =NPC!AV10-BASE!AV10 -> 0 | AW10: =NPC!AW10-BASE!AW10 -> 0 | AX10: =NPC!AX10-BASE!AX10 -> 0 | AY10: =NPC!AY10-BASE!AY10 -> 0 | AZ10: =NPC!AZ10-BASE!AZ10 -> 0 | BA10: =NPC!BA10-BASE!BA10 -> 0 | BB10: =NPC!BB10-BASE!BB10 -> 0 | BC10: =NPC!BC10-BASE!BC10 -> 0 | BD10: =NPC!BD10-BASE!BD10 -> 0 | BE10: =NPC!BE10-BASE!BE10 -> 0 | BF10: =NPC!BF10-BASE!BF10 -> 0 | BG10: =NPC!BG10-BASE!BG10 -> 0 | BH10: =NPC!BH10-BASE!BH10 -> 0 | BI10: =NPC!BI10-BASE!BI10 -> 0 | BJ10: =NPC!BJ10-BASE!BJ10 -> 0 | BK10: =NPC!BK10-BASE!BK10 -> 0 | BL10: =NPC!BL10-BASE!BL10 -> 0 | BM10: =NPC!BM10-BASE!BM10 -> 0 | BN10: =NPC!BN10-BASE!BN10 -> 0 | BO10: =NPC!BO10-BASE!BO10 -> 0 | BP10: =NPC!BP10-BASE!BP10 -> 0 | BQ10: =NPC!BQ10-BASE!BQ10 -> 0 | BR10: =NPC!BR10-BASE!BR10 -> 0 | BS10: =NPC!BS10-BASE!BS10 -> 0 | BT10: =NPC!BT10-BASE!BT10 -> 0 | BU10: =NPC!BU10-BASE!BU10 -> 0 | BV10: =NPC!BV10-BASE!BV10 -> 0 | BW10: =NPC!BW10-BASE!BW10 -> 0 | BX10: =NPC!BX10-BASE!BX10 -> 0 | BY10: =NPC!BY10-BASE!BY10 -> 0 | BZ10: =NPC!BZ10-BASE!BZ10 -> 0 | CA10: =NPC!CA10-BASE!CA10 -> 0 | CB10: =NPC!CB10-BASE!CB10 -> 0 | CC10: =NPC!CC10-BASE!CC10 -> 0 | CD10: =NPC!CD10-BASE!CD10 -> 0 | CE10: =NPC!CE10-BASE!CE10 -> 0 | CF10: =NPC!CF10-BASE!CF10 -> 0 | CG10: =NPC!CG10-BASE!CG10 -> 0 | CH10: =NPC!CH10-BASE!CH10 -> 0 | CI10: =NPC!CI10-BASE!CI10 -> 0 | CJ10: =NPC!CJ10-BASE!CJ10 -> 0 | CK10: =NPC!CK10-BASE!CK10 -> 0 | CL10: =NPC!CL10-BASE!CL10 -> 0 | CM10: =NPC!CM10-BASE!CM10 -> 0 | CN10: =NPC!CN10-BASE!CN10 -> 0 | CO10: =NPC!CO10-BASE!CO10 -> 0 | CP10: =NPC!CP10-BASE!CP10 -> 0 | CQ10: =NPC!CQ10-BASE!CQ10 -> 0 | CR10: =NPC!CR10-BASE!CR10 -> 0 | CS10: =NPC!CS10-BASE!CS10 -> 0 | CT10: =NPC!CT10-BASE!CT10 -> 0 | CU10: =NPC!CU10-BASE!CU10 -> 0 | CV10: =NPC!CV10-BASE!CV10 -> 0 | CW10: =NPC!CW10-BASE!CW10 -> 0 | CX10: =NPC!CX10-BASE!CX10 -> 0 | CY10: =NPC!CY10-BASE!CY10 -> 0 | CZ10: =NPC!CZ10-BASE!CZ10 -> 0 | DA10: =NPC!DA10-BASE!DA10 -> 0 | DB10: =NPC!DB10-BASE!DB10 -> 0 | DC10: =NPC!DC10-BASE!DC10 -> 0 | DD10: =NPC!DD10-BASE!DD10 -> 0 | DE10: =NPC!DE10-BASE!DE10 -> 0 | DF10: =NPC!DF10-BASE!DF10 -> 0 | DG10: =NPC!DG10-BASE!DG10 -> 0 | DH10: =NPC!DH10-BASE!DH10 -> 0 | DI10: =NPC!DI10-BASE!DI10 -> 0 | DJ10: =NPC!DJ10-BASE!DJ10 -> 0 | DK10: =NPC!DK10-BASE!DK10 -> 0 | DL10: =NPC!DL10-BASE!DL10 -> 0 | DM10: =NPC!DM10-BASE!DM10 -> 0 | DN10: =NPC!DN10-BASE!DN10 -> 0 | DO10: =NPC!DO10-BASE!DO10 -> 0 | DP10: =NPC!DP10-BASE!DP10 -> 0 | DQ10: =NPC!DQ10-BASE!DQ10 -> 0 | DR10: =NPC!DR10-BASE!DR10 -> 0 | DS10: =NPC!DS10-BASE!DS10 -> 0 | DT10: =NPC!DT10-BASE!DT10 -> 0 | DU10: =NPC!DU10-BASE!DU10 -> 0 | DV10: =NPC!DV10-BASE!DV10 -> 0 | DW10: =NPC!DW10-BASE!DW10 -> 0 | DX10: =NPC!DX10-BASE!DX10 -> 0 | DY10: =NPC!DY10-BASE!DY10 -> 0 | DZ10: =NPC!DZ10-BASE!DZ10 -> 0 | EA10: =NPC!EA10-BASE!EA10 -> 0 | EB10: =NPC!EB10-BASE!EB10 -> 0 | EC10: =NPC!EC10-BASE!EC10 -> 0 | ED10: =NPC!ED10-BASE!ED10 -> 0 | ER10: =NPC!ER10 -> -
C11: =NPC!C11 -> East Area Sales (WCA Sale) | E11: =NPC!E11-BASE!E11 -> 0 | F11: =NPC!F11-BASE!F11 -> 0 | G11: =NPC!G11-BASE!G11 -> 0 | H11: =NPC!H11-BASE!H11 -> 0 | I11: =NPC!I11-BASE!I11 -> 0 | J11: =NPC!J11-BASE!J11 -> 0 | K11: =NPC!K11-BASE!K11 -> 0 | L11: =NPC!L11-BASE!L11 -> 0 | M11: =NPC!M11-BASE!M11 -> 0 | N11: =NPC!N11-BASE!N11 -> 0 | O11: =NPC!O11-BASE!O11 -> 0 | P11: =NPC!P11-BASE!P11 -> 0 | Q11: =NPC!Q11-BASE!Q11 -> 0 | R11: =NPC!R11-BASE!R11 -> 0 | S11: =NPC!S11-BASE!S11 -> 0 | T11: =NPC!T11-BASE!T11 -> 0 | U11: =NPC!U11-BASE!U11 -> 0 | V11: =NPC!V11-BASE!V11 -> 0 | W11: =NPC!W11-BASE!W11 -> 0 | X11: =NPC!X11-BASE!X11 -> 0 | Y11: =NPC!Y11-BASE!Y11 -> 0 | Z11: =NPC!Z11-BASE!Z11 -> 0 | AA11: =NPC!AA11-BASE!AA11 -> 0 | AB11: =NPC!AB11-BASE!AB11 -> 0 | AC11: =NPC!AC11-BASE!AC11 -> 0 | AD11: =NPC!AD11-BASE!AD11 -> 0 | AE11: =NPC!AE11-BASE!AE11 -> 0 | AF11: =NPC!AF11-BASE!AF11 -> 0 | AG11: =NPC!AG11-BASE!AG11 -> 0 | AH11: =NPC!AH11-BASE!AH11 -> 0 | AI11: =NPC!AI11-BASE!AI11 -> 0 | AJ11: =NPC!AJ11-BASE!AJ11 -> 0 | AK11: =NPC!AK11-BASE!AK11 -> 0 | AL11: =NPC!AL11-BASE!AL11 -> 0 | AM11: =NPC!AM11-BASE!AM11 -> 0 | AN11: =NPC!AN11-BASE!AN11 -> 0 | AO11: =NPC!AO11-BASE!AO11 -> 0 | AP11: =NPC!AP11-BASE!AP11 -> 0 | AQ11: =NPC!AQ11-BASE!AQ11 -> 0 | AR11: =NPC!AR11-BASE!AR11 -> 0 | AS11: =NPC!AS11-BASE!AS11 -> 0 | AT11: =NPC!AT11-BASE!AT11 -> 0 | AU11: =NPC!AU11-BASE!AU11 -> 0 | AV11: =NPC!AV11-BASE!AV11 -> 0 | AW11: =NPC!AW11-BASE!AW11 -> 0 | AX11: =NPC!AX11-BASE!AX11 -> 0 | AY11: =NPC!AY11-BASE!AY11 -> 0 | AZ11: =NPC!AZ11-BASE!AZ11 -> 0 | BA11: =NPC!BA11-BASE!BA11 -> 0 | BB11: =NPC!BB11-BASE!BB11 -> 0 | BC11: =NPC!BC11-BASE!BC11 -> 0 | BD11: =NPC!BD11-BASE!BD11 -> 0 | BE11: =NPC!BE11-BASE!BE11 -> 0 | BF11: =NPC!BF11-BASE!BF11 -> 0 | BG11: =NPC!BG11-BASE!BG11 -> 0 | BH11: =NPC!BH11-BASE!BH11 -> 0 | BI11: =NPC!BI11-BASE!BI11 -> 0 | BJ11: =NPC!BJ11-BASE!BJ11 -> 0 | BK11: =NPC!BK11-BASE!BK11 -> 0 | BL11: =NPC!BL11-BASE!BL11 -> 0 | BM11: =NPC!BM11-BASE!BM11 -> 0 | BN11: =NPC!BN11-BASE!BN11 -> 0 | BO11: =NPC!BO11-BASE!BO11 -> 0 | BP11: =NPC!BP11-BASE!BP11 -> 0 | BQ11: =NPC!BQ11-BASE!BQ11 -> 0 | BR11: =NPC!BR11-BASE!BR11 -> 0 | BS11: =NPC!BS11-BASE!BS11 -> 0 | BT11: =NPC!BT11-BASE!BT11 -> 0 | BU11: =NPC!BU11-BASE!BU11 -> 0 | BV11: =NPC!BV11-BASE!BV11 -> 0 | BW11: =NPC!BW11-BASE!BW11 -> 0 | BX11: =NPC!BX11-BASE!BX11 -> 0 | BY11: =NPC!BY11-BASE!BY11 -> 0 | BZ11: =NPC!BZ11-BASE!BZ11 -> 0 | CA11: =NPC!CA11-BASE!CA11 -> 0 | CB11: =NPC!CB11-BASE!CB11 -> 0 | CC11: =NPC!CC11-BASE!CC11 -> 0 | CD11: =NPC!CD11-BASE!CD11 -> 0 | CE11: =NPC!CE11-BASE!CE11 -> 0 | CF11: =NPC!CF11-BASE!CF11 -> 0 | CG11: =NPC!CG11-BASE!CG11 -> 0 | CH11: =NPC!CH11-BASE!CH11 -> 0 | CI11: =NPC!CI11-BASE!CI11 -> 0 | CJ11: =NPC!CJ11-BASE!CJ11 -> 0 | CK11: =NPC!CK11-BASE!CK11 -> 0 | CL11: =NPC!CL11-BASE!CL11 -> 0 | CM11: =NPC!CM11-BASE!CM11 -> 0 | CN11: =NPC!CN11-BASE!CN11 -> 0 | CO11: =NPC!CO11-BASE!CO11 -> 0 | CP11: =NPC!CP11-BASE!CP11 -> 0 | CQ11: =NPC!CQ11-BASE!CQ11 -> 0 | CR11: =NPC!CR11-BASE!CR11 -> 0 | CS11: =NPC!CS11-BASE!CS11 -> 0 | CT11: =NPC!CT11-BASE!CT11 -> 0 | CU11: =NPC!CU11-BASE!CU11 -> 0 | CV11: =NPC!CV11-BASE!CV11 -> 0 | CW11: =NPC!CW11-BASE!CW11 -> 0 | CX11: =NPC!CX11-BASE!CX11 -> 0 | CY11: =NPC!CY11-BASE!CY11 -> 0 | CZ11: =NPC!CZ11-BASE!CZ11 -> 0 | DA11: =NPC!DA11-BASE!DA11 -> 0 | DB11: =NPC!DB11-BASE!DB11 -> 0 | DC11: =NPC!DC11-BASE!DC11 -> 0 | DD11: =NPC!DD11-BASE!DD11 -> 0 | DE11: =NPC!DE11-BASE!DE11 -> 0 | DF11: =NPC!DF11-BASE!DF11 -> 0 | DG11: =NPC!DG11-BASE!DG11 -> 0 | DH11: =NPC!DH11-BASE!DH11 -> 0 | DI11: =NPC!DI11-BASE!DI11 -> 0 | DJ11: =NPC!DJ11-BASE!DJ11 -> 0 | DK11: =NPC!DK11-BASE!DK11 -> 0 | DL11: =NPC!DL11-BASE!DL11 -> 0 | DM11: =NPC!DM11-BASE!DM11 -> 0 | DN11: =NPC!DN11-BASE!DN11 -> 0 | DO11: =NPC!DO11-BASE!DO11 -> 0 | DP11: =NPC!DP11-BASE!DP11 -> 0 | DQ11: =NPC!DQ11-BASE!DQ11 -> 0 | DR11: =NPC!DR11-BASE!DR11 -> 0 | DS11: =NPC!DS11-BASE!DS11 -> 0 | DT11: =NPC!DT11-BASE!DT11 -> 0 | DU11: =NPC!DU11-BASE!DU11 -> 0 | DV11: =NPC!DV11-BASE!DV11 -> 0 | DW11: =NPC!DW11-BASE!DW11 -> 0 | DX11: =NPC!DX11-BASE!DX11 -> 0 | DY11: =NPC!DY11-BASE!DY11 -> 0 | DZ11: =NPC!DZ11-BASE!DZ11 -> 0 | EA11: =NPC!EA11-BASE!EA11 -> 0 | EB11: =NPC!EB11-BASE!EB11 -> 0 | EC11: =NPC!EC11-BASE!EC11 -> 0 | ED11: =NPC!ED11-BASE!ED11 -> 0 | ER11: =NPC!ER11 -> Hide Row
C12: =NPC!C12 -> Hurricane Sale s393046 | E12: =NPC!E12-BASE!E12 -> 0 | F12: =NPC!F12-BASE!F12 -> 0 | G12: =NPC!G12-BASE!G12 -> 0 | H12: =NPC!H12-BASE!H12 -> 0 | I12: =NPC!I12-BASE!I12 -> 0 | J12: =NPC!J12-BASE!J12 -> 0 | K12: =NPC!K12-BASE!K12 -> 0 | L12: =NPC!L12-BASE!L12 -> 0 | M12: =NPC!M12-BASE!M12 -> 0 | N12: =NPC!N12-BASE!N12 -> 0 | O12: =NPC!O12-BASE!O12 -> 0 | P12: =NPC!P12-BASE!P12 -> 0 | Q12: =NPC!Q12-BASE!Q12 -> 0 | R12: =NPC!R12-BASE!R12 -> 0 | S12: =NPC!S12-BASE!S12 -> 0 | T12: =NPC!T12-BASE!T12 -> 0 | U12: =NPC!U12-BASE!U12 -> 0 | V12: =NPC!V12-BASE!V12 -> 0 | W12: =NPC!W12-BASE!W12 -> 0 | X12: =NPC!X12-BASE!X12 -> 0 | Y12: =NPC!Y12-BASE!Y12 -> 0 | Z12: =NPC!Z12-BASE!Z12 -> 0 | AA12: =NPC!AA12-BASE!AA12 -> 0 | AB12: =NPC!AB12-BASE!AB12 -> 0 | AC12: =NPC!AC12-BASE!AC12 -> 0 | AD12: =NPC!AD12-BASE!AD12 -> 0 | AE12: =NPC!AE12-BASE!AE12 -> 0 | AF12: =NPC!AF12-BASE!AF12 -> 0 | AG12: =NPC!AG12-BASE!AG12 -> 0 | AH12: =NPC!AH12-BASE!AH12 -> 0 | AI12: =NPC!AI12-BASE!AI12 -> 0 | AJ12: =NPC!AJ12-BASE!AJ12 -> 0 | AK12: =NPC!AK12-BASE!AK12 -> 0 | AL12: =NPC!AL12-BASE!AL12 -> 0 | AM12: =NPC!AM12-BASE!AM12 -> 0 | AN12: =NPC!AN12-BASE!AN12 -> 0 | AO12: =NPC!AO12-BASE!AO12 -> 0 | AP12: =NPC!AP12-BASE!AP12 -> 0 | AQ12: =NPC!AQ12-BASE!AQ12 -> 0 | AR12: =NPC!AR12-BASE!AR12 -> 0 | AS12: =NPC!AS12-BASE!AS12 -> 0 | AT12: =NPC!AT12-BASE!AT12 -> 0 | AU12: =NPC!AU12-BASE!AU12 -> 0 | AV12: =NPC!AV12-BASE!AV12 -> 0 | AW12: =NPC!AW12-BASE!AW12 -> 0 | AX12: =NPC!AX12-BASE!AX12 -> 0 | AY12: =NPC!AY12-BASE!AY12 -> 0 | AZ12: =NPC!AZ12-BASE!AZ12 -> 0 | BA12: =NPC!BA12-BASE!BA12 -> 0 | BB12: =NPC!BB12-BASE!BB12 -> 0 | BC12: =NPC!BC12-BASE!BC12 -> 0 | BD12: =NPC!BD12-BASE!BD12 -> 0 | BE12: =NPC!BE12-BASE!BE12 -> 0 | BF12: =NPC!BF12-BASE!BF12 -> 0 | BG12: =NPC!BG12-BASE!BG12 -> 0 | BH12: =NPC!BH12-BASE!BH12 -> 0 | BI12: =NPC!BI12-BASE!BI12 -> 0 | BJ12: =NPC!BJ12-BASE!BJ12 -> 0 | BK12: =NPC!BK12-BASE!BK12 -> 0 | BL12: =NPC!BL12-BASE!BL12 -> 0 | BM12: =NPC!BM12-BASE!BM12 -> 0 | BN12: =NPC!BN12-BASE!BN12 -> 0 | BO12: =NPC!BO12-BASE!BO12 -> 0 | BP12: =NPC!BP12-BASE!BP12 -> 0 | BQ12: =NPC!BQ12-BASE!BQ12 -> 0 | BR12: =NPC!BR12-BASE!BR12 -> 0 | BS12: =NPC!BS12-BASE!BS12 -> 0 | BT12: =NPC!BT12-BASE!BT12 -> 0 | BU12: =NPC!BU12-BASE!BU12 -> 0 | BV12: =NPC!BV12-BASE!BV12 -> 0 | BW12: =NPC!BW12-BASE!BW12 -> 0 | BX12: =NPC!BX12-BASE!BX12 -> 0 | BY12: =NPC!BY12-BASE!BY12 -> 0 | BZ12: =NPC!BZ12-BASE!BZ12 -> 0 | CA12: =NPC!CA12-BASE!CA12 -> 0 | CB12: =NPC!CB12-BASE!CB12 -> 0 | CC12: =NPC!CC12-BASE!CC12 -> 0 | CD12: =NPC!CD12-BASE!CD12 -> 0 | CE12: =NPC!CE12-BASE!CE12 -> 0 | CF12: =NPC!CF12-BASE!CF12 -> 0 | CG12: =NPC!CG12-BASE!CG12 -> 0 | CH12: =NPC!CH12-BASE!CH12 -> 0 | CI12: =NPC!CI12-BASE!CI12 -> 0 | CJ12: =NPC!CJ12-BASE!CJ12 -> 0 | CK12: =NPC!CK12-BASE!CK12 -> 0 | CL12: =NPC!CL12-BASE!CL12 -> 0 | CM12: =NPC!CM12-BASE!CM12 -> 0 | CN12: =NPC!CN12-BASE!CN12 -> 0 | CO12: =NPC!CO12-BASE!CO12 -> 0 | CP12: =NPC!CP12-BASE!CP12 -> 0 | CQ12: =NPC!CQ12-BASE!CQ12 -> 0 | CR12: =NPC!CR12-BASE!CR12 -> 0 | CS12: =NPC!CS12-BASE!CS12 -> 0 | CT12: =NPC!CT12-BASE!CT12 -> 0 | CU12: =NPC!CU12-BASE!CU12 -> 0 | CV12: =NPC!CV12-BASE!CV12 -> 0 | CW12: =NPC!CW12-BASE!CW12 -> 0 | CX12: =NPC!CX12-BASE!CX12 -> 0 | CY12: =NPC!CY12-BASE!CY12 -> 0 | CZ12: =NPC!CZ12-BASE!CZ12 -> 0 | DA12: =NPC!DA12-BASE!DA12 -> 0 | DB12: =NPC!DB12-BASE!DB12 -> 0 | DC12: =NPC!DC12-BASE!DC12 -> 0 | DD12: =NPC!DD12-BASE!DD12 -> 0 | DE12: =NPC!DE12-BASE!DE12 -> 0 | DF12: =NPC!DF12-BASE!DF12 -> 0 | DG12: =NPC!DG12-BASE!DG12 -> 0 | DH12: =NPC!DH12-BASE!DH12 -> 0 | DI12: =NPC!DI12-BASE!DI12 -> 0 | DJ12: =NPC!DJ12-BASE!DJ12 -> 0 | DK12: =NPC!DK12-BASE!DK12 -> 0 | DL12: =NPC!DL12-BASE!DL12 -> 0 | DM12: =NPC!DM12-BASE!DM12 -> 0 | DN12: =NPC!DN12-BASE!DN12 -> 0 | DO12: =NPC!DO12-BASE!DO12 -> 0 | DP12: =NPC!DP12-BASE!DP12 -> 0 | DQ12: =NPC!DQ12-BASE!DQ12 -> 0 | DR12: =NPC!DR12-BASE!DR12 -> 0 | DS12: =NPC!DS12-BASE!DS12 -> 0 | DT12: =NPC!DT12-BASE!DT12 -> 0 | DU12: =NPC!DU12-BASE!DU12 -> 0 | DV12: =NPC!DV12-BASE!DV12 -> 0 | DW12: =NPC!DW12-BASE!DW12 -> 0 | DX12: =NPC!DX12-BASE!DX12 -> 0 | DY12: =NPC!DY12-BASE!DY12 -> 0 | DZ12: =NPC!DZ12-BASE!DZ12 -> 0 | EA12: =NPC!EA12-BASE!EA12 -> 0 | EB12: =NPC!EB12-BASE!EB12 -> 0 | EC12: =NPC!EC12-BASE!EC12 -> 0 | ED12: =NPC!ED12-BASE!ED12 -> 0 | ER12: =NPC!ER12 -> Hide Row
C13: =NPC!C13 -> Not Used - Sales 1 | E13: =NPC!E13-BASE!E13 -> 0 | F13: =NPC!F13-BASE!F13 -> 0 | G13: =NPC!G13-BASE!G13 -> 0 | H13: =NPC!H13-BASE!H13 -> 0 | I13: =NPC!I13-BASE!I13 -> 0 | J13: =NPC!J13-BASE!J13 -> 0 | K13: =NPC!K13-BASE!K13 -> 0 | L13: =NPC!L13-BASE!L13 -> 0 | M13: =NPC!M13-BASE!M13 -> 0 | N13: =NPC!N13-BASE!N13 -> 0 | O13: =NPC!O13-BASE!O13 -> 0 | P13: =NPC!P13-BASE!P13 -> 0 | Q13: =NPC!Q13-BASE!Q13 -> 0 | R13: =NPC!R13-BASE!R13 -> 0 | S13: =NPC!S13-BASE!S13 -> 0 | T13: =NPC!T13-BASE!T13 -> 0 | U13: =NPC!U13-BASE!U13 -> 0 | V13: =NPC!V13-BASE!V13 -> 0 | W13: =NPC!W13-BASE!W13 -> 0 | X13: =NPC!X13-BASE!X13 -> 0 | Y13: =NPC!Y13-BASE!Y13 -> 0 | Z13: =NPC!Z13-BASE!Z13 -> 0 | AA13: =NPC!AA13-BASE!AA13 -> 0 | AB13: =NPC!AB13-BASE!AB13 -> 0 | AC13: =NPC!AC13-BASE!AC13 -> 0 | AD13: =NPC!AD13-BASE!AD13 -> 0 | AE13: =NPC!AE13-BASE!AE13 -> 0 | AF13: =NPC!AF13-BASE!AF13 -> 0 | AG13: =NPC!AG13-BASE!AG13 -> 0 | AH13: =NPC!AH13-BASE!AH13 -> 0 | AI13: =NPC!AI13-BASE!AI13 -> 0 | AJ13: =NPC!AJ13-BASE!AJ13 -> 0 | AK13: =NPC!AK13-BASE!AK13 -> 0 | AL13: =NPC!AL13-BASE!AL13 -> 0 | AM13: =NPC!AM13-BASE!AM13 -> 0 | AN13: =NPC!AN13-BASE!AN13 -> 0 | AO13: =NPC!AO13-BASE!AO13 -> 0 | AP13: =NPC!AP13-BASE!AP13 -> 0 | AQ13: =NPC!AQ13-BASE!AQ13 -> 0 | AR13: =NPC!AR13-BASE!AR13 -> 0 | AS13: =NPC!AS13-BASE!AS13 -> 0 | AT13: =NPC!AT13-BASE!AT13 -> 0 | AU13: =NPC!AU13-BASE!AU13 -> 0 | AV13: =NPC!AV13-BASE!AV13 -> 0 | AW13: =NPC!AW13-BASE!AW13 -> 0 | AX13: =NPC!AX13-BASE!AX13 -> 0 | AY13: =NPC!AY13-BASE!AY13 -> 0 | AZ13: =NPC!AZ13-BASE!AZ13 -> 0 | BA13: =NPC!BA13-BASE!BA13 -> 0 | BB13: =NPC!BB13-BASE!BB13 -> 0 | BC13: =NPC!BC13-BASE!BC13 -> 0 | BD13: =NPC!BD13-BASE!BD13 -> 0 | BE13: =NPC!BE13-BASE!BE13 -> 0 | BF13: =NPC!BF13-BASE!BF13 -> 0 | BG13: =NPC!BG13-BASE!BG13 -> 0 | BH13: =NPC!BH13-BASE!BH13 -> 0 | BI13: =NPC!BI13-BASE!BI13 -> 0 | BJ13: =NPC!BJ13-BASE!BJ13 -> 0 | BK13: =NPC!BK13-BASE!BK13 -> 0 | BL13: =NPC!BL13-BASE!BL13 -> 0 | BM13: =NPC!BM13-BASE!BM13 -> 0 | BN13: =NPC!BN13-BASE!BN13 -> 0 | BO13: =NPC!BO13-BASE!BO13 -> 0 | BP13: =NPC!BP13-BASE!BP13 -> 0 | BQ13: =NPC!BQ13-BASE!BQ13 -> 0 | BR13: =NPC!BR13-BASE!BR13 -> 0 | BS13: =NPC!BS13-BASE!BS13 -> 0 | BT13: =NPC!BT13-BASE!BT13 -> 0 | BU13: =NPC!BU13-BASE!BU13 -> 0 | BV13: =NPC!BV13-BASE!BV13 -> 0 | BW13: =NPC!BW13-BASE!BW13 -> 0 | BX13: =NPC!BX13-BASE!BX13 -> 0 | BY13: =NPC!BY13-BASE!BY13 -> 0 | BZ13: =NPC!BZ13-BASE!BZ13 -> 0 | CA13: =NPC!CA13-BASE!CA13 -> 0 | CB13: =NPC!CB13-BASE!CB13 -> 0 | CC13: =NPC!CC13-BASE!CC13 -> 0 | CD13: =NPC!CD13-BASE!CD13 -> 0 | CE13: =NPC!CE13-BASE!CE13 -> 0 | CF13: =NPC!CF13-BASE!CF13 -> 0 | CG13: =NPC!CG13-BASE!CG13 -> 0 | CH13: =NPC!CH13-BASE!CH13 -> 0 | CI13: =NPC!CI13-BASE!CI13 -> 0 | CJ13: =NPC!CJ13-BASE!CJ13 -> 0 | CK13: =NPC!CK13-BASE!CK13 -> 0 | CL13: =NPC!CL13-BASE!CL13 -> 0 | CM13: =NPC!CM13-BASE!CM13 -> 0 | CN13: =NPC!CN13-BASE!CN13 -> 0 | CO13: =NPC!CO13-BASE!CO13 -> 0 | CP13: =NPC!CP13-BASE!CP13 -> 0 | CQ13: =NPC!CQ13-BASE!CQ13 -> 0 | CR13: =NPC!CR13-BASE!CR13 -> 0 | CS13: =NPC!CS13-BASE!CS13 -> 0 | CT13: =NPC!CT13-BASE!CT13 -> 0 | CU13: =NPC!CU13-BASE!CU13 -> 0 | CV13: =NPC!CV13-BASE!CV13 -> 0 | CW13: =NPC!CW13-BASE!CW13 -> 0 | CX13: =NPC!CX13-BASE!CX13 -> 0 | CY13: =NPC!CY13-BASE!CY13 -> 0 | CZ13: =NPC!CZ13-BASE!CZ13 -> 0 | DA13: =NPC!DA13-BASE!DA13 -> 0 | DB13: =NPC!DB13-BASE!DB13 -> 0 | DC13: =NPC!DC13-BASE!DC13 -> 0 | DD13: =NPC!DD13-BASE!DD13 -> 0 | DE13: =NPC!DE13-BASE!DE13 -> 0 | DF13: =NPC!DF13-BASE!DF13 -> 0 | DG13: =NPC!DG13-BASE!DG13 -> 0 | DH13: =NPC!DH13-BASE!DH13 -> 0 | DI13: =NPC!DI13-BASE!DI13 -> 0 | DJ13: =NPC!DJ13-BASE!DJ13 -> 0 | DK13: =NPC!DK13-BASE!DK13 -> 0 | DL13: =NPC!DL13-BASE!DL13 -> 0 | DM13: =NPC!DM13-BASE!DM13 -> 0 | DN13: =NPC!DN13-BASE!DN13 -> 0 | DO13: =NPC!DO13-BASE!DO13 -> 0 | DP13: =NPC!DP13-BASE!DP13 -> 0 | DQ13: =NPC!DQ13-BASE!DQ13 -> 0 | DR13: =NPC!DR13-BASE!DR13 -> 0 | DS13: =NPC!DS13-BASE!DS13 -> 0 | DT13: =NPC!DT13-BASE!DT13 -> 0 | DU13: =NPC!DU13-BASE!DU13 -> 0 | DV13: =NPC!DV13-BASE!DV13 -> 0 | DW13: =NPC!DW13-BASE!DW13 -> 0 | DX13: =NPC!DX13-BASE!DX13 -> 0 | DY13: =NPC!DY13-BASE!DY13 -> 0 | DZ13: =NPC!DZ13-BASE!DZ13 -> 0 | EA13: =NPC!EA13-BASE!EA13 -> 0 | EB13: =NPC!EB13-BASE!EB13 -> 0 | EC13: =NPC!EC13-BASE!EC13 -> 0 | ED13: =NPC!ED13-BASE!ED13 -> 0 | ER13: =NPC!ER13 -> Hide Row
C14: =NPC!C14 -> LADWP (IPP Layoff) | E14: =NPC!E14-BASE!E14 -> 0 | F14: =NPC!F14-BASE!F14 -> 0 | G14: =NPC!G14-BASE!G14 -> 0 | H14: =NPC!H14-BASE!H14 -> 0 | I14: =NPC!I14-BASE!I14 -> 0 | J14: =NPC!J14-BASE!J14 -> 0 | K14: =NPC!K14-BASE!K14 -> 0 | L14: =NPC!L14-BASE!L14 -> 0 | M14: =NPC!M14-BASE!M14 -> 0 | N14: =NPC!N14-BASE!N14 -> 0 | O14: =NPC!O14-BASE!O14 -> 0 | P14: =NPC!P14-BASE!P14 -> 0 | Q14: =NPC!Q14-BASE!Q14 -> 0 | R14: =NPC!R14-BASE!R14 -> 0 | S14: =NPC!S14-BASE!S14 -> 0 | T14: =NPC!T14-BASE!T14 -> 0 | U14: =NPC!U14-BASE!U14 -> 0 | V14: =NPC!V14-BASE!V14 -> 0 | W14: =NPC!W14-BASE!W14 -> 0 | X14: =NPC!X14-BASE!X14 -> 0 | Y14: =NPC!Y14-BASE!Y14 -> 0 | Z14: =NPC!Z14-BASE!Z14 -> 0 | AA14: =NPC!AA14-BASE!AA14 -> 0 | AB14: =NPC!AB14-BASE!AB14 -> 0 | AC14: =NPC!AC14-BASE!AC14 -> 0 | AD14: =NPC!AD14-BASE!AD14 -> 0 | AE14: =NPC!AE14-BASE!AE14 -> 0 | AF14: =NPC!AF14-BASE!AF14 -> 0 | AG14: =NPC!AG14-BASE!AG14 -> 0 | AH14: =NPC!AH14-BASE!AH14 -> 0 | AI14: =NPC!AI14-BASE!AI14 -> 0 | AJ14: =NPC!AJ14-BASE!AJ14 -> 0 | AK14: =NPC!AK14-BASE!AK14 -> 0 | AL14: =NPC!AL14-BASE!AL14 -> 0 | AM14: =NPC!AM14-BASE!AM14 -> 0 | AN14: =NPC!AN14-BASE!AN14 -> 0 | AO14: =NPC!AO14-BASE!AO14 -> 0 | AP14: =NPC!AP14-BASE!AP14 -> 0 | AQ14: =NPC!AQ14-BASE!AQ14 -> 0 | AR14: =NPC!AR14-BASE!AR14 -> 0 | AS14: =NPC!AS14-BASE!AS14 -> 0 | AT14: =NPC!AT14-BASE!AT14 -> 0 | AU14: =NPC!AU14-BASE!AU14 -> 0 | AV14: =NPC!AV14-BASE!AV14 -> 0 | AW14: =NPC!AW14-BASE!AW14 -> 0 | AX14: =NPC!AX14-BASE!AX14 -> 0 | AY14: =NPC!AY14-BASE!AY14 -> 0 | AZ14: =NPC!AZ14-BASE!AZ14 -> 0 | BA14: =NPC!BA14-BASE!BA14 -> 0 | BB14: =NPC!BB14-BASE!BB14 -> 0 | BC14: =NPC!BC14-BASE!BC14 -> 0 | BD14: =NPC!BD14-BASE!BD14 -> 0 | BE14: =NPC!BE14-BASE!BE14 -> 0 | BF14: =NPC!BF14-BASE!BF14 -> 0 | BG14: =NPC!BG14-BASE!BG14 -> 0 | BH14: =NPC!BH14-BASE!BH14 -> 0 | BI14: =NPC!BI14-BASE!BI14 -> 0 | BJ14: =NPC!BJ14-BASE!BJ14 -> 0 | BK14: =NPC!BK14-BASE!BK14 -> 0 | BL14: =NPC!BL14-BASE!BL14 -> 0 | BM14: =NPC!BM14-BASE!BM14 -> 0 | BN14: =NPC!BN14-BASE!BN14 -> 0 | BO14: =NPC!BO14-BASE!BO14 -> 0 | BP14: =NPC!BP14-BASE!BP14 -> 0 | BQ14: =NPC!BQ14-BASE!BQ14 -> 0 | BR14: =NPC!BR14-BASE!BR14 -> 0 | BS14: =NPC!BS14-BASE!BS14 -> 0 | BT14: =NPC!BT14-BASE!BT14 -> 0 | BU14: =NPC!BU14-BASE!BU14 -> 0 | BV14: =NPC!BV14-BASE!BV14 -> 0 | BW14: =NPC!BW14-BASE!BW14 -> 0 | BX14: =NPC!BX14-BASE!BX14 -> 0 | BY14: =NPC!BY14-BASE!BY14 -> 0 | BZ14: =NPC!BZ14-BASE!BZ14 -> 0 | CA14: =NPC!CA14-BASE!CA14 -> 0 | CB14: =NPC!CB14-BASE!CB14 -> 0 | CC14: =NPC!CC14-BASE!CC14 -> 0 | CD14: =NPC!CD14-BASE!CD14 -> 0 | CE14: =NPC!CE14-BASE!CE14 -> 0 | CF14: =NPC!CF14-BASE!CF14 -> 0 | CG14: =NPC!CG14-BASE!CG14 -> 0 | CH14: =NPC!CH14-BASE!CH14 -> 0 | CI14: =NPC!CI14-BASE!CI14 -> 0 | CJ14: =NPC!CJ14-BASE!CJ14 -> 0 | CK14: =NPC!CK14-BASE!CK14 -> 0 | CL14: =NPC!CL14-BASE!CL14 -> 0 | CM14: =NPC!CM14-BASE!CM14 -> 0 | CN14: =NPC!CN14-BASE!CN14 -> 0 | CO14: =NPC!CO14-BASE!CO14 -> 0 | CP14: =NPC!CP14-BASE!CP14 -> 0 | CQ14: =NPC!CQ14-BASE!CQ14 -> 0 | CR14: =NPC!CR14-BASE!CR14 -> 0 | CS14: =NPC!CS14-BASE!CS14 -> 0 | CT14: =NPC!CT14-BASE!CT14 -> 0 | CU14: =NPC!CU14-BASE!CU14 -> 0 | CV14: =NPC!CV14-BASE!CV14 -> 0 | CW14: =NPC!CW14-BASE!CW14 -> 0 | CX14: =NPC!CX14-BASE!CX14 -> 0 | CY14: =NPC!CY14-BASE!CY14 -> 0 | CZ14: =NPC!CZ14-BASE!CZ14 -> 0 | DA14: =NPC!DA14-BASE!DA14 -> 0 | DB14: =NPC!DB14-BASE!DB14 -> 0 | DC14: =NPC!DC14-BASE!DC14 -> 0 | DD14: =NPC!DD14-BASE!DD14 -> 0 | DE14: =NPC!DE14-BASE!DE14 -> 0 | DF14: =NPC!DF14-BASE!DF14 -> 0 | DG14: =NPC!DG14-BASE!DG14 -> 0 | DH14: =NPC!DH14-BASE!DH14 -> 0 | DI14: =NPC!DI14-BASE!DI14 -> 0 | DJ14: =NPC!DJ14-BASE!DJ14 -> 0 | DK14: =NPC!DK14-BASE!DK14 -> 0 | DL14: =NPC!DL14-BASE!DL14 -> 0 | DM14: =NPC!DM14-BASE!DM14 -> 0 | DN14: =NPC!DN14-BASE!DN14 -> 0 | DO14: =NPC!DO14-BASE!DO14 -> 0 | DP14: =NPC!DP14-BASE!DP14 -> 0 | DQ14: =NPC!DQ14-BASE!DQ14 -> 0 | DR14: =NPC!DR14-BASE!DR14 -> 0 | DS14: =NPC!DS14-BASE!DS14 -> 0 | DT14: =NPC!DT14-BASE!DT14 -> 0 | DU14: =NPC!DU14-BASE!DU14 -> 0 | DV14: =NPC!DV14-BASE!DV14 -> 0 | DW14: =NPC!DW14-BASE!DW14 -> 0 | DX14: =NPC!DX14-BASE!DX14 -> 0 | DY14: =NPC!DY14-BASE!DY14 -> 0 | DZ14: =NPC!DZ14-BASE!DZ14 -> 0 | EA14: =NPC!EA14-BASE!EA14 -> 0 | EB14: =NPC!EB14-BASE!EB14 -> 0 | EC14: =NPC!EC14-BASE!EC14 -> 0 | ED14: =NPC!ED14-BASE!ED14 -> 0 | ER14: =NPC!ER14 -> -
C15: =NPC!C15 -> LADWP s491300-1 | E15: =NPC!E15-BASE!E15 -> 0 | F15: =NPC!F15-BASE!F15 -> 0 | G15: =NPC!G15-BASE!G15 -> 0 | H15: =NPC!H15-BASE!H15 -> 0 | I15: =NPC!I15-BASE!I15 -> 0 | J15: =NPC!J15-BASE!J15 -> 0 | K15: =NPC!K15-BASE!K15 -> 0 | L15: =NPC!L15-BASE!L15 -> 0 | M15: =NPC!M15-BASE!M15 -> 0 | N15: =NPC!N15-BASE!N15 -> 0 | O15: =NPC!O15-BASE!O15 -> 0 | P15: =NPC!P15-BASE!P15 -> 0 | Q15: =NPC!Q15-BASE!Q15 -> 0 | R15: =NPC!R15-BASE!R15 -> 0 | S15: =NPC!S15-BASE!S15 -> 0 | T15: =NPC!T15-BASE!T15 -> 0 | U15: =NPC!U15-BASE!U15 -> 0 | V15: =NPC!V15-BASE!V15 -> 0 | W15: =NPC!W15-BASE!W15 -> 0 | X15: =NPC!X15-BASE!X15 -> 0 | Y15: =NPC!Y15-BASE!Y15 -> 0 | Z15: =NPC!Z15-BASE!Z15 -> 0 | AA15: =NPC!AA15-BASE!AA15 -> 0 | AB15: =NPC!AB15-BASE!AB15 -> 0 | AC15: =NPC!AC15-BASE!AC15 -> 0 | AD15: =NPC!AD15-BASE!AD15 -> 0 | AE15: =NPC!AE15-BASE!AE15 -> 0 | AF15: =NPC!AF15-BASE!AF15 -> 0 | AG15: =NPC!AG15-BASE!AG15 -> 0 | AH15: =NPC!AH15-BASE!AH15 -> 0 | AI15: =NPC!AI15-BASE!AI15 -> 0 | AJ15: =NPC!AJ15-BASE!AJ15 -> 0 | AK15: =NPC!AK15-BASE!AK15 -> 0 | AL15: =NPC!AL15-BASE!AL15 -> 0 | AM15: =NPC!AM15-BASE!AM15 -> 0 | AN15: =NPC!AN15-BASE!AN15 -> 0 | AO15: =NPC!AO15-BASE!AO15 -> 0 | AP15: =NPC!AP15-BASE!AP15 -> 0 | AQ15: =NPC!AQ15-BASE!AQ15 -> 0 | AR15: =NPC!AR15-BASE!AR15 -> 0 | AS15: =NPC!AS15-BASE!AS15 -> 0 | AT15: =NPC!AT15-BASE!AT15 -> 0 | AU15: =NPC!AU15-BASE!AU15 -> 0 | AV15: =NPC!AV15-BASE!AV15 -> 0 | AW15: =NPC!AW15-BASE!AW15 -> 0 | AX15: =NPC!AX15-BASE!AX15 -> 0 | AY15: =NPC!AY15-BASE!AY15 -> 0 | AZ15: =NPC!AZ15-BASE!AZ15 -> 0 | BA15: =NPC!BA15-BASE!BA15 -> 0 | BB15: =NPC!BB15-BASE!BB15 -> 0 | BC15: =NPC!BC15-BASE!BC15 -> 0 | BD15: =NPC!BD15-BASE!BD15 -> 0 | BE15: =NPC!BE15-BASE!BE15 -> 0 | BF15: =NPC!BF15-BASE!BF15 -> 0 | BG15: =NPC!BG15-BASE!BG15 -> 0 | BH15: =NPC!BH15-BASE!BH15 -> 0 | BI15: =NPC!BI15-BASE!BI15 -> 0 | BJ15: =NPC!BJ15-BASE!BJ15 -> 0 | BK15: =NPC!BK15-BASE!BK15 -> 0 | BL15: =NPC!BL15-BASE!BL15 -> 0 | BM15: =NPC!BM15-BASE!BM15 -> 0 | BN15: =NPC!BN15-BASE!BN15 -> 0 | BO15: =NPC!BO15-BASE!BO15 -> 0 | BP15: =NPC!BP15-BASE!BP15 -> 0 | BQ15: =NPC!BQ15-BASE!BQ15 -> 0 | BR15: =NPC!BR15-BASE!BR15 -> 0 | BS15: =NPC!BS15-BASE!BS15 -> 0 | BT15: =NPC!BT15-BASE!BT15 -> 0 | BU15: =NPC!BU15-BASE!BU15 -> 0 | BV15: =NPC!BV15-BASE!BV15 -> 0 | BW15: =NPC!BW15-BASE!BW15 -> 0 | BX15: =NPC!BX15-BASE!BX15 -> 0 | BY15: =NPC!BY15-BASE!BY15 -> 0 | BZ15: =NPC!BZ15-BASE!BZ15 -> 0 | CA15: =NPC!CA15-BASE!CA15 -> 0 | CB15: =NPC!CB15-BASE!CB15 -> 0 | CC15: =NPC!CC15-BASE!CC15 -> 0 | CD15: =NPC!CD15-BASE!CD15 -> 0 | CE15: =NPC!CE15-BASE!CE15 -> 0 | CF15: =NPC!CF15-BASE!CF15 -> 0 | CG15: =NPC!CG15-BASE!CG15 -> 0 | CH15: =NPC!CH15-BASE!CH15 -> 0 | CI15: =NPC!CI15-BASE!CI15 -> 0 | CJ15: =NPC!CJ15-BASE!CJ15 -> 0 | CK15: =NPC!CK15-BASE!CK15 -> 0 | CL15: =NPC!CL15-BASE!CL15 -> 0 | CM15: =NPC!CM15-BASE!CM15 -> 0 | CN15: =NPC!CN15-BASE!CN15 -> 0 | CO15: =NPC!CO15-BASE!CO15 -> 0 | CP15: =NPC!CP15-BASE!CP15 -> 0 | CQ15: =NPC!CQ15-BASE!CQ15 -> 0 | CR15: =NPC!CR15-BASE!CR15 -> 0 | CS15: =NPC!CS15-BASE!CS15 -> 0 | CT15: =NPC!CT15-BASE!CT15 -> 0 | CU15: =NPC!CU15-BASE!CU15 -> 0 | CV15: =NPC!CV15-BASE!CV15 -> 0 | CW15: =NPC!CW15-BASE!CW15 -> 0 | CX15: =NPC!CX15-BASE!CX15 -> 0 | CY15: =NPC!CY15-BASE!CY15 -> 0 | CZ15: =NPC!CZ15-BASE!CZ15 -> 0 | DA15: =NPC!DA15-BASE!DA15 -> 0 | DB15: =NPC!DB15-BASE!DB15 -> 0 | DC15: =NPC!DC15-BASE!DC15 -> 0 | DD15: =NPC!DD15-BASE!DD15 -> 0 | DE15: =NPC!DE15-BASE!DE15 -> 0 | DF15: =NPC!DF15-BASE!DF15 -> 0 | DG15: =NPC!DG15-BASE!DG15 -> 0 | DH15: =NPC!DH15-BASE!DH15 -> 0 | DI15: =NPC!DI15-BASE!DI15 -> 0 | DJ15: =NPC!DJ15-BASE!DJ15 -> 0 | DK15: =NPC!DK15-BASE!DK15 -> 0 | DL15: =NPC!DL15-BASE!DL15 -> 0 | DM15: =NPC!DM15-BASE!DM15 -> 0 | DN15: =NPC!DN15-BASE!DN15 -> 0 | DO15: =NPC!DO15-BASE!DO15 -> 0 | DP15: =NPC!DP15-BASE!DP15 -> 0 | DQ15: =NPC!DQ15-BASE!DQ15 -> 0 | DR15: =NPC!DR15-BASE!DR15 -> 0 | DS15: =NPC!DS15-BASE!DS15 -> 0 | DT15: =NPC!DT15-BASE!DT15 -> 0 | DU15: =NPC!DU15-BASE!DU15 -> 0 | DV15: =NPC!DV15-BASE!DV15 -> 0 | DW15: =NPC!DW15-BASE!DW15 -> 0 | DX15: =NPC!DX15-BASE!DX15 -> 0 | DY15: =NPC!DY15-BASE!DY15 -> 0 | DZ15: =NPC!DZ15-BASE!DZ15 -> 0 | EA15: =NPC!EA15-BASE!EA15 -> 0 | EB15: =NPC!EB15-BASE!EB15 -> 0 | EC15: =NPC!EC15-BASE!EC15 -> 0 | ED15: =NPC!ED15-BASE!ED15 -> 0 | ER15: =NPC!ER15 -> Hide Row
C16: =NPC!C16 -> NVE s811499 | E16: =NPC!E16-BASE!E16 -> 0 | F16: =NPC!F16-BASE!F16 -> 0 | G16: =NPC!G16-BASE!G16 -> 0 | H16: =NPC!H16-BASE!H16 -> 0 | I16: =NPC!I16-BASE!I16 -> 0 | J16: =NPC!J16-BASE!J16 -> 0 | K16: =NPC!K16-BASE!K16 -> 0 | L16: =NPC!L16-BASE!L16 -> 0 | M16: =NPC!M16-BASE!M16 -> 0 | N16: =NPC!N16-BASE!N16 -> 0 | O16: =NPC!O16-BASE!O16 -> 0 | P16: =NPC!P16-BASE!P16 -> 0 | Q16: =NPC!Q16-BASE!Q16 -> 0 | R16: =NPC!R16-BASE!R16 -> 0 | S16: =NPC!S16-BASE!S16 -> 0 | T16: =NPC!T16-BASE!T16 -> 0 | U16: =NPC!U16-BASE!U16 -> 0 | V16: =NPC!V16-BASE!V16 -> 0 | W16: =NPC!W16-BASE!W16 -> 0 | X16: =NPC!X16-BASE!X16 -> 0 | Y16: =NPC!Y16-BASE!Y16 -> 0 | Z16: =NPC!Z16-BASE!Z16 -> 0 | AA16: =NPC!AA16-BASE!AA16 -> 0 | AB16: =NPC!AB16-BASE!AB16 -> 0 | AC16: =NPC!AC16-BASE!AC16 -> 0 | AD16: =NPC!AD16-BASE!AD16 -> 0 | AE16: =NPC!AE16-BASE!AE16 -> 0 | AF16: =NPC!AF16-BASE!AF16 -> 0 | AG16: =NPC!AG16-BASE!AG16 -> 0 | AH16: =NPC!AH16-BASE!AH16 -> 0 | AI16: =NPC!AI16-BASE!AI16 -> 0 | AJ16: =NPC!AJ16-BASE!AJ16 -> 0 | AK16: =NPC!AK16-BASE!AK16 -> 0 | AL16: =NPC!AL16-BASE!AL16 -> 0 | AM16: =NPC!AM16-BASE!AM16 -> 0 | AN16: =NPC!AN16-BASE!AN16 -> 0 | AO16: =NPC!AO16-BASE!AO16 -> 0 | AP16: =NPC!AP16-BASE!AP16 -> 0 | AQ16: =NPC!AQ16-BASE!AQ16 -> 0 | AR16: =NPC!AR16-BASE!AR16 -> 0 | AS16: =NPC!AS16-BASE!AS16 -> 0 | AT16: =NPC!AT16-BASE!AT16 -> 0 | AU16: =NPC!AU16-BASE!AU16 -> 0 | AV16: =NPC!AV16-BASE!AV16 -> 0 | AW16: =NPC!AW16-BASE!AW16 -> 0 | AX16: =NPC!AX16-BASE!AX16 -> 0 | AY16: =NPC!AY16-BASE!AY16 -> 0 | AZ16: =NPC!AZ16-BASE!AZ16 -> 0 | BA16: =NPC!BA16-BASE!BA16 -> 0 | BB16: =NPC!BB16-BASE!BB16 -> 0 | BC16: =NPC!BC16-BASE!BC16 -> 0 | BD16: =NPC!BD16-BASE!BD16 -> 0 | BE16: =NPC!BE16-BASE!BE16 -> 0 | BF16: =NPC!BF16-BASE!BF16 -> 0 | BG16: =NPC!BG16-BASE!BG16 -> 0 | BH16: =NPC!BH16-BASE!BH16 -> 0 | BI16: =NPC!BI16-BASE!BI16 -> 0 | BJ16: =NPC!BJ16-BASE!BJ16 -> 0 | BK16: =NPC!BK16-BASE!BK16 -> 0 | BL16: =NPC!BL16-BASE!BL16 -> 0 | BM16: =NPC!BM16-BASE!BM16 -> 0 | BN16: =NPC!BN16-BASE!BN16 -> 0 | BO16: =NPC!BO16-BASE!BO16 -> 0 | BP16: =NPC!BP16-BASE!BP16 -> 0 | BQ16: =NPC!BQ16-BASE!BQ16 -> 0 | BR16: =NPC!BR16-BASE!BR16 -> 0 | BS16: =NPC!BS16-BASE!BS16 -> 0 | BT16: =NPC!BT16-BASE!BT16 -> 0 | BU16: =NPC!BU16-BASE!BU16 -> 0 | BV16: =NPC!BV16-BASE!BV16 -> 0 | BW16: =NPC!BW16-BASE!BW16 -> 0 | BX16: =NPC!BX16-BASE!BX16 -> 0 | BY16: =NPC!BY16-BASE!BY16 -> 0 | BZ16: =NPC!BZ16-BASE!BZ16 -> 0 | CA16: =NPC!CA16-BASE!CA16 -> 0 | CB16: =NPC!CB16-BASE!CB16 -> 0 | CC16: =NPC!CC16-BASE!CC16 -> 0 | CD16: =NPC!CD16-BASE!CD16 -> 0 | CE16: =NPC!CE16-BASE!CE16 -> 0 | CF16: =NPC!CF16-BASE!CF16 -> 0 | CG16: =NPC!CG16-BASE!CG16 -> 0 | CH16: =NPC!CH16-BASE!CH16 -> 0 | CI16: =NPC!CI16-BASE!CI16 -> 0 | CJ16: =NPC!CJ16-BASE!CJ16 -> 0 | CK16: =NPC!CK16-BASE!CK16 -> 0 | CL16: =NPC!CL16-BASE!CL16 -> 0 | CM16: =NPC!CM16-BASE!CM16 -> 0 | CN16: =NPC!CN16-BASE!CN16 -> 0 | CO16: =NPC!CO16-BASE!CO16 -> 0 | CP16: =NPC!CP16-BASE!CP16 -> 0 | CQ16: =NPC!CQ16-BASE!CQ16 -> 0 | CR16: =NPC!CR16-BASE!CR16 -> 0 | CS16: =NPC!CS16-BASE!CS16 -> 0 | CT16: =NPC!CT16-BASE!CT16 -> 0 | CU16: =NPC!CU16-BASE!CU16 -> 0 | CV16: =NPC!CV16-BASE!CV16 -> 0 | CW16: =NPC!CW16-BASE!CW16 -> 0 | CX16: =NPC!CX16-BASE!CX16 -> 0 | CY16: =NPC!CY16-BASE!CY16 -> 0 | CZ16: =NPC!CZ16-BASE!CZ16 -> 0 | DA16: =NPC!DA16-BASE!DA16 -> 0 | DB16: =NPC!DB16-BASE!DB16 -> 0 | DC16: =NPC!DC16-BASE!DC16 -> 0 | DD16: =NPC!DD16-BASE!DD16 -> 0 | DE16: =NPC!DE16-BASE!DE16 -> 0 | DF16: =NPC!DF16-BASE!DF16 -> 0 | DG16: =NPC!DG16-BASE!DG16 -> 0 | DH16: =NPC!DH16-BASE!DH16 -> 0 | DI16: =NPC!DI16-BASE!DI16 -> 0 | DJ16: =NPC!DJ16-BASE!DJ16 -> 0 | DK16: =NPC!DK16-BASE!DK16 -> 0 | DL16: =NPC!DL16-BASE!DL16 -> 0 | DM16: =NPC!DM16-BASE!DM16 -> 0 | DN16: =NPC!DN16-BASE!DN16 -> 0 | DO16: =NPC!DO16-BASE!DO16 -> 0 | DP16: =NPC!DP16-BASE!DP16 -> 0 | DQ16: =NPC!DQ16-BASE!DQ16 -> 0 | DR16: =NPC!DR16-BASE!DR16 -> 0 | DS16: =NPC!DS16-BASE!DS16 -> 0 | DT16: =NPC!DT16-BASE!DT16 -> 0 | DU16: =NPC!DU16-BASE!DU16 -> 0 | DV16: =NPC!DV16-BASE!DV16 -> 0 | DW16: =NPC!DW16-BASE!DW16 -> 0 | DX16: =NPC!DX16-BASE!DX16 -> 0 | DY16: =NPC!DY16-BASE!DY16 -> 0 | DZ16: =NPC!DZ16-BASE!DZ16 -> 0 | EA16: =NPC!EA16-BASE!EA16 -> 0 | EB16: =NPC!EB16-BASE!EB16 -> 0 | EC16: =NPC!EC16-BASE!EC16 -> 0 | ED16: =NPC!ED16-BASE!ED16 -> 0 | ER16: =NPC!ER16 -> Hide Row
C17: =NPC!C17 -> Pacific Gas & Electric s524491 | E17: =NPC!E17-BASE!E17 -> 0 | F17: =NPC!F17-BASE!F17 -> 0 | G17: =NPC!G17-BASE!G17 -> 0 | H17: =NPC!H17-BASE!H17 -> 0 | I17: =NPC!I17-BASE!I17 -> 0 | J17: =NPC!J17-BASE!J17 -> 0 | K17: =NPC!K17-BASE!K17 -> 0 | L17: =NPC!L17-BASE!L17 -> 0 | M17: =NPC!M17-BASE!M17 -> 0 | N17: =NPC!N17-BASE!N17 -> 0 | O17: =NPC!O17-BASE!O17 -> 0 | P17: =NPC!P17-BASE!P17 -> 0 | Q17: =NPC!Q17-BASE!Q17 -> 0 | R17: =NPC!R17-BASE!R17 -> 0 | S17: =NPC!S17-BASE!S17 -> 0 | T17: =NPC!T17-BASE!T17 -> 0 | U17: =NPC!U17-BASE!U17 -> 0 | V17: =NPC!V17-BASE!V17 -> 0 | W17: =NPC!W17-BASE!W17 -> 0 | X17: =NPC!X17-BASE!X17 -> 0 | Y17: =NPC!Y17-BASE!Y17 -> 0 | Z17: =NPC!Z17-BASE!Z17 -> 0 | AA17: =NPC!AA17-BASE!AA17 -> 0 | AB17: =NPC!AB17-BASE!AB17 -> 0 | AC17: =NPC!AC17-BASE!AC17 -> 0 | AD17: =NPC!AD17-BASE!AD17 -> 0 | AE17: =NPC!AE17-BASE!AE17 -> 0 | AF17: =NPC!AF17-BASE!AF17 -> 0 | AG17: =NPC!AG17-BASE!AG17 -> 0 | AH17: =NPC!AH17-BASE!AH17 -> 0 | AI17: =NPC!AI17-BASE!AI17 -> 0 | AJ17: =NPC!AJ17-BASE!AJ17 -> 0 | AK17: =NPC!AK17-BASE!AK17 -> 0 | AL17: =NPC!AL17-BASE!AL17 -> 0 | AM17: =NPC!AM17-BASE!AM17 -> 0 | AN17: =NPC!AN17-BASE!AN17 -> 0 | AO17: =NPC!AO17-BASE!AO17 -> 0 | AP17: =NPC!AP17-BASE!AP17 -> 0 | AQ17: =NPC!AQ17-BASE!AQ17 -> 0 | AR17: =NPC!AR17-BASE!AR17 -> 0 | AS17: =NPC!AS17-BASE!AS17 -> 0 | AT17: =NPC!AT17-BASE!AT17 -> 0 | AU17: =NPC!AU17-BASE!AU17 -> 0 | AV17: =NPC!AV17-BASE!AV17 -> 0 | AW17: =NPC!AW17-BASE!AW17 -> 0 | AX17: =NPC!AX17-BASE!AX17 -> 0 | AY17: =NPC!AY17-BASE!AY17 -> 0 | AZ17: =NPC!AZ17-BASE!AZ17 -> 0 | BA17: =NPC!BA17-BASE!BA17 -> 0 | BB17: =NPC!BB17-BASE!BB17 -> 0 | BC17: =NPC!BC17-BASE!BC17 -> 0 | BD17: =NPC!BD17-BASE!BD17 -> 0 | BE17: =NPC!BE17-BASE!BE17 -> 0 | BF17: =NPC!BF17-BASE!BF17 -> 0 | BG17: =NPC!BG17-BASE!BG17 -> 0 | BH17: =NPC!BH17-BASE!BH17 -> 0 | BI17: =NPC!BI17-BASE!BI17 -> 0 | BJ17: =NPC!BJ17-BASE!BJ17 -> 0 | BK17: =NPC!BK17-BASE!BK17 -> 0 | BL17: =NPC!BL17-BASE!BL17 -> 0 | BM17: =NPC!BM17-BASE!BM17 -> 0 | BN17: =NPC!BN17-BASE!BN17 -> 0 | BO17: =NPC!BO17-BASE!BO17 -> 0 | BP17: =NPC!BP17-BASE!BP17 -> 0 | BQ17: =NPC!BQ17-BASE!BQ17 -> 0 | BR17: =NPC!BR17-BASE!BR17 -> 0 | BS17: =NPC!BS17-BASE!BS17 -> 0 | BT17: =NPC!BT17-BASE!BT17 -> 0 | BU17: =NPC!BU17-BASE!BU17 -> 0 | BV17: =NPC!BV17-BASE!BV17 -> 0 | BW17: =NPC!BW17-BASE!BW17 -> 0 | BX17: =NPC!BX17-BASE!BX17 -> 0 | BY17: =NPC!BY17-BASE!BY17 -> 0 | BZ17: =NPC!BZ17-BASE!BZ17 -> 0 | CA17: =NPC!CA17-BASE!CA17 -> 0 | CB17: =NPC!CB17-BASE!CB17 -> 0 | CC17: =NPC!CC17-BASE!CC17 -> 0 | CD17: =NPC!CD17-BASE!CD17 -> 0 | CE17: =NPC!CE17-BASE!CE17 -> 0 | CF17: =NPC!CF17-BASE!CF17 -> 0 | CG17: =NPC!CG17-BASE!CG17 -> 0 | CH17: =NPC!CH17-BASE!CH17 -> 0 | CI17: =NPC!CI17-BASE!CI17 -> 0 | CJ17: =NPC!CJ17-BASE!CJ17 -> 0 | CK17: =NPC!CK17-BASE!CK17 -> 0 | CL17: =NPC!CL17-BASE!CL17 -> 0 | CM17: =NPC!CM17-BASE!CM17 -> 0 | CN17: =NPC!CN17-BASE!CN17 -> 0 | CO17: =NPC!CO17-BASE!CO17 -> 0 | CP17: =NPC!CP17-BASE!CP17 -> 0 | CQ17: =NPC!CQ17-BASE!CQ17 -> 0 | CR17: =NPC!CR17-BASE!CR17 -> 0 | CS17: =NPC!CS17-BASE!CS17 -> 0 | CT17: =NPC!CT17-BASE!CT17 -> 0 | CU17: =NPC!CU17-BASE!CU17 -> 0 | CV17: =NPC!CV17-BASE!CV17 -> 0 | CW17: =NPC!CW17-BASE!CW17 -> 0 | CX17: =NPC!CX17-BASE!CX17 -> 0 | CY17: =NPC!CY17-BASE!CY17 -> 0 | CZ17: =NPC!CZ17-BASE!CZ17 -> 0 | DA17: =NPC!DA17-BASE!DA17 -> 0 | DB17: =NPC!DB17-BASE!DB17 -> 0 | DC17: =NPC!DC17-BASE!DC17 -> 0 | DD17: =NPC!DD17-BASE!DD17 -> 0 | DE17: =NPC!DE17-BASE!DE17 -> 0 | DF17: =NPC!DF17-BASE!DF17 -> 0 | DG17: =NPC!DG17-BASE!DG17 -> 0 | DH17: =NPC!DH17-BASE!DH17 -> 0 | DI17: =NPC!DI17-BASE!DI17 -> 0 | DJ17: =NPC!DJ17-BASE!DJ17 -> 0 | DK17: =NPC!DK17-BASE!DK17 -> 0 | DL17: =NPC!DL17-BASE!DL17 -> 0 | DM17: =NPC!DM17-BASE!DM17 -> 0 | DN17: =NPC!DN17-BASE!DN17 -> 0 | DO17: =NPC!DO17-BASE!DO17 -> 0 | DP17: =NPC!DP17-BASE!DP17 -> 0 | DQ17: =NPC!DQ17-BASE!DQ17 -> 0 | DR17: =NPC!DR17-BASE!DR17 -> 0 | DS17: =NPC!DS17-BASE!DS17 -> 0 | DT17: =NPC!DT17-BASE!DT17 -> 0 | DU17: =NPC!DU17-BASE!DU17 -> 0 | DV17: =NPC!DV17-BASE!DV17 -> 0 | DW17: =NPC!DW17-BASE!DW17 -> 0 | DX17: =NPC!DX17-BASE!DX17 -> 0 | DY17: =NPC!DY17-BASE!DY17 -> 0 | DZ17: =NPC!DZ17-BASE!DZ17 -> 0 | EA17: =NPC!EA17-BASE!EA17 -> 0 | EB17: =NPC!EB17-BASE!EB17 -> 0 | EC17: =NPC!EC17-BASE!EC17 -> 0 | ED17: =NPC!ED17-BASE!ED17 -> 0 | ER17: =NPC!ER17 -> Hide Row
C18: =NPC!C18 -> PSCO s100035 | E18: =NPC!E18-BASE!E18 -> 0 | F18: =NPC!F18-BASE!F18 -> 0 | G18: =NPC!G18-BASE!G18 -> 0 | H18: =NPC!H18-BASE!H18 -> 0 | I18: =NPC!I18-BASE!I18 -> 0 | J18: =NPC!J18-BASE!J18 -> 0 | K18: =NPC!K18-BASE!K18 -> 0 | L18: =NPC!L18-BASE!L18 -> 0 | M18: =NPC!M18-BASE!M18 -> 0 | N18: =NPC!N18-BASE!N18 -> 0 | O18: =NPC!O18-BASE!O18 -> 0 | P18: =NPC!P18-BASE!P18 -> 0 | Q18: =NPC!Q18-BASE!Q18 -> 0 | R18: =NPC!R18-BASE!R18 -> 0 | S18: =NPC!S18-BASE!S18 -> 0 | T18: =NPC!T18-BASE!T18 -> 0 | U18: =NPC!U18-BASE!U18 -> 0 | V18: =NPC!V18-BASE!V18 -> 0 | W18: =NPC!W18-BASE!W18 -> 0 | X18: =NPC!X18-BASE!X18 -> 0 | Y18: =NPC!Y18-BASE!Y18 -> 0 | Z18: =NPC!Z18-BASE!Z18 -> 0 | AA18: =NPC!AA18-BASE!AA18 -> 0 | AB18: =NPC!AB18-BASE!AB18 -> 0 | AC18: =NPC!AC18-BASE!AC18 -> 0 | AD18: =NPC!AD18-BASE!AD18 -> 0 | AE18: =NPC!AE18-BASE!AE18 -> 0 | AF18: =NPC!AF18-BASE!AF18 -> 0 | AG18: =NPC!AG18-BASE!AG18 -> 0 | AH18: =NPC!AH18-BASE!AH18 -> 0 | AI18: =NPC!AI18-BASE!AI18 -> 0 | AJ18: =NPC!AJ18-BASE!AJ18 -> 0 | AK18: =NPC!AK18-BASE!AK18 -> 0 | AL18: =NPC!AL18-BASE!AL18 -> 0 | AM18: =NPC!AM18-BASE!AM18 -> 0 | AN18: =NPC!AN18-BASE!AN18 -> 0 | AO18: =NPC!AO18-BASE!AO18 -> 0 | AP18: =NPC!AP18-BASE!AP18 -> 0 | AQ18: =NPC!AQ18-BASE!AQ18 -> 0 | AR18: =NPC!AR18-BASE!AR18 -> 0 | AS18: =NPC!AS18-BASE!AS18 -> 0 | AT18: =NPC!AT18-BASE!AT18 -> 0 | AU18: =NPC!AU18-BASE!AU18 -> 0 | AV18: =NPC!AV18-BASE!AV18 -> 0 | AW18: =NPC!AW18-BASE!AW18 -> 0 | AX18: =NPC!AX18-BASE!AX18 -> 0 | AY18: =NPC!AY18-BASE!AY18 -> 0 | AZ18: =NPC!AZ18-BASE!AZ18 -> 0 | BA18: =NPC!BA18-BASE!BA18 -> 0 | BB18: =NPC!BB18-BASE!BB18 -> 0 | BC18: =NPC!BC18-BASE!BC18 -> 0 | BD18: =NPC!BD18-BASE!BD18 -> 0 | BE18: =NPC!BE18-BASE!BE18 -> 0 | BF18: =NPC!BF18-BASE!BF18 -> 0 | BG18: =NPC!BG18-BASE!BG18 -> 0 | BH18: =NPC!BH18-BASE!BH18 -> 0 | BI18: =NPC!BI18-BASE!BI18 -> 0 | BJ18: =NPC!BJ18-BASE!BJ18 -> 0 | BK18: =NPC!BK18-BASE!BK18 -> 0 | BL18: =NPC!BL18-BASE!BL18 -> 0 | BM18: =NPC!BM18-BASE!BM18 -> 0 | BN18: =NPC!BN18-BASE!BN18 -> 0 | BO18: =NPC!BO18-BASE!BO18 -> 0 | BP18: =NPC!BP18-BASE!BP18 -> 0 | BQ18: =NPC!BQ18-BASE!BQ18 -> 0 | BR18: =NPC!BR18-BASE!BR18 -> 0 | BS18: =NPC!BS18-BASE!BS18 -> 0 | BT18: =NPC!BT18-BASE!BT18 -> 0 | BU18: =NPC!BU18-BASE!BU18 -> 0 | BV18: =NPC!BV18-BASE!BV18 -> 0 | BW18: =NPC!BW18-BASE!BW18 -> 0 | BX18: =NPC!BX18-BASE!BX18 -> 0 | BY18: =NPC!BY18-BASE!BY18 -> 0 | BZ18: =NPC!BZ18-BASE!BZ18 -> 0 | CA18: =NPC!CA18-BASE!CA18 -> 0 | CB18: =NPC!CB18-BASE!CB18 -> 0 | CC18: =NPC!CC18-BASE!CC18 -> 0 | CD18: =NPC!CD18-BASE!CD18 -> 0 | CE18: =NPC!CE18-BASE!CE18 -> 0 | CF18: =NPC!CF18-BASE!CF18 -> 0 | CG18: =NPC!CG18-BASE!CG18 -> 0 | CH18: =NPC!CH18-BASE!CH18 -> 0 | CI18: =NPC!CI18-BASE!CI18 -> 0 | CJ18: =NPC!CJ18-BASE!CJ18 -> 0 | CK18: =NPC!CK18-BASE!CK18 -> 0 | CL18: =NPC!CL18-BASE!CL18 -> 0 | CM18: =NPC!CM18-BASE!CM18 -> 0 | CN18: =NPC!CN18-BASE!CN18 -> 0 | CO18: =NPC!CO18-BASE!CO18 -> 0 | CP18: =NPC!CP18-BASE!CP18 -> 0 | CQ18: =NPC!CQ18-BASE!CQ18 -> 0 | CR18: =NPC!CR18-BASE!CR18 -> 0 | CS18: =NPC!CS18-BASE!CS18 -> 0 | CT18: =NPC!CT18-BASE!CT18 -> 0 | CU18: =NPC!CU18-BASE!CU18 -> 0 | CV18: =NPC!CV18-BASE!CV18 -> 0 | CW18: =NPC!CW18-BASE!CW18 -> 0 | CX18: =NPC!CX18-BASE!CX18 -> 0 | CY18: =NPC!CY18-BASE!CY18 -> 0 | CZ18: =NPC!CZ18-BASE!CZ18 -> 0 | DA18: =NPC!DA18-BASE!DA18 -> 0 | DB18: =NPC!DB18-BASE!DB18 -> 0 | DC18: =NPC!DC18-BASE!DC18 -> 0 | DD18: =NPC!DD18-BASE!DD18 -> 0 | DE18: =NPC!DE18-BASE!DE18 -> 0 | DF18: =NPC!DF18-BASE!DF18 -> 0 | DG18: =NPC!DG18-BASE!DG18 -> 0 | DH18: =NPC!DH18-BASE!DH18 -> 0 | DI18: =NPC!DI18-BASE!DI18 -> 0 | DJ18: =NPC!DJ18-BASE!DJ18 -> 0 | DK18: =NPC!DK18-BASE!DK18 -> 0 | DL18: =NPC!DL18-BASE!DL18 -> 0 | DM18: =NPC!DM18-BASE!DM18 -> 0 | DN18: =NPC!DN18-BASE!DN18 -> 0 | DO18: =NPC!DO18-BASE!DO18 -> 0 | DP18: =NPC!DP18-BASE!DP18 -> 0 | DQ18: =NPC!DQ18-BASE!DQ18 -> 0 | DR18: =NPC!DR18-BASE!DR18 -> 0 | DS18: =NPC!DS18-BASE!DS18 -> 0 | DT18: =NPC!DT18-BASE!DT18 -> 0 | DU18: =NPC!DU18-BASE!DU18 -> 0 | DV18: =NPC!DV18-BASE!DV18 -> 0 | DW18: =NPC!DW18-BASE!DW18 -> 0 | DX18: =NPC!DX18-BASE!DX18 -> 0 | DY18: =NPC!DY18-BASE!DY18 -> 0 | DZ18: =NPC!DZ18-BASE!DZ18 -> 0 | EA18: =NPC!EA18-BASE!EA18 -> 0 | EB18: =NPC!EB18-BASE!EB18 -> 0 | EC18: =NPC!EC18-BASE!EC18 -> 0 | ED18: =NPC!ED18-BASE!ED18 -> 0 | ER18: =NPC!ER18 -> Hide Row
C19: =NPC!C19 -> Salt River Project s322940 | E19: =NPC!E19-BASE!E19 -> 0 | F19: =NPC!F19-BASE!F19 -> 0 | G19: =NPC!G19-BASE!G19 -> 0 | H19: =NPC!H19-BASE!H19 -> 0 | I19: =NPC!I19-BASE!I19 -> 0 | J19: =NPC!J19-BASE!J19 -> 0 | K19: =NPC!K19-BASE!K19 -> 0 | L19: =NPC!L19-BASE!L19 -> 0 | M19: =NPC!M19-BASE!M19 -> 0 | N19: =NPC!N19-BASE!N19 -> 0 | O19: =NPC!O19-BASE!O19 -> 0 | P19: =NPC!P19-BASE!P19 -> 0 | Q19: =NPC!Q19-BASE!Q19 -> 0 | R19: =NPC!R19-BASE!R19 -> 0 | S19: =NPC!S19-BASE!S19 -> 0 | T19: =NPC!T19-BASE!T19 -> 0 | U19: =NPC!U19-BASE!U19 -> 0 | V19: =NPC!V19-BASE!V19 -> 0 | W19: =NPC!W19-BASE!W19 -> 0 | X19: =NPC!X19-BASE!X19 -> 0 | Y19: =NPC!Y19-BASE!Y19 -> 0 | Z19: =NPC!Z19-BASE!Z19 -> 0 | AA19: =NPC!AA19-BASE!AA19 -> 0 | AB19: =NPC!AB19-BASE!AB19 -> 0 | AC19: =NPC!AC19-BASE!AC19 -> 0 | AD19: =NPC!AD19-BASE!AD19 -> 0 | AE19: =NPC!AE19-BASE!AE19 -> 0 | AF19: =NPC!AF19-BASE!AF19 -> 0 | AG19: =NPC!AG19-BASE!AG19 -> 0 | AH19: =NPC!AH19-BASE!AH19 -> 0 | AI19: =NPC!AI19-BASE!AI19 -> 0 | AJ19: =NPC!AJ19-BASE!AJ19 -> 0 | AK19: =NPC!AK19-BASE!AK19 -> 0 | AL19: =NPC!AL19-BASE!AL19 -> 0 | AM19: =NPC!AM19-BASE!AM19 -> 0 | AN19: =NPC!AN19-BASE!AN19 -> 0 | AO19: =NPC!AO19-BASE!AO19 -> 0 | AP19: =NPC!AP19-BASE!AP19 -> 0 | AQ19: =NPC!AQ19-BASE!AQ19 -> 0 | AR19: =NPC!AR19-BASE!AR19 -> 0 | AS19: =NPC!AS19-BASE!AS19 -> 0 | AT19: =NPC!AT19-BASE!AT19 -> 0 | AU19: =NPC!AU19-BASE!AU19 -> 0 | AV19: =NPC!AV19-BASE!AV19 -> 0 | AW19: =NPC!AW19-BASE!AW19 -> 0 | AX19: =NPC!AX19-BASE!AX19 -> 0 | AY19: =NPC!AY19-BASE!AY19 -> 0 | AZ19: =NPC!AZ19-BASE!AZ19 -> 0 | BA19: =NPC!BA19-BASE!BA19 -> 0 | BB19: =NPC!BB19-BASE!BB19 -> 0 | BC19: =NPC!BC19-BASE!BC19 -> 0 | BD19: =NPC!BD19-BASE!BD19 -> 0 | BE19: =NPC!BE19-BASE!BE19 -> 0 | BF19: =NPC!BF19-BASE!BF19 -> 0 | BG19: =NPC!BG19-BASE!BG19 -> 0 | BH19: =NPC!BH19-BASE!BH19 -> 0 | BI19: =NPC!BI19-BASE!BI19 -> 0 | BJ19: =NPC!BJ19-BASE!BJ19 -> 0 | BK19: =NPC!BK19-BASE!BK19 -> 0 | BL19: =NPC!BL19-BASE!BL19 -> 0 | BM19: =NPC!BM19-BASE!BM19 -> 0 | BN19: =NPC!BN19-BASE!BN19 -> 0 | BO19: =NPC!BO19-BASE!BO19 -> 0 | BP19: =NPC!BP19-BASE!BP19 -> 0 | BQ19: =NPC!BQ19-BASE!BQ19 -> 0 | BR19: =NPC!BR19-BASE!BR19 -> 0 | BS19: =NPC!BS19-BASE!BS19 -> 0 | BT19: =NPC!BT19-BASE!BT19 -> 0 | BU19: =NPC!BU19-BASE!BU19 -> 0 | BV19: =NPC!BV19-BASE!BV19 -> 0 | BW19: =NPC!BW19-BASE!BW19 -> 0 | BX19: =NPC!BX19-BASE!BX19 -> 0 | BY19: =NPC!BY19-BASE!BY19 -> 0 | BZ19: =NPC!BZ19-BASE!BZ19 -> 0 | CA19: =NPC!CA19-BASE!CA19 -> 0 | CB19: =NPC!CB19-BASE!CB19 -> 0 | CC19: =NPC!CC19-BASE!CC19 -> 0 | CD19: =NPC!CD19-BASE!CD19 -> 0 | CE19: =NPC!CE19-BASE!CE19 -> 0 | CF19: =NPC!CF19-BASE!CF19 -> 0 | CG19: =NPC!CG19-BASE!CG19 -> 0 | CH19: =NPC!CH19-BASE!CH19 -> 0 | CI19: =NPC!CI19-BASE!CI19 -> 0 | CJ19: =NPC!CJ19-BASE!CJ19 -> 0 | CK19: =NPC!CK19-BASE!CK19 -> 0 | CL19: =NPC!CL19-BASE!CL19 -> 0 | CM19: =NPC!CM19-BASE!CM19 -> 0 | CN19: =NPC!CN19-BASE!CN19 -> 0 | CO19: =NPC!CO19-BASE!CO19 -> 0 | CP19: =NPC!CP19-BASE!CP19 -> 0 | CQ19: =NPC!CQ19-BASE!CQ19 -> 0 | CR19: =NPC!CR19-BASE!CR19 -> 0 | CS19: =NPC!CS19-BASE!CS19 -> 0 | CT19: =NPC!CT19-BASE!CT19 -> 0 | CU19: =NPC!CU19-BASE!CU19 -> 0 | CV19: =NPC!CV19-BASE!CV19 -> 0 | CW19: =NPC!CW19-BASE!CW19 -> 0 | CX19: =NPC!CX19-BASE!CX19 -> 0 | CY19: =NPC!CY19-BASE!CY19 -> 0 | CZ19: =NPC!CZ19-BASE!CZ19 -> 0 | DA19: =NPC!DA19-BASE!DA19 -> 0 | DB19: =NPC!DB19-BASE!DB19 -> 0 | DC19: =NPC!DC19-BASE!DC19 -> 0 | DD19: =NPC!DD19-BASE!DD19 -> 0 | DE19: =NPC!DE19-BASE!DE19 -> 0 | DF19: =NPC!DF19-BASE!DF19 -> 0 | DG19: =NPC!DG19-BASE!DG19 -> 0 | DH19: =NPC!DH19-BASE!DH19 -> 0 | DI19: =NPC!DI19-BASE!DI19 -> 0 | DJ19: =NPC!DJ19-BASE!DJ19 -> 0 | DK19: =NPC!DK19-BASE!DK19 -> 0 | DL19: =NPC!DL19-BASE!DL19 -> 0 | DM19: =NPC!DM19-BASE!DM19 -> 0 | DN19: =NPC!DN19-BASE!DN19 -> 0 | DO19: =NPC!DO19-BASE!DO19 -> 0 | DP19: =NPC!DP19-BASE!DP19 -> 0 | DQ19: =NPC!DQ19-BASE!DQ19 -> 0 | DR19: =NPC!DR19-BASE!DR19 -> 0 | DS19: =NPC!DS19-BASE!DS19 -> 0 | DT19: =NPC!DT19-BASE!DT19 -> 0 | DU19: =NPC!DU19-BASE!DU19 -> 0 | DV19: =NPC!DV19-BASE!DV19 -> 0 | DW19: =NPC!DW19-BASE!DW19 -> 0 | DX19: =NPC!DX19-BASE!DX19 -> 0 | DY19: =NPC!DY19-BASE!DY19 -> 0 | DZ19: =NPC!DZ19-BASE!DZ19 -> 0 | EA19: =NPC!EA19-BASE!EA19 -> 0 | EB19: =NPC!EB19-BASE!EB19 -> 0 | EC19: =NPC!EC19-BASE!EC19 -> 0 | ED19: =NPC!ED19-BASE!ED19 -> 0 | ER19: =NPC!ER19 -> Hide Row
C20: =NPC!C20 -> SCE s513948 | E20: =NPC!E20-BASE!E20 -> 0 | F20: =NPC!F20-BASE!F20 -> 0 | G20: =NPC!G20-BASE!G20 -> 0 | H20: =NPC!H20-BASE!H20 -> 0 | I20: =NPC!I20-BASE!I20 -> 0 | J20: =NPC!J20-BASE!J20 -> 0 | K20: =NPC!K20-BASE!K20 -> 0 | L20: =NPC!L20-BASE!L20 -> 0 | M20: =NPC!M20-BASE!M20 -> 0 | N20: =NPC!N20-BASE!N20 -> 0 | O20: =NPC!O20-BASE!O20 -> 0 | P20: =NPC!P20-BASE!P20 -> 0 | Q20: =NPC!Q20-BASE!Q20 -> 0 | R20: =NPC!R20-BASE!R20 -> 0 | S20: =NPC!S20-BASE!S20 -> 0 | T20: =NPC!T20-BASE!T20 -> 0 | U20: =NPC!U20-BASE!U20 -> 0 | V20: =NPC!V20-BASE!V20 -> 0 | W20: =NPC!W20-BASE!W20 -> 0 | X20: =NPC!X20-BASE!X20 -> 0 | Y20: =NPC!Y20-BASE!Y20 -> 0 | Z20: =NPC!Z20-BASE!Z20 -> 0 | AA20: =NPC!AA20-BASE!AA20 -> 0 | AB20: =NPC!AB20-BASE!AB20 -> 0 | AC20: =NPC!AC20-BASE!AC20 -> 0 | AD20: =NPC!AD20-BASE!AD20 -> 0 | AE20: =NPC!AE20-BASE!AE20 -> 0 | AF20: =NPC!AF20-BASE!AF20 -> 0 | AG20: =NPC!AG20-BASE!AG20 -> 0 | AH20: =NPC!AH20-BASE!AH20 -> 0 | AI20: =NPC!AI20-BASE!AI20 -> 0 | AJ20: =NPC!AJ20-BASE!AJ20 -> 0 | AK20: =NPC!AK20-BASE!AK20 -> 0 | AL20: =NPC!AL20-BASE!AL20 -> 0 | AM20: =NPC!AM20-BASE!AM20 -> 0 | AN20: =NPC!AN20-BASE!AN20 -> 0 | AO20: =NPC!AO20-BASE!AO20 -> 0 | AP20: =NPC!AP20-BASE!AP20 -> 0 | AQ20: =NPC!AQ20-BASE!AQ20 -> 0 | AR20: =NPC!AR20-BASE!AR20 -> 0 | AS20: =NPC!AS20-BASE!AS20 -> 0 | AT20: =NPC!AT20-BASE!AT20 -> 0 | AU20: =NPC!AU20-BASE!AU20 -> 0 | AV20: =NPC!AV20-BASE!AV20 -> 0 | AW20: =NPC!AW20-BASE!AW20 -> 0 | AX20: =NPC!AX20-BASE!AX20 -> 0 | AY20: =NPC!AY20-BASE!AY20 -> 0 | AZ20: =NPC!AZ20-BASE!AZ20 -> 0 | BA20: =NPC!BA20-BASE!BA20 -> 0 | BB20: =NPC!BB20-BASE!BB20 -> 0 | BC20: =NPC!BC20-BASE!BC20 -> 0 | BD20: =NPC!BD20-BASE!BD20 -> 0 | BE20: =NPC!BE20-BASE!BE20 -> 0 | BF20: =NPC!BF20-BASE!BF20 -> 0 | BG20: =NPC!BG20-BASE!BG20 -> 0 | BH20: =NPC!BH20-BASE!BH20 -> 0 | BI20: =NPC!BI20-BASE!BI20 -> 0 | BJ20: =NPC!BJ20-BASE!BJ20 -> 0 | BK20: =NPC!BK20-BASE!BK20 -> 0 | BL20: =NPC!BL20-BASE!BL20 -> 0 | BM20: =NPC!BM20-BASE!BM20 -> 0 | BN20: =NPC!BN20-BASE!BN20 -> 0 | BO20: =NPC!BO20-BASE!BO20 -> 0 | BP20: =NPC!BP20-BASE!BP20 -> 0 | BQ20: =NPC!BQ20-BASE!BQ20 -> 0 | BR20: =NPC!BR20-BASE!BR20 -> 0 | BS20: =NPC!BS20-BASE!BS20 -> 0 | BT20: =NPC!BT20-BASE!BT20 -> 0 | BU20: =NPC!BU20-BASE!BU20 -> 0 | BV20: =NPC!BV20-BASE!BV20 -> 0 | BW20: =NPC!BW20-BASE!BW20 -> 0 | BX20: =NPC!BX20-BASE!BX20 -> 0 | BY20: =NPC!BY20-BASE!BY20 -> 0 | BZ20: =NPC!BZ20-BASE!BZ20 -> 0 | CA20: =NPC!CA20-BASE!CA20 -> 0 | CB20: =NPC!CB20-BASE!CB20 -> 0 | CC20: =NPC!CC20-BASE!CC20 -> 0 | CD20: =NPC!CD20-BASE!CD20 -> 0 | CE20: =NPC!CE20-BASE!CE20 -> 0 | CF20: =NPC!CF20-BASE!CF20 -> 0 | CG20: =NPC!CG20-BASE!CG20 -> 0 | CH20: =NPC!CH20-BASE!CH20 -> 0 | CI20: =NPC!CI20-BASE!CI20 -> 0 | CJ20: =NPC!CJ20-BASE!CJ20 -> 0 | CK20: =NPC!CK20-BASE!CK20 -> 0 | CL20: =NPC!CL20-BASE!CL20 -> 0 | CM20: =NPC!CM20-BASE!CM20 -> 0 | CN20: =NPC!CN20-BASE!CN20 -> 0 | CO20: =NPC!CO20-BASE!CO20 -> 0 | CP20: =NPC!CP20-BASE!CP20 -> 0 | CQ20: =NPC!CQ20-BASE!CQ20 -> 0 | CR20: =NPC!CR20-BASE!CR20 -> 0 | CS20: =NPC!CS20-BASE!CS20 -> 0 | CT20: =NPC!CT20-BASE!CT20 -> 0 | CU20: =NPC!CU20-BASE!CU20 -> 0 | CV20: =NPC!CV20-BASE!CV20 -> 0 | CW20: =NPC!CW20-BASE!CW20 -> 0 | CX20: =NPC!CX20-BASE!CX20 -> 0 | CY20: =NPC!CY20-BASE!CY20 -> 0 | CZ20: =NPC!CZ20-BASE!CZ20 -> 0 | DA20: =NPC!DA20-BASE!DA20 -> 0 | DB20: =NPC!DB20-BASE!DB20 -> 0 | DC20: =NPC!DC20-BASE!DC20 -> 0 | DD20: =NPC!DD20-BASE!DD20 -> 0 | DE20: =NPC!DE20-BASE!DE20 -> 0 | DF20: =NPC!DF20-BASE!DF20 -> 0 | DG20: =NPC!DG20-BASE!DG20 -> 0 | DH20: =NPC!DH20-BASE!DH20 -> 0 | DI20: =NPC!DI20-BASE!DI20 -> 0 | DJ20: =NPC!DJ20-BASE!DJ20 -> 0 | DK20: =NPC!DK20-BASE!DK20 -> 0 | DL20: =NPC!DL20-BASE!DL20 -> 0 | DM20: =NPC!DM20-BASE!DM20 -> 0 | DN20: =NPC!DN20-BASE!DN20 -> 0 | DO20: =NPC!DO20-BASE!DO20 -> 0 | DP20: =NPC!DP20-BASE!DP20 -> 0 | DQ20: =NPC!DQ20-BASE!DQ20 -> 0 | DR20: =NPC!DR20-BASE!DR20 -> 0 | DS20: =NPC!DS20-BASE!DS20 -> 0 | DT20: =NPC!DT20-BASE!DT20 -> 0 | DU20: =NPC!DU20-BASE!DU20 -> 0 | DV20: =NPC!DV20-BASE!DV20 -> 0 | DW20: =NPC!DW20-BASE!DW20 -> 0 | DX20: =NPC!DX20-BASE!DX20 -> 0 | DY20: =NPC!DY20-BASE!DY20 -> 0 | DZ20: =NPC!DZ20-BASE!DZ20 -> 0 | EA20: =NPC!EA20-BASE!EA20 -> 0 | EB20: =NPC!EB20-BASE!EB20 -> 0 | EC20: =NPC!EC20-BASE!EC20 -> 0 | ED20: =NPC!ED20-BASE!ED20 -> 0 | ER20: =NPC!ER20 -> Hide Row
C21: =NPC!C21 -> SDG&E s513949 | E21: =NPC!E21-BASE!E21 -> 0 | F21: =NPC!F21-BASE!F21 -> 0 | G21: =NPC!G21-BASE!G21 -> 0 | H21: =NPC!H21-BASE!H21 -> 0 | I21: =NPC!I21-BASE!I21 -> 0 | J21: =NPC!J21-BASE!J21 -> 0 | K21: =NPC!K21-BASE!K21 -> 0 | L21: =NPC!L21-BASE!L21 -> 0 | M21: =NPC!M21-BASE!M21 -> 0 | N21: =NPC!N21-BASE!N21 -> 0 | O21: =NPC!O21-BASE!O21 -> 0 | P21: =NPC!P21-BASE!P21 -> 0 | Q21: =NPC!Q21-BASE!Q21 -> 0 | R21: =NPC!R21-BASE!R21 -> 0 | S21: =NPC!S21-BASE!S21 -> 0 | T21: =NPC!T21-BASE!T21 -> 0 | U21: =NPC!U21-BASE!U21 -> 0 | V21: =NPC!V21-BASE!V21 -> 0 | W21: =NPC!W21-BASE!W21 -> 0 | X21: =NPC!X21-BASE!X21 -> 0 | Y21: =NPC!Y21-BASE!Y21 -> 0 | Z21: =NPC!Z21-BASE!Z21 -> 0 | AA21: =NPC!AA21-BASE!AA21 -> 0 | AB21: =NPC!AB21-BASE!AB21 -> 0 | AC21: =NPC!AC21-BASE!AC21 -> 0 | AD21: =NPC!AD21-BASE!AD21 -> 0 | AE21: =NPC!AE21-BASE!AE21 -> 0 | AF21: =NPC!AF21-BASE!AF21 -> 0 | AG21: =NPC!AG21-BASE!AG21 -> 0 | AH21: =NPC!AH21-BASE!AH21 -> 0 | AI21: =NPC!AI21-BASE!AI21 -> 0 | AJ21: =NPC!AJ21-BASE!AJ21 -> 0 | AK21: =NPC!AK21-BASE!AK21 -> 0 | AL21: =NPC!AL21-BASE!AL21 -> 0 | AM21: =NPC!AM21-BASE!AM21 -> 0 | AN21: =NPC!AN21-BASE!AN21 -> 0 | AO21: =NPC!AO21-BASE!AO21 -> 0 | AP21: =NPC!AP21-BASE!AP21 -> 0 | AQ21: =NPC!AQ21-BASE!AQ21 -> 0 | AR21: =NPC!AR21-BASE!AR21 -> 0 | AS21: =NPC!AS21-BASE!AS21 -> 0 | AT21: =NPC!AT21-BASE!AT21 -> 0 | AU21: =NPC!AU21-BASE!AU21 -> 0 | AV21: =NPC!AV21-BASE!AV21 -> 0 | AW21: =NPC!AW21-BASE!AW21 -> 0 | AX21: =NPC!AX21-BASE!AX21 -> 0 | AY21: =NPC!AY21-BASE!AY21 -> 0 | AZ21: =NPC!AZ21-BASE!AZ21 -> 0 | BA21: =NPC!BA21-BASE!BA21 -> 0 | BB21: =NPC!BB21-BASE!BB21 -> 0 | BC21: =NPC!BC21-BASE!BC21 -> 0 | BD21: =NPC!BD21-BASE!BD21 -> 0 | BE21: =NPC!BE21-BASE!BE21 -> 0 | BF21: =NPC!BF21-BASE!BF21 -> 0 | BG21: =NPC!BG21-BASE!BG21 -> 0 | BH21: =NPC!BH21-BASE!BH21 -> 0 | BI21: =NPC!BI21-BASE!BI21 -> 0 | BJ21: =NPC!BJ21-BASE!BJ21 -> 0 | BK21: =NPC!BK21-BASE!BK21 -> 0 | BL21: =NPC!BL21-BASE!BL21 -> 0 | BM21: =NPC!BM21-BASE!BM21 -> 0 | BN21: =NPC!BN21-BASE!BN21 -> 0 | BO21: =NPC!BO21-BASE!BO21 -> 0 | BP21: =NPC!BP21-BASE!BP21 -> 0 | BQ21: =NPC!BQ21-BASE!BQ21 -> 0 | BR21: =NPC!BR21-BASE!BR21 -> 0 | BS21: =NPC!BS21-BASE!BS21 -> 0 | BT21: =NPC!BT21-BASE!BT21 -> 0 | BU21: =NPC!BU21-BASE!BU21 -> 0 | BV21: =NPC!BV21-BASE!BV21 -> 0 | BW21: =NPC!BW21-BASE!BW21 -> 0 | BX21: =NPC!BX21-BASE!BX21 -> 0 | BY21: =NPC!BY21-BASE!BY21 -> 0 | BZ21: =NPC!BZ21-BASE!BZ21 -> 0 | CA21: =NPC!CA21-BASE!CA21 -> 0 | CB21: =NPC!CB21-BASE!CB21 -> 0 | CC21: =NPC!CC21-BASE!CC21 -> 0 | CD21: =NPC!CD21-BASE!CD21 -> 0 | CE21: =NPC!CE21-BASE!CE21 -> 0 | CF21: =NPC!CF21-BASE!CF21 -> 0 | CG21: =NPC!CG21-BASE!CG21 -> 0 | CH21: =NPC!CH21-BASE!CH21 -> 0 | CI21: =NPC!CI21-BASE!CI21 -> 0 | CJ21: =NPC!CJ21-BASE!CJ21 -> 0 | CK21: =NPC!CK21-BASE!CK21 -> 0 | CL21: =NPC!CL21-BASE!CL21 -> 0 | CM21: =NPC!CM21-BASE!CM21 -> 0 | CN21: =NPC!CN21-BASE!CN21 -> 0 | CO21: =NPC!CO21-BASE!CO21 -> 0 | CP21: =NPC!CP21-BASE!CP21 -> 0 | CQ21: =NPC!CQ21-BASE!CQ21 -> 0 | CR21: =NPC!CR21-BASE!CR21 -> 0 | CS21: =NPC!CS21-BASE!CS21 -> 0 | CT21: =NPC!CT21-BASE!CT21 -> 0 | CU21: =NPC!CU21-BASE!CU21 -> 0 | CV21: =NPC!CV21-BASE!CV21 -> 0 | CW21: =NPC!CW21-BASE!CW21 -> 0 | CX21: =NPC!CX21-BASE!CX21 -> 0 | CY21: =NPC!CY21-BASE!CY21 -> 0 | CZ21: =NPC!CZ21-BASE!CZ21 -> 0 | DA21: =NPC!DA21-BASE!DA21 -> 0 | DB21: =NPC!DB21-BASE!DB21 -> 0 | DC21: =NPC!DC21-BASE!DC21 -> 0 | DD21: =NPC!DD21-BASE!DD21 -> 0 | DE21: =NPC!DE21-BASE!DE21 -> 0 | DF21: =NPC!DF21-BASE!DF21 -> 0 | DG21: =NPC!DG21-BASE!DG21 -> 0 | DH21: =NPC!DH21-BASE!DH21 -> 0 | DI21: =NPC!DI21-BASE!DI21 -> 0 | DJ21: =NPC!DJ21-BASE!DJ21 -> 0 | DK21: =NPC!DK21-BASE!DK21 -> 0 | DL21: =NPC!DL21-BASE!DL21 -> 0 | DM21: =NPC!DM21-BASE!DM21 -> 0 | DN21: =NPC!DN21-BASE!DN21 -> 0 | DO21: =NPC!DO21-BASE!DO21 -> 0 | DP21: =NPC!DP21-BASE!DP21 -> 0 | DQ21: =NPC!DQ21-BASE!DQ21 -> 0 | DR21: =NPC!DR21-BASE!DR21 -> 0 | DS21: =NPC!DS21-BASE!DS21 -> 0 | DT21: =NPC!DT21-BASE!DT21 -> 0 | DU21: =NPC!DU21-BASE!DU21 -> 0 | DV21: =NPC!DV21-BASE!DV21 -> 0 | DW21: =NPC!DW21-BASE!DW21 -> 0 | DX21: =NPC!DX21-BASE!DX21 -> 0 | DY21: =NPC!DY21-BASE!DY21 -> 0 | DZ21: =NPC!DZ21-BASE!DZ21 -> 0 | EA21: =NPC!EA21-BASE!EA21 -> 0 | EB21: =NPC!EB21-BASE!EB21 -> 0 | EC21: =NPC!EC21-BASE!EC21 -> 0 | ED21: =NPC!ED21-BASE!ED21 -> 0 | ER21: =NPC!ER21 -> Hide Row
C22: =NPC!C22 -> Sierra Pac 2 s25270 | E22: =NPC!E22-BASE!E22 -> 0 | F22: =NPC!F22-BASE!F22 -> 0 | G22: =NPC!G22-BASE!G22 -> 0 | H22: =NPC!H22-BASE!H22 -> 0 | I22: =NPC!I22-BASE!I22 -> 0 | J22: =NPC!J22-BASE!J22 -> 0 | K22: =NPC!K22-BASE!K22 -> 0 | L22: =NPC!L22-BASE!L22 -> 0 | M22: =NPC!M22-BASE!M22 -> 0 | N22: =NPC!N22-BASE!N22 -> 0 | O22: =NPC!O22-BASE!O22 -> 0 | P22: =NPC!P22-BASE!P22 -> 0 | Q22: =NPC!Q22-BASE!Q22 -> 0 | R22: =NPC!R22-BASE!R22 -> 0 | S22: =NPC!S22-BASE!S22 -> 0 | T22: =NPC!T22-BASE!T22 -> 0 | U22: =NPC!U22-BASE!U22 -> 0 | V22: =NPC!V22-BASE!V22 -> 0 | W22: =NPC!W22-BASE!W22 -> 0 | X22: =NPC!X22-BASE!X22 -> 0 | Y22: =NPC!Y22-BASE!Y22 -> 0 | Z22: =NPC!Z22-BASE!Z22 -> 0 | AA22: =NPC!AA22-BASE!AA22 -> 0 | AB22: =NPC!AB22-BASE!AB22 -> 0 | AC22: =NPC!AC22-BASE!AC22 -> 0 | AD22: =NPC!AD22-BASE!AD22 -> 0 | AE22: =NPC!AE22-BASE!AE22 -> 0 | AF22: =NPC!AF22-BASE!AF22 -> 0 | AG22: =NPC!AG22-BASE!AG22 -> 0 | AH22: =NPC!AH22-BASE!AH22 -> 0 | AI22: =NPC!AI22-BASE!AI22 -> 0 | AJ22: =NPC!AJ22-BASE!AJ22 -> 0 | AK22: =NPC!AK22-BASE!AK22 -> 0 | AL22: =NPC!AL22-BASE!AL22 -> 0 | AM22: =NPC!AM22-BASE!AM22 -> 0 | AN22: =NPC!AN22-BASE!AN22 -> 0 | AO22: =NPC!AO22-BASE!AO22 -> 0 | AP22: =NPC!AP22-BASE!AP22 -> 0 | AQ22: =NPC!AQ22-BASE!AQ22 -> 0 | AR22: =NPC!AR22-BASE!AR22 -> 0 | AS22: =NPC!AS22-BASE!AS22 -> 0 | AT22: =NPC!AT22-BASE!AT22 -> 0 | AU22: =NPC!AU22-BASE!AU22 -> 0 | AV22: =NPC!AV22-BASE!AV22 -> 0 | AW22: =NPC!AW22-BASE!AW22 -> 0 | AX22: =NPC!AX22-BASE!AX22 -> 0 | AY22: =NPC!AY22-BASE!AY22 -> 0 | AZ22: =NPC!AZ22-BASE!AZ22 -> 0 | BA22: =NPC!BA22-BASE!BA22 -> 0 | BB22: =NPC!BB22-BASE!BB22 -> 0 | BC22: =NPC!BC22-BASE!BC22 -> 0 | BD22: =NPC!BD22-BASE!BD22 -> 0 | BE22: =NPC!BE22-BASE!BE22 -> 0 | BF22: =NPC!BF22-BASE!BF22 -> 0 | BG22: =NPC!BG22-BASE!BG22 -> 0 | BH22: =NPC!BH22-BASE!BH22 -> 0 | BI22: =NPC!BI22-BASE!BI22 -> 0 | BJ22: =NPC!BJ22-BASE!BJ22 -> 0 | BK22: =NPC!BK22-BASE!BK22 -> 0 | BL22: =NPC!BL22-BASE!BL22 -> 0 | BM22: =NPC!BM22-BASE!BM22 -> 0 | BN22: =NPC!BN22-BASE!BN22 -> 0 | BO22: =NPC!BO22-BASE!BO22 -> 0 | BP22: =NPC!BP22-BASE!BP22 -> 0 | BQ22: =NPC!BQ22-BASE!BQ22 -> 0 | BR22: =NPC!BR22-BASE!BR22 -> 0 | BS22: =NPC!BS22-BASE!BS22 -> 0 | BT22: =NPC!BT22-BASE!BT22 -> 0 | BU22: =NPC!BU22-BASE!BU22 -> 0 | BV22: =NPC!BV22-BASE!BV22 -> 0 | BW22: =NPC!BW22-BASE!BW22 -> 0 | BX22: =NPC!BX22-BASE!BX22 -> 0 | BY22: =NPC!BY22-BASE!BY22 -> 0 | BZ22: =NPC!BZ22-BASE!BZ22 -> 0 | CA22: =NPC!CA22-BASE!CA22 -> 0 | CB22: =NPC!CB22-BASE!CB22 -> 0 | CC22: =NPC!CC22-BASE!CC22 -> 0 | CD22: =NPC!CD22-BASE!CD22 -> 0 | CE22: =NPC!CE22-BASE!CE22 -> 0 | CF22: =NPC!CF22-BASE!CF22 -> 0 | CG22: =NPC!CG22-BASE!CG22 -> 0 | CH22: =NPC!CH22-BASE!CH22 -> 0 | CI22: =NPC!CI22-BASE!CI22 -> 0 | CJ22: =NPC!CJ22-BASE!CJ22 -> 0 | CK22: =NPC!CK22-BASE!CK22 -> 0 | CL22: =NPC!CL22-BASE!CL22 -> 0 | CM22: =NPC!CM22-BASE!CM22 -> 0 | CN22: =NPC!CN22-BASE!CN22 -> 0 | CO22: =NPC!CO22-BASE!CO22 -> 0 | CP22: =NPC!CP22-BASE!CP22 -> 0 | CQ22: =NPC!CQ22-BASE!CQ22 -> 0 | CR22: =NPC!CR22-BASE!CR22 -> 0 | CS22: =NPC!CS22-BASE!CS22 -> 0 | CT22: =NPC!CT22-BASE!CT22 -> 0 | CU22: =NPC!CU22-BASE!CU22 -> 0 | CV22: =NPC!CV22-BASE!CV22 -> 0 | CW22: =NPC!CW22-BASE!CW22 -> 0 | CX22: =NPC!CX22-BASE!CX22 -> 0 | CY22: =NPC!CY22-BASE!CY22 -> 0 | CZ22: =NPC!CZ22-BASE!CZ22 -> 0 | DA22: =NPC!DA22-BASE!DA22 -> 0 | DB22: =NPC!DB22-BASE!DB22 -> 0 | DC22: =NPC!DC22-BASE!DC22 -> 0 | DD22: =NPC!DD22-BASE!DD22 -> 0 | DE22: =NPC!DE22-BASE!DE22 -> 0 | DF22: =NPC!DF22-BASE!DF22 -> 0 | DG22: =NPC!DG22-BASE!DG22 -> 0 | DH22: =NPC!DH22-BASE!DH22 -> 0 | DI22: =NPC!DI22-BASE!DI22 -> 0 | DJ22: =NPC!DJ22-BASE!DJ22 -> 0 | DK22: =NPC!DK22-BASE!DK22 -> 0 | DL22: =NPC!DL22-BASE!DL22 -> 0 | DM22: =NPC!DM22-BASE!DM22 -> 0 | DN22: =NPC!DN22-BASE!DN22 -> 0 | DO22: =NPC!DO22-BASE!DO22 -> 0 | DP22: =NPC!DP22-BASE!DP22 -> 0 | DQ22: =NPC!DQ22-BASE!DQ22 -> 0 | DR22: =NPC!DR22-BASE!DR22 -> 0 | DS22: =NPC!DS22-BASE!DS22 -> 0 | DT22: =NPC!DT22-BASE!DT22 -> 0 | DU22: =NPC!DU22-BASE!DU22 -> 0 | DV22: =NPC!DV22-BASE!DV22 -> 0 | DW22: =NPC!DW22-BASE!DW22 -> 0 | DX22: =NPC!DX22-BASE!DX22 -> 0 | DY22: =NPC!DY22-BASE!DY22 -> 0 | DZ22: =NPC!DZ22-BASE!DZ22 -> 0 | EA22: =NPC!EA22-BASE!EA22 -> 0 | EB22: =NPC!EB22-BASE!EB22 -> 0 | EC22: =NPC!EC22-BASE!EC22 -> 0 | ED22: =NPC!ED22-BASE!ED22 -> 0 | ER22: =NPC!ER22 -> Hide Row
C23: =NPC!C23 -> SMUD s24296 | E23: =NPC!E23-BASE!E23 -> 0 | F23: =NPC!F23-BASE!F23 -> 0 | G23: =NPC!G23-BASE!G23 -> 0 | H23: =NPC!H23-BASE!H23 -> 0 | I23: =NPC!I23-BASE!I23 -> 0 | J23: =NPC!J23-BASE!J23 -> 0 | K23: =NPC!K23-BASE!K23 -> 0 | L23: =NPC!L23-BASE!L23 -> 0 | M23: =NPC!M23-BASE!M23 -> 0 | N23: =NPC!N23-BASE!N23 -> 0 | O23: =NPC!O23-BASE!O23 -> 0 | P23: =NPC!P23-BASE!P23 -> 0 | Q23: =NPC!Q23-BASE!Q23 -> 0 | R23: =NPC!R23-BASE!R23 -> 0 | S23: =NPC!S23-BASE!S23 -> 0 | T23: =NPC!T23-BASE!T23 -> 0 | U23: =NPC!U23-BASE!U23 -> 0 | V23: =NPC!V23-BASE!V23 -> 0 | W23: =NPC!W23-BASE!W23 -> 0 | X23: =NPC!X23-BASE!X23 -> 0 | Y23: =NPC!Y23-BASE!Y23 -> 0 | Z23: =NPC!Z23-BASE!Z23 -> 0 | AA23: =NPC!AA23-BASE!AA23 -> 0 | AB23: =NPC!AB23-BASE!AB23 -> 0 | AC23: =NPC!AC23-BASE!AC23 -> 0 | AD23: =NPC!AD23-BASE!AD23 -> 0 | AE23: =NPC!AE23-BASE!AE23 -> 0 | AF23: =NPC!AF23-BASE!AF23 -> 0 | AG23: =NPC!AG23-BASE!AG23 -> 0 | AH23: =NPC!AH23-BASE!AH23 -> 0 | AI23: =NPC!AI23-BASE!AI23 -> 0 | AJ23: =NPC!AJ23-BASE!AJ23 -> 0 | AK23: =NPC!AK23-BASE!AK23 -> 0 | AL23: =NPC!AL23-BASE!AL23 -> 0 | AM23: =NPC!AM23-BASE!AM23 -> 0 | AN23: =NPC!AN23-BASE!AN23 -> 0 | AO23: =NPC!AO23-BASE!AO23 -> 0 | AP23: =NPC!AP23-BASE!AP23 -> 0 | AQ23: =NPC!AQ23-BASE!AQ23 -> 0 | AR23: =NPC!AR23-BASE!AR23 -> 0 | AS23: =NPC!AS23-BASE!AS23 -> 0 | AT23: =NPC!AT23-BASE!AT23 -> 0 | AU23: =NPC!AU23-BASE!AU23 -> 0 | AV23: =NPC!AV23-BASE!AV23 -> 0 | AW23: =NPC!AW23-BASE!AW23 -> 0 | AX23: =NPC!AX23-BASE!AX23 -> 0 | AY23: =NPC!AY23-BASE!AY23 -> 0 | AZ23: =NPC!AZ23-BASE!AZ23 -> 0 | BA23: =NPC!BA23-BASE!BA23 -> 0 | BB23: =NPC!BB23-BASE!BB23 -> 0 | BC23: =NPC!BC23-BASE!BC23 -> 0 | BD23: =NPC!BD23-BASE!BD23 -> 0 | BE23: =NPC!BE23-BASE!BE23 -> 0 | BF23: =NPC!BF23-BASE!BF23 -> 0 | BG23: =NPC!BG23-BASE!BG23 -> 0 | BH23: =NPC!BH23-BASE!BH23 -> 0 | BI23: =NPC!BI23-BASE!BI23 -> 0 | BJ23: =NPC!BJ23-BASE!BJ23 -> 0 | BK23: =NPC!BK23-BASE!BK23 -> 0 | BL23: =NPC!BL23-BASE!BL23 -> 0 | BM23: =NPC!BM23-BASE!BM23 -> 0 | BN23: =NPC!BN23-BASE!BN23 -> 0 | BO23: =NPC!BO23-BASE!BO23 -> 0 | BP23: =NPC!BP23-BASE!BP23 -> 0 | BQ23: =NPC!BQ23-BASE!BQ23 -> 0 | BR23: =NPC!BR23-BASE!BR23 -> 0 | BS23: =NPC!BS23-BASE!BS23 -> 0 | BT23: =NPC!BT23-BASE!BT23 -> 0 | BU23: =NPC!BU23-BASE!BU23 -> 0 | BV23: =NPC!BV23-BASE!BV23 -> 0 | BW23: =NPC!BW23-BASE!BW23 -> 0 | BX23: =NPC!BX23-BASE!BX23 -> 0 | BY23: =NPC!BY23-BASE!BY23 -> 0 | BZ23: =NPC!BZ23-BASE!BZ23 -> 0 | CA23: =NPC!CA23-BASE!CA23 -> 0 | CB23: =NPC!CB23-BASE!CB23 -> 0 | CC23: =NPC!CC23-BASE!CC23 -> 0 | CD23: =NPC!CD23-BASE!CD23 -> 0 | CE23: =NPC!CE23-BASE!CE23 -> 0 | CF23: =NPC!CF23-BASE!CF23 -> 0 | CG23: =NPC!CG23-BASE!CG23 -> 0 | CH23: =NPC!CH23-BASE!CH23 -> 0 | CI23: =NPC!CI23-BASE!CI23 -> 0 | CJ23: =NPC!CJ23-BASE!CJ23 -> 0 | CK23: =NPC!CK23-BASE!CK23 -> 0 | CL23: =NPC!CL23-BASE!CL23 -> 0 | CM23: =NPC!CM23-BASE!CM23 -> 0 | CN23: =NPC!CN23-BASE!CN23 -> 0 | CO23: =NPC!CO23-BASE!CO23 -> 0 | CP23: =NPC!CP23-BASE!CP23 -> 0 | CQ23: =NPC!CQ23-BASE!CQ23 -> 0 | CR23: =NPC!CR23-BASE!CR23 -> 0 | CS23: =NPC!CS23-BASE!CS23 -> 0 | CT23: =NPC!CT23-BASE!CT23 -> 0 | CU23: =NPC!CU23-BASE!CU23 -> 0 | CV23: =NPC!CV23-BASE!CV23 -> 0 | CW23: =NPC!CW23-BASE!CW23 -> 0 | CX23: =NPC!CX23-BASE!CX23 -> 0 | CY23: =NPC!CY23-BASE!CY23 -> 0 | CZ23: =NPC!CZ23-BASE!CZ23 -> 0 | DA23: =NPC!DA23-BASE!DA23 -> 0 | DB23: =NPC!DB23-BASE!DB23 -> 0 | DC23: =NPC!DC23-BASE!DC23 -> 0 | DD23: =NPC!DD23-BASE!DD23 -> 0 | DE23: =NPC!DE23-BASE!DE23 -> 0 | DF23: =NPC!DF23-BASE!DF23 -> 0 | DG23: =NPC!DG23-BASE!DG23 -> 0 | DH23: =NPC!DH23-BASE!DH23 -> 0 | DI23: =NPC!DI23-BASE!DI23 -> 0 | DJ23: =NPC!DJ23-BASE!DJ23 -> 0 | DK23: =NPC!DK23-BASE!DK23 -> 0 | DL23: =NPC!DL23-BASE!DL23 -> 0 | DM23: =NPC!DM23-BASE!DM23 -> 0 | DN23: =NPC!DN23-BASE!DN23 -> 0 | DO23: =NPC!DO23-BASE!DO23 -> 0 | DP23: =NPC!DP23-BASE!DP23 -> 0 | DQ23: =NPC!DQ23-BASE!DQ23 -> 0 | DR23: =NPC!DR23-BASE!DR23 -> 0 | DS23: =NPC!DS23-BASE!DS23 -> 0 | DT23: =NPC!DT23-BASE!DT23 -> 0 | DU23: =NPC!DU23-BASE!DU23 -> 0 | DV23: =NPC!DV23-BASE!DV23 -> 0 | DW23: =NPC!DW23-BASE!DW23 -> 0 | DX23: =NPC!DX23-BASE!DX23 -> 0 | DY23: =NPC!DY23-BASE!DY23 -> 0 | DZ23: =NPC!DZ23-BASE!DZ23 -> 0 | EA23: =NPC!EA23-BASE!EA23 -> 0 | EB23: =NPC!EB23-BASE!EB23 -> 0 | EC23: =NPC!EC23-BASE!EC23 -> 0 | ED23: =NPC!ED23-BASE!ED23 -> 0 | ER23: =NPC!ER23 -> Hide Row
C24: =NPC!C24 -> UAMPS s404236 | E24: =NPC!E24-BASE!E24 -> 0 | F24: =NPC!F24-BASE!F24 -> 0 | G24: =NPC!G24-BASE!G24 -> 0 | H24: =NPC!H24-BASE!H24 -> 0 | I24: =NPC!I24-BASE!I24 -> 0 | J24: =NPC!J24-BASE!J24 -> 0 | K24: =NPC!K24-BASE!K24 -> 0 | L24: =NPC!L24-BASE!L24 -> 0 | M24: =NPC!M24-BASE!M24 -> 0 | N24: =NPC!N24-BASE!N24 -> 0 | O24: =NPC!O24-BASE!O24 -> 0 | P24: =NPC!P24-BASE!P24 -> 0 | Q24: =NPC!Q24-BASE!Q24 -> 0 | R24: =NPC!R24-BASE!R24 -> 0 | S24: =NPC!S24-BASE!S24 -> 0 | T24: =NPC!T24-BASE!T24 -> 0 | U24: =NPC!U24-BASE!U24 -> 0 | V24: =NPC!V24-BASE!V24 -> 0 | W24: =NPC!W24-BASE!W24 -> 0 | X24: =NPC!X24-BASE!X24 -> 0 | Y24: =NPC!Y24-BASE!Y24 -> 0 | Z24: =NPC!Z24-BASE!Z24 -> 0 | AA24: =NPC!AA24-BASE!AA24 -> 0 | AB24: =NPC!AB24-BASE!AB24 -> 0 | AC24: =NPC!AC24-BASE!AC24 -> 0 | AD24: =NPC!AD24-BASE!AD24 -> 0 | AE24: =NPC!AE24-BASE!AE24 -> 0 | AF24: =NPC!AF24-BASE!AF24 -> 0 | AG24: =NPC!AG24-BASE!AG24 -> 0 | AH24: =NPC!AH24-BASE!AH24 -> 0 | AI24: =NPC!AI24-BASE!AI24 -> 0 | AJ24: =NPC!AJ24-BASE!AJ24 -> 0 | AK24: =NPC!AK24-BASE!AK24 -> 0 | AL24: =NPC!AL24-BASE!AL24 -> 0 | AM24: =NPC!AM24-BASE!AM24 -> 0 | AN24: =NPC!AN24-BASE!AN24 -> 0 | AO24: =NPC!AO24-BASE!AO24 -> 0 | AP24: =NPC!AP24-BASE!AP24 -> 0 | AQ24: =NPC!AQ24-BASE!AQ24 -> 0 | AR24: =NPC!AR24-BASE!AR24 -> 0 | AS24: =NPC!AS24-BASE!AS24 -> 0 | AT24: =NPC!AT24-BASE!AT24 -> 0 | AU24: =NPC!AU24-BASE!AU24 -> 0 | AV24: =NPC!AV24-BASE!AV24 -> 0 | AW24: =NPC!AW24-BASE!AW24 -> 0 | AX24: =NPC!AX24-BASE!AX24 -> 0 | AY24: =NPC!AY24-BASE!AY24 -> 0 | AZ24: =NPC!AZ24-BASE!AZ24 -> 0 | BA24: =NPC!BA24-BASE!BA24 -> 0 | BB24: =NPC!BB24-BASE!BB24 -> 0 | BC24: =NPC!BC24-BASE!BC24 -> 0 | BD24: =NPC!BD24-BASE!BD24 -> 0 | BE24: =NPC!BE24-BASE!BE24 -> 0 | BF24: =NPC!BF24-BASE!BF24 -> 0 | BG24: =NPC!BG24-BASE!BG24 -> 0 | BH24: =NPC!BH24-BASE!BH24 -> 0 | BI24: =NPC!BI24-BASE!BI24 -> 0 | BJ24: =NPC!BJ24-BASE!BJ24 -> 0 | BK24: =NPC!BK24-BASE!BK24 -> 0 | BL24: =NPC!BL24-BASE!BL24 -> 0 | BM24: =NPC!BM24-BASE!BM24 -> 0 | BN24: =NPC!BN24-BASE!BN24 -> 0 | BO24: =NPC!BO24-BASE!BO24 -> 0 | BP24: =NPC!BP24-BASE!BP24 -> 0 | BQ24: =NPC!BQ24-BASE!BQ24 -> 0 | BR24: =NPC!BR24-BASE!BR24 -> 0 | BS24: =NPC!BS24-BASE!BS24 -> 0 | BT24: =NPC!BT24-BASE!BT24 -> 0 | BU24: =NPC!BU24-BASE!BU24 -> 0 | BV24: =NPC!BV24-BASE!BV24 -> 0 | BW24: =NPC!BW24-BASE!BW24 -> 0 | BX24: =NPC!BX24-BASE!BX24 -> 0 | BY24: =NPC!BY24-BASE!BY24 -> 0 | BZ24: =NPC!BZ24-BASE!BZ24 -> 0 | CA24: =NPC!CA24-BASE!CA24 -> 0 | CB24: =NPC!CB24-BASE!CB24 -> 0 | CC24: =NPC!CC24-BASE!CC24 -> 0 | CD24: =NPC!CD24-BASE!CD24 -> 0 | CE24: =NPC!CE24-BASE!CE24 -> 0 | CF24: =NPC!CF24-BASE!CF24 -> 0 | CG24: =NPC!CG24-BASE!CG24 -> 0 | CH24: =NPC!CH24-BASE!CH24 -> 0 | CI24: =NPC!CI24-BASE!CI24 -> 0 | CJ24: =NPC!CJ24-BASE!CJ24 -> 0 | CK24: =NPC!CK24-BASE!CK24 -> 0 | CL24: =NPC!CL24-BASE!CL24 -> 0 | CM24: =NPC!CM24-BASE!CM24 -> 0 | CN24: =NPC!CN24-BASE!CN24 -> 0 | CO24: =NPC!CO24-BASE!CO24 -> 0 | CP24: =NPC!CP24-BASE!CP24 -> 0 | CQ24: =NPC!CQ24-BASE!CQ24 -> 0 | CR24: =NPC!CR24-BASE!CR24 -> 0 | CS24: =NPC!CS24-BASE!CS24 -> 0 | CT24: =NPC!CT24-BASE!CT24 -> 0 | CU24: =NPC!CU24-BASE!CU24 -> 0 | CV24: =NPC!CV24-BASE!CV24 -> 0 | CW24: =NPC!CW24-BASE!CW24 -> 0 | CX24: =NPC!CX24-BASE!CX24 -> 0 | CY24: =NPC!CY24-BASE!CY24 -> 0 | CZ24: =NPC!CZ24-BASE!CZ24 -> 0 | DA24: =NPC!DA24-BASE!DA24 -> 0 | DB24: =NPC!DB24-BASE!DB24 -> 0 | DC24: =NPC!DC24-BASE!DC24 -> 0 | DD24: =NPC!DD24-BASE!DD24 -> 0 | DE24: =NPC!DE24-BASE!DE24 -> 0 | DF24: =NPC!DF24-BASE!DF24 -> 0 | DG24: =NPC!DG24-BASE!DG24 -> 0 | DH24: =NPC!DH24-BASE!DH24 -> 0 | DI24: =NPC!DI24-BASE!DI24 -> 0 | DJ24: =NPC!DJ24-BASE!DJ24 -> 0 | DK24: =NPC!DK24-BASE!DK24 -> 0 | DL24: =NPC!DL24-BASE!DL24 -> 0 | DM24: =NPC!DM24-BASE!DM24 -> 0 | DN24: =NPC!DN24-BASE!DN24 -> 0 | DO24: =NPC!DO24-BASE!DO24 -> 0 | DP24: =NPC!DP24-BASE!DP24 -> 0 | DQ24: =NPC!DQ24-BASE!DQ24 -> 0 | DR24: =NPC!DR24-BASE!DR24 -> 0 | DS24: =NPC!DS24-BASE!DS24 -> 0 | DT24: =NPC!DT24-BASE!DT24 -> 0 | DU24: =NPC!DU24-BASE!DU24 -> 0 | DV24: =NPC!DV24-BASE!DV24 -> 0 | DW24: =NPC!DW24-BASE!DW24 -> 0 | DX24: =NPC!DX24-BASE!DX24 -> 0 | DY24: =NPC!DY24-BASE!DY24 -> 0 | DZ24: =NPC!DZ24-BASE!DZ24 -> 0 | EA24: =NPC!EA24-BASE!EA24 -> 0 | EB24: =NPC!EB24-BASE!EB24 -> 0 | EC24: =NPC!EC24-BASE!EC24 -> 0 | ED24: =NPC!ED24-BASE!ED24 -> 0 | ER24: =NPC!ER24 -> Hide Row
C25: =NPC!C25 -> Not Used - Sales 2 | E25: =NPC!E25-BASE!E25 -> 0 | F25: =NPC!F25-BASE!F25 -> 0 | G25: =NPC!G25-BASE!G25 -> 0 | H25: =NPC!H25-BASE!H25 -> 0 | I25: =NPC!I25-BASE!I25 -> 0 | J25: =NPC!J25-BASE!J25 -> 0 | K25: =NPC!K25-BASE!K25 -> 0 | L25: =NPC!L25-BASE!L25 -> 0 | M25: =NPC!M25-BASE!M25 -> 0 | N25: =NPC!N25-BASE!N25 -> 0 | O25: =NPC!O25-BASE!O25 -> 0 | P25: =NPC!P25-BASE!P25 -> 0 | Q25: =NPC!Q25-BASE!Q25 -> 0 | R25: =NPC!R25-BASE!R25 -> 0 | S25: =NPC!S25-BASE!S25 -> 0 | T25: =NPC!T25-BASE!T25 -> 0 | U25: =NPC!U25-BASE!U25 -> 0 | V25: =NPC!V25-BASE!V25 -> 0 | W25: =NPC!W25-BASE!W25 -> 0 | X25: =NPC!X25-BASE!X25 -> 0 | Y25: =NPC!Y25-BASE!Y25 -> 0 | Z25: =NPC!Z25-BASE!Z25 -> 0 | AA25: =NPC!AA25-BASE!AA25 -> 0 | AB25: =NPC!AB25-BASE!AB25 -> 0 | AC25: =NPC!AC25-BASE!AC25 -> 0 | AD25: =NPC!AD25-BASE!AD25 -> 0 | AE25: =NPC!AE25-BASE!AE25 -> 0 | AF25: =NPC!AF25-BASE!AF25 -> 0 | AG25: =NPC!AG25-BASE!AG25 -> 0 | AH25: =NPC!AH25-BASE!AH25 -> 0 | AI25: =NPC!AI25-BASE!AI25 -> 0 | AJ25: =NPC!AJ25-BASE!AJ25 -> 0 | AK25: =NPC!AK25-BASE!AK25 -> 0 | AL25: =NPC!AL25-BASE!AL25 -> 0 | AM25: =NPC!AM25-BASE!AM25 -> 0 | AN25: =NPC!AN25-BASE!AN25 -> 0 | AO25: =NPC!AO25-BASE!AO25 -> 0 | AP25: =NPC!AP25-BASE!AP25 -> 0 | AQ25: =NPC!AQ25-BASE!AQ25 -> 0 | AR25: =NPC!AR25-BASE!AR25 -> 0 | AS25: =NPC!AS25-BASE!AS25 -> 0 | AT25: =NPC!AT25-BASE!AT25 -> 0 | AU25: =NPC!AU25-BASE!AU25 -> 0 | AV25: =NPC!AV25-BASE!AV25 -> 0 | AW25: =NPC!AW25-BASE!AW25 -> 0 | AX25: =NPC!AX25-BASE!AX25 -> 0 | AY25: =NPC!AY25-BASE!AY25 -> 0 | AZ25: =NPC!AZ25-BASE!AZ25 -> 0 | BA25: =NPC!BA25-BASE!BA25 -> 0 | BB25: =NPC!BB25-BASE!BB25 -> 0 | BC25: =NPC!BC25-BASE!BC25 -> 0 | BD25: =NPC!BD25-BASE!BD25 -> 0 | BE25: =NPC!BE25-BASE!BE25 -> 0 | BF25: =NPC!BF25-BASE!BF25 -> 0 | BG25: =NPC!BG25-BASE!BG25 -> 0 | BH25: =NPC!BH25-BASE!BH25 -> 0 | BI25: =NPC!BI25-BASE!BI25 -> 0 | BJ25: =NPC!BJ25-BASE!BJ25 -> 0 | BK25: =NPC!BK25-BASE!BK25 -> 0 | BL25: =NPC!BL25-BASE!BL25 -> 0 | BM25: =NPC!BM25-BASE!BM25 -> 0 | BN25: =NPC!BN25-BASE!BN25 -> 0 | BO25: =NPC!BO25-BASE!BO25 -> 0 | BP25: =NPC!BP25-BASE!BP25 -> 0 | BQ25: =NPC!BQ25-BASE!BQ25 -> 0 | BR25: =NPC!BR25-BASE!BR25 -> 0 | BS25: =NPC!BS25-BASE!BS25 -> 0 | BT25: =NPC!BT25-BASE!BT25 -> 0 | BU25: =NPC!BU25-BASE!BU25 -> 0 | BV25: =NPC!BV25-BASE!BV25 -> 0 | BW25: =NPC!BW25-BASE!BW25 -> 0 | BX25: =NPC!BX25-BASE!BX25 -> 0 | BY25: =NPC!BY25-BASE!BY25 -> 0 | BZ25: =NPC!BZ25-BASE!BZ25 -> 0 | CA25: =NPC!CA25-BASE!CA25 -> 0 | CB25: =NPC!CB25-BASE!CB25 -> 0 | CC25: =NPC!CC25-BASE!CC25 -> 0 | CD25: =NPC!CD25-BASE!CD25 -> 0 | CE25: =NPC!CE25-BASE!CE25 -> 0 | CF25: =NPC!CF25-BASE!CF25 -> 0 | CG25: =NPC!CG25-BASE!CG25 -> 0 | CH25: =NPC!CH25-BASE!CH25 -> 0 | CI25: =NPC!CI25-BASE!CI25 -> 0 | CJ25: =NPC!CJ25-BASE!CJ25 -> 0 | CK25: =NPC!CK25-BASE!CK25 -> 0 | CL25: =NPC!CL25-BASE!CL25 -> 0 | CM25: =NPC!CM25-BASE!CM25 -> 0 | CN25: =NPC!CN25-BASE!CN25 -> 0 | CO25: =NPC!CO25-BASE!CO25 -> 0 | CP25: =NPC!CP25-BASE!CP25 -> 0 | CQ25: =NPC!CQ25-BASE!CQ25 -> 0 | CR25: =NPC!CR25-BASE!CR25 -> 0 | CS25: =NPC!CS25-BASE!CS25 -> 0 | CT25: =NPC!CT25-BASE!CT25 -> 0 | CU25: =NPC!CU25-BASE!CU25 -> 0 | CV25: =NPC!CV25-BASE!CV25 -> 0 | CW25: =NPC!CW25-BASE!CW25 -> 0 | CX25: =NPC!CX25-BASE!CX25 -> 0 | CY25: =NPC!CY25-BASE!CY25 -> 0 | CZ25: =NPC!CZ25-BASE!CZ25 -> 0 | DA25: =NPC!DA25-BASE!DA25 -> 0 | DB25: =NPC!DB25-BASE!DB25 -> 0 | DC25: =NPC!DC25-BASE!DC25 -> 0 | DD25: =NPC!DD25-BASE!DD25 -> 0 | DE25: =NPC!DE25-BASE!DE25 -> 0 | DF25: =NPC!DF25-BASE!DF25 -> 0 | DG25: =NPC!DG25-BASE!DG25 -> 0 | DH25: =NPC!DH25-BASE!DH25 -> 0 | DI25: =NPC!DI25-BASE!DI25 -> 0 | DJ25: =NPC!DJ25-BASE!DJ25 -> 0 | DK25: =NPC!DK25-BASE!DK25 -> 0 | DL25: =NPC!DL25-BASE!DL25 -> 0 | DM25: =NPC!DM25-BASE!DM25 -> 0 | DN25: =NPC!DN25-BASE!DN25 -> 0 | DO25: =NPC!DO25-BASE!DO25 -> 0 | DP25: =NPC!DP25-BASE!DP25 -> 0 | DQ25: =NPC!DQ25-BASE!DQ25 -> 0 | DR25: =NPC!DR25-BASE!DR25 -> 0 | DS25: =NPC!DS25-BASE!DS25 -> 0 | DT25: =NPC!DT25-BASE!DT25 -> 0 | DU25: =NPC!DU25-BASE!DU25 -> 0 | DV25: =NPC!DV25-BASE!DV25 -> 0 | DW25: =NPC!DW25-BASE!DW25 -> 0 | DX25: =NPC!DX25-BASE!DX25 -> 0 | DY25: =NPC!DY25-BASE!DY25 -> 0 | DZ25: =NPC!DZ25-BASE!DZ25 -> 0 | EA25: =NPC!EA25-BASE!EA25 -> 0 | EB25: =NPC!EB25-BASE!EB25 -> 0 | EC25: =NPC!EC25-BASE!EC25 -> 0 | ED25: =NPC!ED25-BASE!ED25 -> 0 | ER25: =NPC!ER25 -> Hide Row
C26: =NPC!C26 -> UMPA II s45631 | E26: =NPC!E26-BASE!E26 -> 0 | F26: =NPC!F26-BASE!F26 -> 0 | G26: =NPC!G26-BASE!G26 -> 0 | H26: =NPC!H26-BASE!H26 -> 0 | I26: =NPC!I26-BASE!I26 -> 0 | J26: =NPC!J26-BASE!J26 -> 0 | K26: =NPC!K26-BASE!K26 -> 0 | L26: =NPC!L26-BASE!L26 -> 0 | M26: =NPC!M26-BASE!M26 -> 0 | N26: =NPC!N26-BASE!N26 -> 0 | O26: =NPC!O26-BASE!O26 -> 0 | P26: =NPC!P26-BASE!P26 -> 0 | Q26: =NPC!Q26-BASE!Q26 -> 0 | R26: =NPC!R26-BASE!R26 -> 0 | S26: =NPC!S26-BASE!S26 -> 0 | T26: =NPC!T26-BASE!T26 -> 0 | U26: =NPC!U26-BASE!U26 -> 0 | V26: =NPC!V26-BASE!V26 -> 0 | W26: =NPC!W26-BASE!W26 -> 0 | X26: =NPC!X26-BASE!X26 -> 0 | Y26: =NPC!Y26-BASE!Y26 -> 0 | Z26: =NPC!Z26-BASE!Z26 -> 0 | AA26: =NPC!AA26-BASE!AA26 -> 0 | AB26: =NPC!AB26-BASE!AB26 -> 0 | AC26: =NPC!AC26-BASE!AC26 -> 0 | AD26: =NPC!AD26-BASE!AD26 -> 0 | AE26: =NPC!AE26-BASE!AE26 -> 0 | AF26: =NPC!AF26-BASE!AF26 -> 0 | AG26: =NPC!AG26-BASE!AG26 -> 0 | AH26: =NPC!AH26-BASE!AH26 -> 0 | AI26: =NPC!AI26-BASE!AI26 -> 0 | AJ26: =NPC!AJ26-BASE!AJ26 -> 0 | AK26: =NPC!AK26-BASE!AK26 -> 0 | AL26: =NPC!AL26-BASE!AL26 -> 0 | AM26: =NPC!AM26-BASE!AM26 -> 0 | AN26: =NPC!AN26-BASE!AN26 -> 0 | AO26: =NPC!AO26-BASE!AO26 -> 0 | AP26: =NPC!AP26-BASE!AP26 -> 0 | AQ26: =NPC!AQ26-BASE!AQ26 -> 0 | AR26: =NPC!AR26-BASE!AR26 -> 0 | AS26: =NPC!AS26-BASE!AS26 -> 0 | AT26: =NPC!AT26-BASE!AT26 -> 0 | AU26: =NPC!AU26-BASE!AU26 -> 0 | AV26: =NPC!AV26-BASE!AV26 -> 0 | AW26: =NPC!AW26-BASE!AW26 -> 0 | AX26: =NPC!AX26-BASE!AX26 -> 0 | AY26: =NPC!AY26-BASE!AY26 -> 0 | AZ26: =NPC!AZ26-BASE!AZ26 -> 0 | BA26: =NPC!BA26-BASE!BA26 -> 0 | BB26: =NPC!BB26-BASE!BB26 -> 0 | BC26: =NPC!BC26-BASE!BC26 -> 0 | BD26: =NPC!BD26-BASE!BD26 -> 0 | BE26: =NPC!BE26-BASE!BE26 -> 0 | BF26: =NPC!BF26-BASE!BF26 -> 0 | BG26: =NPC!BG26-BASE!BG26 -> 0 | BH26: =NPC!BH26-BASE!BH26 -> 0 | BI26: =NPC!BI26-BASE!BI26 -> 0 | BJ26: =NPC!BJ26-BASE!BJ26 -> 0 | BK26: =NPC!BK26-BASE!BK26 -> 0 | BL26: =NPC!BL26-BASE!BL26 -> 0 | BM26: =NPC!BM26-BASE!BM26 -> 0 | BN26: =NPC!BN26-BASE!BN26 -> 0 | BO26: =NPC!BO26-BASE!BO26 -> 0 | BP26: =NPC!BP26-BASE!BP26 -> 0 | BQ26: =NPC!BQ26-BASE!BQ26 -> 0 | BR26: =NPC!BR26-BASE!BR26 -> 0 | BS26: =NPC!BS26-BASE!BS26 -> 0 | BT26: =NPC!BT26-BASE!BT26 -> 0 | BU26: =NPC!BU26-BASE!BU26 -> 0 | BV26: =NPC!BV26-BASE!BV26 -> 0 | BW26: =NPC!BW26-BASE!BW26 -> 0 | BX26: =NPC!BX26-BASE!BX26 -> 0 | BY26: =NPC!BY26-BASE!BY26 -> 0 | BZ26: =NPC!BZ26-BASE!BZ26 -> 0 | CA26: =NPC!CA26-BASE!CA26 -> 0 | CB26: =NPC!CB26-BASE!CB26 -> 0 | CC26: =NPC!CC26-BASE!CC26 -> 0 | CD26: =NPC!CD26-BASE!CD26 -> 0 | CE26: =NPC!CE26-BASE!CE26 -> 0 | CF26: =NPC!CF26-BASE!CF26 -> 0 | CG26: =NPC!CG26-BASE!CG26 -> 0 | CH26: =NPC!CH26-BASE!CH26 -> 0 | CI26: =NPC!CI26-BASE!CI26 -> 0 | CJ26: =NPC!CJ26-BASE!CJ26 -> 0 | CK26: =NPC!CK26-BASE!CK26 -> 0 | CL26: =NPC!CL26-BASE!CL26 -> 0 | CM26: =NPC!CM26-BASE!CM26 -> 0 | CN26: =NPC!CN26-BASE!CN26 -> 0 | CO26: =NPC!CO26-BASE!CO26 -> 0 | CP26: =NPC!CP26-BASE!CP26 -> 0 | CQ26: =NPC!CQ26-BASE!CQ26 -> 0 | CR26: =NPC!CR26-BASE!CR26 -> 0 | CS26: =NPC!CS26-BASE!CS26 -> 0 | CT26: =NPC!CT26-BASE!CT26 -> 0 | CU26: =NPC!CU26-BASE!CU26 -> 0 | CV26: =NPC!CV26-BASE!CV26 -> 0 | CW26: =NPC!CW26-BASE!CW26 -> 0 | CX26: =NPC!CX26-BASE!CX26 -> 0 | CY26: =NPC!CY26-BASE!CY26 -> 0 | CZ26: =NPC!CZ26-BASE!CZ26 -> 0 | DA26: =NPC!DA26-BASE!DA26 -> 0 | DB26: =NPC!DB26-BASE!DB26 -> 0 | DC26: =NPC!DC26-BASE!DC26 -> 0 | DD26: =NPC!DD26-BASE!DD26 -> 0 | DE26: =NPC!DE26-BASE!DE26 -> 0 | DF26: =NPC!DF26-BASE!DF26 -> 0 | DG26: =NPC!DG26-BASE!DG26 -> 0 | DH26: =NPC!DH26-BASE!DH26 -> 0 | DI26: =NPC!DI26-BASE!DI26 -> 0 | DJ26: =NPC!DJ26-BASE!DJ26 -> 0 | DK26: =NPC!DK26-BASE!DK26 -> 0 | DL26: =NPC!DL26-BASE!DL26 -> 0 | DM26: =NPC!DM26-BASE!DM26 -> 0 | DN26: =NPC!DN26-BASE!DN26 -> 0 | DO26: =NPC!DO26-BASE!DO26 -> 0 | DP26: =NPC!DP26-BASE!DP26 -> 0 | DQ26: =NPC!DQ26-BASE!DQ26 -> 0 | DR26: =NPC!DR26-BASE!DR26 -> 0 | DS26: =NPC!DS26-BASE!DS26 -> 0 | DT26: =NPC!DT26-BASE!DT26 -> 0 | DU26: =NPC!DU26-BASE!DU26 -> 0 | DV26: =NPC!DV26-BASE!DV26 -> 0 | DW26: =NPC!DW26-BASE!DW26 -> 0 | DX26: =NPC!DX26-BASE!DX26 -> 0 | DY26: =NPC!DY26-BASE!DY26 -> 0 | DZ26: =NPC!DZ26-BASE!DZ26 -> 0 | EA26: =NPC!EA26-BASE!EA26 -> 0 | EB26: =NPC!EB26-BASE!EB26 -> 0 | EC26: =NPC!EC26-BASE!EC26 -> 0 | ED26: =NPC!ED26-BASE!ED26 -> 0 | ER26: =NPC!ER26 -> Hide Row
B28: Total Long Term Firm Sales | E28: =NPC!E28-BASE!E28 -> 0 | F28: =NPC!F28-BASE!F28 -> 0 | G28: =NPC!G28-BASE!G28 -> 0 | H28: =NPC!H28-BASE!H28 -> 0 | I28: =NPC!I28-BASE!I28 -> 0 | J28: =NPC!J28-BASE!J28 -> 0 | K28: =NPC!K28-BASE!K28 -> 0 | L28: =NPC!L28-BASE!L28 -> 0 | M28: =NPC!M28-BASE!M28 -> 0 | N28: =NPC!N28-BASE!N28 -> 0 | O28: =NPC!O28-BASE!O28 -> 0 | P28: =NPC!P28-BASE!P28 -> 0 | Q28: =NPC!Q28-BASE!Q28 -> 0 | R28: =NPC!R28-BASE!R28 -> 0 | S28: =NPC!S28-BASE!S28 -> 0 | T28: =NPC!T28-BASE!T28 -> 0 | U28: =NPC!U28-BASE!U28 -> 0 | V28: =NPC!V28-BASE!V28 -> 0 | W28: =NPC!W28-BASE!W28 -> 0 | X28: =NPC!X28-BASE!X28 -> 0 | Y28: =NPC!Y28-BASE!Y28 -> 0 | Z28: =NPC!Z28-BASE!Z28 -> 0 | AA28: =NPC!AA28-BASE!AA28 -> 0 | AB28: =NPC!AB28-BASE!AB28 -> 0 | AC28: =NPC!AC28-BASE!AC28 -> 0 | AD28: =NPC!AD28-BASE!AD28 -> 0 | AE28: =NPC!AE28-BASE!AE28 -> 0 | AF28: =NPC!AF28-BASE!AF28 -> 0 | AG28: =NPC!AG28-BASE!AG28 -> 0 | AH28: =NPC!AH28-BASE!AH28 -> 0 | AI28: =NPC!AI28-BASE!AI28 -> 0 | AJ28: =NPC!AJ28-BASE!AJ28 -> 0 | AK28: =NPC!AK28-BASE!AK28 -> 0 | AL28: =NPC!AL28-BASE!AL28 -> 0 | AM28: =NPC!AM28-BASE!AM28 -> 0 | AN28: =NPC!AN28-BASE!AN28 -> 0 | AO28: =NPC!AO28-BASE!AO28 -> 0 | AP28: =NPC!AP28-BASE!AP28 -> 0 | AQ28: =NPC!AQ28-BASE!AQ28 -> 0 | AR28: =NPC!AR28-BASE!AR28 -> 0 | AS28: =NPC!AS28-BASE!AS28 -> 0 | AT28: =NPC!AT28-BASE!AT28 -> 0 | AU28: =NPC!AU28-BASE!AU28 -> 0 | AV28: =NPC!AV28-BASE!AV28 -> 0 | AW28: =NPC!AW28-BASE!AW28 -> 0 | AX28: =NPC!AX28-BASE!AX28 -> 0 | AY28: =NPC!AY28-BASE!AY28 -> 0 | AZ28: =NPC!AZ28-BASE!AZ28 -> 0 | BA28: =NPC!BA28-BASE!BA28 -> 0 | BB28: =NPC!BB28-BASE!BB28 -> 0 | BC28: =NPC!BC28-BASE!BC28 -> 0 | BD28: =NPC!BD28-BASE!BD28 -> 0 | BE28: =NPC!BE28-BASE!BE28 -> 0 | BF28: =NPC!BF28-BASE!BF28 -> 0 | BG28: =NPC!BG28-BASE!BG28 -> 0 | BH28: =NPC!BH28-BASE!BH28 -> 0 | BI28: =NPC!BI28-BASE!BI28 -> 0 | BJ28: =NPC!BJ28-BASE!BJ28 -> 0 | BK28: =NPC!BK28-BASE!BK28 -> 0 | BL28: =NPC!BL28-BASE!BL28 -> 0 | BM28: =NPC!BM28-BASE!BM28 -> 0 | BN28: =NPC!BN28-BASE!BN28 -> 0 | BO28: =NPC!BO28-BASE!BO28 -> 0 | BP28: =NPC!BP28-BASE!BP28 -> 0 | BQ28: =NPC!BQ28-BASE!BQ28 -> 0 | BR28: =NPC!BR28-BASE!BR28 -> 0 | BS28: =NPC!BS28-BASE!BS28 -> 0 | BT28: =NPC!BT28-BASE!BT28 -> 0 | BU28: =NPC!BU28-BASE!BU28 -> 0 | BV28: =NPC!BV28-BASE!BV28 -> 0 | BW28: =NPC!BW28-BASE!BW28 -> 0 | BX28: =NPC!BX28-BASE!BX28 -> 0 | BY28: =NPC!BY28-BASE!BY28 -> 0 | BZ28: =NPC!BZ28-BASE!BZ28 -> 0 | CA28: =NPC!CA28-BASE!CA28 -> 0 | CB28: =NPC!CB28-BASE!CB28 -> 0 | CC28: =NPC!CC28-BASE!CC28 -> 0 | CD28: =NPC!CD28-BASE!CD28 -> 0 | CE28: =NPC!CE28-BASE!CE28 -> 0 | CF28: =NPC!CF28-BASE!CF28 -> 0 | CG28: =NPC!CG28-BASE!CG28 -> 0 | CH28: =NPC!CH28-BASE!CH28 -> 0 | CI28: =NPC!CI28-BASE!CI28 -> 0 | CJ28: =NPC!CJ28-BASE!CJ28 -> 0 | CK28: =NPC!CK28-BASE!CK28 -> 0 | CL28: =NPC!CL28-BASE!CL28 -> 0 | CM28: =NPC!CM28-BASE!CM28 -> 0 | CN28: =NPC!CN28-BASE!CN28 -> 0 | CO28: =NPC!CO28-BASE!CO28 -> 0 | CP28: =NPC!CP28-BASE!CP28 -> 0 | CQ28: =NPC!CQ28-BASE!CQ28 -> 0 | CR28: =NPC!CR28-BASE!CR28 -> 0 | CS28: =NPC!CS28-BASE!CS28 -> 0 | CT28: =NPC!CT28-BASE!CT28 -> 0 | CU28: =NPC!CU28-BASE!CU28 -> 0 | CV28: =NPC!CV28-BASE!CV28 -> 0 | CW28: =NPC!CW28-BASE!CW28 -> 0 | CX28: =NPC!CX28-BASE!CX28 -> 0 | CY28: =NPC!CY28-BASE!CY28 -> 0 | CZ28: =NPC!CZ28-BASE!CZ28 -> 0 | DA28: =NPC!DA28-BASE!DA28 -> 0 | DB28: =NPC!DB28-BASE!DB28 -> 0 | DC28: =NPC!DC28-BASE!DC28 -> 0 | DD28: =NPC!DD28-BASE!DD28 -> 0 | DE28: =NPC!DE28-BASE!DE28 -> 0 | DF28: =NPC!DF28-BASE!DF28 -> 0 | DG28: =NPC!DG28-BASE!DG28 -> 0 | DH28: =NPC!DH28-BASE!DH28 -> 0 | DI28: =NPC!DI28-BASE!DI28 -> 0 | DJ28: =NPC!DJ28-BASE!DJ28 -> 0 | DK28: =NPC!DK28-BASE!DK28 -> 0 | DL28: =NPC!DL28-BASE!DL28 -> 0 | DM28: =NPC!DM28-BASE!DM28 -> 0 | DN28: =NPC!DN28-BASE!DN28 -> 0 | DO28: =NPC!DO28-BASE!DO28 -> 0 | DP28: =NPC!DP28-BASE!DP28 -> 0 | DQ28: =NPC!DQ28-BASE!DQ28 -> 0 | DR28: =NPC!DR28-BASE!DR28 -> 0 | DS28: =NPC!DS28-BASE!DS28 -> 0 | DT28: =NPC!DT28-BASE!DT28 -> 0 | DU28: =NPC!DU28-BASE!DU28 -> 0 | DV28: =NPC!DV28-BASE!DV28 -> 0 | DW28: =NPC!DW28-BASE!DW28 -> 0 | DX28: =NPC!DX28-BASE!DX28 -> 0 | DY28: =NPC!DY28-BASE!DY28 -> 0 | DZ28: =NPC!DZ28-BASE!DZ28 -> 0 | EA28: =NPC!EA28-BASE!EA28 -> 0 | EB28: =NPC!EB28-BASE!EB28 -> 0 | EC28: =NPC!EC28-BASE!EC28 -> 0 | ED28: =NPC!ED28-BASE!ED28 -> 0
B30: Short Term Firm Sales
C31: =NPC!C31 -> COB | E31: =NPC!E31-BASE!E31 -> 0 | F31: =NPC!F31-BASE!F31 -> 0 | G31: =NPC!G31-BASE!G31 -> 0 | H31: =NPC!H31-BASE!H31 -> 0 | I31: =NPC!I31-BASE!I31 -> 0 | J31: =NPC!J31-BASE!J31 -> 0 | K31: =NPC!K31-BASE!K31 -> 0 | L31: =NPC!L31-BASE!L31 -> 0 | M31: =NPC!M31-BASE!M31 -> 0 | N31: =NPC!N31-BASE!N31 -> 0 | O31: =NPC!O31-BASE!O31 -> 0 | P31: =NPC!P31-BASE!P31 -> 0 | Q31: =NPC!Q31-BASE!Q31 -> 0 | R31: =NPC!R31-BASE!R31 -> 0 | S31: =NPC!S31-BASE!S31 -> 0 | T31: =NPC!T31-BASE!T31 -> 0 | U31: =NPC!U31-BASE!U31 -> 0 | V31: =NPC!V31-BASE!V31 -> 0 | W31: =NPC!W31-BASE!W31 -> 0 | X31: =NPC!X31-BASE!X31 -> 0 | Y31: =NPC!Y31-BASE!Y31 -> 0 | Z31: =NPC!Z31-BASE!Z31 -> 0 | AA31: =NPC!AA31-BASE!AA31 -> 0 | AB31: =NPC!AB31-BASE!AB31 -> 0 | AC31: =NPC!AC31-BASE!AC31 -> 0 | AD31: =NPC!AD31-BASE!AD31 -> 0 | AE31: =NPC!AE31-BASE!AE31 -> 0 | AF31: =NPC!AF31-BASE!AF31 -> 0 | AG31: =NPC!AG31-BASE!AG31 -> 0 | AH31: =NPC!AH31-BASE!AH31 -> 0 | AI31: =NPC!AI31-BASE!AI31 -> 0 | AJ31: =NPC!AJ31-BASE!AJ31 -> 0 | AK31: =NPC!AK31-BASE!AK31 -> 0 | AL31: =NPC!AL31-BASE!AL31 -> 0 | AM31: =NPC!AM31-BASE!AM31 -> 0 | AN31: =NPC!AN31-BASE!AN31 -> 0 | AO31: =NPC!AO31-BASE!AO31 -> 0 | AP31: =NPC!AP31-BASE!AP31 -> 0 | AQ31: =NPC!AQ31-BASE!AQ31 -> 0 | AR31: =NPC!AR31-BASE!AR31 -> 0 | AS31: =NPC!AS31-BASE!AS31 -> 0 | AT31: =NPC!AT31-BASE!AT31 -> 0 | AU31: =NPC!AU31-BASE!AU31 -> 0 | AV31: =NPC!AV31-BASE!AV31 -> 0 | AW31: =NPC!AW31-BASE!AW31 -> 0 | AX31: =NPC!AX31-BASE!AX31 -> 0 | AY31: =NPC!AY31-BASE!AY31 -> 0 | AZ31: =NPC!AZ31-BASE!AZ31 -> 0 | BA31: =NPC!BA31-BASE!BA31 -> 0 | BB31: =NPC!BB31-BASE!BB31 -> 0 | BC31: =NPC!BC31-BASE!BC31 -> 0 | BD31: =NPC!BD31-BASE!BD31 -> 0 | BE31: =NPC!BE31-BASE!BE31 -> 0 | BF31: =NPC!BF31-BASE!BF31 -> 0 | BG31: =NPC!BG31-BASE!BG31 -> 0 | BH31: =NPC!BH31-BASE!BH31 -> 0 | BI31: =NPC!BI31-BASE!BI31 -> 0 | BJ31: =NPC!BJ31-BASE!BJ31 -> 0 | BK31: =NPC!BK31-BASE!BK31 -> 0 | BL31: =NPC!BL31-BASE!BL31 -> 0 | BM31: =NPC!BM31-BASE!BM31 -> 0 | BN31: =NPC!BN31-BASE!BN31 -> 0 | BO31: =NPC!BO31-BASE!BO31 -> 0 | BP31: =NPC!BP31-BASE!BP31 -> 0 | BQ31: =NPC!BQ31-BASE!BQ31 -> 0 | BR31: =NPC!BR31-BASE!BR31 -> 0 | BS31: =NPC!BS31-BASE!BS31 -> 0 | BT31: =NPC!BT31-BASE!BT31 -> 0 | BU31: =NPC!BU31-BASE!BU31 -> 0 | BV31: =NPC!BV31-BASE!BV31 -> 0 | BW31: =NPC!BW31-BASE!BW31 -> 0 | BX31: =NPC!BX31-BASE!BX31 -> 0 | BY31: =NPC!BY31-BASE!BY31 -> 0 | BZ31: =NPC!BZ31-BASE!BZ31 -> 0 | CA31: =NPC!CA31-BASE!CA31 -> 0 | CB31: =NPC!CB31-BASE!CB31 -> 0 | CC31: =NPC!CC31-BASE!CC31 -> 0 | CD31: =NPC!CD31-BASE!CD31 -> 0 | CE31: =NPC!CE31-BASE!CE31 -> 0 | CF31: =NPC!CF31-BASE!CF31 -> 0 | CG31: =NPC!CG31-BASE!CG31 -> 0 | CH31: =NPC!CH31-BASE!CH31 -> 0 | CI31: =NPC!CI31-BASE!CI31 -> 0 | CJ31: =NPC!CJ31-BASE!CJ31 -> 0 | CK31: =NPC!CK31-BASE!CK31 -> 0 | CL31: =NPC!CL31-BASE!CL31 -> 0 | CM31: =NPC!CM31-BASE!CM31 -> 0 | CN31: =NPC!CN31-BASE!CN31 -> 0 | CO31: =NPC!CO31-BASE!CO31 -> 0 | CP31: =NPC!CP31-BASE!CP31 -> 0 | CQ31: =NPC!CQ31-BASE!CQ31 -> 0 | CR31: =NPC!CR31-BASE!CR31 -> 0 | CS31: =NPC!CS31-BASE!CS31 -> 0 | CT31: =NPC!CT31-BASE!CT31 -> 0 | CU31: =NPC!CU31-BASE!CU31 -> 0 | CV31: =NPC!CV31-BASE!CV31 -> 0 | CW31: =NPC!CW31-BASE!CW31 -> 0 | CX31: =NPC!CX31-BASE!CX31 -> 0 | CY31: =NPC!CY31-BASE!CY31 -> 0 | CZ31: =NPC!CZ31-BASE!CZ31 -> 0 | DA31: =NPC!DA31-BASE!DA31 -> 0 | DB31: =NPC!DB31-BASE!DB31 -> 0 | DC31: =NPC!DC31-BASE!DC31 -> 0 | DD31: =NPC!DD31-BASE!DD31 -> 0 | DE31: =NPC!DE31-BASE!DE31 -> 0 | DF31: =NPC!DF31-BASE!DF31 -> 0 | DG31: =NPC!DG31-BASE!DG31 -> 0 | DH31: =NPC!DH31-BASE!DH31 -> 0 | DI31: =NPC!DI31-BASE!DI31 -> 0 | DJ31: =NPC!DJ31-BASE!DJ31 -> 0 | DK31: =NPC!DK31-BASE!DK31 -> 0 | DL31: =NPC!DL31-BASE!DL31 -> 0 | DM31: =NPC!DM31-BASE!DM31 -> 0 | DN31: =NPC!DN31-BASE!DN31 -> 0 | DO31: =NPC!DO31-BASE!DO31 -> 0 | DP31: =NPC!DP31-BASE!DP31 -> 0 | DQ31: =NPC!DQ31-BASE!DQ31 -> 0 | DR31: =NPC!DR31-BASE!DR31 -> 0 | DS31: =NPC!DS31-BASE!DS31 -> 0 | DT31: =NPC!DT31-BASE!DT31 -> 0 | DU31: =NPC!DU31-BASE!DU31 -> 0 | DV31: =NPC!DV31-BASE!DV31 -> 0 | DW31: =NPC!DW31-BASE!DW31 -> 0 | DX31: =NPC!DX31-BASE!DX31 -> 0 | DY31: =NPC!DY31-BASE!DY31 -> 0 | DZ31: =NPC!DZ31-BASE!DZ31 -> 0 | EA31: =NPC!EA31-BASE!EA31 -> 0 | EB31: =NPC!EB31-BASE!EB31 -> 0 | EC31: =NPC!EC31-BASE!EC31 -> 0 | ED31: =NPC!ED31-BASE!ED31 -> 0 | ER31: =NPC!ER31 -> Hide Row
C32: =NPC!C32 -> Colorado | E32: =NPC!E32-BASE!E32 -> 0 | F32: =NPC!F32-BASE!F32 -> 0 | G32: =NPC!G32-BASE!G32 -> 0 | H32: =NPC!H32-BASE!H32 -> 0 | I32: =NPC!I32-BASE!I32 -> 0 | J32: =NPC!J32-BASE!J32 -> 0 | K32: =NPC!K32-BASE!K32 -> 0 | L32: =NPC!L32-BASE!L32 -> 0 | M32: =NPC!M32-BASE!M32 -> 0 | N32: =NPC!N32-BASE!N32 -> 0 | O32: =NPC!O32-BASE!O32 -> 0 | P32: =NPC!P32-BASE!P32 -> 0 | Q32: =NPC!Q32-BASE!Q32 -> 0 | R32: =NPC!R32-BASE!R32 -> 0 | S32: =NPC!S32-BASE!S32 -> 0 | T32: =NPC!T32-BASE!T32 -> 0 | U32: =NPC!U32-BASE!U32 -> 0 | V32: =NPC!V32-BASE!V32 -> 0 | W32: =NPC!W32-BASE!W32 -> 0 | X32: =NPC!X32-BASE!X32 -> 0 | Y32: =NPC!Y32-BASE!Y32 -> 0 | Z32: =NPC!Z32-BASE!Z32 -> 0 | AA32: =NPC!AA32-BASE!AA32 -> 0 | AB32: =NPC!AB32-BASE!AB32 -> 0 | AC32: =NPC!AC32-BASE!AC32 -> 0 | AD32: =NPC!AD32-BASE!AD32 -> 0 | AE32: =NPC!AE32-BASE!AE32 -> 0 | AF32: =NPC!AF32-BASE!AF32 -> 0 | AG32: =NPC!AG32-BASE!AG32 -> 0 | AH32: =NPC!AH32-BASE!AH32 -> 0 | AI32: =NPC!AI32-BASE!AI32 -> 0 | AJ32: =NPC!AJ32-BASE!AJ32 -> 0 | AK32: =NPC!AK32-BASE!AK32 -> 0 | AL32: =NPC!AL32-BASE!AL32 -> 0 | AM32: =NPC!AM32-BASE!AM32 -> 0 | AN32: =NPC!AN32-BASE!AN32 -> 0 | AO32: =NPC!AO32-BASE!AO32 -> 0 | AP32: =NPC!AP32-BASE!AP32 -> 0 | AQ32: =NPC!AQ32-BASE!AQ32 -> 0 | AR32: =NPC!AR32-BASE!AR32 -> 0 | AS32: =NPC!AS32-BASE!AS32 -> 0 | AT32: =NPC!AT32-BASE!AT32 -> 0 | AU32: =NPC!AU32-BASE!AU32 -> 0 | AV32: =NPC!AV32-BASE!AV32 -> 0 | AW32: =NPC!AW32-BASE!AW32 -> 0 | AX32: =NPC!AX32-BASE!AX32 -> 0 | AY32: =NPC!AY32-BASE!AY32 -> 0 | AZ32: =NPC!AZ32-BASE!AZ32 -> 0 | BA32: =NPC!BA32-BASE!BA32 -> 0 | BB32: =NPC!BB32-BASE!BB32 -> 0 | BC32: =NPC!BC32-BASE!BC32 -> 0 | BD32: =NPC!BD32-BASE!BD32 -> 0 | BE32: =NPC!BE32-BASE!BE32 -> 0 | BF32: =NPC!BF32-BASE!BF32 -> 0 | BG32: =NPC!BG32-BASE!BG32 -> 0 | BH32: =NPC!BH32-BASE!BH32 -> 0 | BI32: =NPC!BI32-BASE!BI32 -> 0 | BJ32: =NPC!BJ32-BASE!BJ32 -> 0 | BK32: =NPC!BK32-BASE!BK32 -> 0 | BL32: =NPC!BL32-BASE!BL32 -> 0 | BM32: =NPC!BM32-BASE!BM32 -> 0 | BN32: =NPC!BN32-BASE!BN32 -> 0 | BO32: =NPC!BO32-BASE!BO32 -> 0 | BP32: =NPC!BP32-BASE!BP32 -> 0 | BQ32: =NPC!BQ32-BASE!BQ32 -> 0 | BR32: =NPC!BR32-BASE!BR32 -> 0 | BS32: =NPC!BS32-BASE!BS32 -> 0 | BT32: =NPC!BT32-BASE!BT32 -> 0 | BU32: =NPC!BU32-BASE!BU32 -> 0 | BV32: =NPC!BV32-BASE!BV32 -> 0 | BW32: =NPC!BW32-BASE!BW32 -> 0 | BX32: =NPC!BX32-BASE!BX32 -> 0 | BY32: =NPC!BY32-BASE!BY32 -> 0 | BZ32: =NPC!BZ32-BASE!BZ32 -> 0 | CA32: =NPC!CA32-BASE!CA32 -> 0 | CB32: =NPC!CB32-BASE!CB32 -> 0 | CC32: =NPC!CC32-BASE!CC32 -> 0 | CD32: =NPC!CD32-BASE!CD32 -> 0 | CE32: =NPC!CE32-BASE!CE32 -> 0 | CF32: =NPC!CF32-BASE!CF32 -> 0 | CG32: =NPC!CG32-BASE!CG32 -> 0 | CH32: =NPC!CH32-BASE!CH32 -> 0 | CI32: =NPC!CI32-BASE!CI32 -> 0 | CJ32: =NPC!CJ32-BASE!CJ32 -> 0 | CK32: =NPC!CK32-BASE!CK32 -> 0 | CL32: =NPC!CL32-BASE!CL32 -> 0 | CM32: =NPC!CM32-BASE!CM32 -> 0 | CN32: =NPC!CN32-BASE!CN32 -> 0 | CO32: =NPC!CO32-BASE!CO32 -> 0 | CP32: =NPC!CP32-BASE!CP32 -> 0 | CQ32: =NPC!CQ32-BASE!CQ32 -> 0 | CR32: =NPC!CR32-BASE!CR32 -> 0 | CS32: =NPC!CS32-BASE!CS32 -> 0 | CT32: =NPC!CT32-BASE!CT32 -> 0 | CU32: =NPC!CU32-BASE!CU32 -> 0 | CV32: =NPC!CV32-BASE!CV32 -> 0 | CW32: =NPC!CW32-BASE!CW32 -> 0 | CX32: =NPC!CX32-BASE!CX32 -> 0 | CY32: =NPC!CY32-BASE!CY32 -> 0 | CZ32: =NPC!CZ32-BASE!CZ32 -> 0 | DA32: =NPC!DA32-BASE!DA32 -> 0 | DB32: =NPC!DB32-BASE!DB32 -> 0 | DC32: =NPC!DC32-BASE!DC32 -> 0 | DD32: =NPC!DD32-BASE!DD32 -> 0 | DE32: =NPC!DE32-BASE!DE32 -> 0 | DF32: =NPC!DF32-BASE!DF32 -> 0 | DG32: =NPC!DG32-BASE!DG32 -> 0 | DH32: =NPC!DH32-BASE!DH32 -> 0 | DI32: =NPC!DI32-BASE!DI32 -> 0 | DJ32: =NPC!DJ32-BASE!DJ32 -> 0 | DK32: =NPC!DK32-BASE!DK32 -> 0 | DL32: =NPC!DL32-BASE!DL32 -> 0 | DM32: =NPC!DM32-BASE!DM32 -> 0 | DN32: =NPC!DN32-BASE!DN32 -> 0 | DO32: =NPC!DO32-BASE!DO32 -> 0 | DP32: =NPC!DP32-BASE!DP32 -> 0 | DQ32: =NPC!DQ32-BASE!DQ32 -> 0 | DR32: =NPC!DR32-BASE!DR32 -> 0 | DS32: =NPC!DS32-BASE!DS32 -> 0 | DT32: =NPC!DT32-BASE!DT32 -> 0 | DU32: =NPC!DU32-BASE!DU32 -> 0 | DV32: =NPC!DV32-BASE!DV32 -> 0 | DW32: =NPC!DW32-BASE!DW32 -> 0 | DX32: =NPC!DX32-BASE!DX32 -> 0 | DY32: =NPC!DY32-BASE!DY32 -> 0 | DZ32: =NPC!DZ32-BASE!DZ32 -> 0 | EA32: =NPC!EA32-BASE!EA32 -> 0 | EB32: =NPC!EB32-BASE!EB32 -> 0 | EC32: =NPC!EC32-BASE!EC32 -> 0 | ED32: =NPC!ED32-BASE!ED32 -> 0 | ER32: =NPC!ER32 -> Hide Row
C33: =NPC!C33 -> Four Corners | E33: =NPC!E33-BASE!E33 -> 0 | F33: =NPC!F33-BASE!F33 -> 0 | G33: =NPC!G33-BASE!G33 -> 0 | H33: =NPC!H33-BASE!H33 -> 0 | I33: =NPC!I33-BASE!I33 -> 0 | J33: =NPC!J33-BASE!J33 -> 0 | K33: =NPC!K33-BASE!K33 -> 0 | L33: =NPC!L33-BASE!L33 -> 0 | M33: =NPC!M33-BASE!M33 -> 0 | N33: =NPC!N33-BASE!N33 -> 0 | O33: =NPC!O33-BASE!O33 -> 0 | P33: =NPC!P33-BASE!P33 -> 0 | Q33: =NPC!Q33-BASE!Q33 -> 0 | R33: =NPC!R33-BASE!R33 -> 0 | S33: =NPC!S33-BASE!S33 -> 0 | T33: =NPC!T33-BASE!T33 -> 0 | U33: =NPC!U33-BASE!U33 -> 0 | V33: =NPC!V33-BASE!V33 -> 0 | W33: =NPC!W33-BASE!W33 -> 0 | X33: =NPC!X33-BASE!X33 -> 0 | Y33: =NPC!Y33-BASE!Y33 -> 0 | Z33: =NPC!Z33-BASE!Z33 -> 0 | AA33: =NPC!AA33-BASE!AA33 -> 0 | AB33: =NPC!AB33-BASE!AB33 -> 0 | AC33: =NPC!AC33-BASE!AC33 -> 0 | AD33: =NPC!AD33-BASE!AD33 -> 0 | AE33: =NPC!AE33-BASE!AE33 -> 0 | AF33: =NPC!AF33-BASE!AF33 -> 0 | AG33: =NPC!AG33-BASE!AG33 -> 0 | AH33: =NPC!AH33-BASE!AH33 -> 0 | AI33: =NPC!AI33-BASE!AI33 -> 0 | AJ33: =NPC!AJ33-BASE!AJ33 -> 0 | AK33: =NPC!AK33-BASE!AK33 -> 0 | AL33: =NPC!AL33-BASE!AL33 -> 0 | AM33: =NPC!AM33-BASE!AM33 -> 0 | AN33: =NPC!AN33-BASE!AN33 -> 0 | AO33: =NPC!AO33-BASE!AO33 -> 0 | AP33: =NPC!AP33-BASE!AP33 -> 0 | AQ33: =NPC!AQ33-BASE!AQ33 -> 0 | AR33: =NPC!AR33-BASE!AR33 -> 0 | AS33: =NPC!AS33-BASE!AS33 -> 0 | AT33: =NPC!AT33-BASE!AT33 -> 0 | AU33: =NPC!AU33-BASE!AU33 -> 0 | AV33: =NPC!AV33-BASE!AV33 -> 0 | AW33: =NPC!AW33-BASE!AW33 -> 0 | AX33: =NPC!AX33-BASE!AX33 -> 0 | AY33: =NPC!AY33-BASE!AY33 -> 0 | AZ33: =NPC!AZ33-BASE!AZ33 -> 0 | BA33: =NPC!BA33-BASE!BA33 -> 0 | BB33: =NPC!BB33-BASE!BB33 -> 0 | BC33: =NPC!BC33-BASE!BC33 -> 0 | BD33: =NPC!BD33-BASE!BD33 -> 0 | BE33: =NPC!BE33-BASE!BE33 -> 0 | BF33: =NPC!BF33-BASE!BF33 -> 0 | BG33: =NPC!BG33-BASE!BG33 -> 0 | BH33: =NPC!BH33-BASE!BH33 -> 0 | BI33: =NPC!BI33-BASE!BI33 -> 0 | BJ33: =NPC!BJ33-BASE!BJ33 -> 0 | BK33: =NPC!BK33-BASE!BK33 -> 0 | BL33: =NPC!BL33-BASE!BL33 -> 0 | BM33: =NPC!BM33-BASE!BM33 -> 0 | BN33: =NPC!BN33-BASE!BN33 -> 0 | BO33: =NPC!BO33-BASE!BO33 -> 0 | BP33: =NPC!BP33-BASE!BP33 -> 0 | BQ33: =NPC!BQ33-BASE!BQ33 -> 0 | BR33: =NPC!BR33-BASE!BR33 -> 0 | BS33: =NPC!BS33-BASE!BS33 -> 0 | BT33: =NPC!BT33-BASE!BT33 -> 0 | BU33: =NPC!BU33-BASE!BU33 -> 0 | BV33: =NPC!BV33-BASE!BV33 -> 0 | BW33: =NPC!BW33-BASE!BW33 -> 0 | BX33: =NPC!BX33-BASE!BX33 -> 0 | BY33: =NPC!BY33-BASE!BY33 -> 0 | BZ33: =NPC!BZ33-BASE!BZ33 -> 0 | CA33: =NPC!CA33-BASE!CA33 -> 0 | CB33: =NPC!CB33-BASE!CB33 -> 0 | CC33: =NPC!CC33-BASE!CC33 -> 0 | CD33: =NPC!CD33-BASE!CD33 -> 0 | CE33: =NPC!CE33-BASE!CE33 -> 0 | CF33: =NPC!CF33-BASE!CF33 -> 0 | CG33: =NPC!CG33-BASE!CG33 -> 0 | CH33: =NPC!CH33-BASE!CH33 -> 0 | CI33: =NPC!CI33-BASE!CI33 -> 0 | CJ33: =NPC!CJ33-BASE!CJ33 -> 0 | CK33: =NPC!CK33-BASE!CK33 -> 0 | CL33: =NPC!CL33-BASE!CL33 -> 0 | CM33: =NPC!CM33-BASE!CM33 -> 0 | CN33: =NPC!CN33-BASE!CN33 -> 0 | CO33: =NPC!CO33-BASE!CO33 -> 0 | CP33: =NPC!CP33-BASE!CP33 -> 0 | CQ33: =NPC!CQ33-BASE!CQ33 -> 0 | CR33: =NPC!CR33-BASE!CR33 -> 0 | CS33: =NPC!CS33-BASE!CS33 -> 0 | CT33: =NPC!CT33-BASE!CT33 -> 0 | CU33: =NPC!CU33-BASE!CU33 -> 0 | CV33: =NPC!CV33-BASE!CV33 -> 0 | CW33: =NPC!CW33-BASE!CW33 -> 0 | CX33: =NPC!CX33-BASE!CX33 -> 0 | CY33: =NPC!CY33-BASE!CY33 -> 0 | CZ33: =NPC!CZ33-BASE!CZ33 -> 0 | DA33: =NPC!DA33-BASE!DA33 -> 0 | DB33: =NPC!DB33-BASE!DB33 -> 0 | DC33: =NPC!DC33-BASE!DC33 -> 0 | DD33: =NPC!DD33-BASE!DD33 -> 0 | DE33: =NPC!DE33-BASE!DE33 -> 0 | DF33: =NPC!DF33-BASE!DF33 -> 0 | DG33: =NPC!DG33-BASE!DG33 -> 0 | DH33: =NPC!DH33-BASE!DH33 -> 0 | DI33: =NPC!DI33-BASE!DI33 -> 0 | DJ33: =NPC!DJ33-BASE!DJ33 -> 0 | DK33: =NPC!DK33-BASE!DK33 -> 0 | DL33: =NPC!DL33-BASE!DL33 -> 0 | DM33: =NPC!DM33-BASE!DM33 -> 0 | DN33: =NPC!DN33-BASE!DN33 -> 0 | DO33: =NPC!DO33-BASE!DO33 -> 0 | DP33: =NPC!DP33-BASE!DP33 -> 0 | DQ33: =NPC!DQ33-BASE!DQ33 -> 0 | DR33: =NPC!DR33-BASE!DR33 -> 0 | DS33: =NPC!DS33-BASE!DS33 -> 0 | DT33: =NPC!DT33-BASE!DT33 -> 0 | DU33: =NPC!DU33-BASE!DU33 -> 0 | DV33: =NPC!DV33-BASE!DV33 -> 0 | DW33: =NPC!DW33-BASE!DW33 -> 0 | DX33: =NPC!DX33-BASE!DX33 -> 0 | DY33: =NPC!DY33-BASE!DY33 -> 0 | DZ33: =NPC!DZ33-BASE!DZ33 -> 0 | EA33: =NPC!EA33-BASE!EA33 -> 0 | EB33: =NPC!EB33-BASE!EB33 -> 0 | EC33: =NPC!EC33-BASE!EC33 -> 0 | ED33: =NPC!ED33-BASE!ED33 -> 0 | ER33: =NPC!ER33 -> Hide Row
C34: =NPC!C34 -> Idaho | E34: =NPC!E34-BASE!E34 -> 0 | F34: =NPC!F34-BASE!F34 -> 0 | G34: =NPC!G34-BASE!G34 -> 0 | H34: =NPC!H34-BASE!H34 -> 0 | I34: =NPC!I34-BASE!I34 -> 0 | J34: =NPC!J34-BASE!J34 -> 0 | K34: =NPC!K34-BASE!K34 -> 0 | L34: =NPC!L34-BASE!L34 -> 0 | M34: =NPC!M34-BASE!M34 -> 0 | N34: =NPC!N34-BASE!N34 -> 0 | O34: =NPC!O34-BASE!O34 -> 0 | P34: =NPC!P34-BASE!P34 -> 0 | Q34: =NPC!Q34-BASE!Q34 -> 0 | R34: =NPC!R34-BASE!R34 -> 0 | S34: =NPC!S34-BASE!S34 -> 0 | T34: =NPC!T34-BASE!T34 -> 0 | U34: =NPC!U34-BASE!U34 -> 0 | V34: =NPC!V34-BASE!V34 -> 0 | W34: =NPC!W34-BASE!W34 -> 0 | X34: =NPC!X34-BASE!X34 -> 0 | Y34: =NPC!Y34-BASE!Y34 -> 0 | Z34: =NPC!Z34-BASE!Z34 -> 0 | AA34: =NPC!AA34-BASE!AA34 -> 0 | AB34: =NPC!AB34-BASE!AB34 -> 0 | AC34: =NPC!AC34-BASE!AC34 -> 0 | AD34: =NPC!AD34-BASE!AD34 -> 0 | AE34: =NPC!AE34-BASE!AE34 -> 0 | AF34: =NPC!AF34-BASE!AF34 -> 0 | AG34: =NPC!AG34-BASE!AG34 -> 0 | AH34: =NPC!AH34-BASE!AH34 -> 0 | AI34: =NPC!AI34-BASE!AI34 -> 0 | AJ34: =NPC!AJ34-BASE!AJ34 -> 0 | AK34: =NPC!AK34-BASE!AK34 -> 0 | AL34: =NPC!AL34-BASE!AL34 -> 0 | AM34: =NPC!AM34-BASE!AM34 -> 0 | AN34: =NPC!AN34-BASE!AN34 -> 0 | AO34: =NPC!AO34-BASE!AO34 -> 0 | AP34: =NPC!AP34-BASE!AP34 -> 0 | AQ34: =NPC!AQ34-BASE!AQ34 -> 0 | AR34: =NPC!AR34-BASE!AR34 -> 0 | AS34: =NPC!AS34-BASE!AS34 -> 0 | AT34: =NPC!AT34-BASE!AT34 -> 0 | AU34: =NPC!AU34-BASE!AU34 -> 0 | AV34: =NPC!AV34-BASE!AV34 -> 0 | AW34: =NPC!AW34-BASE!AW34 -> 0 | AX34: =NPC!AX34-BASE!AX34 -> 0 | AY34: =NPC!AY34-BASE!AY34 -> 0 | AZ34: =NPC!AZ34-BASE!AZ34 -> 0 | BA34: =NPC!BA34-BASE!BA34 -> 0 | BB34: =NPC!BB34-BASE!BB34 -> 0 | BC34: =NPC!BC34-BASE!BC34 -> 0 | BD34: =NPC!BD34-BASE!BD34 -> 0 | BE34: =NPC!BE34-BASE!BE34 -> 0 | BF34: =NPC!BF34-BASE!BF34 -> 0 | BG34: =NPC!BG34-BASE!BG34 -> 0 | BH34: =NPC!BH34-BASE!BH34 -> 0 | BI34: =NPC!BI34-BASE!BI34 -> 0 | BJ34: =NPC!BJ34-BASE!BJ34 -> 0 | BK34: =NPC!BK34-BASE!BK34 -> 0 | BL34: =NPC!BL34-BASE!BL34 -> 0 | BM34: =NPC!BM34-BASE!BM34 -> 0 | BN34: =NPC!BN34-BASE!BN34 -> 0 | BO34: =NPC!BO34-BASE!BO34 -> 0 | BP34: =NPC!BP34-BASE!BP34 -> 0 | BQ34: =NPC!BQ34-BASE!BQ34 -> 0 | BR34: =NPC!BR34-BASE!BR34 -> 0 | BS34: =NPC!BS34-BASE!BS34 -> 0 | BT34: =NPC!BT34-BASE!BT34 -> 0 | BU34: =NPC!BU34-BASE!BU34 -> 0 | BV34: =NPC!BV34-BASE!BV34 -> 0 | BW34: =NPC!BW34-BASE!BW34 -> 0 | BX34: =NPC!BX34-BASE!BX34 -> 0 | BY34: =NPC!BY34-BASE!BY34 -> 0 | BZ34: =NPC!BZ34-BASE!BZ34 -> 0 | CA34: =NPC!CA34-BASE!CA34 -> 0 | CB34: =NPC!CB34-BASE!CB34 -> 0 | CC34: =NPC!CC34-BASE!CC34 -> 0 | CD34: =NPC!CD34-BASE!CD34 -> 0 | CE34: =NPC!CE34-BASE!CE34 -> 0 | CF34: =NPC!CF34-BASE!CF34 -> 0 | CG34: =NPC!CG34-BASE!CG34 -> 0 | CH34: =NPC!CH34-BASE!CH34 -> 0 | CI34: =NPC!CI34-BASE!CI34 -> 0 | CJ34: =NPC!CJ34-BASE!CJ34 -> 0 | CK34: =NPC!CK34-BASE!CK34 -> 0 | CL34: =NPC!CL34-BASE!CL34 -> 0 | CM34: =NPC!CM34-BASE!CM34 -> 0 | CN34: =NPC!CN34-BASE!CN34 -> 0 | CO34: =NPC!CO34-BASE!CO34 -> 0 | CP34: =NPC!CP34-BASE!CP34 -> 0 | CQ34: =NPC!CQ34-BASE!CQ34 -> 0 | CR34: =NPC!CR34-BASE!CR34 -> 0 | CS34: =NPC!CS34-BASE!CS34 -> 0 | CT34: =NPC!CT34-BASE!CT34 -> 0 | CU34: =NPC!CU34-BASE!CU34 -> 0 | CV34: =NPC!CV34-BASE!CV34 -> 0 | CW34: =NPC!CW34-BASE!CW34 -> 0 | CX34: =NPC!CX34-BASE!CX34 -> 0 | CY34: =NPC!CY34-BASE!CY34 -> 0 | CZ34: =NPC!CZ34-BASE!CZ34 -> 0 | DA34: =NPC!DA34-BASE!DA34 -> 0 | DB34: =NPC!DB34-BASE!DB34 -> 0 | DC34: =NPC!DC34-BASE!DC34 -> 0 | DD34: =NPC!DD34-BASE!DD34 -> 0 | DE34: =NPC!DE34-BASE!DE34 -> 0 | DF34: =NPC!DF34-BASE!DF34 -> 0 | DG34: =NPC!DG34-BASE!DG34 -> 0 | DH34: =NPC!DH34-BASE!DH34 -> 0 | DI34: =NPC!DI34-BASE!DI34 -> 0 | DJ34: =NPC!DJ34-BASE!DJ34 -> 0 | DK34: =NPC!DK34-BASE!DK34 -> 0 | DL34: =NPC!DL34-BASE!DL34 -> 0 | DM34: =NPC!DM34-BASE!DM34 -> 0 | DN34: =NPC!DN34-BASE!DN34 -> 0 | DO34: =NPC!DO34-BASE!DO34 -> 0 | DP34: =NPC!DP34-BASE!DP34 -> 0 | DQ34: =NPC!DQ34-BASE!DQ34 -> 0 | DR34: =NPC!DR34-BASE!DR34 -> 0 | DS34: =NPC!DS34-BASE!DS34 -> 0 | DT34: =NPC!DT34-BASE!DT34 -> 0 | DU34: =NPC!DU34-BASE!DU34 -> 0 | DV34: =NPC!DV34-BASE!DV34 -> 0 | DW34: =NPC!DW34-BASE!DW34 -> 0 | DX34: =NPC!DX34-BASE!DX34 -> 0 | DY34: =NPC!DY34-BASE!DY34 -> 0 | DZ34: =NPC!DZ34-BASE!DZ34 -> 0 | EA34: =NPC!EA34-BASE!EA34 -> 0 | EB34: =NPC!EB34-BASE!EB34 -> 0 | EC34: =NPC!EC34-BASE!EC34 -> 0 | ED34: =NPC!ED34-BASE!ED34 -> 0 | ER34: =NPC!ER34 -> Hide Row
C35: =NPC!C35 -> Mid Columbia | E35: =NPC!E35-BASE!E35 -> 0 | F35: =NPC!F35-BASE!F35 -> 0 | G35: =NPC!G35-BASE!G35 -> 0 | H35: =NPC!H35-BASE!H35 -> 0 | I35: =NPC!I35-BASE!I35 -> 0 | J35: =NPC!J35-BASE!J35 -> 0 | K35: =NPC!K35-BASE!K35 -> 0 | L35: =NPC!L35-BASE!L35 -> 0 | M35: =NPC!M35-BASE!M35 -> 0 | N35: =NPC!N35-BASE!N35 -> 0 | O35: =NPC!O35-BASE!O35 -> 0 | P35: =NPC!P35-BASE!P35 -> 0 | Q35: =NPC!Q35-BASE!Q35 -> 0 | R35: =NPC!R35-BASE!R35 -> 0 | S35: =NPC!S35-BASE!S35 -> 0 | T35: =NPC!T35-BASE!T35 -> 0 | U35: =NPC!U35-BASE!U35 -> 0 | V35: =NPC!V35-BASE!V35 -> 0 | W35: =NPC!W35-BASE!W35 -> 0 | X35: =NPC!X35-BASE!X35 -> 0 | Y35: =NPC!Y35-BASE!Y35 -> 0 | Z35: =NPC!Z35-BASE!Z35 -> 0 | AA35: =NPC!AA35-BASE!AA35 -> 0 | AB35: =NPC!AB35-BASE!AB35 -> 0 | AC35: =NPC!AC35-BASE!AC35 -> 0 | AD35: =NPC!AD35-BASE!AD35 -> 0 | AE35: =NPC!AE35-BASE!AE35 -> 0 | AF35: =NPC!AF35-BASE!AF35 -> 0 | AG35: =NPC!AG35-BASE!AG35 -> 0 | AH35: =NPC!AH35-BASE!AH35 -> 0 | AI35: =NPC!AI35-BASE!AI35 -> 0 | AJ35: =NPC!AJ35-BASE!AJ35 -> 0 | AK35: =NPC!AK35-BASE!AK35 -> 0 | AL35: =NPC!AL35-BASE!AL35 -> 0 | AM35: =NPC!AM35-BASE!AM35 -> 0 | AN35: =NPC!AN35-BASE!AN35 -> 0 | AO35: =NPC!AO35-BASE!AO35 -> 0 | AP35: =NPC!AP35-BASE!AP35 -> 0 | AQ35: =NPC!AQ35-BASE!AQ35 -> 0 | AR35: =NPC!AR35-BASE!AR35 -> 0 | AS35: =NPC!AS35-BASE!AS35 -> 0 | AT35: =NPC!AT35-BASE!AT35 -> 0 | AU35: =NPC!AU35-BASE!AU35 -> 0 | AV35: =NPC!AV35-BASE!AV35 -> 0 | AW35: =NPC!AW35-BASE!AW35 -> 0 | AX35: =NPC!AX35-BASE!AX35 -> 0 | AY35: =NPC!AY35-BASE!AY35 -> 0 | AZ35: =NPC!AZ35-BASE!AZ35 -> 0 | BA35: =NPC!BA35-BASE!BA35 -> 0 | BB35: =NPC!BB35-BASE!BB35 -> 0 | BC35: =NPC!BC35-BASE!BC35 -> 0 | BD35: =NPC!BD35-BASE!BD35 -> 0 | BE35: =NPC!BE35-BASE!BE35 -> 0 | BF35: =NPC!BF35-BASE!BF35 -> 0 | BG35: =NPC!BG35-BASE!BG35 -> 0 | BH35: =NPC!BH35-BASE!BH35 -> 0 | BI35: =NPC!BI35-BASE!BI35 -> 0 | BJ35: =NPC!BJ35-BASE!BJ35 -> 0 | BK35: =NPC!BK35-BASE!BK35 -> 0 | BL35: =NPC!BL35-BASE!BL35 -> 0 | BM35: =NPC!BM35-BASE!BM35 -> 0 | BN35: =NPC!BN35-BASE!BN35 -> 0 | BO35: =NPC!BO35-BASE!BO35 -> 0 | BP35: =NPC!BP35-BASE!BP35 -> 0 | BQ35: =NPC!BQ35-BASE!BQ35 -> 0 | BR35: =NPC!BR35-BASE!BR35 -> 0 | BS35: =NPC!BS35-BASE!BS35 -> 0 | BT35: =NPC!BT35-BASE!BT35 -> 0 | BU35: =NPC!BU35-BASE!BU35 -> 0 | BV35: =NPC!BV35-BASE!BV35 -> 0 | BW35: =NPC!BW35-BASE!BW35 -> 0 | BX35: =NPC!BX35-BASE!BX35 -> 0 | BY35: =NPC!BY35-BASE!BY35 -> 0 | BZ35: =NPC!BZ35-BASE!BZ35 -> 0 | CA35: =NPC!CA35-BASE!CA35 -> 0 | CB35: =NPC!CB35-BASE!CB35 -> 0 | CC35: =NPC!CC35-BASE!CC35 -> 0 | CD35: =NPC!CD35-BASE!CD35 -> 0 | CE35: =NPC!CE35-BASE!CE35 -> 0 | CF35: =NPC!CF35-BASE!CF35 -> 0 | CG35: =NPC!CG35-BASE!CG35 -> 0 | CH35: =NPC!CH35-BASE!CH35 -> 0 | CI35: =NPC!CI35-BASE!CI35 -> 0 | CJ35: =NPC!CJ35-BASE!CJ35 -> 0 | CK35: =NPC!CK35-BASE!CK35 -> 0 | CL35: =NPC!CL35-BASE!CL35 -> 0 | CM35: =NPC!CM35-BASE!CM35 -> 0 | CN35: =NPC!CN35-BASE!CN35 -> 0 | CO35: =NPC!CO35-BASE!CO35 -> 0 | CP35: =NPC!CP35-BASE!CP35 -> 0 | CQ35: =NPC!CQ35-BASE!CQ35 -> 0 | CR35: =NPC!CR35-BASE!CR35 -> 0 | CS35: =NPC!CS35-BASE!CS35 -> 0 | CT35: =NPC!CT35-BASE!CT35 -> 0 | CU35: =NPC!CU35-BASE!CU35 -> 0 | CV35: =NPC!CV35-BASE!CV35 -> 0 | CW35: =NPC!CW35-BASE!CW35 -> 0 | CX35: =NPC!CX35-BASE!CX35 -> 0 | CY35: =NPC!CY35-BASE!CY35 -> 0 | CZ35: =NPC!CZ35-BASE!CZ35 -> 0 | DA35: =NPC!DA35-BASE!DA35 -> 0 | DB35: =NPC!DB35-BASE!DB35 -> 0 | DC35: =NPC!DC35-BASE!DC35 -> 0 | DD35: =NPC!DD35-BASE!DD35 -> 0 | DE35: =NPC!DE35-BASE!DE35 -> 0 | DF35: =NPC!DF35-BASE!DF35 -> 0 | DG35: =NPC!DG35-BASE!DG35 -> 0 | DH35: =NPC!DH35-BASE!DH35 -> 0 | DI35: =NPC!DI35-BASE!DI35 -> 0 | DJ35: =NPC!DJ35-BASE!DJ35 -> 0 | DK35: =NPC!DK35-BASE!DK35 -> 0 | DL35: =NPC!DL35-BASE!DL35 -> 0 | DM35: =NPC!DM35-BASE!DM35 -> 0 | DN35: =NPC!DN35-BASE!DN35 -> 0 | DO35: =NPC!DO35-BASE!DO35 -> 0 | DP35: =NPC!DP35-BASE!DP35 -> 0 | DQ35: =NPC!DQ35-BASE!DQ35 -> 0 | DR35: =NPC!DR35-BASE!DR35 -> 0 | DS35: =NPC!DS35-BASE!DS35 -> 0 | DT35: =NPC!DT35-BASE!DT35 -> 0 | DU35: =NPC!DU35-BASE!DU35 -> 0 | DV35: =NPC!DV35-BASE!DV35 -> 0 | DW35: =NPC!DW35-BASE!DW35 -> 0 | DX35: =NPC!DX35-BASE!DX35 -> 0 | DY35: =NPC!DY35-BASE!DY35 -> 0 | DZ35: =NPC!DZ35-BASE!DZ35 -> 0 | EA35: =NPC!EA35-BASE!EA35 -> 0 | EB35: =NPC!EB35-BASE!EB35 -> 0 | EC35: =NPC!EC35-BASE!EC35 -> 0 | ED35: =NPC!ED35-BASE!ED35 -> 0 | ER35: =NPC!ER35 -> Hide Row
C36: =NPC!C36 -> Mona | E36: =NPC!E36-BASE!E36 -> 0 | F36: =NPC!F36-BASE!F36 -> 0 | G36: =NPC!G36-BASE!G36 -> 0 | H36: =NPC!H36-BASE!H36 -> 0 | I36: =NPC!I36-BASE!I36 -> 0 | J36: =NPC!J36-BASE!J36 -> 0 | K36: =NPC!K36-BASE!K36 -> 0 | L36: =NPC!L36-BASE!L36 -> 0 | M36: =NPC!M36-BASE!M36 -> 0 | N36: =NPC!N36-BASE!N36 -> 0 | O36: =NPC!O36-BASE!O36 -> 0 | P36: =NPC!P36-BASE!P36 -> 0 | Q36: =NPC!Q36-BASE!Q36 -> 0 | R36: =NPC!R36-BASE!R36 -> 0 | S36: =NPC!S36-BASE!S36 -> 0 | T36: =NPC!T36-BASE!T36 -> 0 | U36: =NPC!U36-BASE!U36 -> 0 | V36: =NPC!V36-BASE!V36 -> 0 | W36: =NPC!W36-BASE!W36 -> 0 | X36: =NPC!X36-BASE!X36 -> 0 | Y36: =NPC!Y36-BASE!Y36 -> 0 | Z36: =NPC!Z36-BASE!Z36 -> 0 | AA36: =NPC!AA36-BASE!AA36 -> 0 | AB36: =NPC!AB36-BASE!AB36 -> 0 | AC36: =NPC!AC36-BASE!AC36 -> 0 | AD36: =NPC!AD36-BASE!AD36 -> 0 | AE36: =NPC!AE36-BASE!AE36 -> 0 | AF36: =NPC!AF36-BASE!AF36 -> 0 | AG36: =NPC!AG36-BASE!AG36 -> 0 | AH36: =NPC!AH36-BASE!AH36 -> 0 | AI36: =NPC!AI36-BASE!AI36 -> 0 | AJ36: =NPC!AJ36-BASE!AJ36 -> 0 | AK36: =NPC!AK36-BASE!AK36 -> 0 | AL36: =NPC!AL36-BASE!AL36 -> 0 | AM36: =NPC!AM36-BASE!AM36 -> 0 | AN36: =NPC!AN36-BASE!AN36 -> 0 | AO36: =NPC!AO36-BASE!AO36 -> 0 | AP36: =NPC!AP36-BASE!AP36 -> 0 | AQ36: =NPC!AQ36-BASE!AQ36 -> 0 | AR36: =NPC!AR36-BASE!AR36 -> 0 | AS36: =NPC!AS36-BASE!AS36 -> 0 | AT36: =NPC!AT36-BASE!AT36 -> 0 | AU36: =NPC!AU36-BASE!AU36 -> 0 | AV36: =NPC!AV36-BASE!AV36 -> 0 | AW36: =NPC!AW36-BASE!AW36 -> 0 | AX36: =NPC!AX36-BASE!AX36 -> 0 | AY36: =NPC!AY36-BASE!AY36 -> 0 | AZ36: =NPC!AZ36-BASE!AZ36 -> 0 | BA36: =NPC!BA36-BASE!BA36 -> 0 | BB36: =NPC!BB36-BASE!BB36 -> 0 | BC36: =NPC!BC36-BASE!BC36 -> 0 | BD36: =NPC!BD36-BASE!BD36 -> 0 | BE36: =NPC!BE36-BASE!BE36 -> 0 | BF36: =NPC!BF36-BASE!BF36 -> 0 | BG36: =NPC!BG36-BASE!BG36 -> 0 | BH36: =NPC!BH36-BASE!BH36 -> 0 | BI36: =NPC!BI36-BASE!BI36 -> 0 | BJ36: =NPC!BJ36-BASE!BJ36 -> 0 | BK36: =NPC!BK36-BASE!BK36 -> 0 | BL36: =NPC!BL36-BASE!BL36 -> 0 | BM36: =NPC!BM36-BASE!BM36 -> 0 | BN36: =NPC!BN36-BASE!BN36 -> 0 | BO36: =NPC!BO36-BASE!BO36 -> 0 | BP36: =NPC!BP36-BASE!BP36 -> 0 | BQ36: =NPC!BQ36-BASE!BQ36 -> 0 | BR36: =NPC!BR36-BASE!BR36 -> 0 | BS36: =NPC!BS36-BASE!BS36 -> 0 | BT36: =NPC!BT36-BASE!BT36 -> 0 | BU36: =NPC!BU36-BASE!BU36 -> 0 | BV36: =NPC!BV36-BASE!BV36 -> 0 | BW36: =NPC!BW36-BASE!BW36 -> 0 | BX36: =NPC!BX36-BASE!BX36 -> 0 | BY36: =NPC!BY36-BASE!BY36 -> 0 | BZ36: =NPC!BZ36-BASE!BZ36 -> 0 | CA36: =NPC!CA36-BASE!CA36 -> 0 | CB36: =NPC!CB36-BASE!CB36 -> 0 | CC36: =NPC!CC36-BASE!CC36 -> 0 | CD36: =NPC!CD36-BASE!CD36 -> 0 | CE36: =NPC!CE36-BASE!CE36 -> 0 | CF36: =NPC!CF36-BASE!CF36 -> 0 | CG36: =NPC!CG36-BASE!CG36 -> 0 | CH36: =NPC!CH36-BASE!CH36 -> 0 | CI36: =NPC!CI36-BASE!CI36 -> 0 | CJ36: =NPC!CJ36-BASE!CJ36 -> 0 | CK36: =NPC!CK36-BASE!CK36 -> 0 | CL36: =NPC!CL36-BASE!CL36 -> 0 | CM36: =NPC!CM36-BASE!CM36 -> 0 | CN36: =NPC!CN36-BASE!CN36 -> 0 | CO36: =NPC!CO36-BASE!CO36 -> 0 | CP36: =NPC!CP36-BASE!CP36 -> 0 | CQ36: =NPC!CQ36-BASE!CQ36 -> 0 | CR36: =NPC!CR36-BASE!CR36 -> 0 | CS36: =NPC!CS36-BASE!CS36 -> 0 | CT36: =NPC!CT36-BASE!CT36 -> 0 | CU36: =NPC!CU36-BASE!CU36 -> 0 | CV36: =NPC!CV36-BASE!CV36 -> 0 | CW36: =NPC!CW36-BASE!CW36 -> 0 | CX36: =NPC!CX36-BASE!CX36 -> 0 | CY36: =NPC!CY36-BASE!CY36 -> 0 | CZ36: =NPC!CZ36-BASE!CZ36 -> 0 | DA36: =NPC!DA36-BASE!DA36 -> 0 | DB36: =NPC!DB36-BASE!DB36 -> 0 | DC36: =NPC!DC36-BASE!DC36 -> 0 | DD36: =NPC!DD36-BASE!DD36 -> 0 | DE36: =NPC!DE36-BASE!DE36 -> 0 | DF36: =NPC!DF36-BASE!DF36 -> 0 | DG36: =NPC!DG36-BASE!DG36 -> 0 | DH36: =NPC!DH36-BASE!DH36 -> 0 | DI36: =NPC!DI36-BASE!DI36 -> 0 | DJ36: =NPC!DJ36-BASE!DJ36 -> 0 | DK36: =NPC!DK36-BASE!DK36 -> 0 | DL36: =NPC!DL36-BASE!DL36 -> 0 | DM36: =NPC!DM36-BASE!DM36 -> 0 | DN36: =NPC!DN36-BASE!DN36 -> 0 | DO36: =NPC!DO36-BASE!DO36 -> 0 | DP36: =NPC!DP36-BASE!DP36 -> 0 | DQ36: =NPC!DQ36-BASE!DQ36 -> 0 | DR36: =NPC!DR36-BASE!DR36 -> 0 | DS36: =NPC!DS36-BASE!DS36 -> 0 | DT36: =NPC!DT36-BASE!DT36 -> 0 | DU36: =NPC!DU36-BASE!DU36 -> 0 | DV36: =NPC!DV36-BASE!DV36 -> 0 | DW36: =NPC!DW36-BASE!DW36 -> 0 | DX36: =NPC!DX36-BASE!DX36 -> 0 | DY36: =NPC!DY36-BASE!DY36 -> 0 | DZ36: =NPC!DZ36-BASE!DZ36 -> 0 | EA36: =NPC!EA36-BASE!EA36 -> 0 | EB36: =NPC!EB36-BASE!EB36 -> 0 | EC36: =NPC!EC36-BASE!EC36 -> 0 | ED36: =NPC!ED36-BASE!ED36 -> 0 | ER36: =NPC!ER36 -> Hide Row
C37: =NPC!C37 -> Palo Verde | E37: =NPC!E37-BASE!E37 -> 0 | F37: =NPC!F37-BASE!F37 -> 0 | G37: =NPC!G37-BASE!G37 -> 0 | H37: =NPC!H37-BASE!H37 -> 0 | I37: =NPC!I37-BASE!I37 -> 0 | J37: =NPC!J37-BASE!J37 -> 0 | K37: =NPC!K37-BASE!K37 -> 0 | L37: =NPC!L37-BASE!L37 -> 0 | M37: =NPC!M37-BASE!M37 -> 0 | N37: =NPC!N37-BASE!N37 -> 0 | O37: =NPC!O37-BASE!O37 -> 0 | P37: =NPC!P37-BASE!P37 -> 0 | Q37: =NPC!Q37-BASE!Q37 -> 0 | R37: =NPC!R37-BASE!R37 -> 0 | S37: =NPC!S37-BASE!S37 -> 0 | T37: =NPC!T37-BASE!T37 -> 0 | U37: =NPC!U37-BASE!U37 -> 0 | V37: =NPC!V37-BASE!V37 -> 0 | W37: =NPC!W37-BASE!W37 -> 0 | X37: =NPC!X37-BASE!X37 -> 0 | Y37: =NPC!Y37-BASE!Y37 -> 0 | Z37: =NPC!Z37-BASE!Z37 -> 0 | AA37: =NPC!AA37-BASE!AA37 -> 0 | AB37: =NPC!AB37-BASE!AB37 -> 0 | AC37: =NPC!AC37-BASE!AC37 -> 0 | AD37: =NPC!AD37-BASE!AD37 -> 0 | AE37: =NPC!AE37-BASE!AE37 -> 0 | AF37: =NPC!AF37-BASE!AF37 -> 0 | AG37: =NPC!AG37-BASE!AG37 -> 0 | AH37: =NPC!AH37-BASE!AH37 -> 0 | AI37: =NPC!AI37-BASE!AI37 -> 0 | AJ37: =NPC!AJ37-BASE!AJ37 -> 0 | AK37: =NPC!AK37-BASE!AK37 -> 0 | AL37: =NPC!AL37-BASE!AL37 -> 0 | AM37: =NPC!AM37-BASE!AM37 -> 0 | AN37: =NPC!AN37-BASE!AN37 -> 0 | AO37: =NPC!AO37-BASE!AO37 -> 0 | AP37: =NPC!AP37-BASE!AP37 -> 0 | AQ37: =NPC!AQ37-BASE!AQ37 -> 0 | AR37: =NPC!AR37-BASE!AR37 -> 0 | AS37: =NPC!AS37-BASE!AS37 -> 0 | AT37: =NPC!AT37-BASE!AT37 -> 0 | AU37: =NPC!AU37-BASE!AU37 -> 0 | AV37: =NPC!AV37-BASE!AV37 -> 0 | AW37: =NPC!AW37-BASE!AW37 -> 0 | AX37: =NPC!AX37-BASE!AX37 -> 0 | AY37: =NPC!AY37-BASE!AY37 -> 0 | AZ37: =NPC!AZ37-BASE!AZ37 -> 0 | BA37: =NPC!BA37-BASE!BA37 -> 0 | BB37: =NPC!BB37-BASE!BB37 -> 0 | BC37: =NPC!BC37-BASE!BC37 -> 0 | BD37: =NPC!BD37-BASE!BD37 -> 0 | BE37: =NPC!BE37-BASE!BE37 -> 0 | BF37: =NPC!BF37-BASE!BF37 -> 0 | BG37: =NPC!BG37-BASE!BG37 -> 0 | BH37: =NPC!BH37-BASE!BH37 -> 0 | BI37: =NPC!BI37-BASE!BI37 -> 0 | BJ37: =NPC!BJ37-BASE!BJ37 -> 0 | BK37: =NPC!BK37-BASE!BK37 -> 0 | BL37: =NPC!BL37-BASE!BL37 -> 0 | BM37: =NPC!BM37-BASE!BM37 -> 0 | BN37: =NPC!BN37-BASE!BN37 -> 0 | BO37: =NPC!BO37-BASE!BO37 -> 0 | BP37: =NPC!BP37-BASE!BP37 -> 0 | BQ37: =NPC!BQ37-BASE!BQ37 -> 0 | BR37: =NPC!BR37-BASE!BR37 -> 0 | BS37: =NPC!BS37-BASE!BS37 -> 0 | BT37: =NPC!BT37-BASE!BT37 -> 0 | BU37: =NPC!BU37-BASE!BU37 -> 0 | BV37: =NPC!BV37-BASE!BV37 -> 0 | BW37: =NPC!BW37-BASE!BW37 -> 0 | BX37: =NPC!BX37-BASE!BX37 -> 0 | BY37: =NPC!BY37-BASE!BY37 -> 0 | BZ37: =NPC!BZ37-BASE!BZ37 -> 0 | CA37: =NPC!CA37-BASE!CA37 -> 0 | CB37: =NPC!CB37-BASE!CB37 -> 0 | CC37: =NPC!CC37-BASE!CC37 -> 0 | CD37: =NPC!CD37-BASE!CD37 -> 0 | CE37: =NPC!CE37-BASE!CE37 -> 0 | CF37: =NPC!CF37-BASE!CF37 -> 0 | CG37: =NPC!CG37-BASE!CG37 -> 0 | CH37: =NPC!CH37-BASE!CH37 -> 0 | CI37: =NPC!CI37-BASE!CI37 -> 0 | CJ37: =NPC!CJ37-BASE!CJ37 -> 0 | CK37: =NPC!CK37-BASE!CK37 -> 0 | CL37: =NPC!CL37-BASE!CL37 -> 0 | CM37: =NPC!CM37-BASE!CM37 -> 0 | CN37: =NPC!CN37-BASE!CN37 -> 0 | CO37: =NPC!CO37-BASE!CO37 -> 0 | CP37: =NPC!CP37-BASE!CP37 -> 0 | CQ37: =NPC!CQ37-BASE!CQ37 -> 0 | CR37: =NPC!CR37-BASE!CR37 -> 0 | CS37: =NPC!CS37-BASE!CS37 -> 0 | CT37: =NPC!CT37-BASE!CT37 -> 0 | CU37: =NPC!CU37-BASE!CU37 -> 0 | CV37: =NPC!CV37-BASE!CV37 -> 0 | CW37: =NPC!CW37-BASE!CW37 -> 0 | CX37: =NPC!CX37-BASE!CX37 -> 0 | CY37: =NPC!CY37-BASE!CY37 -> 0 | CZ37: =NPC!CZ37-BASE!CZ37 -> 0 | DA37: =NPC!DA37-BASE!DA37 -> 0 | DB37: =NPC!DB37-BASE!DB37 -> 0 | DC37: =NPC!DC37-BASE!DC37 -> 0 | DD37: =NPC!DD37-BASE!DD37 -> 0 | DE37: =NPC!DE37-BASE!DE37 -> 0 | DF37: =NPC!DF37-BASE!DF37 -> 0 | DG37: =NPC!DG37-BASE!DG37 -> 0 | DH37: =NPC!DH37-BASE!DH37 -> 0 | DI37: =NPC!DI37-BASE!DI37 -> 0 | DJ37: =NPC!DJ37-BASE!DJ37 -> 0 | DK37: =NPC!DK37-BASE!DK37 -> 0 | DL37: =NPC!DL37-BASE!DL37 -> 0 | DM37: =NPC!DM37-BASE!DM37 -> 0 | DN37: =NPC!DN37-BASE!DN37 -> 0 | DO37: =NPC!DO37-BASE!DO37 -> 0 | DP37: =NPC!DP37-BASE!DP37 -> 0 | DQ37: =NPC!DQ37-BASE!DQ37 -> 0 | DR37: =NPC!DR37-BASE!DR37 -> 0 | DS37: =NPC!DS37-BASE!DS37 -> 0 | DT37: =NPC!DT37-BASE!DT37 -> 0 | DU37: =NPC!DU37-BASE!DU37 -> 0 | DV37: =NPC!DV37-BASE!DV37 -> 0 | DW37: =NPC!DW37-BASE!DW37 -> 0 | DX37: =NPC!DX37-BASE!DX37 -> 0 | DY37: =NPC!DY37-BASE!DY37 -> 0 | DZ37: =NPC!DZ37-BASE!DZ37 -> 0 | EA37: =NPC!EA37-BASE!EA37 -> 0 | EB37: =NPC!EB37-BASE!EB37 -> 0 | EC37: =NPC!EC37-BASE!EC37 -> 0 | ED37: =NPC!ED37-BASE!ED37 -> 0 | ER37: =NPC!ER37 -> Hide Row
C38: =NPC!C38 -> SP15 | E38: =NPC!E38-BASE!E38 -> 0 | F38: =NPC!F38-BASE!F38 -> 0 | G38: =NPC!G38-BASE!G38 -> 0 | H38: =NPC!H38-BASE!H38 -> 0 | I38: =NPC!I38-BASE!I38 -> 0 | J38: =NPC!J38-BASE!J38 -> 0 | K38: =NPC!K38-BASE!K38 -> 0 | L38: =NPC!L38-BASE!L38 -> 0 | M38: =NPC!M38-BASE!M38 -> 0 | N38: =NPC!N38-BASE!N38 -> 0 | O38: =NPC!O38-BASE!O38 -> 0 | P38: =NPC!P38-BASE!P38 -> 0 | Q38: =NPC!Q38-BASE!Q38 -> 0 | R38: =NPC!R38-BASE!R38 -> 0 | S38: =NPC!S38-BASE!S38 -> 0 | T38: =NPC!T38-BASE!T38 -> 0 | U38: =NPC!U38-BASE!U38 -> 0 | V38: =NPC!V38-BASE!V38 -> 0 | W38: =NPC!W38-BASE!W38 -> 0 | X38: =NPC!X38-BASE!X38 -> 0 | Y38: =NPC!Y38-BASE!Y38 -> 0 | Z38: =NPC!Z38-BASE!Z38 -> 0 | AA38: =NPC!AA38-BASE!AA38 -> 0 | AB38: =NPC!AB38-BASE!AB38 -> 0 | AC38: =NPC!AC38-BASE!AC38 -> 0 | AD38: =NPC!AD38-BASE!AD38 -> 0 | AE38: =NPC!AE38-BASE!AE38 -> 0 | AF38: =NPC!AF38-BASE!AF38 -> 0 | AG38: =NPC!AG38-BASE!AG38 -> 0 | AH38: =NPC!AH38-BASE!AH38 -> 0 | AI38: =NPC!AI38-BASE!AI38 -> 0 | AJ38: =NPC!AJ38-BASE!AJ38 -> 0 | AK38: =NPC!AK38-BASE!AK38 -> 0 | AL38: =NPC!AL38-BASE!AL38 -> 0 | AM38: =NPC!AM38-BASE!AM38 -> 0 | AN38: =NPC!AN38-BASE!AN38 -> 0 | AO38: =NPC!AO38-BASE!AO38 -> 0 | AP38: =NPC!AP38-BASE!AP38 -> 0 | AQ38: =NPC!AQ38-BASE!AQ38 -> 0 | AR38: =NPC!AR38-BASE!AR38 -> 0 | AS38: =NPC!AS38-BASE!AS38 -> 0 | AT38: =NPC!AT38-BASE!AT38 -> 0 | AU38: =NPC!AU38-BASE!AU38 -> 0 | AV38: =NPC!AV38-BASE!AV38 -> 0 | AW38: =NPC!AW38-BASE!AW38 -> 0 | AX38: =NPC!AX38-BASE!AX38 -> 0 | AY38: =NPC!AY38-BASE!AY38 -> 0 | AZ38: =NPC!AZ38-BASE!AZ38 -> 0 | BA38: =NPC!BA38-BASE!BA38 -> 0 | BB38: =NPC!BB38-BASE!BB38 -> 0 | BC38: =NPC!BC38-BASE!BC38 -> 0 | BD38: =NPC!BD38-BASE!BD38 -> 0 | BE38: =NPC!BE38-BASE!BE38 -> 0 | BF38: =NPC!BF38-BASE!BF38 -> 0 | BG38: =NPC!BG38-BASE!BG38 -> 0 | BH38: =NPC!BH38-BASE!BH38 -> 0 | BI38: =NPC!BI38-BASE!BI38 -> 0 | BJ38: =NPC!BJ38-BASE!BJ38 -> 0 | BK38: =NPC!BK38-BASE!BK38 -> 0 | BL38: =NPC!BL38-BASE!BL38 -> 0 | BM38: =NPC!BM38-BASE!BM38 -> 0 | BN38: =NPC!BN38-BASE!BN38 -> 0 | BO38: =NPC!BO38-BASE!BO38 -> 0 | BP38: =NPC!BP38-BASE!BP38 -> 0 | BQ38: =NPC!BQ38-BASE!BQ38 -> 0 | BR38: =NPC!BR38-BASE!BR38 -> 0 | BS38: =NPC!BS38-BASE!BS38 -> 0 | BT38: =NPC!BT38-BASE!BT38 -> 0 | BU38: =NPC!BU38-BASE!BU38 -> 0 | BV38: =NPC!BV38-BASE!BV38 -> 0 | BW38: =NPC!BW38-BASE!BW38 -> 0 | BX38: =NPC!BX38-BASE!BX38 -> 0 | BY38: =NPC!BY38-BASE!BY38 -> 0 | BZ38: =NPC!BZ38-BASE!BZ38 -> 0 | CA38: =NPC!CA38-BASE!CA38 -> 0 | CB38: =NPC!CB38-BASE!CB38 -> 0 | CC38: =NPC!CC38-BASE!CC38 -> 0 | CD38: =NPC!CD38-BASE!CD38 -> 0 | CE38: =NPC!CE38-BASE!CE38 -> 0 | CF38: =NPC!CF38-BASE!CF38 -> 0 | CG38: =NPC!CG38-BASE!CG38 -> 0 | CH38: =NPC!CH38-BASE!CH38 -> 0 | CI38: =NPC!CI38-BASE!CI38 -> 0 | CJ38: =NPC!CJ38-BASE!CJ38 -> 0 | CK38: =NPC!CK38-BASE!CK38 -> 0 | CL38: =NPC!CL38-BASE!CL38 -> 0 | CM38: =NPC!CM38-BASE!CM38 -> 0 | CN38: =NPC!CN38-BASE!CN38 -> 0 | CO38: =NPC!CO38-BASE!CO38 -> 0 | CP38: =NPC!CP38-BASE!CP38 -> 0 | CQ38: =NPC!CQ38-BASE!CQ38 -> 0 | CR38: =NPC!CR38-BASE!CR38 -> 0 | CS38: =NPC!CS38-BASE!CS38 -> 0 | CT38: =NPC!CT38-BASE!CT38 -> 0 | CU38: =NPC!CU38-BASE!CU38 -> 0 | CV38: =NPC!CV38-BASE!CV38 -> 0 | CW38: =NPC!CW38-BASE!CW38 -> 0 | CX38: =NPC!CX38-BASE!CX38 -> 0 | CY38: =NPC!CY38-BASE!CY38 -> 0 | CZ38: =NPC!CZ38-BASE!CZ38 -> 0 | DA38: =NPC!DA38-BASE!DA38 -> 0 | DB38: =NPC!DB38-BASE!DB38 -> 0 | DC38: =NPC!DC38-BASE!DC38 -> 0 | DD38: =NPC!DD38-BASE!DD38 -> 0 | DE38: =NPC!DE38-BASE!DE38 -> 0 | DF38: =NPC!DF38-BASE!DF38 -> 0 | DG38: =NPC!DG38-BASE!DG38 -> 0 | DH38: =NPC!DH38-BASE!DH38 -> 0 | DI38: =NPC!DI38-BASE!DI38 -> 0 | DJ38: =NPC!DJ38-BASE!DJ38 -> 0 | DK38: =NPC!DK38-BASE!DK38 -> 0 | DL38: =NPC!DL38-BASE!DL38 -> 0 | DM38: =NPC!DM38-BASE!DM38 -> 0 | DN38: =NPC!DN38-BASE!DN38 -> 0 | DO38: =NPC!DO38-BASE!DO38 -> 0 | DP38: =NPC!DP38-BASE!DP38 -> 0 | DQ38: =NPC!DQ38-BASE!DQ38 -> 0 | DR38: =NPC!DR38-BASE!DR38 -> 0 | DS38: =NPC!DS38-BASE!DS38 -> 0 | DT38: =NPC!DT38-BASE!DT38 -> 0 | DU38: =NPC!DU38-BASE!DU38 -> 0 | DV38: =NPC!DV38-BASE!DV38 -> 0 | DW38: =NPC!DW38-BASE!DW38 -> 0 | DX38: =NPC!DX38-BASE!DX38 -> 0 | DY38: =NPC!DY38-BASE!DY38 -> 0 | DZ38: =NPC!DZ38-BASE!DZ38 -> 0 | EA38: =NPC!EA38-BASE!EA38 -> 0 | EB38: =NPC!EB38-BASE!EB38 -> 0 | EC38: =NPC!EC38-BASE!EC38 -> 0 | ED38: =NPC!ED38-BASE!ED38 -> 0 | ER38: =NPC!ER38 -> Hide Row
C39: =NPC!C39 -> Utah | E39: =NPC!E39-BASE!E39 -> 0 | F39: =NPC!F39-BASE!F39 -> 0 | G39: =NPC!G39-BASE!G39 -> 0 | H39: =NPC!H39-BASE!H39 -> 0 | I39: =NPC!I39-BASE!I39 -> 0 | J39: =NPC!J39-BASE!J39 -> 0 | K39: =NPC!K39-BASE!K39 -> 0 | L39: =NPC!L39-BASE!L39 -> 0 | M39: =NPC!M39-BASE!M39 -> 0 | N39: =NPC!N39-BASE!N39 -> 0 | O39: =NPC!O39-BASE!O39 -> 0 | P39: =NPC!P39-BASE!P39 -> 0 | Q39: =NPC!Q39-BASE!Q39 -> 0 | R39: =NPC!R39-BASE!R39 -> 0 | S39: =NPC!S39-BASE!S39 -> 0 | T39: =NPC!T39-BASE!T39 -> 0 | U39: =NPC!U39-BASE!U39 -> 0 | V39: =NPC!V39-BASE!V39 -> 0 | W39: =NPC!W39-BASE!W39 -> 0 | X39: =NPC!X39-BASE!X39 -> 0 | Y39: =NPC!Y39-BASE!Y39 -> 0 | Z39: =NPC!Z39-BASE!Z39 -> 0 | AA39: =NPC!AA39-BASE!AA39 -> 0 | AB39: =NPC!AB39-BASE!AB39 -> 0 | AC39: =NPC!AC39-BASE!AC39 -> 0 | AD39: =NPC!AD39-BASE!AD39 -> 0 | AE39: =NPC!AE39-BASE!AE39 -> 0 | AF39: =NPC!AF39-BASE!AF39 -> 0 | AG39: =NPC!AG39-BASE!AG39 -> 0 | AH39: =NPC!AH39-BASE!AH39 -> 0 | AI39: =NPC!AI39-BASE!AI39 -> 0 | AJ39: =NPC!AJ39-BASE!AJ39 -> 0 | AK39: =NPC!AK39-BASE!AK39 -> 0 | AL39: =NPC!AL39-BASE!AL39 -> 0 | AM39: =NPC!AM39-BASE!AM39 -> 0 | AN39: =NPC!AN39-BASE!AN39 -> 0 | AO39: =NPC!AO39-BASE!AO39 -> 0 | AP39: =NPC!AP39-BASE!AP39 -> 0 | AQ39: =NPC!AQ39-BASE!AQ39 -> 0 | AR39: =NPC!AR39-BASE!AR39 -> 0 | AS39: =NPC!AS39-BASE!AS39 -> 0 | AT39: =NPC!AT39-BASE!AT39 -> 0 | AU39: =NPC!AU39-BASE!AU39 -> 0 | AV39: =NPC!AV39-BASE!AV39 -> 0 | AW39: =NPC!AW39-BASE!AW39 -> 0 | AX39: =NPC!AX39-BASE!AX39 -> 0 | AY39: =NPC!AY39-BASE!AY39 -> 0 | AZ39: =NPC!AZ39-BASE!AZ39 -> 0 | BA39: =NPC!BA39-BASE!BA39 -> 0 | BB39: =NPC!BB39-BASE!BB39 -> 0 | BC39: =NPC!BC39-BASE!BC39 -> 0 | BD39: =NPC!BD39-BASE!BD39 -> 0 | BE39: =NPC!BE39-BASE!BE39 -> 0 | BF39: =NPC!BF39-BASE!BF39 -> 0 | BG39: =NPC!BG39-BASE!BG39 -> 0 | BH39: =NPC!BH39-BASE!BH39 -> 0 | BI39: =NPC!BI39-BASE!BI39 -> 0 | BJ39: =NPC!BJ39-BASE!BJ39 -> 0 | BK39: =NPC!BK39-BASE!BK39 -> 0 | BL39: =NPC!BL39-BASE!BL39 -> 0 | BM39: =NPC!BM39-BASE!BM39 -> 0 | BN39: =NPC!BN39-BASE!BN39 -> 0 | BO39: =NPC!BO39-BASE!BO39 -> 0 | BP39: =NPC!BP39-BASE!BP39 -> 0 | BQ39: =NPC!BQ39-BASE!BQ39 -> 0 | BR39: =NPC!BR39-BASE!BR39 -> 0 | BS39: =NPC!BS39-BASE!BS39 -> 0 | BT39: =NPC!BT39-BASE!BT39 -> 0 | BU39: =NPC!BU39-BASE!BU39 -> 0 | BV39: =NPC!BV39-BASE!BV39 -> 0 | BW39: =NPC!BW39-BASE!BW39 -> 0 | BX39: =NPC!BX39-BASE!BX39 -> 0 | BY39: =NPC!BY39-BASE!BY39 -> 0 | BZ39: =NPC!BZ39-BASE!BZ39 -> 0 | CA39: =NPC!CA39-BASE!CA39 -> 0 | CB39: =NPC!CB39-BASE!CB39 -> 0 | CC39: =NPC!CC39-BASE!CC39 -> 0 | CD39: =NPC!CD39-BASE!CD39 -> 0 | CE39: =NPC!CE39-BASE!CE39 -> 0 | CF39: =NPC!CF39-BASE!CF39 -> 0 | CG39: =NPC!CG39-BASE!CG39 -> 0 | CH39: =NPC!CH39-BASE!CH39 -> 0 | CI39: =NPC!CI39-BASE!CI39 -> 0 | CJ39: =NPC!CJ39-BASE!CJ39 -> 0 | CK39: =NPC!CK39-BASE!CK39 -> 0 | CL39: =NPC!CL39-BASE!CL39 -> 0 | CM39: =NPC!CM39-BASE!CM39 -> 0 | CN39: =NPC!CN39-BASE!CN39 -> 0 | CO39: =NPC!CO39-BASE!CO39 -> 0 | CP39: =NPC!CP39-BASE!CP39 -> 0 | CQ39: =NPC!CQ39-BASE!CQ39 -> 0 | CR39: =NPC!CR39-BASE!CR39 -> 0 | CS39: =NPC!CS39-BASE!CS39 -> 0 | CT39: =NPC!CT39-BASE!CT39 -> 0 | CU39: =NPC!CU39-BASE!CU39 -> 0 | CV39: =NPC!CV39-BASE!CV39 -> 0 | CW39: =NPC!CW39-BASE!CW39 -> 0 | CX39: =NPC!CX39-BASE!CX39 -> 0 | CY39: =NPC!CY39-BASE!CY39 -> 0 | CZ39: =NPC!CZ39-BASE!CZ39 -> 0 | DA39: =NPC!DA39-BASE!DA39 -> 0 | DB39: =NPC!DB39-BASE!DB39 -> 0 | DC39: =NPC!DC39-BASE!DC39 -> 0 | DD39: =NPC!DD39-BASE!DD39 -> 0 | DE39: =NPC!DE39-BASE!DE39 -> 0 | DF39: =NPC!DF39-BASE!DF39 -> 0 | DG39: =NPC!DG39-BASE!DG39 -> 0 | DH39: =NPC!DH39-BASE!DH39 -> 0 | DI39: =NPC!DI39-BASE!DI39 -> 0 | DJ39: =NPC!DJ39-BASE!DJ39 -> 0 | DK39: =NPC!DK39-BASE!DK39 -> 0 | DL39: =NPC!DL39-BASE!DL39 -> 0 | DM39: =NPC!DM39-BASE!DM39 -> 0 | DN39: =NPC!DN39-BASE!DN39 -> 0 | DO39: =NPC!DO39-BASE!DO39 -> 0 | DP39: =NPC!DP39-BASE!DP39 -> 0 | DQ39: =NPC!DQ39-BASE!DQ39 -> 0 | DR39: =NPC!DR39-BASE!DR39 -> 0 | DS39: =NPC!DS39-BASE!DS39 -> 0 | DT39: =NPC!DT39-BASE!DT39 -> 0 | DU39: =NPC!DU39-BASE!DU39 -> 0 | DV39: =NPC!DV39-BASE!DV39 -> 0 | DW39: =NPC!DW39-BASE!DW39 -> 0 | DX39: =NPC!DX39-BASE!DX39 -> 0 | DY39: =NPC!DY39-BASE!DY39 -> 0 | DZ39: =NPC!DZ39-BASE!DZ39 -> 0 | EA39: =NPC!EA39-BASE!EA39 -> 0 | EB39: =NPC!EB39-BASE!EB39 -> 0 | EC39: =NPC!EC39-BASE!EC39 -> 0 | ED39: =NPC!ED39-BASE!ED39 -> 0 | ER39: =NPC!ER39 -> Hide Row
C40: =NPC!C40 -> Washington | E40: =NPC!E40-BASE!E40 -> 0 | F40: =NPC!F40-BASE!F40 -> 0 | G40: =NPC!G40-BASE!G40 -> 0 | H40: =NPC!H40-BASE!H40 -> 0 | I40: =NPC!I40-BASE!I40 -> 0 | J40: =NPC!J40-BASE!J40 -> 0 | K40: =NPC!K40-BASE!K40 -> 0 | L40: =NPC!L40-BASE!L40 -> 0 | M40: =NPC!M40-BASE!M40 -> 0 | N40: =NPC!N40-BASE!N40 -> 0 | O40: =NPC!O40-BASE!O40 -> 0 | P40: =NPC!P40-BASE!P40 -> 0 | Q40: =NPC!Q40-BASE!Q40 -> 0 | R40: =NPC!R40-BASE!R40 -> 0 | S40: =NPC!S40-BASE!S40 -> 0 | T40: =NPC!T40-BASE!T40 -> 0 | U40: =NPC!U40-BASE!U40 -> 0 | V40: =NPC!V40-BASE!V40 -> 0 | W40: =NPC!W40-BASE!W40 -> 0 | X40: =NPC!X40-BASE!X40 -> 0 | Y40: =NPC!Y40-BASE!Y40 -> 0 | Z40: =NPC!Z40-BASE!Z40 -> 0 | AA40: =NPC!AA40-BASE!AA40 -> 0 | AB40: =NPC!AB40-BASE!AB40 -> 0 | AC40: =NPC!AC40-BASE!AC40 -> 0 | AD40: =NPC!AD40-BASE!AD40 -> 0 | AE40: =NPC!AE40-BASE!AE40 -> 0 | AF40: =NPC!AF40-BASE!AF40 -> 0 | AG40: =NPC!AG40-BASE!AG40 -> 0 | AH40: =NPC!AH40-BASE!AH40 -> 0 | AI40: =NPC!AI40-BASE!AI40 -> 0 | AJ40: =NPC!AJ40-BASE!AJ40 -> 0 | AK40: =NPC!AK40-BASE!AK40 -> 0 | AL40: =NPC!AL40-BASE!AL40 -> 0 | AM40: =NPC!AM40-BASE!AM40 -> 0 | AN40: =NPC!AN40-BASE!AN40 -> 0 | AO40: =NPC!AO40-BASE!AO40 -> 0 | AP40: =NPC!AP40-BASE!AP40 -> 0 | AQ40: =NPC!AQ40-BASE!AQ40 -> 0 | AR40: =NPC!AR40-BASE!AR40 -> 0 | AS40: =NPC!AS40-BASE!AS40 -> 0 | AT40: =NPC!AT40-BASE!AT40 -> 0 | AU40: =NPC!AU40-BASE!AU40 -> 0 | AV40: =NPC!AV40-BASE!AV40 -> 0 | AW40: =NPC!AW40-BASE!AW40 -> 0 | AX40: =NPC!AX40-BASE!AX40 -> 0 | AY40: =NPC!AY40-BASE!AY40 -> 0 | AZ40: =NPC!AZ40-BASE!AZ40 -> 0 | BA40: =NPC!BA40-BASE!BA40 -> 0 | BB40: =NPC!BB40-BASE!BB40 -> 0 | BC40: =NPC!BC40-BASE!BC40 -> 0 | BD40: =NPC!BD40-BASE!BD40 -> 0 | BE40: =NPC!BE40-BASE!BE40 -> 0 | BF40: =NPC!BF40-BASE!BF40 -> 0 | BG40: =NPC!BG40-BASE!BG40 -> 0 | BH40: =NPC!BH40-BASE!BH40 -> 0 | BI40: =NPC!BI40-BASE!BI40 -> 0 | BJ40: =NPC!BJ40-BASE!BJ40 -> 0 | BK40: =NPC!BK40-BASE!BK40 -> 0 | BL40: =NPC!BL40-BASE!BL40 -> 0 | BM40: =NPC!BM40-BASE!BM40 -> 0 | BN40: =NPC!BN40-BASE!BN40 -> 0 | BO40: =NPC!BO40-BASE!BO40 -> 0 | BP40: =NPC!BP40-BASE!BP40 -> 0 | BQ40: =NPC!BQ40-BASE!BQ40 -> 0 | BR40: =NPC!BR40-BASE!BR40 -> 0 | BS40: =NPC!BS40-BASE!BS40 -> 0 | BT40: =NPC!BT40-BASE!BT40 -> 0 | BU40: =NPC!BU40-BASE!BU40 -> 0 | BV40: =NPC!BV40-BASE!BV40 -> 0 | BW40: =NPC!BW40-BASE!BW40 -> 0 | BX40: =NPC!BX40-BASE!BX40 -> 0 | BY40: =NPC!BY40-BASE!BY40 -> 0 | BZ40: =NPC!BZ40-BASE!BZ40 -> 0 | CA40: =NPC!CA40-BASE!CA40 -> 0 | CB40: =NPC!CB40-BASE!CB40 -> 0 | CC40: =NPC!CC40-BASE!CC40 -> 0 | CD40: =NPC!CD40-BASE!CD40 -> 0 | CE40: =NPC!CE40-BASE!CE40 -> 0 | CF40: =NPC!CF40-BASE!CF40 -> 0 | CG40: =NPC!CG40-BASE!CG40 -> 0 | CH40: =NPC!CH40-BASE!CH40 -> 0 | CI40: =NPC!CI40-BASE!CI40 -> 0 | CJ40: =NPC!CJ40-BASE!CJ40 -> 0 | CK40: =NPC!CK40-BASE!CK40 -> 0 | CL40: =NPC!CL40-BASE!CL40 -> 0 | CM40: =NPC!CM40-BASE!CM40 -> 0 | CN40: =NPC!CN40-BASE!CN40 -> 0 | CO40: =NPC!CO40-BASE!CO40 -> 0 | CP40: =NPC!CP40-BASE!CP40 -> 0 | CQ40: =NPC!CQ40-BASE!CQ40 -> 0 | CR40: =NPC!CR40-BASE!CR40 -> 0 | CS40: =NPC!CS40-BASE!CS40 -> 0 | CT40: =NPC!CT40-BASE!CT40 -> 0 | CU40: =NPC!CU40-BASE!CU40 -> 0 | CV40: =NPC!CV40-BASE!CV40 -> 0 | CW40: =NPC!CW40-BASE!CW40 -> 0 | CX40: =NPC!CX40-BASE!CX40 -> 0 | CY40: =NPC!CY40-BASE!CY40 -> 0 | CZ40: =NPC!CZ40-BASE!CZ40 -> 0 | DA40: =NPC!DA40-BASE!DA40 -> 0 | DB40: =NPC!DB40-BASE!DB40 -> 0 | DC40: =NPC!DC40-BASE!DC40 -> 0 | DD40: =NPC!DD40-BASE!DD40 -> 0 | DE40: =NPC!DE40-BASE!DE40 -> 0 | DF40: =NPC!DF40-BASE!DF40 -> 0 | DG40: =NPC!DG40-BASE!DG40 -> 0 | DH40: =NPC!DH40-BASE!DH40 -> 0 | DI40: =NPC!DI40-BASE!DI40 -> 0 | DJ40: =NPC!DJ40-BASE!DJ40 -> 0 | DK40: =NPC!DK40-BASE!DK40 -> 0 | DL40: =NPC!DL40-BASE!DL40 -> 0 | DM40: =NPC!DM40-BASE!DM40 -> 0 | DN40: =NPC!DN40-BASE!DN40 -> 0 | DO40: =NPC!DO40-BASE!DO40 -> 0 | DP40: =NPC!DP40-BASE!DP40 -> 0 | DQ40: =NPC!DQ40-BASE!DQ40 -> 0 | DR40: =NPC!DR40-BASE!DR40 -> 0 | DS40: =NPC!DS40-BASE!DS40 -> 0 | DT40: =NPC!DT40-BASE!DT40 -> 0 | DU40: =NPC!DU40-BASE!DU40 -> 0 | DV40: =NPC!DV40-BASE!DV40 -> 0 | DW40: =NPC!DW40-BASE!DW40 -> 0 | DX40: =NPC!DX40-BASE!DX40 -> 0 | DY40: =NPC!DY40-BASE!DY40 -> 0 | DZ40: =NPC!DZ40-BASE!DZ40 -> 0 | EA40: =NPC!EA40-BASE!EA40 -> 0 | EB40: =NPC!EB40-BASE!EB40 -> 0 | EC40: =NPC!EC40-BASE!EC40 -> 0 | ED40: =NPC!ED40-BASE!ED40 -> 0 | ER40: =NPC!ER40 -> Hide Row
C41: =NPC!C41 -> West Main | E41: =NPC!E41-BASE!E41 -> 0 | F41: =NPC!F41-BASE!F41 -> 0 | G41: =NPC!G41-BASE!G41 -> 0 | H41: =NPC!H41-BASE!H41 -> 0 | I41: =NPC!I41-BASE!I41 -> 0 | J41: =NPC!J41-BASE!J41 -> 0 | K41: =NPC!K41-BASE!K41 -> 0 | L41: =NPC!L41-BASE!L41 -> 0 | M41: =NPC!M41-BASE!M41 -> 0 | N41: =NPC!N41-BASE!N41 -> 0 | O41: =NPC!O41-BASE!O41 -> 0 | P41: =NPC!P41-BASE!P41 -> 0 | Q41: =NPC!Q41-BASE!Q41 -> 0 | R41: =NPC!R41-BASE!R41 -> 0 | S41: =NPC!S41-BASE!S41 -> 0 | T41: =NPC!T41-BASE!T41 -> 0 | U41: =NPC!U41-BASE!U41 -> 0 | V41: =NPC!V41-BASE!V41 -> 0 | W41: =NPC!W41-BASE!W41 -> 0 | X41: =NPC!X41-BASE!X41 -> 0 | Y41: =NPC!Y41-BASE!Y41 -> 0 | Z41: =NPC!Z41-BASE!Z41 -> 0 | AA41: =NPC!AA41-BASE!AA41 -> 0 | AB41: =NPC!AB41-BASE!AB41 -> 0 | AC41: =NPC!AC41-BASE!AC41 -> 0 | AD41: =NPC!AD41-BASE!AD41 -> 0 | AE41: =NPC!AE41-BASE!AE41 -> 0 | AF41: =NPC!AF41-BASE!AF41 -> 0 | AG41: =NPC!AG41-BASE!AG41 -> 0 | AH41: =NPC!AH41-BASE!AH41 -> 0 | AI41: =NPC!AI41-BASE!AI41 -> 0 | AJ41: =NPC!AJ41-BASE!AJ41 -> 0 | AK41: =NPC!AK41-BASE!AK41 -> 0 | AL41: =NPC!AL41-BASE!AL41 -> 0 | AM41: =NPC!AM41-BASE!AM41 -> 0 | AN41: =NPC!AN41-BASE!AN41 -> 0 | AO41: =NPC!AO41-BASE!AO41 -> 0 | AP41: =NPC!AP41-BASE!AP41 -> 0 | AQ41: =NPC!AQ41-BASE!AQ41 -> 0 | AR41: =NPC!AR41-BASE!AR41 -> 0 | AS41: =NPC!AS41-BASE!AS41 -> 0 | AT41: =NPC!AT41-BASE!AT41 -> 0 | AU41: =NPC!AU41-BASE!AU41 -> 0 | AV41: =NPC!AV41-BASE!AV41 -> 0 | AW41: =NPC!AW41-BASE!AW41 -> 0 | AX41: =NPC!AX41-BASE!AX41 -> 0 | AY41: =NPC!AY41-BASE!AY41 -> 0 | AZ41: =NPC!AZ41-BASE!AZ41 -> 0 | BA41: =NPC!BA41-BASE!BA41 -> 0 | BB41: =NPC!BB41-BASE!BB41 -> 0 | BC41: =NPC!BC41-BASE!BC41 -> 0 | BD41: =NPC!BD41-BASE!BD41 -> 0 | BE41: =NPC!BE41-BASE!BE41 -> 0 | BF41: =NPC!BF41-BASE!BF41 -> 0 | BG41: =NPC!BG41-BASE!BG41 -> 0 | BH41: =NPC!BH41-BASE!BH41 -> 0 | BI41: =NPC!BI41-BASE!BI41 -> 0 | BJ41: =NPC!BJ41-BASE!BJ41 -> 0 | BK41: =NPC!BK41-BASE!BK41 -> 0 | BL41: =NPC!BL41-BASE!BL41 -> 0 | BM41: =NPC!BM41-BASE!BM41 -> 0 | BN41: =NPC!BN41-BASE!BN41 -> 0 | BO41: =NPC!BO41-BASE!BO41 -> 0 | BP41: =NPC!BP41-BASE!BP41 -> 0 | BQ41: =NPC!BQ41-BASE!BQ41 -> 0 | BR41: =NPC!BR41-BASE!BR41 -> 0 | BS41: =NPC!BS41-BASE!BS41 -> 0 | BT41: =NPC!BT41-BASE!BT41 -> 0 | BU41: =NPC!BU41-BASE!BU41 -> 0 | BV41: =NPC!BV41-BASE!BV41 -> 0 | BW41: =NPC!BW41-BASE!BW41 -> 0 | BX41: =NPC!BX41-BASE!BX41 -> 0 | BY41: =NPC!BY41-BASE!BY41 -> 0 | BZ41: =NPC!BZ41-BASE!BZ41 -> 0 | CA41: =NPC!CA41-BASE!CA41 -> 0 | CB41: =NPC!CB41-BASE!CB41 -> 0 | CC41: =NPC!CC41-BASE!CC41 -> 0 | CD41: =NPC!CD41-BASE!CD41 -> 0 | CE41: =NPC!CE41-BASE!CE41 -> 0 | CF41: =NPC!CF41-BASE!CF41 -> 0 | CG41: =NPC!CG41-BASE!CG41 -> 0 | CH41: =NPC!CH41-BASE!CH41 -> 0 | CI41: =NPC!CI41-BASE!CI41 -> 0 | CJ41: =NPC!CJ41-BASE!CJ41 -> 0 | CK41: =NPC!CK41-BASE!CK41 -> 0 | CL41: =NPC!CL41-BASE!CL41 -> 0 | CM41: =NPC!CM41-BASE!CM41 -> 0 | CN41: =NPC!CN41-BASE!CN41 -> 0 | CO41: =NPC!CO41-BASE!CO41 -> 0 | CP41: =NPC!CP41-BASE!CP41 -> 0 | CQ41: =NPC!CQ41-BASE!CQ41 -> 0 | CR41: =NPC!CR41-BASE!CR41 -> 0 | CS41: =NPC!CS41-BASE!CS41 -> 0 | CT41: =NPC!CT41-BASE!CT41 -> 0 | CU41: =NPC!CU41-BASE!CU41 -> 0 | CV41: =NPC!CV41-BASE!CV41 -> 0 | CW41: =NPC!CW41-BASE!CW41 -> 0 | CX41: =NPC!CX41-BASE!CX41 -> 0 | CY41: =NPC!CY41-BASE!CY41 -> 0 | CZ41: =NPC!CZ41-BASE!CZ41 -> 0 | DA41: =NPC!DA41-BASE!DA41 -> 0 | DB41: =NPC!DB41-BASE!DB41 -> 0 | DC41: =NPC!DC41-BASE!DC41 -> 0 | DD41: =NPC!DD41-BASE!DD41 -> 0 | DE41: =NPC!DE41-BASE!DE41 -> 0 | DF41: =NPC!DF41-BASE!DF41 -> 0 | DG41: =NPC!DG41-BASE!DG41 -> 0 | DH41: =NPC!DH41-BASE!DH41 -> 0 | DI41: =NPC!DI41-BASE!DI41 -> 0 | DJ41: =NPC!DJ41-BASE!DJ41 -> 0 | DK41: =NPC!DK41-BASE!DK41 -> 0 | DL41: =NPC!DL41-BASE!DL41 -> 0 | DM41: =NPC!DM41-BASE!DM41 -> 0 | DN41: =NPC!DN41-BASE!DN41 -> 0 | DO41: =NPC!DO41-BASE!DO41 -> 0 | DP41: =NPC!DP41-BASE!DP41 -> 0 | DQ41: =NPC!DQ41-BASE!DQ41 -> 0 | DR41: =NPC!DR41-BASE!DR41 -> 0 | DS41: =NPC!DS41-BASE!DS41 -> 0 | DT41: =NPC!DT41-BASE!DT41 -> 0 | DU41: =NPC!DU41-BASE!DU41 -> 0 | DV41: =NPC!DV41-BASE!DV41 -> 0 | DW41: =NPC!DW41-BASE!DW41 -> 0 | DX41: =NPC!DX41-BASE!DX41 -> 0 | DY41: =NPC!DY41-BASE!DY41 -> 0 | DZ41: =NPC!DZ41-BASE!DZ41 -> 0 | EA41: =NPC!EA41-BASE!EA41 -> 0 | EB41: =NPC!EB41-BASE!EB41 -> 0 | EC41: =NPC!EC41-BASE!EC41 -> 0 | ED41: =NPC!ED41-BASE!ED41 -> 0 | ER41: =NPC!ER41 -> Hide Row
C42: =NPC!C42 -> Wyoming | E42: =NPC!E42-BASE!E42 -> 0 | F42: =NPC!F42-BASE!F42 -> 0 | G42: =NPC!G42-BASE!G42 -> 0 | H42: =NPC!H42-BASE!H42 -> 0 | I42: =NPC!I42-BASE!I42 -> 0 | J42: =NPC!J42-BASE!J42 -> 0 | K42: =NPC!K42-BASE!K42 -> 0 | L42: =NPC!L42-BASE!L42 -> 0 | M42: =NPC!M42-BASE!M42 -> 0 | N42: =NPC!N42-BASE!N42 -> 0 | O42: =NPC!O42-BASE!O42 -> 0 | P42: =NPC!P42-BASE!P42 -> 0 | Q42: =NPC!Q42-BASE!Q42 -> 0 | R42: =NPC!R42-BASE!R42 -> 0 | S42: =NPC!S42-BASE!S42 -> 0 | T42: =NPC!T42-BASE!T42 -> 0 | U42: =NPC!U42-BASE!U42 -> 0 | V42: =NPC!V42-BASE!V42 -> 0 | W42: =NPC!W42-BASE!W42 -> 0 | X42: =NPC!X42-BASE!X42 -> 0 | Y42: =NPC!Y42-BASE!Y42 -> 0 | Z42: =NPC!Z42-BASE!Z42 -> 0 | AA42: =NPC!AA42-BASE!AA42 -> 0 | AB42: =NPC!AB42-BASE!AB42 -> 0 | AC42: =NPC!AC42-BASE!AC42 -> 0 | AD42: =NPC!AD42-BASE!AD42 -> 0 | AE42: =NPC!AE42-BASE!AE42 -> 0 | AF42: =NPC!AF42-BASE!AF42 -> 0 | AG42: =NPC!AG42-BASE!AG42 -> 0 | AH42: =NPC!AH42-BASE!AH42 -> 0 | AI42: =NPC!AI42-BASE!AI42 -> 0 | AJ42: =NPC!AJ42-BASE!AJ42 -> 0 | AK42: =NPC!AK42-BASE!AK42 -> 0 | AL42: =NPC!AL42-BASE!AL42 -> 0 | AM42: =NPC!AM42-BASE!AM42 -> 0 | AN42: =NPC!AN42-BASE!AN42 -> 0 | AO42: =NPC!AO42-BASE!AO42 -> 0 | AP42: =NPC!AP42-BASE!AP42 -> 0 | AQ42: =NPC!AQ42-BASE!AQ42 -> 0 | AR42: =NPC!AR42-BASE!AR42 -> 0 | AS42: =NPC!AS42-BASE!AS42 -> 0 | AT42: =NPC!AT42-BASE!AT42 -> 0 | AU42: =NPC!AU42-BASE!AU42 -> 0 | AV42: =NPC!AV42-BASE!AV42 -> 0 | AW42: =NPC!AW42-BASE!AW42 -> 0 | AX42: =NPC!AX42-BASE!AX42 -> 0 | AY42: =NPC!AY42-BASE!AY42 -> 0 | AZ42: =NPC!AZ42-BASE!AZ42 -> 0 | BA42: =NPC!BA42-BASE!BA42 -> 0 | BB42: =NPC!BB42-BASE!BB42 -> 0 | BC42: =NPC!BC42-BASE!BC42 -> 0 | BD42: =NPC!BD42-BASE!BD42 -> 0 | BE42: =NPC!BE42-BASE!BE42 -> 0 | BF42: =NPC!BF42-BASE!BF42 -> 0 | BG42: =NPC!BG42-BASE!BG42 -> 0 | BH42: =NPC!BH42-BASE!BH42 -> 0 | BI42: =NPC!BI42-BASE!BI42 -> 0 | BJ42: =NPC!BJ42-BASE!BJ42 -> 0 | BK42: =NPC!BK42-BASE!BK42 -> 0 | BL42: =NPC!BL42-BASE!BL42 -> 0 | BM42: =NPC!BM42-BASE!BM42 -> 0 | BN42: =NPC!BN42-BASE!BN42 -> 0 | BO42: =NPC!BO42-BASE!BO42 -> 0 | BP42: =NPC!BP42-BASE!BP42 -> 0 | BQ42: =NPC!BQ42-BASE!BQ42 -> 0 | BR42: =NPC!BR42-BASE!BR42 -> 0 | BS42: =NPC!BS42-BASE!BS42 -> 0 | BT42: =NPC!BT42-BASE!BT42 -> 0 | BU42: =NPC!BU42-BASE!BU42 -> 0 | BV42: =NPC!BV42-BASE!BV42 -> 0 | BW42: =NPC!BW42-BASE!BW42 -> 0 | BX42: =NPC!BX42-BASE!BX42 -> 0 | BY42: =NPC!BY42-BASE!BY42 -> 0 | BZ42: =NPC!BZ42-BASE!BZ42 -> 0 | CA42: =NPC!CA42-BASE!CA42 -> 0 | CB42: =NPC!CB42-BASE!CB42 -> 0 | CC42: =NPC!CC42-BASE!CC42 -> 0 | CD42: =NPC!CD42-BASE!CD42 -> 0 | CE42: =NPC!CE42-BASE!CE42 -> 0 | CF42: =NPC!CF42-BASE!CF42 -> 0 | CG42: =NPC!CG42-BASE!CG42 -> 0 | CH42: =NPC!CH42-BASE!CH42 -> 0 | CI42: =NPC!CI42-BASE!CI42 -> 0 | CJ42: =NPC!CJ42-BASE!CJ42 -> 0 | CK42: =NPC!CK42-BASE!CK42 -> 0 | CL42: =NPC!CL42-BASE!CL42 -> 0 | CM42: =NPC!CM42-BASE!CM42 -> 0 | CN42: =NPC!CN42-BASE!CN42 -> 0 | CO42: =NPC!CO42-BASE!CO42 -> 0 | CP42: =NPC!CP42-BASE!CP42 -> 0 | CQ42: =NPC!CQ42-BASE!CQ42 -> 0 | CR42: =NPC!CR42-BASE!CR42 -> 0 | CS42: =NPC!CS42-BASE!CS42 -> 0 | CT42: =NPC!CT42-BASE!CT42 -> 0 | CU42: =NPC!CU42-BASE!CU42 -> 0 | CV42: =NPC!CV42-BASE!CV42 -> 0 | CW42: =NPC!CW42-BASE!CW42 -> 0 | CX42: =NPC!CX42-BASE!CX42 -> 0 | CY42: =NPC!CY42-BASE!CY42 -> 0 | CZ42: =NPC!CZ42-BASE!CZ42 -> 0 | DA42: =NPC!DA42-BASE!DA42 -> 0 | DB42: =NPC!DB42-BASE!DB42 -> 0 | DC42: =NPC!DC42-BASE!DC42 -> 0 | DD42: =NPC!DD42-BASE!DD42 -> 0 | DE42: =NPC!DE42-BASE!DE42 -> 0 | DF42: =NPC!DF42-BASE!DF42 -> 0 | DG42: =NPC!DG42-BASE!DG42 -> 0 | DH42: =NPC!DH42-BASE!DH42 -> 0 | DI42: =NPC!DI42-BASE!DI42 -> 0 | DJ42: =NPC!DJ42-BASE!DJ42 -> 0 | DK42: =NPC!DK42-BASE!DK42 -> 0 | DL42: =NPC!DL42-BASE!DL42 -> 0 | DM42: =NPC!DM42-BASE!DM42 -> 0 | DN42: =NPC!DN42-BASE!DN42 -> 0 | DO42: =NPC!DO42-BASE!DO42 -> 0 | DP42: =NPC!DP42-BASE!DP42 -> 0 | DQ42: =NPC!DQ42-BASE!DQ42 -> 0 | DR42: =NPC!DR42-BASE!DR42 -> 0 | DS42: =NPC!DS42-BASE!DS42 -> 0 | DT42: =NPC!DT42-BASE!DT42 -> 0 | DU42: =NPC!DU42-BASE!DU42 -> 0 | DV42: =NPC!DV42-BASE!DV42 -> 0 | DW42: =NPC!DW42-BASE!DW42 -> 0 | DX42: =NPC!DX42-BASE!DX42 -> 0 | DY42: =NPC!DY42-BASE!DY42 -> 0 | DZ42: =NPC!DZ42-BASE!DZ42 -> 0 | EA42: =NPC!EA42-BASE!EA42 -> 0 | EB42: =NPC!EB42-BASE!EB42 -> 0 | EC42: =NPC!EC42-BASE!EC42 -> 0 | ED42: =NPC!ED42-BASE!ED42 -> 0 | ER42: =NPC!ER42 -> Hide Row
C43: =NPC!C43 -> STF Index Trades | E43: =NPC!E43-BASE!E43 -> 0 | F43: =NPC!F43-BASE!F43 -> 0 | G43: =NPC!G43-BASE!G43 -> 0 | H43: =NPC!H43-BASE!H43 -> 0 | I43: =NPC!I43-BASE!I43 -> 0 | J43: =NPC!J43-BASE!J43 -> 0 | K43: =NPC!K43-BASE!K43 -> 0 | L43: =NPC!L43-BASE!L43 -> 0 | M43: =NPC!M43-BASE!M43 -> 0 | N43: =NPC!N43-BASE!N43 -> 0 | O43: =NPC!O43-BASE!O43 -> 0 | P43: =NPC!P43-BASE!P43 -> 0 | Q43: =NPC!Q43-BASE!Q43 -> 0 | R43: =NPC!R43-BASE!R43 -> 0 | S43: =NPC!S43-BASE!S43 -> 0 | T43: =NPC!T43-BASE!T43 -> 0 | U43: =NPC!U43-BASE!U43 -> 0 | V43: =NPC!V43-BASE!V43 -> 0 | W43: =NPC!W43-BASE!W43 -> 0 | X43: =NPC!X43-BASE!X43 -> 0 | Y43: =NPC!Y43-BASE!Y43 -> 0 | Z43: =NPC!Z43-BASE!Z43 -> 0 | AA43: =NPC!AA43-BASE!AA43 -> 0 | AB43: =NPC!AB43-BASE!AB43 -> 0 | AC43: =NPC!AC43-BASE!AC43 -> 0 | AD43: =NPC!AD43-BASE!AD43 -> 0 | AE43: =NPC!AE43-BASE!AE43 -> 0 | AF43: =NPC!AF43-BASE!AF43 -> 0 | AG43: =NPC!AG43-BASE!AG43 -> 0 | AH43: =NPC!AH43-BASE!AH43 -> 0 | AI43: =NPC!AI43-BASE!AI43 -> 0 | AJ43: =NPC!AJ43-BASE!AJ43 -> 0 | AK43: =NPC!AK43-BASE!AK43 -> 0 | AL43: =NPC!AL43-BASE!AL43 -> 0 | AM43: =NPC!AM43-BASE!AM43 -> 0 | AN43: =NPC!AN43-BASE!AN43 -> 0 | AO43: =NPC!AO43-BASE!AO43 -> 0 | AP43: =NPC!AP43-BASE!AP43 -> 0 | AQ43: =NPC!AQ43-BASE!AQ43 -> 0 | AR43: =NPC!AR43-BASE!AR43 -> 0 | AS43: =NPC!AS43-BASE!AS43 -> 0 | AT43: =NPC!AT43-BASE!AT43 -> 0 | AU43: =NPC!AU43-BASE!AU43 -> 0 | AV43: =NPC!AV43-BASE!AV43 -> 0 | AW43: =NPC!AW43-BASE!AW43 -> 0 | AX43: =NPC!AX43-BASE!AX43 -> 0 | AY43: =NPC!AY43-BASE!AY43 -> 0 | AZ43: =NPC!AZ43-BASE!AZ43 -> 0 | BA43: =NPC!BA43-BASE!BA43 -> 0 | BB43: =NPC!BB43-BASE!BB43 -> 0 | BC43: =NPC!BC43-BASE!BC43 -> 0 | BD43: =NPC!BD43-BASE!BD43 -> 0 | BE43: =NPC!BE43-BASE!BE43 -> 0 | BF43: =NPC!BF43-BASE!BF43 -> 0 | BG43: =NPC!BG43-BASE!BG43 -> 0 | BH43: =NPC!BH43-BASE!BH43 -> 0 | BI43: =NPC!BI43-BASE!BI43 -> 0 | BJ43: =NPC!BJ43-BASE!BJ43 -> 0 | BK43: =NPC!BK43-BASE!BK43 -> 0 | BL43: =NPC!BL43-BASE!BL43 -> 0 | BM43: =NPC!BM43-BASE!BM43 -> 0 | BN43: =NPC!BN43-BASE!BN43 -> 0 | BO43: =NPC!BO43-BASE!BO43 -> 0 | BP43: =NPC!BP43-BASE!BP43 -> 0 | BQ43: =NPC!BQ43-BASE!BQ43 -> 0 | BR43: =NPC!BR43-BASE!BR43 -> 0 | BS43: =NPC!BS43-BASE!BS43 -> 0 | BT43: =NPC!BT43-BASE!BT43 -> 0 | BU43: =NPC!BU43-BASE!BU43 -> 0 | BV43: =NPC!BV43-BASE!BV43 -> 0 | BW43: =NPC!BW43-BASE!BW43 -> 0 | BX43: =NPC!BX43-BASE!BX43 -> 0 | BY43: =NPC!BY43-BASE!BY43 -> 0 | BZ43: =NPC!BZ43-BASE!BZ43 -> 0 | CA43: =NPC!CA43-BASE!CA43 -> 0 | CB43: =NPC!CB43-BASE!CB43 -> 0 | CC43: =NPC!CC43-BASE!CC43 -> 0 | CD43: =NPC!CD43-BASE!CD43 -> 0 | CE43: =NPC!CE43-BASE!CE43 -> 0 | CF43: =NPC!CF43-BASE!CF43 -> 0 | CG43: =NPC!CG43-BASE!CG43 -> 0 | CH43: =NPC!CH43-BASE!CH43 -> 0 | CI43: =NPC!CI43-BASE!CI43 -> 0 | CJ43: =NPC!CJ43-BASE!CJ43 -> 0 | CK43: =NPC!CK43-BASE!CK43 -> 0 | CL43: =NPC!CL43-BASE!CL43 -> 0 | CM43: =NPC!CM43-BASE!CM43 -> 0 | CN43: =NPC!CN43-BASE!CN43 -> 0 | CO43: =NPC!CO43-BASE!CO43 -> 0 | CP43: =NPC!CP43-BASE!CP43 -> 0 | CQ43: =NPC!CQ43-BASE!CQ43 -> 0 | CR43: =NPC!CR43-BASE!CR43 -> 0 | CS43: =NPC!CS43-BASE!CS43 -> 0 | CT43: =NPC!CT43-BASE!CT43 -> 0 | CU43: =NPC!CU43-BASE!CU43 -> 0 | CV43: =NPC!CV43-BASE!CV43 -> 0 | CW43: =NPC!CW43-BASE!CW43 -> 0 | CX43: =NPC!CX43-BASE!CX43 -> 0 | CY43: =NPC!CY43-BASE!CY43 -> 0 | CZ43: =NPC!CZ43-BASE!CZ43 -> 0 | DA43: =NPC!DA43-BASE!DA43 -> 0 | DB43: =NPC!DB43-BASE!DB43 -> 0 | DC43: =NPC!DC43-BASE!DC43 -> 0 | DD43: =NPC!DD43-BASE!DD43 -> 0 | DE43: =NPC!DE43-BASE!DE43 -> 0 | DF43: =NPC!DF43-BASE!DF43 -> 0 | DG43: =NPC!DG43-BASE!DG43 -> 0 | DH43: =NPC!DH43-BASE!DH43 -> 0 | DI43: =NPC!DI43-BASE!DI43 -> 0 | DJ43: =NPC!DJ43-BASE!DJ43 -> 0 | DK43: =NPC!DK43-BASE!DK43 -> 0 | DL43: =NPC!DL43-BASE!DL43 -> 0 | DM43: =NPC!DM43-BASE!DM43 -> 0 | DN43: =NPC!DN43-BASE!DN43 -> 0 | DO43: =NPC!DO43-BASE!DO43 -> 0 | DP43: =NPC!DP43-BASE!DP43 -> 0 | DQ43: =NPC!DQ43-BASE!DQ43 -> 0 | DR43: =NPC!DR43-BASE!DR43 -> 0 | DS43: =NPC!DS43-BASE!DS43 -> 0 | DT43: =NPC!DT43-BASE!DT43 -> 0 | DU43: =NPC!DU43-BASE!DU43 -> 0 | DV43: =NPC!DV43-BASE!DV43 -> 0 | DW43: =NPC!DW43-BASE!DW43 -> 0 | DX43: =NPC!DX43-BASE!DX43 -> 0 | DY43: =NPC!DY43-BASE!DY43 -> 0 | DZ43: =NPC!DZ43-BASE!DZ43 -> 0 | EA43: =NPC!EA43-BASE!EA43 -> 0 | EB43: =NPC!EB43-BASE!EB43 -> 0 | EC43: =NPC!EC43-BASE!EC43 -> 0 | ED43: =NPC!ED43-BASE!ED43 -> 0 | ER43: =NPC!ER43 -> -
B45: Total Short Term Firm Sales | E45: =NPC!E45-BASE!E45 -> 0 | F45: =NPC!F45-BASE!F45 -> 0 | G45: =NPC!G45-BASE!G45 -> 0 | H45: =NPC!H45-BASE!H45 -> 0 | I45: =NPC!I45-BASE!I45 -> 0 | J45: =NPC!J45-BASE!J45 -> 0 | K45: =NPC!K45-BASE!K45 -> 0 | L45: =NPC!L45-BASE!L45 -> 0 | M45: =NPC!M45-BASE!M45 -> 0 | N45: =NPC!N45-BASE!N45 -> 0 | O45: =NPC!O45-BASE!O45 -> 0 | P45: =NPC!P45-BASE!P45 -> 0 | Q45: =NPC!Q45-BASE!Q45 -> 0 | R45: =NPC!R45-BASE!R45 -> 0 | S45: =NPC!S45-BASE!S45 -> 0 | T45: =NPC!T45-BASE!T45 -> 0 | U45: =NPC!U45-BASE!U45 -> 0 | V45: =NPC!V45-BASE!V45 -> 0 | W45: =NPC!W45-BASE!W45 -> 0 | X45: =NPC!X45-BASE!X45 -> 0 | Y45: =NPC!Y45-BASE!Y45 -> 0 | Z45: =NPC!Z45-BASE!Z45 -> 0 | AA45: =NPC!AA45-BASE!AA45 -> 0 | AB45: =NPC!AB45-BASE!AB45 -> 0 | AC45: =NPC!AC45-BASE!AC45 -> 0 | AD45: =NPC!AD45-BASE!AD45 -> 0 | AE45: =NPC!AE45-BASE!AE45 -> 0 | AF45: =NPC!AF45-BASE!AF45 -> 0 | AG45: =NPC!AG45-BASE!AG45 -> 0 | AH45: =NPC!AH45-BASE!AH45 -> 0 | AI45: =NPC!AI45-BASE!AI45 -> 0 | AJ45: =NPC!AJ45-BASE!AJ45 -> 0 | AK45: =NPC!AK45-BASE!AK45 -> 0 | AL45: =NPC!AL45-BASE!AL45 -> 0 | AM45: =NPC!AM45-BASE!AM45 -> 0 | AN45: =NPC!AN45-BASE!AN45 -> 0 | AO45: =NPC!AO45-BASE!AO45 -> 0 | AP45: =NPC!AP45-BASE!AP45 -> 0 | AQ45: =NPC!AQ45-BASE!AQ45 -> 0 | AR45: =NPC!AR45-BASE!AR45 -> 0 | AS45: =NPC!AS45-BASE!AS45 -> 0 | AT45: =NPC!AT45-BASE!AT45 -> 0 | AU45: =NPC!AU45-BASE!AU45 -> 0 | AV45: =NPC!AV45-BASE!AV45 -> 0 | AW45: =NPC!AW45-BASE!AW45 -> 0 | AX45: =NPC!AX45-BASE!AX45 -> 0 | AY45: =NPC!AY45-BASE!AY45 -> 0 | AZ45: =NPC!AZ45-BASE!AZ45 -> 0 | BA45: =NPC!BA45-BASE!BA45 -> 0 | BB45: =NPC!BB45-BASE!BB45 -> 0 | BC45: =NPC!BC45-BASE!BC45 -> 0 | BD45: =NPC!BD45-BASE!BD45 -> 0 | BE45: =NPC!BE45-BASE!BE45 -> 0 | BF45: =NPC!BF45-BASE!BF45 -> 0 | BG45: =NPC!BG45-BASE!BG45 -> 0 | BH45: =NPC!BH45-BASE!BH45 -> 0 | BI45: =NPC!BI45-BASE!BI45 -> 0 | BJ45: =NPC!BJ45-BASE!BJ45 -> 0 | BK45: =NPC!BK45-BASE!BK45 -> 0 | BL45: =NPC!BL45-BASE!BL45 -> 0 | BM45: =NPC!BM45-BASE!BM45 -> 0 | BN45: =NPC!BN45-BASE!BN45 -> 0 | BO45: =NPC!BO45-BASE!BO45 -> 0 | BP45: =NPC!BP45-BASE!BP45 -> 0 | BQ45: =NPC!BQ45-BASE!BQ45 -> 0 | BR45: =NPC!BR45-BASE!BR45 -> 0 | BS45: =NPC!BS45-BASE!BS45 -> 0 | BT45: =NPC!BT45-BASE!BT45 -> 0 | BU45: =NPC!BU45-BASE!BU45 -> 0 | BV45: =NPC!BV45-BASE!BV45 -> 0 | BW45: =NPC!BW45-BASE!BW45 -> 0 | BX45: =NPC!BX45-BASE!BX45 -> 0 | BY45: =NPC!BY45-BASE!BY45 -> 0 | BZ45: =NPC!BZ45-BASE!BZ45 -> 0 | CA45: =NPC!CA45-BASE!CA45 -> 0 | CB45: =NPC!CB45-BASE!CB45 -> 0 | CC45: =NPC!CC45-BASE!CC45 -> 0 | CD45: =NPC!CD45-BASE!CD45 -> 0 | CE45: =NPC!CE45-BASE!CE45 -> 0 | CF45: =NPC!CF45-BASE!CF45 -> 0 | CG45: =NPC!CG45-BASE!CG45 -> 0 | CH45: =NPC!CH45-BASE!CH45 -> 0 | CI45: =NPC!CI45-BASE!CI45 -> 0 | CJ45: =NPC!CJ45-BASE!CJ45 -> 0 | CK45: =NPC!CK45-BASE!CK45 -> 0 | CL45: =NPC!CL45-BASE!CL45 -> 0 | CM45: =NPC!CM45-BASE!CM45 -> 0 | CN45: =NPC!CN45-BASE!CN45 -> 0 | CO45: =NPC!CO45-BASE!CO45 -> 0 | CP45: =NPC!CP45-BASE!CP45 -> 0 | CQ45: =NPC!CQ45-BASE!CQ45 -> 0 | CR45: =NPC!CR45-BASE!CR45 -> 0 | CS45: =NPC!CS45-BASE!CS45 -> 0 | CT45: =NPC!CT45-BASE!CT45 -> 0 | CU45: =NPC!CU45-BASE!CU45 -> 0 | CV45: =NPC!CV45-BASE!CV45 -> 0 | CW45: =NPC!CW45-BASE!CW45 -> 0 | CX45: =NPC!CX45-BASE!CX45 -> 0 | CY45: =NPC!CY45-BASE!CY45 -> 0 | CZ45: =NPC!CZ45-BASE!CZ45 -> 0 | DA45: =NPC!DA45-BASE!DA45 -> 0 | DB45: =NPC!DB45-BASE!DB45 -> 0 | DC45: =NPC!DC45-BASE!DC45 -> 0 | DD45: =NPC!DD45-BASE!DD45 -> 0 | DE45: =NPC!DE45-BASE!DE45 -> 0 | DF45: =NPC!DF45-BASE!DF45 -> 0 | DG45: =NPC!DG45-BASE!DG45 -> 0 | DH45: =NPC!DH45-BASE!DH45 -> 0 | DI45: =NPC!DI45-BASE!DI45 -> 0 | DJ45: =NPC!DJ45-BASE!DJ45 -> 0 | DK45: =NPC!DK45-BASE!DK45 -> 0 | DL45: =NPC!DL45-BASE!DL45 -> 0 | DM45: =NPC!DM45-BASE!DM45 -> 0 | DN45: =NPC!DN45-BASE!DN45 -> 0 | DO45: =NPC!DO45-BASE!DO45 -> 0 | DP45: =NPC!DP45-BASE!DP45 -> 0 | DQ45: =NPC!DQ45-BASE!DQ45 -> 0 | DR45: =NPC!DR45-BASE!DR45 -> 0 | DS45: =NPC!DS45-BASE!DS45 -> 0 | DT45: =NPC!DT45-BASE!DT45 -> 0 | DU45: =NPC!DU45-BASE!DU45 -> 0 | DV45: =NPC!DV45-BASE!DV45 -> 0 | DW45: =NPC!DW45-BASE!DW45 -> 0 | DX45: =NPC!DX45-BASE!DX45 -> 0 | DY45: =NPC!DY45-BASE!DY45 -> 0 | DZ45: =NPC!DZ45-BASE!DZ45 -> 0 | EA45: =NPC!EA45-BASE!EA45 -> 0 | EB45: =NPC!EB45-BASE!EB45 -> 0 | EC45: =NPC!EC45-BASE!EC45 -> 0 | ED45: =NPC!ED45-BASE!ED45 -> 0
B47: System Balancing Sales
C48: =NPC!C48 -> COB | E48: =NPC!E48-BASE!E48 -> 561586.2 | F48: =NPC!F48-BASE!F48 -> 24983.5 | G48: =NPC!G48-BASE!G48 -> 2943.5 | H48: =NPC!H48-BASE!H48 -> 18742.8 | I48: =NPC!I48-BASE!I48 -> 66273.6 | J48: =NPC!J48-BASE!J48 -> 15990.4 | K48: =NPC!K48-BASE!K48 -> 25458.7 | L48: =NPC!L48-BASE!L48 -> 119894.2 | M48: =NPC!M48-BASE!M48 -> 145756.5 | N48: =NPC!N48-BASE!N48 -> 47077 | O48: =NPC!O48-BASE!O48 -> 52944.7 | P48: =NPC!P48-BASE!P48 -> 41521.3 | Q48: =NPC!Q48-BASE!Q48 -> 0 | R48: =NPC!R48-BASE!R48 -> 560553.3 | S48: =NPC!S48-BASE!S48 -> 11588.6 | T48: =NPC!T48-BASE!T48 -> 1721.7 | U48: =NPC!U48-BASE!U48 -> 22383.8 | V48: =NPC!V48-BASE!V48 -> 59058.4 | W48: =NPC!W48-BASE!W48 -> 41808.6 | X48: =NPC!X48-BASE!X48 -> 52512.6 | Y48: =NPC!Y48-BASE!Y48 -> 151514.5 | Z48: =NPC!Z48-BASE!Z48 -> 144136 | AA48: =NPC!AA48-BASE!AA48 -> 26708 | AB48: =NPC!AB48-BASE!AB48 -> 30160.2 | AC48: =NPC!AC48-BASE!AC48 -> 13346.1 | AD48: =NPC!AD48-BASE!AD48 -> 5614.8 | AE48: =NPC!AE48-BASE!AE48 -> 332856.9 | AF48: =NPC!AF48-BASE!AF48 -> -485.8 | AG48: =NPC!AG48-BASE!AG48 -> 387 | AH48: =NPC!AH48-BASE!AH48 -> 8117 | AI48: =NPC!AI48-BASE!AI48 -> 41336.2 | AJ48: =NPC!AJ48-BASE!AJ48 -> 17192.5 | AK48: =NPC!AK48-BASE!AK48 -> 60135 | AL48: =NPC!AL48-BASE!AL48 -> 94580.5 | AM48: =NPC!AM48-BASE!AM48 -> 57930 | AN48: =NPC!AN48-BASE!AN48 -> 23397 | AO48: =NPC!AO48-BASE!AO48 -> 16518.2 | AP48: =NPC!AP48-BASE!AP48 -> 17352.3 | AQ48: =NPC!AQ48-BASE!AQ48 -> -3603 | AR48: =NPC!AR48-BASE!AR48 -> 392408 | AS48: =NPC!AS48-BASE!AS48 -> 8699.5 | AT48: =NPC!AT48-BASE!AT48 -> 8164 | AU48: =NPC!AU48-BASE!AU48 -> 37202.2 | AV48: =NPC!AV48-BASE!AV48 -> 34897.7 | AW48: =NPC!AW48-BASE!AW48 -> 48056.3 | AX48: =NPC!AX48-BASE!AX48 -> 29656 | AY48: =NPC!AY48-BASE!AY48 -> 118520 | AZ48: =NPC!AZ48-BASE!AZ48 -> 50498 | BA48: =NPC!BA48-BASE!BA48 -> 17516 | BB48: =NPC!BB48-BASE!BB48 -> 24129.8 | BC48: =NPC!BC48-BASE!BC48 -> 17538.5 | BD48: =NPC!BD48-BASE!BD48 -> -2470 | BE48: =NPC!BE48-BASE!BE48 -> 346400.6 | BF48: =NPC!BF48-BASE!BF48 -> 7770.6 | BG48: =NPC!BG48-BASE!BG48 -> -4751 | BH48: =NPC!BH48-BASE!BH48 -> 46638 | BI48: =NPC!BI48-BASE!BI48 -> 17688.6 | BJ48: =NPC!BJ48-BASE!BJ48 -> 26766.7 | BK48: =NPC!BK48-BASE!BK48 -> 26513.2 | BL48: =NPC!BL48-BASE!BL48 -> 114843.5 | BM48: =NPC!BM48-BASE!BM48 -> 64592.5 | BN48: =NPC!BN48-BASE!BN48 -> 3204.5 | BO48: =NPC!BO48-BASE!BO48 -> 24032.6 | BP48: =NPC!BP48-BASE!BP48 -> 19157.4 | BQ48: =NPC!BQ48-BASE!BQ48 -> -56 | BR48: =NPC!BR48-BASE!BR48 -> 395305.9 | BS48: =NPC!BS48-BASE!BS48 -> -954.6 | BT48: =NPC!BT48-BASE!BT48 -> 21377 | BU48: =NPC!BU48-BASE!BU48 -> 23701.7 | BV48: =NPC!BV48-BASE!BV48 -> 38471 | BW48: =NPC!BW48-BASE!BW48 -> 32437 | BX48: =NPC!BX48-BASE!BX48 -> 20216.8 | BY48: =NPC!BY48-BASE!BY48 -> 126153.5 | BZ48: =NPC!BZ48-BASE!BZ48 -> 46214 | CA48: =NPC!CA48-BASE!CA48 -> 11014.5 | CB48: =NPC!CB48-BASE!CB48 -> 44078.7 | CC48: =NPC!CC48-BASE!CC48 -> 35383.8 | CD48: =NPC!CD48-BASE!CD48 -> -2787.5 | CE48: =NPC!CE48-BASE!CE48 -> 391865 | CF48: =NPC!CF48-BASE!CF48 -> -2095 | CG48: =NPC!CG48-BASE!CG48 -> 6211.7 | CH48: =NPC!CH48-BASE!CH48 -> 45362 | CI48: =NPC!CI48-BASE!CI48 -> 22101.3 | CJ48: =NPC!CJ48-BASE!CJ48 -> 35166.7 | CK48: =NPC!CK48-BASE!CK48 -> 59257 | CL48: =NPC!CL48-BASE!CL48 -> 112361 | CM48: =NPC!CM48-BASE!CM48 -> 59654 | CN48: =NPC!CN48-BASE!CN48 -> 23337.5 | CO48: =NPC!CO48-BASE!CO48 -> 14198.3 | CP48: =NPC!CP48-BASE!CP48 -> 12057.5 | CQ48: =NPC!CQ48-BASE!CQ48 -> 4253 | CR48: =NPC!CR48-BASE!CR48 -> 407632.9 | CS48: =NPC!CS48-BASE!CS48 -> -1127.5 | CT48: =NPC!CT48-BASE!CT48 -> 4217 | CU48: =NPC!CU48-BASE!CU48 -> 37954.5 | CV48: =NPC!CV48-BASE!CV48 -> 11735 | CW48: =NPC!CW48-BASE!CW48 -> 54431 | CX48: =NPC!CX48-BASE!CX48 -> 59026.4 | CY48: =NPC!CY48-BASE!CY48 -> 87121.5 | CZ48: =NPC!CZ48-BASE!CZ48 -> 79651.5 | DA48: =NPC!DA48-BASE!DA48 -> 12261.5 | DB48: =NPC!DB48-BASE!DB48 -> 37326.5 | DC48: =NPC!DC48-BASE!DC48 -> 22621.5 | DD48: =NPC!DD48-BASE!DD48 -> 2414 | DE48: =NPC!DE48-BASE!DE48 -> 387796.4 | DF48: =NPC!DF48-BASE!DF48 -> 2149 | DG48: =NPC!DG48-BASE!DG48 -> 8320 | DH48: =NPC!DH48-BASE!DH48 -> 60528.5 | DI48: =NPC!DI48-BASE!DI48 -> 43630.3 | DJ48: =NPC!DJ48-BASE!DJ48 -> 2408 | DK48: =NPC!DK48-BASE!DK48 -> 18168.8 | DL48: =NPC!DL48-BASE!DL48 -> 90316.5 | DM48: =NPC!DM48-BASE!DM48 -> 83927 | DN48: =NPC!DN48-BASE!DN48 -> 4130.5 | DO48: =NPC!DO48-BASE!DO48 -> 37836.6 | DP48: =NPC!DP48-BASE!DP48 -> 35010.2 | DQ48: =NPC!DQ48-BASE!DQ48 -> 1371 | DR48: =NPC!DR48-BASE!DR48 -> 465016.1 | DS48: =NPC!DS48-BASE!DS48 -> 3653 | DT48: =NPC!DT48-BASE!DT48 -> 4279 | DU48: =NPC!DU48-BASE!DU48 -> 1031 | DV48: =NPC!DV48-BASE!DV48 -> 43922.8 | DW48: =NPC!DW48-BASE!DW48 -> 23049.5 | DX48: =NPC!DX48-BASE!DX48 -> 74999 | DY48: =NPC!DY48-BASE!DY48 -> 128844.5 | DZ48: =NPC!DZ48-BASE!DZ48 -> 71308.5 | EA48: =NPC!EA48-BASE!EA48 -> 76223.5 | EB48: =NPC!EB48-BASE!EB48 -> 25749.8 | EC48: =NPC!EC48-BASE!EC48 -> 15618.5 | ED48: =NPC!ED48-BASE!ED48 -> -3663 | ER48: =NPC!ER48 -> -
C49: =NPC!C49 -> Four Corners | E49: =NPC!E49-BASE!E49 -> 43580 | F49: =NPC!F49-BASE!F49 -> 0 | G49: =NPC!G49-BASE!G49 -> 0 | H49: =NPC!H49-BASE!H49 -> 0 | I49: =NPC!I49-BASE!I49 -> 0 | J49: =NPC!J49-BASE!J49 -> 0 | K49: =NPC!K49-BASE!K49 -> 0 | L49: =NPC!L49-BASE!L49 -> 0 | M49: =NPC!M49-BASE!M49 -> 268 | N49: =NPC!N49-BASE!N49 -> 0 | O49: =NPC!O49-BASE!O49 -> 43312 | P49: =NPC!P49-BASE!P49 -> 0 | Q49: =NPC!Q49-BASE!Q49 -> 0 | R49: =NPC!R49-BASE!R49 -> 70661.5 | S49: =NPC!S49-BASE!S49 -> 0 | T49: =NPC!T49-BASE!T49 -> 0 | U49: =NPC!U49-BASE!U49 -> 0 | V49: =NPC!V49-BASE!V49 -> 0 | W49: =NPC!W49-BASE!W49 -> 0 | X49: =NPC!X49-BASE!X49 -> 36591.5 | Y49: =NPC!Y49-BASE!Y49 -> 412 | Z49: =NPC!Z49-BASE!Z49 -> 0 | AA49: =NPC!AA49-BASE!AA49 -> 0 | AB49: =NPC!AB49-BASE!AB49 -> 33658 | AC49: =NPC!AC49-BASE!AC49 -> 0 | AD49: =NPC!AD49-BASE!AD49 -> 0 | AE49: =NPC!AE49-BASE!AE49 -> 50532 | AF49: =NPC!AF49-BASE!AF49 -> 0 | AG49: =NPC!AG49-BASE!AG49 -> 0 | AH49: =NPC!AH49-BASE!AH49 -> 0 | AI49: =NPC!AI49-BASE!AI49 -> 0 | AJ49: =NPC!AJ49-BASE!AJ49 -> 0 | AK49: =NPC!AK49-BASE!AK49 -> 3222 | AL49: =NPC!AL49-BASE!AL49 -> 7686 | AM49: =NPC!AM49-BASE!AM49 -> 1630 | AN49: =NPC!AN49-BASE!AN49 -> 0 | AO49: =NPC!AO49-BASE!AO49 -> 39972 | AP49: =NPC!AP49-BASE!AP49 -> 0 | AQ49: =NPC!AQ49-BASE!AQ49 -> -1978 | AR49: =NPC!AR49-BASE!AR49 -> 77643 | AS49: =NPC!AS49-BASE!AS49 -> 0 | AT49: =NPC!AT49-BASE!AT49 -> 0 | AU49: =NPC!AU49-BASE!AU49 -> 0 | AV49: =NPC!AV49-BASE!AV49 -> 0 | AW49: =NPC!AW49-BASE!AW49 -> 0 | AX49: =NPC!AX49-BASE!AX49 -> 4135 | AY49: =NPC!AY49-BASE!AY49 -> 7814 | AZ49: =NPC!AZ49-BASE!AZ49 -> 0 | BA49: =NPC!BA49-BASE!BA49 -> 0 | BB49: =NPC!BB49-BASE!BB49 -> 70736 | BC49: =NPC!BC49-BASE!BC49 -> 0 | BD49: =NPC!BD49-BASE!BD49 -> -5042 | BE49: =NPC!BE49-BASE!BE49 -> 98272 | BF49: =NPC!BF49-BASE!BF49 -> 0 | BG49: =NPC!BG49-BASE!BG49 -> 0 | BH49: =NPC!BH49-BASE!BH49 -> 0 | BI49: =NPC!BI49-BASE!BI49 -> 0 | BJ49: =NPC!BJ49-BASE!BJ49 -> 0 | BK49: =NPC!BK49-BASE!BK49 -> 15226 | BL49: =NPC!BL49-BASE!BL49 -> 7881 | BM49: =NPC!BM49-BASE!BM49 -> 1744 | BN49: =NPC!BN49-BASE!BN49 -> 0 | BO49: =NPC!BO49-BASE!BO49 -> 84566 | BP49: =NPC!BP49-BASE!BP49 -> 0 | BQ49: =NPC!BQ49-BASE!BQ49 -> -11145 | BR49: =NPC!BR49-BASE!BR49 -> 49320 | BS49: =NPC!BS49-BASE!BS49 -> 0 | BT49: =NPC!BT49-BASE!BT49 -> 0 | BU49: =NPC!BU49-BASE!BU49 -> 0 | BV49: =NPC!BV49-BASE!BV49 -> 0 | BW49: =NPC!BW49-BASE!BW49 -> 0 | BX49: =NPC!BX49-BASE!BX49 -> 30305 | BY49: =NPC!BY49-BASE!BY49 -> 283 | BZ49: =NPC!BZ49-BASE!BZ49 -> 1792 | CA49: =NPC!CA49-BASE!CA49 -> 0 | CB49: =NPC!CB49-BASE!CB49 -> 37840 | CC49: =NPC!CC49-BASE!CC49 -> 0 | CD49: =NPC!CD49-BASE!CD49 -> -20900 | CE49: =NPC!CE49-BASE!CE49 -> 48998 | CF49: =NPC!CF49-BASE!CF49 -> 0 | CG49: =NPC!CG49-BASE!CG49 -> 0 | CH49: =NPC!CH49-BASE!CH49 -> 0 | CI49: =NPC!CI49-BASE!CI49 -> 0 | CJ49: =NPC!CJ49-BASE!CJ49 -> 0 | CK49: =NPC!CK49-BASE!CK49 -> 21738 | CL49: =NPC!CL49-BASE!CL49 -> 0 | CM49: =NPC!CM49-BASE!CM49 -> 2250 | CN49: =NPC!CN49-BASE!CN49 -> 0 | CO49: =NPC!CO49-BASE!CO49 -> 38426 | CP49: =NPC!CP49-BASE!CP49 -> 0 | CQ49: =NPC!CQ49-BASE!CQ49 -> -13416 | CR49: =NPC!CR49-BASE!CR49 -> 78171 | CS49: =NPC!CS49-BASE!CS49 -> 0 | CT49: =NPC!CT49-BASE!CT49 -> 0 | CU49: =NPC!CU49-BASE!CU49 -> 0 | CV49: =NPC!CV49-BASE!CV49 -> 0 | CW49: =NPC!CW49-BASE!CW49 -> 0 | CX49: =NPC!CX49-BASE!CX49 -> 55267 | CY49: =NPC!CY49-BASE!CY49 -> 0 | CZ49: =NPC!CZ49-BASE!CZ49 -> -1872 | DA49: =NPC!DA49-BASE!DA49 -> 0 | DB49: =NPC!DB49-BASE!DB49 -> 40520 | DC49: =NPC!DC49-BASE!DC49 -> 0 | DD49: =NPC!DD49-BASE!DD49 -> -15744 | DE49: =NPC!DE49-BASE!DE49 -> 64527 | DF49: =NPC!DF49-BASE!DF49 -> 0 | DG49: =NPC!DG49-BASE!DG49 -> 0 | DH49: =NPC!DH49-BASE!DH49 -> 0 | DI49: =NPC!DI49-BASE!DI49 -> 0 | DJ49: =NPC!DJ49-BASE!DJ49 -> 0 | DK49: =NPC!DK49-BASE!DK49 -> 70593 | DL49: =NPC!DL49-BASE!DL49 -> 6290 | DM49: =NPC!DM49-BASE!DM49 -> 2170 | DN49: =NPC!DN49-BASE!DN49 -> 0 | DO49: =NPC!DO49-BASE!DO49 -> -5546 | DP49: =NPC!DP49-BASE!DP49 -> 0 | DQ49: =NPC!DQ49-BASE!DQ49 -> -8980 | DR49: =NPC!DR49-BASE!DR49 -> 88078 | DS49: =NPC!DS49-BASE!DS49 -> 0 | DT49: =NPC!DT49-BASE!DT49 -> 0 | DU49: =NPC!DU49-BASE!DU49 -> 0 | DV49: =NPC!DV49-BASE!DV49 -> 0 | DW49: =NPC!DW49-BASE!DW49 -> 0 | DX49: =NPC!DX49-BASE!DX49 -> 40180 | DY49: =NPC!DY49-BASE!DY49 -> 9888 | DZ49: =NPC!DZ49-BASE!DZ49 -> 6912 | EA49: =NPC!EA49-BASE!EA49 -> 4125 | EB49: =NPC!EB49-BASE!EB49 -> 41082 | EC49: =NPC!EC49-BASE!EC49 -> 0 | ED49: =NPC!ED49-BASE!ED49 -> -14109 | ER49: =NPC!ER49 -> -
C50: =NPC!C50 -> Mid Columbia | E50: =NPC!E50-BASE!E50 -> 683629.51 | F50: =NPC!F50-BASE!F50 -> 0 | G50: =NPC!G50-BASE!G50 -> 0 | H50: =NPC!H50-BASE!H50 -> 0 | I50: =NPC!I50-BASE!I50 -> 0 | J50: =NPC!J50-BASE!J50 -> 13305.81 | K50: =NPC!K50-BASE!K50 -> 65936.7 | L50: =NPC!L50-BASE!L50 -> 257771 | M50: =NPC!M50-BASE!M50 -> 248223 | N50: =NPC!N50-BASE!N50 -> 98393 | O50: =NPC!O50-BASE!O50 -> 0 | P50: =NPC!P50-BASE!P50 -> 0 | Q50: =NPC!Q50-BASE!Q50 -> 0 | R50: =NPC!R50-BASE!R50 -> 547804.24 | S50: =NPC!S50-BASE!S50 -> 0 | T50: =NPC!T50-BASE!T50 -> 0 | U50: =NPC!U50-BASE!U50 -> 363 | V50: =NPC!V50-BASE!V50 -> 1247.17 | W50: =NPC!W50-BASE!W50 -> 8408.07 | X50: =NPC!X50-BASE!X50 -> 0 | Y50: =NPC!Y50-BASE!Y50 -> 249774 | Z50: =NPC!Z50-BASE!Z50 -> 220635 | AA50: =NPC!AA50-BASE!AA50 -> 67377 | AB50: =NPC!AB50-BASE!AB50 -> 0 | AC50: =NPC!AC50-BASE!AC50 -> 0 | AD50: =NPC!AD50-BASE!AD50 -> 0 | AE50: =NPC!AE50-BASE!AE50 -> 661675.18 | AF50: =NPC!AF50-BASE!AF50 -> 0 | AG50: =NPC!AG50-BASE!AG50 -> 0 | AH50: =NPC!AH50-BASE!AH50 -> 3237.68 | AI50: =NPC!AI50-BASE!AI50 -> -2397.95 | AJ50: =NPC!AJ50-BASE!AJ50 -> 8576.8 | AK50: =NPC!AK50-BASE!AK50 -> 38664.2 | AL50: =NPC!AL50-BASE!AL50 -> 261811 | AM50: =NPC!AM50-BASE!AM50 -> 250172 | AN50: =NPC!AN50-BASE!AN50 -> 106871 | AO50: =NPC!AO50-BASE!AO50 -> -4798.88 | AP50: =NPC!AP50-BASE!AP50 -> -460.67 | AQ50: =NPC!AQ50-BASE!AQ50 -> 0 | AR50: =NPC!AR50-BASE!AR50 -> 701622.159 | AS50: =NPC!AS50-BASE!AS50 -> 0 | AT50: =NPC!AT50-BASE!AT50 -> -741.631 | AU50: =NPC!AU50-BASE!AU50 -> 487.88 | AV50: =NPC!AV50-BASE!AV50 -> 2054.1 | AW50: =NPC!AW50-BASE!AW50 -> 6727.41 | AX50: =NPC!AX50-BASE!AX50 -> 3296.4 | AY50: =NPC!AY50-BASE!AY50 -> 317242 | AZ50: =NPC!AZ50-BASE!AZ50 -> 322657 | BA50: =NPC!BA50-BASE!BA50 -> 53674 | BB50: =NPC!BB50-BASE!BB50 -> -3775 | BC50: =NPC!BC50-BASE!BC50 -> 0 | BD50: =NPC!BD50-BASE!BD50 -> 0 | BE50: =NPC!BE50-BASE!BE50 -> 707003.25 | BF50: =NPC!BF50-BASE!BF50 -> 0 | BG50: =NPC!BG50-BASE!BG50 -> 0 | BH50: =NPC!BH50-BASE!BH50 -> -402.12 | BI50: =NPC!BI50-BASE!BI50 -> 2732.44 | BJ50: =NPC!BJ50-BASE!BJ50 -> 9869 | BK50: =NPC!BK50-BASE!BK50 -> 18968.8 | BL50: =NPC!BL50-BASE!BL50 -> 298592 | BM50: =NPC!BM50-BASE!BM50 -> 298554 | BN50: =NPC!BN50-BASE!BN50 -> 82011 | BO50: =NPC!BO50-BASE!BO50 -> -3237.56 | BP50: =NPC!BP50-BASE!BP50 -> -84.31 | BQ50: =NPC!BQ50-BASE!BQ50 -> 0 | BR50: =NPC!BR50-BASE!BR50 -> 708077.07 | BS50: =NPC!BS50-BASE!BS50 -> 0 | BT50: =NPC!BT50-BASE!BT50 -> 0 | BU50: =NPC!BU50-BASE!BU50 -> -392.72 | BV50: =NPC!BV50-BASE!BV50 -> -4919.18 | BW50: =NPC!BW50-BASE!BW50 -> 6343.41 | BX50: =NPC!BX50-BASE!BX50 -> 7479.7 | BY50: =NPC!BY50-BASE!BY50 -> 304305 | BZ50: =NPC!BZ50-BASE!BZ50 -> 330028 | CA50: =NPC!CA50-BASE!CA50 -> 69722 | CB50: =NPC!CB50-BASE!CB50 -> -2974.74 | CC50: =NPC!CC50-BASE!CC50 -> -1514.4 | CD50: =NPC!CD50-BASE!CD50 -> 0 | CE50: =NPC!CE50-BASE!CE50 -> 725082.08 | CF50: =NPC!CF50-BASE!CF50 -> 0 | CG50: =NPC!CG50-BASE!CG50 -> 0 | CH50: =NPC!CH50-BASE!CH50 -> -476.62 | CI50: =NPC!CI50-BASE!CI50 -> -1852.75 | CJ50: =NPC!CJ50-BASE!CJ50 -> 7624.15 | CK50: =NPC!CK50-BASE!CK50 -> 25673.3 | CL50: =NPC!CL50-BASE!CL50 -> 317610 | CM50: =NPC!CM50-BASE!CM50 -> 285870 | CN50: =NPC!CN50-BASE!CN50 -> 92028 | CO50: =NPC!CO50-BASE!CO50 -> -1394 | CP50: =NPC!CP50-BASE!CP50 -> 0 | CQ50: =NPC!CQ50-BASE!CQ50 -> 0 | CR50: =NPC!CR50-BASE!CR50 -> 548168.46 | CS50: =NPC!CS50-BASE!CS50 -> 0 | CT50: =NPC!CT50-BASE!CT50 -> 0 | CU50: =NPC!CU50-BASE!CU50 -> 0 | CV50: =NPC!CV50-BASE!CV50 -> 2276 | CW50: =NPC!CW50-BASE!CW50 -> 7013.66 | CX50: =NPC!CX50-BASE!CX50 -> 783.3 | CY50: =NPC!CY50-BASE!CY50 -> 152950 | CZ50: =NPC!CZ50-BASE!CZ50 -> 276952 | DA50: =NPC!DA50-BASE!DA50 -> 110670 | DB50: =NPC!DB50-BASE!DB50 -> -2476.5 | DC50: =NPC!DC50-BASE!DC50 -> 0 | DD50: =NPC!DD50-BASE!DD50 -> 0 | DE50: =NPC!DE50-BASE!DE50 -> 629750.9 | DF50: =NPC!DF50-BASE!DF50 -> 0 | DG50: =NPC!DG50-BASE!DG50 -> 0 | DH50: =NPC!DH50-BASE!DH50 -> 0 | DI50: =NPC!DI50-BASE!DI50 -> -4874.5 | DJ50: =NPC!DJ50-BASE!DJ50 -> 1773.2 | DK50: =NPC!DK50-BASE!DK50 -> 2816.7 | DL50: =NPC!DL50-BASE!DL50 -> 229863 | DM50: =NPC!DM50-BASE!DM50 -> 263285 | DN50: =NPC!DN50-BASE!DN50 -> 138758 | DO50: =NPC!DO50-BASE!DO50 -> -1328.8 | DP50: =NPC!DP50-BASE!DP50 -> -541.7 | DQ50: =NPC!DQ50-BASE!DQ50 -> 0 | DR50: =NPC!DR50-BASE!DR50 -> 819639.14 | DS50: =NPC!DS50-BASE!DS50 -> 0 | DT50: =NPC!DT50-BASE!DT50 -> 0 | DU50: =NPC!DU50-BASE!DU50 -> -750.5 | DV50: =NPC!DV50-BASE!DV50 -> 902.3 | DW50: =NPC!DW50-BASE!DW50 -> 7184.54 | DX50: =NPC!DX50-BASE!DX50 -> 2531.8 | DY50: =NPC!DY50-BASE!DY50 -> 315500 | DZ50: =NPC!DZ50-BASE!DZ50 -> 340239 | EA50: =NPC!EA50-BASE!EA50 -> 154779 | EB50: =NPC!EB50-BASE!EB50 -> -747 | EC50: =NPC!EC50-BASE!EC50 -> 0 | ED50: =NPC!ED50-BASE!ED50 -> 0 | ER50: =NPC!ER50 -> -
C51: =NPC!C51 -> Mona | E51: =NPC!E51-BASE!E51 -> 250337 | F51: =NPC!F51-BASE!F51 -> 0 | G51: =NPC!G51-BASE!G51 -> 4520.5 | H51: =NPC!H51-BASE!H51 -> 21204.5 | I51: =NPC!I51-BASE!I51 -> 20260.2 | J51: =NPC!J51-BASE!J51 -> 44594.5 | K51: =NPC!K51-BASE!K51 -> 7633.3 | L51: =NPC!L51-BASE!L51 -> 10771.3 | M51: =NPC!M51-BASE!M51 -> 0 | N51: =NPC!N51-BASE!N51 -> 551 | O51: =NPC!O51-BASE!O51 -> 27325.7 | P51: =NPC!P51-BASE!P51 -> 62235.7 | Q51: =NPC!Q51-BASE!Q51 -> 51240.3 | R51: =NPC!R51-BASE!R51 -> 232143.1 | S51: =NPC!S51-BASE!S51 -> 0 | T51: =NPC!T51-BASE!T51 -> 1112.2 | U51: =NPC!U51-BASE!U51 -> 9560.5 | V51: =NPC!V51-BASE!V51 -> 11212.5 | W51: =NPC!W51-BASE!W51 -> 51086 | X51: =NPC!X51-BASE!X51 -> 33522.4 | Y51: =NPC!Y51-BASE!Y51 -> 13233.4 | Z51: =NPC!Z51-BASE!Z51 -> 0 | AA51: =NPC!AA51-BASE!AA51 -> 0 | AB51: =NPC!AB51-BASE!AB51 -> 4123.7 | AC51: =NPC!AC51-BASE!AC51 -> 45032.2 | AD51: =NPC!AD51-BASE!AD51 -> 63260.2 | AE51: =NPC!AE51-BASE!AE51 -> 113386.8 | AF51: =NPC!AF51-BASE!AF51 -> -433.5 | AG51: =NPC!AG51-BASE!AG51 -> 2866 | AH51: =NPC!AH51-BASE!AH51 -> -3303.5 | AI51: =NPC!AI51-BASE!AI51 -> 1138.1 | AJ51: =NPC!AJ51-BASE!AJ51 -> 19534 | AK51: =NPC!AK51-BASE!AK51 -> 4352.1 | AL51: =NPC!AL51-BASE!AL51 -> 4457.2 | AM51: =NPC!AM51-BASE!AM51 -> -1720.5 | AN51: =NPC!AN51-BASE!AN51 -> -781.8 | AO51: =NPC!AO51-BASE!AO51 -> 31944.7 | AP51: =NPC!AP51-BASE!AP51 -> 28888.5 | AQ51: =NPC!AQ51-BASE!AQ51 -> 26445.5 | AR51: =NPC!AR51-BASE!AR51 -> 122602 | AS51: =NPC!AS51-BASE!AS51 -> -3682 | AT51: =NPC!AT51-BASE!AT51 -> 2520 | AU51: =NPC!AU51-BASE!AU51 -> 10006.2 | AV51: =NPC!AV51-BASE!AV51 -> 13948.4 | AW51: =NPC!AW51-BASE!AW51 -> 7856.5 | AX51: =NPC!AX51-BASE!AX51 -> 26633.8 | AY51: =NPC!AY51-BASE!AY51 -> -4398.2 | AZ51: =NPC!AZ51-BASE!AZ51 -> -1866.5 | BA51: =NPC!BA51-BASE!BA51 -> -2465.7 | BB51: =NPC!BB51-BASE!BB51 -> 14203.9 | BC51: =NPC!BC51-BASE!BC51 -> 38379.3 | BD51: =NPC!BD51-BASE!BD51 -> 21466.3 | BE51: =NPC!BE51-BASE!BE51 -> 117863.8 | BF51: =NPC!BF51-BASE!BF51 -> -6201.3 | BG51: =NPC!BG51-BASE!BG51 -> -3497.8 | BH51: =NPC!BH51-BASE!BH51 -> -9677.5 | BI51: =NPC!BI51-BASE!BI51 -> 10779.5 | BJ51: =NPC!BJ51-BASE!BJ51 -> 25574.5 | BK51: =NPC!BK51-BASE!BK51 -> 19938.6 | BL51: =NPC!BL51-BASE!BL51 -> -1522.3 | BM51: =NPC!BM51-BASE!BM51 -> -1914 | BN51: =NPC!BN51-BASE!BN51 -> -4075.7 | BO51: =NPC!BO51-BASE!BO51 -> 5156 | BP51: =NPC!BP51-BASE!BP51 -> 45589.3 | BQ51: =NPC!BQ51-BASE!BQ51 -> 37714.5 | BR51: =NPC!BR51-BASE!BR51 -> 168650 | BS51: =NPC!BS51-BASE!BS51 -> -5097.7 | BT51: =NPC!BT51-BASE!BT51 -> -4656.5 | BU51: =NPC!BU51-BASE!BU51 -> 11235 | BV51: =NPC!BV51-BASE!BV51 -> -6769.5 | BW51: =NPC!BW51-BASE!BW51 -> 66221.5 | BX51: =NPC!BX51-BASE!BX51 -> 37669.7 | BY51: =NPC!BY51-BASE!BY51 -> 5695 | BZ51: =NPC!BZ51-BASE!BZ51 -> -3029.5 | CA51: =NPC!CA51-BASE!CA51 -> -3770.5 | CB51: =NPC!CB51-BASE!CB51 -> 2827.5 | CC51: =NPC!CC51-BASE!CC51 -> 36553.5 | CD51: =NPC!CD51-BASE!CD51 -> 31771.5 | CE51: =NPC!CE51-BASE!CE51 -> 65531.7 | CF51: =NPC!CF51-BASE!CF51 -> -2425.6 | CG51: =NPC!CG51-BASE!CG51 -> -6828.3 | CH51: =NPC!CH51-BASE!CH51 -> 6170.2 | CI51: =NPC!CI51-BASE!CI51 -> 4816 | CJ51: =NPC!CJ51-BASE!CJ51 -> 32796 | CK51: =NPC!CK51-BASE!CK51 -> 7915.2 | CL51: =NPC!CL51-BASE!CL51 -> -1216 | CM51: =NPC!CM51-BASE!CM51 -> -3698 | CN51: =NPC!CN51-BASE!CN51 -> -3065 | CO51: =NPC!CO51-BASE!CO51 -> 23927.2 | CP51: =NPC!CP51-BASE!CP51 -> 8182 | CQ51: =NPC!CQ51-BASE!CQ51 -> -1042 | CR51: =NPC!CR51-BASE!CR51 -> 118174.3 | CS51: =NPC!CS51-BASE!CS51 -> -5929.2 | CT51: =NPC!CT51-BASE!CT51 -> -3381.5 | CU51: =NPC!CU51-BASE!CU51 -> 16834.5 | CV51: =NPC!CV51-BASE!CV51 -> -702.6 | CW51: =NPC!CW51-BASE!CW51 -> 16261 | CX51: =NPC!CX51-BASE!CX51 -> 26108.5 | CY51: =NPC!CY51-BASE!CY51 -> -484.3 | CZ51: =NPC!CZ51-BASE!CZ51 -> -4561 | DA51: =NPC!DA51-BASE!DA51 -> -4762 | DB51: =NPC!DB51-BASE!DB51 -> 18696.7 | DC51: =NPC!DC51-BASE!DC51 -> 28582 | DD51: =NPC!DD51-BASE!DD51 -> 31512.2 | DE51: =NPC!DE51-BASE!DE51 -> 83054.6 | DF51: =NPC!DF51-BASE!DF51 -> -8110.3 | DG51: =NPC!DG51-BASE!DG51 -> -11148.2 | DH51: =NPC!DH51-BASE!DH51 -> -1407.8 | DI51: =NPC!DI51-BASE!DI51 -> -6899.3 | DJ51: =NPC!DJ51-BASE!DJ51 -> 42707 | DK51: =NPC!DK51-BASE!DK51 -> 28917.8 | DL51: =NPC!DL51-BASE!DL51 -> 1595.7 | DM51: =NPC!DM51-BASE!DM51 -> -8419.5 | DN51: =NPC!DN51-BASE!DN51 -> -9498 | DO51: =NPC!DO51-BASE!DO51 -> 14472.5 | DP51: =NPC!DP51-BASE!DP51 -> 28333.5 | DQ51: =NPC!DQ51-BASE!DQ51 -> 12511.2 | DR51: =NPC!DR51-BASE!DR51 -> 135834.1 | DS51: =NPC!DS51-BASE!DS51 -> -2980.8 | DT51: =NPC!DT51-BASE!DT51 -> -15903 | DU51: =NPC!DU51-BASE!DU51 -> 19542.5 | DV51: =NPC!DV51-BASE!DV51 -> -16034.2 | DW51: =NPC!DW51-BASE!DW51 -> 42100.5 | DX51: =NPC!DX51-BASE!DX51 -> 15963.8 | DY51: =NPC!DY51-BASE!DY51 -> 4537.3 | DZ51: =NPC!DZ51-BASE!DZ51 -> -4749.5 | EA51: =NPC!EA51-BASE!EA51 -> 8550.5 | EB51: =NPC!EB51-BASE!EB51 -> 22350 | EC51: =NPC!EC51-BASE!EC51 -> 35658 | ED51: =NPC!ED51-BASE!ED51 -> 26799 | ER51: =NPC!ER51 -> -
C52: =NPC!C52 -> Palo Verde | E52: =NPC!E52-BASE!E52 -> 593201 | F52: =NPC!F52-BASE!F52 -> 1320 | G52: =NPC!G52-BASE!G52 -> 67590 | H52: =NPC!H52-BASE!H52 -> 6808 | I52: =NPC!I52-BASE!I52 -> 13148 | J52: =NPC!J52-BASE!J52 -> 34013 | K52: =NPC!K52-BASE!K52 -> 72359 | L52: =NPC!L52-BASE!L52 -> 25616 | M52: =NPC!M52-BASE!M52 -> 33036 | N52: =NPC!N52-BASE!N52 -> 44586 | O52: =NPC!O52-BASE!O52 -> 33663 | P52: =NPC!P52-BASE!P52 -> 116648 | Q52: =NPC!Q52-BASE!Q52 -> 144414 | R52: =NPC!R52-BASE!R52 -> 638629 | S52: =NPC!S52-BASE!S52 -> 5804 | T52: =NPC!T52-BASE!T52 -> 22690 | U52: =NPC!U52-BASE!U52 -> 2679 | V52: =NPC!V52-BASE!V52 -> 11709 | W52: =NPC!W52-BASE!W52 -> 45345 | X52: =NPC!X52-BASE!X52 -> 83252 | Y52: =NPC!Y52-BASE!Y52 -> 21260 | Z52: =NPC!Z52-BASE!Z52 -> 25074 | AA52: =NPC!AA52-BASE!AA52 -> 71912 | AB52: =NPC!AB52-BASE!AB52 -> 38069 | AC52: =NPC!AC52-BASE!AC52 -> 146511 | AD52: =NPC!AD52-BASE!AD52 -> 164324 | AE52: =NPC!AE52-BASE!AE52 -> 338578 | AF52: =NPC!AF52-BASE!AF52 -> 2864 | AG52: =NPC!AG52-BASE!AG52 -> 20968 | AH52: =NPC!AH52-BASE!AH52 -> -666 | AI52: =NPC!AI52-BASE!AI52 -> -10803 | AJ52: =NPC!AJ52-BASE!AJ52 -> 8767 | AK52: =NPC!AK52-BASE!AK52 -> 41367 | AL52: =NPC!AL52-BASE!AL52 -> 18308 | AM52: =NPC!AM52-BASE!AM52 -> 8156 | AN52: =NPC!AN52-BASE!AN52 -> 58466 | AO52: =NPC!AO52-BASE!AO52 -> 36164 | AP52: =NPC!AP52-BASE!AP52 -> 84628 | AQ52: =NPC!AQ52-BASE!AQ52 -> 70359 | AR52: =NPC!AR52-BASE!AR52 -> 379384 | AS52: =NPC!AS52-BASE!AS52 -> 1751 | AT52: =NPC!AT52-BASE!AT52 -> 11215 | AU52: =NPC!AU52-BASE!AU52 -> 5520 | AV52: =NPC!AV52-BASE!AV52 -> -6908 | AW52: =NPC!AW52-BASE!AW52 -> 17633 | AX52: =NPC!AX52-BASE!AX52 -> 81156 | AY52: =NPC!AY52-BASE!AY52 -> 4690 | AZ52: =NPC!AZ52-BASE!AZ52 -> -8626 | BA52: =NPC!BA52-BASE!BA52 -> 74828 | BB52: =NPC!BB52-BASE!BB52 -> 37279 | BC52: =NPC!BC52-BASE!BC52 -> 84280 | BD52: =NPC!BD52-BASE!BD52 -> 76566 | BE52: =NPC!BE52-BASE!BE52 -> 362293 | BF52: =NPC!BF52-BASE!BF52 -> 14296 | BG52: =NPC!BG52-BASE!BG52 -> 10961 | BH52: =NPC!BH52-BASE!BH52 -> 6736 | BI52: =NPC!BI52-BASE!BI52 -> 755 | BJ52: =NPC!BJ52-BASE!BJ52 -> 22547 | BK52: =NPC!BK52-BASE!BK52 -> 75931 | BL52: =NPC!BL52-BASE!BL52 -> 4672 | BM52: =NPC!BM52-BASE!BM52 -> -8502 | BN52: =NPC!BN52-BASE!BN52 -> 70522 | BO52: =NPC!BO52-BASE!BO52 -> 33617 | BP52: =NPC!BP52-BASE!BP52 -> 79861 | BQ52: =NPC!BQ52-BASE!BQ52 -> 50897 | BR52: =NPC!BR52-BASE!BR52 -> 304119 | BS52: =NPC!BS52-BASE!BS52 -> 9400 | BT52: =NPC!BT52-BASE!BT52 -> 18208 | BU52: =NPC!BU52-BASE!BU52 -> 11311 | BV52: =NPC!BV52-BASE!BV52 -> -7097 | BW52: =NPC!BW52-BASE!BW52 -> -4236 | BX52: =NPC!BX52-BASE!BX52 -> 101340 | BY52: =NPC!BY52-BASE!BY52 -> -1620 | BZ52: =NPC!BZ52-BASE!BZ52 -> -13536 | CA52: =NPC!CA52-BASE!CA52 -> 54580 | CB52: =NPC!CB52-BASE!CB52 -> 5367 | CC52: =NPC!CC52-BASE!CC52 -> 83079 | CD52: =NPC!CD52-BASE!CD52 -> 47323 | CE52: =NPC!CE52-BASE!CE52 -> 386326 | CF52: =NPC!CF52-BASE!CF52 -> -11418 | CG52: =NPC!CG52-BASE!CG52 -> 15015 | CH52: =NPC!CH52-BASE!CH52 -> 25479 | CI52: =NPC!CI52-BASE!CI52 -> -751 | CJ52: =NPC!CJ52-BASE!CJ52 -> 20207 | CK52: =NPC!CK52-BASE!CK52 -> 74324 | CL52: =NPC!CL52-BASE!CL52 -> -5432 | CM52: =NPC!CM52-BASE!CM52 -> -28160 | CN52: =NPC!CN52-BASE!CN52 -> 37900 | CO52: =NPC!CO52-BASE!CO52 -> 52862 | CP52: =NPC!CP52-BASE!CP52 -> 136806 | CQ52: =NPC!CQ52-BASE!CQ52 -> 69494 | CR52: =NPC!CR52-BASE!CR52 -> 368580 | CS52: =NPC!CS52-BASE!CS52 -> 536 | CT52: =NPC!CT52-BASE!CT52 -> 20668 | CU52: =NPC!CU52-BASE!CU52 -> 18836 | CV52: =NPC!CV52-BASE!CV52 -> -8629 | CW52: =NPC!CW52-BASE!CW52 -> -3472 | CX52: =NPC!CX52-BASE!CX52 -> 77843 | CY52: =NPC!CY52-BASE!CY52 -> -4246 | CZ52: =NPC!CZ52-BASE!CZ52 -> -30748 | DA52: =NPC!DA52-BASE!DA52 -> -1512 | DB52: =NPC!DB52-BASE!DB52 -> 49424 | DC52: =NPC!DC52-BASE!DC52 -> 149916 | DD52: =NPC!DD52-BASE!DD52 -> 99964 | DE52: =NPC!DE52-BASE!DE52 -> 324459 | DF52: =NPC!DF52-BASE!DF52 -> -10950 | DG52: =NPC!DG52-BASE!DG52 -> 8656 | DH52: =NPC!DH52-BASE!DH52 -> 19295 | DI52: =NPC!DI52-BASE!DI52 -> -9400 | DJ52: =NPC!DJ52-BASE!DJ52 -> 46127 | DK52: =NPC!DK52-BASE!DK52 -> 90161 | DL52: =NPC!DL52-BASE!DL52 -> -6536 | DM52: =NPC!DM52-BASE!DM52 -> -40428 | DN52: =NPC!DN52-BASE!DN52 -> 2046 | DO52: =NPC!DO52-BASE!DO52 -> 58117 | DP52: =NPC!DP52-BASE!DP52 -> 109431 | DQ52: =NPC!DQ52-BASE!DQ52 -> 57940 | DR52: =NPC!DR52-BASE!DR52 -> 403649 | DS52: =NPC!DS52-BASE!DS52 -> 7954 | DT52: =NPC!DT52-BASE!DT52 -> -5884 | DU52: =NPC!DU52-BASE!DU52 -> 36650 | DV52: =NPC!DV52-BASE!DV52 -> -20946 | DW52: =NPC!DW52-BASE!DW52 -> 4461 | DX52: =NPC!DX52-BASE!DX52 -> 44107 | DY52: =NPC!DY52-BASE!DY52 -> -8036 | DZ52: =NPC!DZ52-BASE!DZ52 -> -35422 | EA52: =NPC!EA52-BASE!EA52 -> 70330 | EB52: =NPC!EB52-BASE!EB52 -> 45510 | EC52: =NPC!EC52-BASE!EC52 -> 160329 | ED52: =NPC!ED52-BASE!ED52 -> 104596 | ER52: =NPC!ER52 -> -
C53: =NPC!C53 -> SP15 | E53: =NPC!E53-BASE!E53 -> 0 | F53: =NPC!F53-BASE!F53 -> 0 | G53: =NPC!G53-BASE!G53 -> 0 | H53: =NPC!H53-BASE!H53 -> 0 | I53: =NPC!I53-BASE!I53 -> 0 | J53: =NPC!J53-BASE!J53 -> 0 | K53: =NPC!K53-BASE!K53 -> 0 | L53: =NPC!L53-BASE!L53 -> 0 | M53: =NPC!M53-BASE!M53 -> 0 | N53: =NPC!N53-BASE!N53 -> 0 | O53: =NPC!O53-BASE!O53 -> 0 | P53: =NPC!P53-BASE!P53 -> 0 | Q53: =NPC!Q53-BASE!Q53 -> 0 | R53: =NPC!R53-BASE!R53 -> 0 | S53: =NPC!S53-BASE!S53 -> 0 | T53: =NPC!T53-BASE!T53 -> 0 | U53: =NPC!U53-BASE!U53 -> 0 | V53: =NPC!V53-BASE!V53 -> 0 | W53: =NPC!W53-BASE!W53 -> 0 | X53: =NPC!X53-BASE!X53 -> 0 | Y53: =NPC!Y53-BASE!Y53 -> 0 | Z53: =NPC!Z53-BASE!Z53 -> 0 | AA53: =NPC!AA53-BASE!AA53 -> 0 | AB53: =NPC!AB53-BASE!AB53 -> 0 | AC53: =NPC!AC53-BASE!AC53 -> 0 | AD53: =NPC!AD53-BASE!AD53 -> 0 | AE53: =NPC!AE53-BASE!AE53 -> 0 | AF53: =NPC!AF53-BASE!AF53 -> 0 | AG53: =NPC!AG53-BASE!AG53 -> 0 | AH53: =NPC!AH53-BASE!AH53 -> 0 | AI53: =NPC!AI53-BASE!AI53 -> 0 | AJ53: =NPC!AJ53-BASE!AJ53 -> 0 | AK53: =NPC!AK53-BASE!AK53 -> 0 | AL53: =NPC!AL53-BASE!AL53 -> 0 | AM53: =NPC!AM53-BASE!AM53 -> 0 | AN53: =NPC!AN53-BASE!AN53 -> 0 | AO53: =NPC!AO53-BASE!AO53 -> 0 | AP53: =NPC!AP53-BASE!AP53 -> 0 | AQ53: =NPC!AQ53-BASE!AQ53 -> 0 | AR53: =NPC!AR53-BASE!AR53 -> 0 | AS53: =NPC!AS53-BASE!AS53 -> 0 | AT53: =NPC!AT53-BASE!AT53 -> 0 | AU53: =NPC!AU53-BASE!AU53 -> 0 | AV53: =NPC!AV53-BASE!AV53 -> 0 | AW53: =NPC!AW53-BASE!AW53 -> 0 | AX53: =NPC!AX53-BASE!AX53 -> 0 | AY53: =NPC!AY53-BASE!AY53 -> 0 | AZ53: =NPC!AZ53-BASE!AZ53 -> 0 | BA53: =NPC!BA53-BASE!BA53 -> 0 | BB53: =NPC!BB53-BASE!BB53 -> 0 | BC53: =NPC!BC53-BASE!BC53 -> 0 | BD53: =NPC!BD53-BASE!BD53 -> 0 | BE53: =NPC!BE53-BASE!BE53 -> 0 | BF53: =NPC!BF53-BASE!BF53 -> 0 | BG53: =NPC!BG53-BASE!BG53 -> 0 | BH53: =NPC!BH53-BASE!BH53 -> 0 | BI53: =NPC!BI53-BASE!BI53 -> 0 | BJ53: =NPC!BJ53-BASE!BJ53 -> 0 | BK53: =NPC!BK53-BASE!BK53 -> 0 | BL53: =NPC!BL53-BASE!BL53 -> 0 | BM53: =NPC!BM53-BASE!BM53 -> 0 | BN53: =NPC!BN53-BASE!BN53 -> 0 | BO53: =NPC!BO53-BASE!BO53 -> 0 | BP53: =NPC!BP53-BASE!BP53 -> 0 | BQ53: =NPC!BQ53-BASE!BQ53 -> 0 | BR53: =NPC!BR53-BASE!BR53 -> 0 | BS53: =NPC!BS53-BASE!BS53 -> 0 | BT53: =NPC!BT53-BASE!BT53 -> 0 | BU53: =NPC!BU53-BASE!BU53 -> 0 | BV53: =NPC!BV53-BASE!BV53 -> 0 | BW53: =NPC!BW53-BASE!BW53 -> 0 | BX53: =NPC!BX53-BASE!BX53 -> 0 | BY53: =NPC!BY53-BASE!BY53 -> 0 | BZ53: =NPC!BZ53-BASE!BZ53 -> 0 | CA53: =NPC!CA53-BASE!CA53 -> 0 | CB53: =NPC!CB53-BASE!CB53 -> 0 | CC53: =NPC!CC53-BASE!CC53 -> 0 | CD53: =NPC!CD53-BASE!CD53 -> 0 | CE53: =NPC!CE53-BASE!CE53 -> 0 | CF53: =NPC!CF53-BASE!CF53 -> 0 | CG53: =NPC!CG53-BASE!CG53 -> 0 | CH53: =NPC!CH53-BASE!CH53 -> 0 | CI53: =NPC!CI53-BASE!CI53 -> 0 | CJ53: =NPC!CJ53-BASE!CJ53 -> 0 | CK53: =NPC!CK53-BASE!CK53 -> 0 | CL53: =NPC!CL53-BASE!CL53 -> 0 | CM53: =NPC!CM53-BASE!CM53 -> 0 | CN53: =NPC!CN53-BASE!CN53 -> 0 | CO53: =NPC!CO53-BASE!CO53 -> 0 | CP53: =NPC!CP53-BASE!CP53 -> 0 | CQ53: =NPC!CQ53-BASE!CQ53 -> 0 | CR53: =NPC!CR53-BASE!CR53 -> 0 | CS53: =NPC!CS53-BASE!CS53 -> 0 | CT53: =NPC!CT53-BASE!CT53 -> 0 | CU53: =NPC!CU53-BASE!CU53 -> 0 | CV53: =NPC!CV53-BASE!CV53 -> 0 | CW53: =NPC!CW53-BASE!CW53 -> 0 | CX53: =NPC!CX53-BASE!CX53 -> 0 | CY53: =NPC!CY53-BASE!CY53 -> 0 | CZ53: =NPC!CZ53-BASE!CZ53 -> 0 | DA53: =NPC!DA53-BASE!DA53 -> 0 | DB53: =NPC!DB53-BASE!DB53 -> 0 | DC53: =NPC!DC53-BASE!DC53 -> 0 | DD53: =NPC!DD53-BASE!DD53 -> 0 | DE53: =NPC!DE53-BASE!DE53 -> 0 | DF53: =NPC!DF53-BASE!DF53 -> 0 | DG53: =NPC!DG53-BASE!DG53 -> 0 | DH53: =NPC!DH53-BASE!DH53 -> 0 | DI53: =NPC!DI53-BASE!DI53 -> 0 | DJ53: =NPC!DJ53-BASE!DJ53 -> 0 | DK53: =NPC!DK53-BASE!DK53 -> 0 | DL53: =NPC!DL53-BASE!DL53 -> 0 | DM53: =NPC!DM53-BASE!DM53 -> 0 | DN53: =NPC!DN53-BASE!DN53 -> 0 | DO53: =NPC!DO53-BASE!DO53 -> 0 | DP53: =NPC!DP53-BASE!DP53 -> 0 | DQ53: =NPC!DQ53-BASE!DQ53 -> 0 | DR53: =NPC!DR53-BASE!DR53 -> 0 | DS53: =NPC!DS53-BASE!DS53 -> 0 | DT53: =NPC!DT53-BASE!DT53 -> 0 | DU53: =NPC!DU53-BASE!DU53 -> 0 | DV53: =NPC!DV53-BASE!DV53 -> 0 | DW53: =NPC!DW53-BASE!DW53 -> 0 | DX53: =NPC!DX53-BASE!DX53 -> 0 | DY53: =NPC!DY53-BASE!DY53 -> 0 | DZ53: =NPC!DZ53-BASE!DZ53 -> 0 | EA53: =NPC!EA53-BASE!EA53 -> 0 | EB53: =NPC!EB53-BASE!EB53 -> 0 | EC53: =NPC!EC53-BASE!EC53 -> 0 | ED53: =NPC!ED53-BASE!ED53 -> 0 | ER53: =NPC!ER53 -> -
C54: =NPC!C54 -> Trapped Energy | E54: =NPC!E54-BASE!E54 -> 0 | F54: =NPC!F54-BASE!F54 -> 0 | G54: =NPC!G54-BASE!G54 -> 0 | H54: =NPC!H54-BASE!H54 -> 0 | I54: =NPC!I54-BASE!I54 -> 0 | J54: =NPC!J54-BASE!J54 -> 0 | K54: =NPC!K54-BASE!K54 -> 0 | L54: =NPC!L54-BASE!L54 -> 0 | M54: =NPC!M54-BASE!M54 -> 0 | N54: =NPC!N54-BASE!N54 -> 0 | O54: =NPC!O54-BASE!O54 -> 0 | P54: =NPC!P54-BASE!P54 -> 0 | Q54: =NPC!Q54-BASE!Q54 -> 0 | R54: =NPC!R54-BASE!R54 -> 0 | S54: =NPC!S54-BASE!S54 -> 0 | T54: =NPC!T54-BASE!T54 -> 0 | U54: =NPC!U54-BASE!U54 -> 0 | V54: =NPC!V54-BASE!V54 -> 0 | W54: =NPC!W54-BASE!W54 -> 0 | X54: =NPC!X54-BASE!X54 -> 0 | Y54: =NPC!Y54-BASE!Y54 -> 0 | Z54: =NPC!Z54-BASE!Z54 -> 0 | AA54: =NPC!AA54-BASE!AA54 -> 0 | AB54: =NPC!AB54-BASE!AB54 -> 0 | AC54: =NPC!AC54-BASE!AC54 -> 0 | AD54: =NPC!AD54-BASE!AD54 -> 0 | AE54: =NPC!AE54-BASE!AE54 -> 0 | AF54: =NPC!AF54-BASE!AF54 -> 0 | AG54: =NPC!AG54-BASE!AG54 -> 0 | AH54: =NPC!AH54-BASE!AH54 -> 0 | AI54: =NPC!AI54-BASE!AI54 -> 0 | AJ54: =NPC!AJ54-BASE!AJ54 -> 0 | AK54: =NPC!AK54-BASE!AK54 -> 0 | AL54: =NPC!AL54-BASE!AL54 -> 0 | AM54: =NPC!AM54-BASE!AM54 -> 0 | AN54: =NPC!AN54-BASE!AN54 -> 0 | AO54: =NPC!AO54-BASE!AO54 -> 0 | AP54: =NPC!AP54-BASE!AP54 -> 0 | AQ54: =NPC!AQ54-BASE!AQ54 -> 0 | AR54: =NPC!AR54-BASE!AR54 -> 0 | AS54: =NPC!AS54-BASE!AS54 -> 0 | AT54: =NPC!AT54-BASE!AT54 -> 0 | AU54: =NPC!AU54-BASE!AU54 -> 0 | AV54: =NPC!AV54-BASE!AV54 -> 0 | AW54: =NPC!AW54-BASE!AW54 -> 0 | AX54: =NPC!AX54-BASE!AX54 -> 0 | AY54: =NPC!AY54-BASE!AY54 -> 0 | AZ54: =NPC!AZ54-BASE!AZ54 -> 0 | BA54: =NPC!BA54-BASE!BA54 -> 0 | BB54: =NPC!BB54-BASE!BB54 -> 0 | BC54: =NPC!BC54-BASE!BC54 -> 0 | BD54: =NPC!BD54-BASE!BD54 -> 0 | BE54: =NPC!BE54-BASE!BE54 -> 0 | BF54: =NPC!BF54-BASE!BF54 -> 0 | BG54: =NPC!BG54-BASE!BG54 -> 0 | BH54: =NPC!BH54-BASE!BH54 -> 0 | BI54: =NPC!BI54-BASE!BI54 -> 0 | BJ54: =NPC!BJ54-BASE!BJ54 -> 0 | BK54: =NPC!BK54-BASE!BK54 -> 0 | BL54: =NPC!BL54-BASE!BL54 -> 0 | BM54: =NPC!BM54-BASE!BM54 -> 0 | BN54: =NPC!BN54-BASE!BN54 -> 0 | BO54: =NPC!BO54-BASE!BO54 -> 0 | BP54: =NPC!BP54-BASE!BP54 -> 0 | BQ54: =NPC!BQ54-BASE!BQ54 -> 0 | BR54: =NPC!BR54-BASE!BR54 -> 0 | BS54: =NPC!BS54-BASE!BS54 -> 0 | BT54: =NPC!BT54-BASE!BT54 -> 0 | BU54: =NPC!BU54-BASE!BU54 -> 0 | BV54: =NPC!BV54-BASE!BV54 -> 0 | BW54: =NPC!BW54-BASE!BW54 -> 0 | BX54: =NPC!BX54-BASE!BX54 -> 0 | BY54: =NPC!BY54-BASE!BY54 -> 0 | BZ54: =NPC!BZ54-BASE!BZ54 -> 0 | CA54: =NPC!CA54-BASE!CA54 -> 0 | CB54: =NPC!CB54-BASE!CB54 -> 0 | CC54: =NPC!CC54-BASE!CC54 -> 0 | CD54: =NPC!CD54-BASE!CD54 -> 0 | CE54: =NPC!CE54-BASE!CE54 -> 0 | CF54: =NPC!CF54-BASE!CF54 -> 0 | CG54: =NPC!CG54-BASE!CG54 -> 0 | CH54: =NPC!CH54-BASE!CH54 -> 0 | CI54: =NPC!CI54-BASE!CI54 -> 0 | CJ54: =NPC!CJ54-BASE!CJ54 -> 0 | CK54: =NPC!CK54-BASE!CK54 -> 0 | CL54: =NPC!CL54-BASE!CL54 -> 0 | CM54: =NPC!CM54-BASE!CM54 -> 0 | CN54: =NPC!CN54-BASE!CN54 -> 0 | CO54: =NPC!CO54-BASE!CO54 -> 0 | CP54: =NPC!CP54-BASE!CP54 -> 0 | CQ54: =NPC!CQ54-BASE!CQ54 -> 0 | CR54: =NPC!CR54-BASE!CR54 -> 0 | CS54: =NPC!CS54-BASE!CS54 -> 0 | CT54: =NPC!CT54-BASE!CT54 -> 0 | CU54: =NPC!CU54-BASE!CU54 -> 0 | CV54: =NPC!CV54-BASE!CV54 -> 0 | CW54: =NPC!CW54-BASE!CW54 -> 0 | CX54: =NPC!CX54-BASE!CX54 -> 0 | CY54: =NPC!CY54-BASE!CY54 -> 0 | CZ54: =NPC!CZ54-BASE!CZ54 -> 0 | DA54: =NPC!DA54-BASE!DA54 -> 0 | DB54: =NPC!DB54-BASE!DB54 -> 0 | DC54: =NPC!DC54-BASE!DC54 -> 0 | DD54: =NPC!DD54-BASE!DD54 -> 0 | DE54: =NPC!DE54-BASE!DE54 -> 0 | DF54: =NPC!DF54-BASE!DF54 -> 0 | DG54: =NPC!DG54-BASE!DG54 -> 0 | DH54: =NPC!DH54-BASE!DH54 -> 0 | DI54: =NPC!DI54-BASE!DI54 -> 0 | DJ54: =NPC!DJ54-BASE!DJ54 -> 0 | DK54: =NPC!DK54-BASE!DK54 -> 0 | DL54: =NPC!DL54-BASE!DL54 -> 0 | DM54: =NPC!DM54-BASE!DM54 -> 0 | DN54: =NPC!DN54-BASE!DN54 -> 0 | DO54: =NPC!DO54-BASE!DO54 -> 0 | DP54: =NPC!DP54-BASE!DP54 -> 0 | DQ54: =NPC!DQ54-BASE!DQ54 -> 0 | DR54: =NPC!DR54-BASE!DR54 -> 0 | DS54: =NPC!DS54-BASE!DS54 -> 0 | DT54: =NPC!DT54-BASE!DT54 -> 0 | DU54: =NPC!DU54-BASE!DU54 -> 0 | DV54: =NPC!DV54-BASE!DV54 -> 0 | DW54: =NPC!DW54-BASE!DW54 -> 0 | DX54: =NPC!DX54-BASE!DX54 -> 0 | DY54: =NPC!DY54-BASE!DY54 -> 0 | DZ54: =NPC!DZ54-BASE!DZ54 -> 0 | EA54: =NPC!EA54-BASE!EA54 -> 0 | EB54: =NPC!EB54-BASE!EB54 -> 0 | EC54: =NPC!EC54-BASE!EC54 -> 0 | ED54: =NPC!ED54-BASE!ED54 -> 0
B56: Total System Balancing Sales | E56: =NPC!E56-BASE!E56 -> 2132333.71 | F56: =NPC!F56-BASE!F56 -> 26303.5 | G56: =NPC!G56-BASE!G56 -> 75054 | H56: =NPC!H56-BASE!H56 -> 46755.3 | I56: =NPC!I56-BASE!I56 -> 99681.8 | J56: =NPC!J56-BASE!J56 -> 107903.71 | K56: =NPC!K56-BASE!K56 -> 171387.7 | L56: =NPC!L56-BASE!L56 -> 414052.5 | M56: =NPC!M56-BASE!M56 -> 427283.5 | N56: =NPC!N56-BASE!N56 -> 190607 | O56: =NPC!O56-BASE!O56 -> 157245.4 | P56: =NPC!P56-BASE!P56 -> 220405 | Q56: =NPC!Q56-BASE!Q56 -> 195654.3 | R56: =NPC!R56-BASE!R56 -> 2049791.14 | S56: =NPC!S56-BASE!S56 -> 17392.6 | T56: =NPC!T56-BASE!T56 -> 25523.9 | U56: =NPC!U56-BASE!U56 -> 34986.3 | V56: =NPC!V56-BASE!V56 -> 83227.07 | W56: =NPC!W56-BASE!W56 -> 146647.67 | X56: =NPC!X56-BASE!X56 -> 205878.5 | Y56: =NPC!Y56-BASE!Y56 -> 436193.9 | Z56: =NPC!Z56-BASE!Z56 -> 389845 | AA56: =NPC!AA56-BASE!AA56 -> 165997 | AB56: =NPC!AB56-BASE!AB56 -> 106010.9 | AC56: =NPC!AC56-BASE!AC56 -> 204889.3 | AD56: =NPC!AD56-BASE!AD56 -> 233199 | AE56: =NPC!AE56-BASE!AE56 -> 1497028.88 | AF56: =NPC!AF56-BASE!AF56 -> 1944.7 | AG56: =NPC!AG56-BASE!AG56 -> 24221 | AH56: =NPC!AH56-BASE!AH56 -> 7385.18 | AI56: =NPC!AI56-BASE!AI56 -> 29273.35 | AJ56: =NPC!AJ56-BASE!AJ56 -> 54070.3 | AK56: =NPC!AK56-BASE!AK56 -> 147740.3 | AL56: =NPC!AL56-BASE!AL56 -> 386842.7 | AM56: =NPC!AM56-BASE!AM56 -> 316167.5 | AN56: =NPC!AN56-BASE!AN56 -> 187952.2 | AO56: =NPC!AO56-BASE!AO56 -> 119800.02 | AP56: =NPC!AP56-BASE!AP56 -> 130408.13 | AQ56: =NPC!AQ56-BASE!AQ56 -> 91223.5 | AR56: =NPC!AR56-BASE!AR56 -> 1673659.159 | AS56: =NPC!AS56-BASE!AS56 -> 6768.5 | AT56: =NPC!AT56-BASE!AT56 -> 21157.369 | AU56: =NPC!AU56-BASE!AU56 -> 53216.28 | AV56: =NPC!AV56-BASE!AV56 -> 43992.2 | AW56: =NPC!AW56-BASE!AW56 -> 80273.21 | AX56: =NPC!AX56-BASE!AX56 -> 144877.2 | AY56: =NPC!AY56-BASE!AY56 -> 443867.8 | AZ56: =NPC!AZ56-BASE!AZ56 -> 362662.5 | BA56: =NPC!BA56-BASE!BA56 -> 143552.3 | BB56: =NPC!BB56-BASE!BB56 -> 142573.7 | BC56: =NPC!BC56-BASE!BC56 -> 140197.8 | BD56: =NPC!BD56-BASE!BD56 -> 90520.3 | BE56: =NPC!BE56-BASE!BE56 -> 1631832.65 | BF56: =NPC!BF56-BASE!BF56 -> 15865.3 | BG56: =NPC!BG56-BASE!BG56 -> 2712.2 | BH56: =NPC!BH56-BASE!BH56 -> 43294.38 | BI56: =NPC!BI56-BASE!BI56 -> 31955.54 | BJ56: =NPC!BJ56-BASE!BJ56 -> 84757.2 | BK56: =NPC!BK56-BASE!BK56 -> 156577.6 | BL56: =NPC!BL56-BASE!BL56 -> 424466.2 | BM56: =NPC!BM56-BASE!BM56 -> 354474.5 | BN56: =NPC!BN56-BASE!BN56 -> 151661.8 | BO56: =NPC!BO56-BASE!BO56 -> 144134.04 | BP56: =NPC!BP56-BASE!BP56 -> 144523.39 | BQ56: =NPC!BQ56-BASE!BQ56 -> 77410.5 | BR56: =NPC!BR56-BASE!BR56 -> 1625471.97 | BS56: =NPC!BS56-BASE!BS56 -> 3347.7 | BT56: =NPC!BT56-BASE!BT56 -> 34928.5 | BU56: =NPC!BU56-BASE!BU56 -> 45854.98 | BV56: =NPC!BV56-BASE!BV56 -> 19685.32 | BW56: =NPC!BW56-BASE!BW56 -> 100765.91 | BX56: =NPC!BX56-BASE!BX56 -> 197011.2 | BY56: =NPC!BY56-BASE!BY56 -> 434816.5 | BZ56: =NPC!BZ56-BASE!BZ56 -> 361468.5 | CA56: =NPC!CA56-BASE!CA56 -> 131546 | CB56: =NPC!CB56-BASE!CB56 -> 87138.46 | CC56: =NPC!CC56-BASE!CC56 -> 153501.9 | CD56: =NPC!CD56-BASE!CD56 -> 55407 | CE56: =NPC!CE56-BASE!CE56 -> 1617802.78 | CF56: =NPC!CF56-BASE!CF56 -> -15938.6 | CG56: =NPC!CG56-BASE!CG56 -> 14398.4 | CH56: =NPC!CH56-BASE!CH56 -> 76534.58 | CI56: =NPC!CI56-BASE!CI56 -> 24313.55 | CJ56: =NPC!CJ56-BASE!CJ56 -> 95793.85 | CK56: =NPC!CK56-BASE!CK56 -> 188907.5 | CL56: =NPC!CL56-BASE!CL56 -> 423323 | CM56: =NPC!CM56-BASE!CM56 -> 315916 | CN56: =NPC!CN56-BASE!CN56 -> 150200.5 | CO56: =NPC!CO56-BASE!CO56 -> 128019.5 | CP56: =NPC!CP56-BASE!CP56 -> 157045.5 | CQ56: =NPC!CQ56-BASE!CQ56 -> 59289 | CR56: =NPC!CR56-BASE!CR56 -> 1520726.66 | CS56: =NPC!CS56-BASE!CS56 -> -6520.7 | CT56: =NPC!CT56-BASE!CT56 -> 21503.5 | CU56: =NPC!CU56-BASE!CU56 -> 73625 | CV56: =NPC!CV56-BASE!CV56 -> 4679.4 | CW56: =NPC!CW56-BASE!CW56 -> 74233.66 | CX56: =NPC!CX56-BASE!CX56 -> 219028.2 | CY56: =NPC!CY56-BASE!CY56 -> 235341.2 | CZ56: =NPC!CZ56-BASE!CZ56 -> 319422.5 | DA56: =NPC!DA56-BASE!DA56 -> 116657.5 | DB56: =NPC!DB56-BASE!DB56 -> 143490.7 | DC56: =NPC!DC56-BASE!DC56 -> 201119.5 | DD56: =NPC!DD56-BASE!DD56 -> 118146.2 | DE56: =NPC!DE56-BASE!DE56 -> 1489587.9 | DF56: =NPC!DF56-BASE!DF56 -> -16911.3 | DG56: =NPC!DG56-BASE!DG56 -> 5827.8 | DH56: =NPC!DH56-BASE!DH56 -> 78415.7 | DI56: =NPC!DI56-BASE!DI56 -> 22456.5 | DJ56: =NPC!DJ56-BASE!DJ56 -> 93015.2 | DK56: =NPC!DK56-BASE!DK56 -> 210657.3 | DL56: =NPC!DL56-BASE!DL56 -> 321529.2 | DM56: =NPC!DM56-BASE!DM56 -> 300534.5 | DN56: =NPC!DN56-BASE!DN56 -> 135436.5 | DO56: =NPC!DO56-BASE!DO56 -> 103551.3 | DP56: =NPC!DP56-BASE!DP56 -> 172233 | DQ56: =NPC!DQ56-BASE!DQ56 -> 62842.2 | DR56: =NPC!DR56-BASE!DR56 -> 1912216.34 | DS56: =NPC!DS56-BASE!DS56 -> 8626.2 | DT56: =NPC!DT56-BASE!DT56 -> -17508 | DU56: =NPC!DU56-BASE!DU56 -> 56473 | DV56: =NPC!DV56-BASE!DV56 -> 7844.9 | DW56: =NPC!DW56-BASE!DW56 -> 76795.54 | DX56: =NPC!DX56-BASE!DX56 -> 177781.6 | DY56: =NPC!DY56-BASE!DY56 -> 450733.8 | DZ56: =NPC!DZ56-BASE!DZ56 -> 378288 | EA56: =NPC!EA56-BASE!EA56 -> 314008 | EB56: =NPC!EB56-BASE!EB56 -> 133944.8 | EC56: =NPC!EC56-BASE!EC56 -> 211605.5 | ED56: =NPC!ED56-BASE!ED56 -> 113623
A58: =NPC!A58 -> Total Special Sales For Resale | E58: =NPC!E58-BASE!E58 -> 2132333.71 | F58: =NPC!F58-BASE!F58 -> 26303.5 | G58: =NPC!G58-BASE!G58 -> 75054 | H58: =NPC!H58-BASE!H58 -> 46755.3 | I58: =NPC!I58-BASE!I58 -> 99681.8 | J58: =NPC!J58-BASE!J58 -> 107903.71 | K58: =NPC!K58-BASE!K58 -> 171387.7 | L58: =NPC!L58-BASE!L58 -> 414052.5 | M58: =NPC!M58-BASE!M58 -> 427283.5 | N58: =NPC!N58-BASE!N58 -> 190607 | O58: =NPC!O58-BASE!O58 -> 157245.4 | P58: =NPC!P58-BASE!P58 -> 220405 | Q58: =NPC!Q58-BASE!Q58 -> 195654.3 | R58: =NPC!R58-BASE!R58 -> 2049791.14 | S58: =NPC!S58-BASE!S58 -> 17392.6 | T58: =NPC!T58-BASE!T58 -> 25523.9 | U58: =NPC!U58-BASE!U58 -> 34986.3 | V58: =NPC!V58-BASE!V58 -> 83227.07 | W58: =NPC!W58-BASE!W58 -> 146647.67 | X58: =NPC!X58-BASE!X58 -> 205878.5 | Y58: =NPC!Y58-BASE!Y58 -> 436193.9 | Z58: =NPC!Z58-BASE!Z58 -> 389845 | AA58: =NPC!AA58-BASE!AA58 -> 165997 | AB58: =NPC!AB58-BASE!AB58 -> 106010.9 | AC58: =NPC!AC58-BASE!AC58 -> 204889.3 | AD58: =NPC!AD58-BASE!AD58 -> 233199 | AE58: =NPC!AE58-BASE!AE58 -> 1497028.88 | AF58: =NPC!AF58-BASE!AF58 -> 1944.7 | AG58: =NPC!AG58-BASE!AG58 -> 24221 | AH58: =NPC!AH58-BASE!AH58 -> 7385.18 | AI58: =NPC!AI58-BASE!AI58 -> 29273.35 | AJ58: =NPC!AJ58-BASE!AJ58 -> 54070.3 | AK58: =NPC!AK58-BASE!AK58 -> 147740.3 | AL58: =NPC!AL58-BASE!AL58 -> 386842.7 | AM58: =NPC!AM58-BASE!AM58 -> 316167.5 | AN58: =NPC!AN58-BASE!AN58 -> 187952.2 | AO58: =NPC!AO58-BASE!AO58 -> 119800.02 | AP58: =NPC!AP58-BASE!AP58 -> 130408.13 | AQ58: =NPC!AQ58-BASE!AQ58 -> 91223.5 | AR58: =NPC!AR58-BASE!AR58 -> 1673659.159 | AS58: =NPC!AS58-BASE!AS58 -> 6768.5 | AT58: =NPC!AT58-BASE!AT58 -> 21157.369 | AU58: =NPC!AU58-BASE!AU58 -> 53216.28 | AV58: =NPC!AV58-BASE!AV58 -> 43992.2 | AW58: =NPC!AW58-BASE!AW58 -> 80273.21 | AX58: =NPC!AX58-BASE!AX58 -> 144877.2 | AY58: =NPC!AY58-BASE!AY58 -> 443867.8 | AZ58: =NPC!AZ58-BASE!AZ58 -> 362662.5 | BA58: =NPC!BA58-BASE!BA58 -> 143552.3 | BB58: =NPC!BB58-BASE!BB58 -> 142573.7 | BC58: =NPC!BC58-BASE!BC58 -> 140197.8 | BD58: =NPC!BD58-BASE!BD58 -> 90520.3 | BE58: =NPC!BE58-BASE!BE58 -> 1631832.65 | BF58: =NPC!BF58-BASE!BF58 -> 15865.3 | BG58: =NPC!BG58-BASE!BG58 -> 2712.2 | BH58: =NPC!BH58-BASE!BH58 -> 43294.38 | BI58: =NPC!BI58-BASE!BI58 -> 31955.54 | BJ58: =NPC!BJ58-BASE!BJ58 -> 84757.2 | BK58: =NPC!BK58-BASE!BK58 -> 156577.6 | BL58: =NPC!BL58-BASE!BL58 -> 424466.2 | BM58: =NPC!BM58-BASE!BM58 -> 354474.5 | BN58: =NPC!BN58-BASE!BN58 -> 151661.8 | BO58: =NPC!BO58-BASE!BO58 -> 144134.04 | BP58: =NPC!BP58-BASE!BP58 -> 144523.39 | BQ58: =NPC!BQ58-BASE!BQ58 -> 77410.5 | BR58: =NPC!BR58-BASE!BR58 -> 1625471.97 | BS58: =NPC!BS58-BASE!BS58 -> 3347.7 | BT58: =NPC!BT58-BASE!BT58 -> 34928.5 | BU58: =NPC!BU58-BASE!BU58 -> 45854.98 | BV58: =NPC!BV58-BASE!BV58 -> 19685.32 | BW58: =NPC!BW58-BASE!BW58 -> 100765.91 | BX58: =NPC!BX58-BASE!BX58 -> 197011.2 | BY58: =NPC!BY58-BASE!BY58 -> 434816.5 | BZ58: =NPC!BZ58-BASE!BZ58 -> 361468.5 | CA58: =NPC!CA58-BASE!CA58 -> 131546 | CB58: =NPC!CB58-BASE!CB58 -> 87138.46 | CC58: =NPC!CC58-BASE!CC58 -> 153501.9 | CD58: =NPC!CD58-BASE!CD58 -> 55407 | CE58: =NPC!CE58-BASE!CE58 -> 1617802.78 | CF58: =NPC!CF58-BASE!CF58 -> -15938.6 | CG58: =NPC!CG58-BASE!CG58 -> 14398.4 | CH58: =NPC!CH58-BASE!CH58 -> 76534.58 | CI58: =NPC!CI58-BASE!CI58 -> 24313.55 | CJ58: =NPC!CJ58-BASE!CJ58 -> 95793.85 | CK58: =NPC!CK58-BASE!CK58 -> 188907.5 | CL58: =NPC!CL58-BASE!CL58 -> 423323 | CM58: =NPC!CM58-BASE!CM58 -> 315916 | CN58: =NPC!CN58-BASE!CN58 -> 150200.5 | CO58: =NPC!CO58-BASE!CO58 -> 128019.5 | CP58: =NPC!CP58-BASE!CP58 -> 157045.5 | CQ58: =NPC!CQ58-BASE!CQ58 -> 59289 | CR58: =NPC!CR58-BASE!CR58 -> 1520726.66 | CS58: =NPC!CS58-BASE!CS58 -> -6520.7 | CT58: =NPC!CT58-BASE!CT58 -> 21503.5 | CU58: =NPC!CU58-BASE!CU58 -> 73625 | CV58: =NPC!CV58-BASE!CV58 -> 4679.4 | CW58: =NPC!CW58-BASE!CW58 -> 74233.66 | CX58: =NPC!CX58-BASE!CX58 -> 219028.2 | CY58: =NPC!CY58-BASE!CY58 -> 235341.2 | CZ58: =NPC!CZ58-BASE!CZ58 -> 319422.5 | DA58: =NPC!DA58-BASE!DA58 -> 116657.5 | DB58: =NPC!DB58-BASE!DB58 -> 143490.7 | DC58: =NPC!DC58-BASE!DC58 -> 201119.5 | DD58: =NPC!DD58-BASE!DD58 -> 118146.2 | DE58: =NPC!DE58-BASE!DE58 -> 1489587.9 | DF58: =NPC!DF58-BASE!DF58 -> -16911.3 | DG58: =NPC!DG58-BASE!DG58 -> 5827.8 | DH58: =NPC!DH58-BASE!DH58 -> 78415.7 | DI58: =NPC!DI58-BASE!DI58 -> 22456.5 | DJ58: =NPC!DJ58-BASE!DJ58 -> 93015.2 | DK58: =NPC!DK58-BASE!DK58 -> 210657.3 | DL58: =NPC!DL58-BASE!DL58 -> 321529.2 | DM58: =NPC!DM58-BASE!DM58 -> 300534.5 | DN58: =NPC!DN58-BASE!DN58 -> 135436.5 | DO58: =NPC!DO58-BASE!DO58 -> 103551.3 | DP58: =NPC!DP58-BASE!DP58 -> 172233 | DQ58: =NPC!DQ58-BASE!DQ58 -> 62842.2 | DR58: =NPC!DR58-BASE!DR58 -> 1912216.34 | DS58: =NPC!DS58-BASE!DS58 -> 8626.2 | DT58: =NPC!DT58-BASE!DT58 -> -17508 | DU58: =NPC!DU58-BASE!DU58 -> 56473 | DV58: =NPC!DV58-BASE!DV58 -> 7844.9 | DW58: =NPC!DW58-BASE!DW58 -> 76795.54 | DX58: =NPC!DX58-BASE!DX58 -> 177781.6 | DY58: =NPC!DY58-BASE!DY58 -> 450733.8 | DZ58: =NPC!DZ58-BASE!DZ58 -> 378288 | EA58: =NPC!EA58-BASE!EA58 -> 314008 | EB58: =NPC!EB58-BASE!EB58 -> 133944.8 | EC58: =NPC!EC58-BASE!EC58 -> 211605.5 | ED58: =NPC!ED58-BASE!ED58 -> 113623
A61: =NPC!A61 -> Purchased Power & Net Interchange
B62: Long Term Firm Purchases
C63: =NPC!C63 -> APS Supplemental p27875 | E63: =NPC!E63-BASE!E63 -> 0 | F63: =NPC!F63-BASE!F63 -> 0 | G63: =NPC!G63-BASE!G63 -> 0 | H63: =NPC!H63-BASE!H63 -> 0 | I63: =NPC!I63-BASE!I63 -> 0 | J63: =NPC!J63-BASE!J63 -> 0 | K63: =NPC!K63-BASE!K63 -> 0 | L63: =NPC!L63-BASE!L63 -> 0 | M63: =NPC!M63-BASE!M63 -> 0 | N63: =NPC!N63-BASE!N63 -> 0 | O63: =NPC!O63-BASE!O63 -> 0 | P63: =NPC!P63-BASE!P63 -> 0 | Q63: =NPC!Q63-BASE!Q63 -> 0 | R63: =NPC!R63-BASE!R63 -> 0 | S63: =NPC!S63-BASE!S63 -> 0 | T63: =NPC!T63-BASE!T63 -> 0 | U63: =NPC!U63-BASE!U63 -> 0 | V63: =NPC!V63-BASE!V63 -> 0 | W63: =NPC!W63-BASE!W63 -> 0 | X63: =NPC!X63-BASE!X63 -> 0 | Y63: =NPC!Y63-BASE!Y63 -> 0 | Z63: =NPC!Z63-BASE!Z63 -> 0 | AA63: =NPC!AA63-BASE!AA63 -> 0 | AB63: =NPC!AB63-BASE!AB63 -> 0 | AC63: =NPC!AC63-BASE!AC63 -> 0 | AD63: =NPC!AD63-BASE!AD63 -> 0 | AE63: =NPC!AE63-BASE!AE63 -> 0 | AF63: =NPC!AF63-BASE!AF63 -> 0 | AG63: =NPC!AG63-BASE!AG63 -> 0 | AH63: =NPC!AH63-BASE!AH63 -> 0 | AI63: =NPC!AI63-BASE!AI63 -> 0 | AJ63: =NPC!AJ63-BASE!AJ63 -> 0 | AK63: =NPC!AK63-BASE!AK63 -> 0 | AL63: =NPC!AL63-BASE!AL63 -> 0 | AM63: =NPC!AM63-BASE!AM63 -> 0 | AN63: =NPC!AN63-BASE!AN63 -> 0 | AO63: =NPC!AO63-BASE!AO63 -> 0 | AP63: =NPC!AP63-BASE!AP63 -> 0 | AQ63: =NPC!AQ63-BASE!AQ63 -> 0 | AR63: =NPC!AR63-BASE!AR63 -> 0 | AS63: =NPC!AS63-BASE!AS63 -> 0 | AT63: =NPC!AT63-BASE!AT63 -> 0 | AU63: =NPC!AU63-BASE!AU63 -> 0 | AV63: =NPC!AV63-BASE!AV63 -> 0 | AW63: =NPC!AW63-BASE!AW63 -> 0 | AX63: =NPC!AX63-BASE!AX63 -> 0 | AY63: =NPC!AY63-BASE!AY63 -> 0 | AZ63: =NPC!AZ63-BASE!AZ63 -> 0 | BA63: =NPC!BA63-BASE!BA63 -> 0 | BB63: =NPC!BB63-BASE!BB63 -> 0 | BC63: =NPC!BC63-BASE!BC63 -> 0 | BD63: =NPC!BD63-BASE!BD63 -> 0 | BE63: =NPC!BE63-BASE!BE63 -> 0 | BF63: =NPC!BF63-BASE!BF63 -> 0 | BG63: =NPC!BG63-BASE!BG63 -> 0 | BH63: =NPC!BH63-BASE!BH63 -> 0 | BI63: =NPC!BI63-BASE!BI63 -> 0 | BJ63: =NPC!BJ63-BASE!BJ63 -> 0 | BK63: =NPC!BK63-BASE!BK63 -> 0 | BL63: =NPC!BL63-BASE!BL63 -> 0 | BM63: =NPC!BM63-BASE!BM63 -> 0 | BN63: =NPC!BN63-BASE!BN63 -> 0 | BO63: =NPC!BO63-BASE!BO63 -> 0 | BP63: =NPC!BP63-BASE!BP63 -> 0 | BQ63: =NPC!BQ63-BASE!BQ63 -> 0 | BR63: =NPC!BR63-BASE!BR63 -> 0 | BS63: =NPC!BS63-BASE!BS63 -> 0 | BT63: =NPC!BT63-BASE!BT63 -> 0 | BU63: =NPC!BU63-BASE!BU63 -> 0 | BV63: =NPC!BV63-BASE!BV63 -> 0 | BW63: =NPC!BW63-BASE!BW63 -> 0 | BX63: =NPC!BX63-BASE!BX63 -> 0 | BY63: =NPC!BY63-BASE!BY63 -> 0 | BZ63: =NPC!BZ63-BASE!BZ63 -> 0 | CA63: =NPC!CA63-BASE!CA63 -> 0 | CB63: =NPC!CB63-BASE!CB63 -> 0 | CC63: =NPC!CC63-BASE!CC63 -> 0 | CD63: =NPC!CD63-BASE!CD63 -> 0 | CE63: =NPC!CE63-BASE!CE63 -> 0 | CF63: =NPC!CF63-BASE!CF63 -> 0 | CG63: =NPC!CG63-BASE!CG63 -> 0 | CH63: =NPC!CH63-BASE!CH63 -> 0 | CI63: =NPC!CI63-BASE!CI63 -> 0 | CJ63: =NPC!CJ63-BASE!CJ63 -> 0 | CK63: =NPC!CK63-BASE!CK63 -> 0 | CL63: =NPC!CL63-BASE!CL63 -> 0 | CM63: =NPC!CM63-BASE!CM63 -> 0 | CN63: =NPC!CN63-BASE!CN63 -> 0 | CO63: =NPC!CO63-BASE!CO63 -> 0 | CP63: =NPC!CP63-BASE!CP63 -> 0 | CQ63: =NPC!CQ63-BASE!CQ63 -> 0 | CR63: =NPC!CR63-BASE!CR63 -> 0 | CS63: =NPC!CS63-BASE!CS63 -> 0 | CT63: =NPC!CT63-BASE!CT63 -> 0 | CU63: =NPC!CU63-BASE!CU63 -> 0 | CV63: =NPC!CV63-BASE!CV63 -> 0 | CW63: =NPC!CW63-BASE!CW63 -> 0 | CX63: =NPC!CX63-BASE!CX63 -> 0 | CY63: =NPC!CY63-BASE!CY63 -> 0 | CZ63: =NPC!CZ63-BASE!CZ63 -> 0 | DA63: =NPC!DA63-BASE!DA63 -> 0 | DB63: =NPC!DB63-BASE!DB63 -> 0 | DC63: =NPC!DC63-BASE!DC63 -> 0 | DD63: =NPC!DD63-BASE!DD63 -> 0 | DE63: =NPC!DE63-BASE!DE63 -> 0 | DF63: =NPC!DF63-BASE!DF63 -> 0 | DG63: =NPC!DG63-BASE!DG63 -> 0 | DH63: =NPC!DH63-BASE!DH63 -> 0 | DI63: =NPC!DI63-BASE!DI63 -> 0 | DJ63: =NPC!DJ63-BASE!DJ63 -> 0 | DK63: =NPC!DK63-BASE!DK63 -> 0 | DL63: =NPC!DL63-BASE!DL63 -> 0 | DM63: =NPC!DM63-BASE!DM63 -> 0 | DN63: =NPC!DN63-BASE!DN63 -> 0 | DO63: =NPC!DO63-BASE!DO63 -> 0 | DP63: =NPC!DP63-BASE!DP63 -> 0 | DQ63: =NPC!DQ63-BASE!DQ63 -> 0 | DR63: =NPC!DR63-BASE!DR63 -> 0 | DS63: =NPC!DS63-BASE!DS63 -> 0 | DT63: =NPC!DT63-BASE!DT63 -> 0 | DU63: =NPC!DU63-BASE!DU63 -> 0 | DV63: =NPC!DV63-BASE!DV63 -> 0 | DW63: =NPC!DW63-BASE!DW63 -> 0 | DX63: =NPC!DX63-BASE!DX63 -> 0 | DY63: =NPC!DY63-BASE!DY63 -> 0 | DZ63: =NPC!DZ63-BASE!DZ63 -> 0 | EA63: =NPC!EA63-BASE!EA63 -> 0 | EB63: =NPC!EB63-BASE!EB63 -> 0 | EC63: =NPC!EC63-BASE!EC63 -> 0 | ED63: =NPC!ED63-BASE!ED63 -> 0 | ER63: =NPC!ER63 -> Hide Row
C64: =NPC!C64 -> Blanding Purchase p379174 | E64: =NPC!E64-BASE!E64 -> 0 | F64: =NPC!F64-BASE!F64 -> 0 | G64: =NPC!G64-BASE!G64 -> 0 | H64: =NPC!H64-BASE!H64 -> 0 | I64: =NPC!I64-BASE!I64 -> 0 | J64: =NPC!J64-BASE!J64 -> 0 | K64: =NPC!K64-BASE!K64 -> 0 | L64: =NPC!L64-BASE!L64 -> 0 | M64: =NPC!M64-BASE!M64 -> 0 | N64: =NPC!N64-BASE!N64 -> 0 | O64: =NPC!O64-BASE!O64 -> 0 | P64: =NPC!P64-BASE!P64 -> 0 | Q64: =NPC!Q64-BASE!Q64 -> 0 | R64: =NPC!R64-BASE!R64 -> 0 | S64: =NPC!S64-BASE!S64 -> 0 | T64: =NPC!T64-BASE!T64 -> 0 | U64: =NPC!U64-BASE!U64 -> 0 | V64: =NPC!V64-BASE!V64 -> 0 | W64: =NPC!W64-BASE!W64 -> 0 | X64: =NPC!X64-BASE!X64 -> 0 | Y64: =NPC!Y64-BASE!Y64 -> 0 | Z64: =NPC!Z64-BASE!Z64 -> 0 | AA64: =NPC!AA64-BASE!AA64 -> 0 | AB64: =NPC!AB64-BASE!AB64 -> 0 | AC64: =NPC!AC64-BASE!AC64 -> 0 | AD64: =NPC!AD64-BASE!AD64 -> 0 | AE64: =NPC!AE64-BASE!AE64 -> 0 | AF64: =NPC!AF64-BASE!AF64 -> 0 | AG64: =NPC!AG64-BASE!AG64 -> 0 | AH64: =NPC!AH64-BASE!AH64 -> 0 | AI64: =NPC!AI64-BASE!AI64 -> 0 | AJ64: =NPC!AJ64-BASE!AJ64 -> 0 | AK64: =NPC!AK64-BASE!AK64 -> 0 | AL64: =NPC!AL64-BASE!AL64 -> 0 | AM64: =NPC!AM64-BASE!AM64 -> 0 | AN64: =NPC!AN64-BASE!AN64 -> 0 | AO64: =NPC!AO64-BASE!AO64 -> 0 | AP64: =NPC!AP64-BASE!AP64 -> 0 | AQ64: =NPC!AQ64-BASE!AQ64 -> 0 | AR64: =NPC!AR64-BASE!AR64 -> 0 | AS64: =NPC!AS64-BASE!AS64 -> 0 | AT64: =NPC!AT64-BASE!AT64 -> 0 | AU64: =NPC!AU64-BASE!AU64 -> 0 | AV64: =NPC!AV64-BASE!AV64 -> 0 | AW64: =NPC!AW64-BASE!AW64 -> 0 | AX64: =NPC!AX64-BASE!AX64 -> 0 | AY64: =NPC!AY64-BASE!AY64 -> 0 | AZ64: =NPC!AZ64-BASE!AZ64 -> 0 | BA64: =NPC!BA64-BASE!BA64 -> 0 | BB64: =NPC!BB64-BASE!BB64 -> 0 | BC64: =NPC!BC64-BASE!BC64 -> 0 | BD64: =NPC!BD64-BASE!BD64 -> 0 | BE64: =NPC!BE64-BASE!BE64 -> 0 | BF64: =NPC!BF64-BASE!BF64 -> 0 | BG64: =NPC!BG64-BASE!BG64 -> 0 | BH64: =NPC!BH64-BASE!BH64 -> 0 | BI64: =NPC!BI64-BASE!BI64 -> 0 | BJ64: =NPC!BJ64-BASE!BJ64 -> 0 | BK64: =NPC!BK64-BASE!BK64 -> 0 | BL64: =NPC!BL64-BASE!BL64 -> 0 | BM64: =NPC!BM64-BASE!BM64 -> 0 | BN64: =NPC!BN64-BASE!BN64 -> 0 | BO64: =NPC!BO64-BASE!BO64 -> 0 | BP64: =NPC!BP64-BASE!BP64 -> 0 | BQ64: =NPC!BQ64-BASE!BQ64 -> 0 | BR64: =NPC!BR64-BASE!BR64 -> 0 | BS64: =NPC!BS64-BASE!BS64 -> 0 | BT64: =NPC!BT64-BASE!BT64 -> 0 | BU64: =NPC!BU64-BASE!BU64 -> 0 | BV64: =NPC!BV64-BASE!BV64 -> 0 | BW64: =NPC!BW64-BASE!BW64 -> 0 | BX64: =NPC!BX64-BASE!BX64 -> 0 | BY64: =NPC!BY64-BASE!BY64 -> 0 | BZ64: =NPC!BZ64-BASE!BZ64 -> 0 | CA64: =NPC!CA64-BASE!CA64 -> 0 | CB64: =NPC!CB64-BASE!CB64 -> 0 | CC64: =NPC!CC64-BASE!CC64 -> 0 | CD64: =NPC!CD64-BASE!CD64 -> 0 | CE64: =NPC!CE64-BASE!CE64 -> 0 | CF64: =NPC!CF64-BASE!CF64 -> 0 | CG64: =NPC!CG64-BASE!CG64 -> 0 | CH64: =NPC!CH64-BASE!CH64 -> 0 | CI64: =NPC!CI64-BASE!CI64 -> 0 | CJ64: =NPC!CJ64-BASE!CJ64 -> 0 | CK64: =NPC!CK64-BASE!CK64 -> 0 | CL64: =NPC!CL64-BASE!CL64 -> 0 | CM64: =NPC!CM64-BASE!CM64 -> 0 | CN64: =NPC!CN64-BASE!CN64 -> 0 | CO64: =NPC!CO64-BASE!CO64 -> 0 | CP64: =NPC!CP64-BASE!CP64 -> 0 | CQ64: =NPC!CQ64-BASE!CQ64 -> 0 | CR64: =NPC!CR64-BASE!CR64 -> 0 | CS64: =NPC!CS64-BASE!CS64 -> 0 | CT64: =NPC!CT64-BASE!CT64 -> 0 | CU64: =NPC!CU64-BASE!CU64 -> 0 | CV64: =NPC!CV64-BASE!CV64 -> 0 | CW64: =NPC!CW64-BASE!CW64 -> 0 | CX64: =NPC!CX64-BASE!CX64 -> 0 | CY64: =NPC!CY64-BASE!CY64 -> 0 | CZ64: =NPC!CZ64-BASE!CZ64 -> 0 | DA64: =NPC!DA64-BASE!DA64 -> 0 | DB64: =NPC!DB64-BASE!DB64 -> 0 | DC64: =NPC!DC64-BASE!DC64 -> 0 | DD64: =NPC!DD64-BASE!DD64 -> 0 | DE64: =NPC!DE64-BASE!DE64 -> 0 | DF64: =NPC!DF64-BASE!DF64 -> 0 | DG64: =NPC!DG64-BASE!DG64 -> 0 | DH64: =NPC!DH64-BASE!DH64 -> 0 | DI64: =NPC!DI64-BASE!DI64 -> 0 | DJ64: =NPC!DJ64-BASE!DJ64 -> 0 | DK64: =NPC!DK64-BASE!DK64 -> 0 | DL64: =NPC!DL64-BASE!DL64 -> 0 | DM64: =NPC!DM64-BASE!DM64 -> 0 | DN64: =NPC!DN64-BASE!DN64 -> 0 | DO64: =NPC!DO64-BASE!DO64 -> 0 | DP64: =NPC!DP64-BASE!DP64 -> 0 | DQ64: =NPC!DQ64-BASE!DQ64 -> 0 | DR64: =NPC!DR64-BASE!DR64 -> 0 | DS64: =NPC!DS64-BASE!DS64 -> 0 | DT64: =NPC!DT64-BASE!DT64 -> 0 | DU64: =NPC!DU64-BASE!DU64 -> 0 | DV64: =NPC!DV64-BASE!DV64 -> 0 | DW64: =NPC!DW64-BASE!DW64 -> 0 | DX64: =NPC!DX64-BASE!DX64 -> 0 | DY64: =NPC!DY64-BASE!DY64 -> 0 | DZ64: =NPC!DZ64-BASE!DZ64 -> 0 | EA64: =NPC!EA64-BASE!EA64 -> 0 | EB64: =NPC!EB64-BASE!EB64 -> 0 | EC64: =NPC!EC64-BASE!EC64 -> 0 | ED64: =NPC!ED64-BASE!ED64 -> 0 | ER64: =NPC!ER64 -> Hide Row
C65: =NPC!C65 -> Chehalis Station Service | E65: =NPC!E65-BASE!E65 -> 0 | F65: =NPC!F65-BASE!F65 -> 0 | G65: =NPC!G65-BASE!G65 -> 0 | H65: =NPC!H65-BASE!H65 -> 0 | I65: =NPC!I65-BASE!I65 -> 0 | J65: =NPC!J65-BASE!J65 -> 0 | K65: =NPC!K65-BASE!K65 -> 0 | L65: =NPC!L65-BASE!L65 -> 0 | M65: =NPC!M65-BASE!M65 -> 0 | N65: =NPC!N65-BASE!N65 -> 0 | O65: =NPC!O65-BASE!O65 -> 0 | P65: =NPC!P65-BASE!P65 -> 0 | Q65: =NPC!Q65-BASE!Q65 -> 0 | R65: =NPC!R65-BASE!R65 -> 0 | S65: =NPC!S65-BASE!S65 -> 0 | T65: =NPC!T65-BASE!T65 -> 0 | U65: =NPC!U65-BASE!U65 -> 0 | V65: =NPC!V65-BASE!V65 -> 0 | W65: =NPC!W65-BASE!W65 -> 0 | X65: =NPC!X65-BASE!X65 -> 0 | Y65: =NPC!Y65-BASE!Y65 -> 0 | Z65: =NPC!Z65-BASE!Z65 -> 0 | AA65: =NPC!AA65-BASE!AA65 -> 0 | AB65: =NPC!AB65-BASE!AB65 -> 0 | AC65: =NPC!AC65-BASE!AC65 -> 0 | AD65: =NPC!AD65-BASE!AD65 -> 0 | AE65: =NPC!AE65-BASE!AE65 -> 0 | AF65: =NPC!AF65-BASE!AF65 -> 0 | AG65: =NPC!AG65-BASE!AG65 -> 0 | AH65: =NPC!AH65-BASE!AH65 -> 0 | AI65: =NPC!AI65-BASE!AI65 -> 0 | AJ65: =NPC!AJ65-BASE!AJ65 -> 0 | AK65: =NPC!AK65-BASE!AK65 -> 0 | AL65: =NPC!AL65-BASE!AL65 -> 0 | AM65: =NPC!AM65-BASE!AM65 -> 0 | AN65: =NPC!AN65-BASE!AN65 -> 0 | AO65: =NPC!AO65-BASE!AO65 -> 0 | AP65: =NPC!AP65-BASE!AP65 -> 0 | AQ65: =NPC!AQ65-BASE!AQ65 -> 0 | AR65: =NPC!AR65-BASE!AR65 -> 0 | AS65: =NPC!AS65-BASE!AS65 -> 0 | AT65: =NPC!AT65-BASE!AT65 -> 0 | AU65: =NPC!AU65-BASE!AU65 -> 0 | AV65: =NPC!AV65-BASE!AV65 -> 0 | AW65: =NPC!AW65-BASE!AW65 -> 0 | AX65: =NPC!AX65-BASE!AX65 -> 0 | AY65: =NPC!AY65-BASE!AY65 -> 0 | AZ65: =NPC!AZ65-BASE!AZ65 -> 0 | BA65: =NPC!BA65-BASE!BA65 -> 0 | BB65: =NPC!BB65-BASE!BB65 -> 0 | BC65: =NPC!BC65-BASE!BC65 -> 0 | BD65: =NPC!BD65-BASE!BD65 -> 0 | BE65: =NPC!BE65-BASE!BE65 -> 0 | BF65: =NPC!BF65-BASE!BF65 -> 0 | BG65: =NPC!BG65-BASE!BG65 -> 0 | BH65: =NPC!BH65-BASE!BH65 -> 0 | BI65: =NPC!BI65-BASE!BI65 -> 0 | BJ65: =NPC!BJ65-BASE!BJ65 -> 0 | BK65: =NPC!BK65-BASE!BK65 -> 0 | BL65: =NPC!BL65-BASE!BL65 -> 0 | BM65: =NPC!BM65-BASE!BM65 -> 0 | BN65: =NPC!BN65-BASE!BN65 -> 0 | BO65: =NPC!BO65-BASE!BO65 -> 0 | BP65: =NPC!BP65-BASE!BP65 -> 0 | BQ65: =NPC!BQ65-BASE!BQ65 -> 0 | BR65: =NPC!BR65-BASE!BR65 -> 0 | BS65: =NPC!BS65-BASE!BS65 -> 0 | BT65: =NPC!BT65-BASE!BT65 -> 0 | BU65: =NPC!BU65-BASE!BU65 -> 0 | BV65: =NPC!BV65-BASE!BV65 -> 0 | BW65: =NPC!BW65-BASE!BW65 -> 0 | BX65: =NPC!BX65-BASE!BX65 -> 0 | BY65: =NPC!BY65-BASE!BY65 -> 0 | BZ65: =NPC!BZ65-BASE!BZ65 -> 0 | CA65: =NPC!CA65-BASE!CA65 -> 0 | CB65: =NPC!CB65-BASE!CB65 -> 0 | CC65: =NPC!CC65-BASE!CC65 -> 0 | CD65: =NPC!CD65-BASE!CD65 -> 0 | CE65: =NPC!CE65-BASE!CE65 -> 0 | CF65: =NPC!CF65-BASE!CF65 -> 0 | CG65: =NPC!CG65-BASE!CG65 -> 0 | CH65: =NPC!CH65-BASE!CH65 -> 0 | CI65: =NPC!CI65-BASE!CI65 -> 0 | CJ65: =NPC!CJ65-BASE!CJ65 -> 0 | CK65: =NPC!CK65-BASE!CK65 -> 0 | CL65: =NPC!CL65-BASE!CL65 -> 0 | CM65: =NPC!CM65-BASE!CM65 -> 0 | CN65: =NPC!CN65-BASE!CN65 -> 0 | CO65: =NPC!CO65-BASE!CO65 -> 0 | CP65: =NPC!CP65-BASE!CP65 -> 0 | CQ65: =NPC!CQ65-BASE!CQ65 -> 0 | CR65: =NPC!CR65-BASE!CR65 -> 0 | CS65: =NPC!CS65-BASE!CS65 -> 0 | CT65: =NPC!CT65-BASE!CT65 -> 0 | CU65: =NPC!CU65-BASE!CU65 -> 0 | CV65: =NPC!CV65-BASE!CV65 -> 0 | CW65: =NPC!CW65-BASE!CW65 -> 0 | CX65: =NPC!CX65-BASE!CX65 -> 0 | CY65: =NPC!CY65-BASE!CY65 -> 0 | CZ65: =NPC!CZ65-BASE!CZ65 -> 0 | DA65: =NPC!DA65-BASE!DA65 -> 0 | DB65: =NPC!DB65-BASE!DB65 -> 0 | DC65: =NPC!DC65-BASE!DC65 -> 0 | DD65: =NPC!DD65-BASE!DD65 -> 0 | DE65: =NPC!DE65-BASE!DE65 -> 0 | DF65: =NPC!DF65-BASE!DF65 -> 0 | DG65: =NPC!DG65-BASE!DG65 -> 0 | DH65: =NPC!DH65-BASE!DH65 -> 0 | DI65: =NPC!DI65-BASE!DI65 -> 0 | DJ65: =NPC!DJ65-BASE!DJ65 -> 0 | DK65: =NPC!DK65-BASE!DK65 -> 0 | DL65: =NPC!DL65-BASE!DL65 -> 0 | DM65: =NPC!DM65-BASE!DM65 -> 0 | DN65: =NPC!DN65-BASE!DN65 -> 0 | DO65: =NPC!DO65-BASE!DO65 -> 0 | DP65: =NPC!DP65-BASE!DP65 -> 0 | DQ65: =NPC!DQ65-BASE!DQ65 -> 0 | DR65: =NPC!DR65-BASE!DR65 -> 0 | DS65: =NPC!DS65-BASE!DS65 -> 0 | DT65: =NPC!DT65-BASE!DT65 -> 0 | DU65: =NPC!DU65-BASE!DU65 -> 0 | DV65: =NPC!DV65-BASE!DV65 -> 0 | DW65: =NPC!DW65-BASE!DW65 -> 0 | DX65: =NPC!DX65-BASE!DX65 -> 0 | DY65: =NPC!DY65-BASE!DY65 -> 0 | DZ65: =NPC!DZ65-BASE!DZ65 -> 0 | EA65: =NPC!EA65-BASE!EA65 -> 0 | EB65: =NPC!EB65-BASE!EB65 -> 0 | EC65: =NPC!EC65-BASE!EC65 -> 0 | ED65: =NPC!ED65-BASE!ED65 -> 0 | ER65: =NPC!ER65 -> Hide Row
C66: =NPC!C66 -> Combine Hills Wind p160595 | E66: =NPC!E66-BASE!E66 -> 0 | F66: =NPC!F66-BASE!F66 -> 0 | G66: =NPC!G66-BASE!G66 -> 0 | H66: =NPC!H66-BASE!H66 -> 0 | I66: =NPC!I66-BASE!I66 -> 0 | J66: =NPC!J66-BASE!J66 -> 0 | K66: =NPC!K66-BASE!K66 -> 0 | L66: =NPC!L66-BASE!L66 -> 0 | M66: =NPC!M66-BASE!M66 -> 0 | N66: =NPC!N66-BASE!N66 -> 0 | O66: =NPC!O66-BASE!O66 -> 0 | P66: =NPC!P66-BASE!P66 -> 0 | Q66: =NPC!Q66-BASE!Q66 -> 0 | R66: =NPC!R66-BASE!R66 -> 0 | S66: =NPC!S66-BASE!S66 -> 0 | T66: =NPC!T66-BASE!T66 -> 0 | U66: =NPC!U66-BASE!U66 -> 0 | V66: =NPC!V66-BASE!V66 -> 0 | W66: =NPC!W66-BASE!W66 -> 0 | X66: =NPC!X66-BASE!X66 -> 0 | Y66: =NPC!Y66-BASE!Y66 -> 0 | Z66: =NPC!Z66-BASE!Z66 -> 0 | AA66: =NPC!AA66-BASE!AA66 -> 0 | AB66: =NPC!AB66-BASE!AB66 -> 0 | AC66: =NPC!AC66-BASE!AC66 -> 0 | AD66: =NPC!AD66-BASE!AD66 -> 0 | AE66: =NPC!AE66-BASE!AE66 -> 0 | AF66: =NPC!AF66-BASE!AF66 -> 0 | AG66: =NPC!AG66-BASE!AG66 -> 0 | AH66: =NPC!AH66-BASE!AH66 -> 0 | AI66: =NPC!AI66-BASE!AI66 -> 0 | AJ66: =NPC!AJ66-BASE!AJ66 -> 0 | AK66: =NPC!AK66-BASE!AK66 -> 0 | AL66: =NPC!AL66-BASE!AL66 -> 0 | AM66: =NPC!AM66-BASE!AM66 -> 0 | AN66: =NPC!AN66-BASE!AN66 -> 0 | AO66: =NPC!AO66-BASE!AO66 -> 0 | AP66: =NPC!AP66-BASE!AP66 -> 0 | AQ66: =NPC!AQ66-BASE!AQ66 -> 0 | AR66: =NPC!AR66-BASE!AR66 -> 0 | AS66: =NPC!AS66-BASE!AS66 -> 0 | AT66: =NPC!AT66-BASE!AT66 -> 0 | AU66: =NPC!AU66-BASE!AU66 -> 0 | AV66: =NPC!AV66-BASE!AV66 -> 0 | AW66: =NPC!AW66-BASE!AW66 -> 0 | AX66: =NPC!AX66-BASE!AX66 -> 0 | AY66: =NPC!AY66-BASE!AY66 -> 0 | AZ66: =NPC!AZ66-BASE!AZ66 -> 0 | BA66: =NPC!BA66-BASE!BA66 -> 0 | BB66: =NPC!BB66-BASE!BB66 -> 0 | BC66: =NPC!BC66-BASE!BC66 -> 0 | BD66: =NPC!BD66-BASE!BD66 -> 0 | BE66: =NPC!BE66-BASE!BE66 -> 0 | BF66: =NPC!BF66-BASE!BF66 -> 0 | BG66: =NPC!BG66-BASE!BG66 -> 0 | BH66: =NPC!BH66-BASE!BH66 -> 0 | BI66: =NPC!BI66-BASE!BI66 -> 0 | BJ66: =NPC!BJ66-BASE!BJ66 -> 0 | BK66: =NPC!BK66-BASE!BK66 -> 0 | BL66: =NPC!BL66-BASE!BL66 -> 0 | BM66: =NPC!BM66-BASE!BM66 -> 0 | BN66: =NPC!BN66-BASE!BN66 -> 0 | BO66: =NPC!BO66-BASE!BO66 -> 0 | BP66: =NPC!BP66-BASE!BP66 -> 0 | BQ66: =NPC!BQ66-BASE!BQ66 -> 0 | BR66: =NPC!BR66-BASE!BR66 -> 0 | BS66: =NPC!BS66-BASE!BS66 -> 0 | BT66: =NPC!BT66-BASE!BT66 -> 0 | BU66: =NPC!BU66-BASE!BU66 -> 0 | BV66: =NPC!BV66-BASE!BV66 -> 0 | BW66: =NPC!BW66-BASE!BW66 -> 0 | BX66: =NPC!BX66-BASE!BX66 -> 0 | BY66: =NPC!BY66-BASE!BY66 -> 0 | BZ66: =NPC!BZ66-BASE!BZ66 -> 0 | CA66: =NPC!CA66-BASE!CA66 -> 0 | CB66: =NPC!CB66-BASE!CB66 -> 0 | CC66: =NPC!CC66-BASE!CC66 -> 0 | CD66: =NPC!CD66-BASE!CD66 -> 0 | CE66: =NPC!CE66-BASE!CE66 -> 0 | CF66: =NPC!CF66-BASE!CF66 -> 0 | CG66: =NPC!CG66-BASE!CG66 -> 0 | CH66: =NPC!CH66-BASE!CH66 -> 0 | CI66: =NPC!CI66-BASE!CI66 -> 0 | CJ66: =NPC!CJ66-BASE!CJ66 -> 0 | CK66: =NPC!CK66-BASE!CK66 -> 0 | CL66: =NPC!CL66-BASE!CL66 -> 0 | CM66: =NPC!CM66-BASE!CM66 -> 0 | CN66: =NPC!CN66-BASE!CN66 -> 0 | CO66: =NPC!CO66-BASE!CO66 -> 0 | CP66: =NPC!CP66-BASE!CP66 -> 0 | CQ66: =NPC!CQ66-BASE!CQ66 -> 0 | CR66: =NPC!CR66-BASE!CR66 -> 0 | CS66: =NPC!CS66-BASE!CS66 -> 0 | CT66: =NPC!CT66-BASE!CT66 -> 0 | CU66: =NPC!CU66-BASE!CU66 -> 0 | CV66: =NPC!CV66-BASE!CV66 -> 0 | CW66: =NPC!CW66-BASE!CW66 -> 0 | CX66: =NPC!CX66-BASE!CX66 -> 0 | CY66: =NPC!CY66-BASE!CY66 -> 0 | CZ66: =NPC!CZ66-BASE!CZ66 -> 0 | DA66: =NPC!DA66-BASE!DA66 -> 0 | DB66: =NPC!DB66-BASE!DB66 -> 0 | DC66: =NPC!DC66-BASE!DC66 -> 0 | DD66: =NPC!DD66-BASE!DD66 -> 0 | DE66: =NPC!DE66-BASE!DE66 -> 0 | DF66: =NPC!DF66-BASE!DF66 -> 0 | DG66: =NPC!DG66-BASE!DG66 -> 0 | DH66: =NPC!DH66-BASE!DH66 -> 0 | DI66: =NPC!DI66-BASE!DI66 -> 0 | DJ66: =NPC!DJ66-BASE!DJ66 -> 0 | DK66: =NPC!DK66-BASE!DK66 -> 0 | DL66: =NPC!DL66-BASE!DL66 -> 0 | DM66: =NPC!DM66-BASE!DM66 -> 0 | DN66: =NPC!DN66-BASE!DN66 -> 0 | DO66: =NPC!DO66-BASE!DO66 -> 0 | DP66: =NPC!DP66-BASE!DP66 -> 0 | DQ66: =NPC!DQ66-BASE!DQ66 -> 0 | DR66: =NPC!DR66-BASE!DR66 -> 0 | DS66: =NPC!DS66-BASE!DS66 -> 0 | DT66: =NPC!DT66-BASE!DT66 -> 0 | DU66: =NPC!DU66-BASE!DU66 -> 0 | DV66: =NPC!DV66-BASE!DV66 -> 0 | DW66: =NPC!DW66-BASE!DW66 -> 0 | DX66: =NPC!DX66-BASE!DX66 -> 0 | DY66: =NPC!DY66-BASE!DY66 -> 0 | DZ66: =NPC!DZ66-BASE!DZ66 -> 0 | EA66: =NPC!EA66-BASE!EA66 -> 0 | EB66: =NPC!EB66-BASE!EB66 -> 0 | EC66: =NPC!EC66-BASE!EC66 -> 0 | ED66: =NPC!ED66-BASE!ED66 -> 0 | ER66: =NPC!ER66 -> -
C67: =NPC!C67 -> Not Used - Purchase 1 | E67: =NPC!E67-BASE!E67 -> 0 | F67: =NPC!F67-BASE!F67 -> 0 | G67: =NPC!G67-BASE!G67 -> 0 | H67: =NPC!H67-BASE!H67 -> 0 | I67: =NPC!I67-BASE!I67 -> 0 | J67: =NPC!J67-BASE!J67 -> 0 | K67: =NPC!K67-BASE!K67 -> 0 | L67: =NPC!L67-BASE!L67 -> 0 | M67: =NPC!M67-BASE!M67 -> 0 | N67: =NPC!N67-BASE!N67 -> 0 | O67: =NPC!O67-BASE!O67 -> 0 | P67: =NPC!P67-BASE!P67 -> 0 | Q67: =NPC!Q67-BASE!Q67 -> 0 | R67: =NPC!R67-BASE!R67 -> 0 | S67: =NPC!S67-BASE!S67 -> 0 | T67: =NPC!T67-BASE!T67 -> 0 | U67: =NPC!U67-BASE!U67 -> 0 | V67: =NPC!V67-BASE!V67 -> 0 | W67: =NPC!W67-BASE!W67 -> 0 | X67: =NPC!X67-BASE!X67 -> 0 | Y67: =NPC!Y67-BASE!Y67 -> 0 | Z67: =NPC!Z67-BASE!Z67 -> 0 | AA67: =NPC!AA67-BASE!AA67 -> 0 | AB67: =NPC!AB67-BASE!AB67 -> 0 | AC67: =NPC!AC67-BASE!AC67 -> 0 | AD67: =NPC!AD67-BASE!AD67 -> 0 | AE67: =NPC!AE67-BASE!AE67 -> 0 | AF67: =NPC!AF67-BASE!AF67 -> 0 | AG67: =NPC!AG67-BASE!AG67 -> 0 | AH67: =NPC!AH67-BASE!AH67 -> 0 | AI67: =NPC!AI67-BASE!AI67 -> 0 | AJ67: =NPC!AJ67-BASE!AJ67 -> 0 | AK67: =NPC!AK67-BASE!AK67 -> 0 | AL67: =NPC!AL67-BASE!AL67 -> 0 | AM67: =NPC!AM67-BASE!AM67 -> 0 | AN67: =NPC!AN67-BASE!AN67 -> 0 | AO67: =NPC!AO67-BASE!AO67 -> 0 | AP67: =NPC!AP67-BASE!AP67 -> 0 | AQ67: =NPC!AQ67-BASE!AQ67 -> 0 | AR67: =NPC!AR67-BASE!AR67 -> 0 | AS67: =NPC!AS67-BASE!AS67 -> 0 | AT67: =NPC!AT67-BASE!AT67 -> 0 | AU67: =NPC!AU67-BASE!AU67 -> 0 | AV67: =NPC!AV67-BASE!AV67 -> 0 | AW67: =NPC!AW67-BASE!AW67 -> 0 | AX67: =NPC!AX67-BASE!AX67 -> 0 | AY67: =NPC!AY67-BASE!AY67 -> 0 | AZ67: =NPC!AZ67-BASE!AZ67 -> 0 | BA67: =NPC!BA67-BASE!BA67 -> 0 | BB67: =NPC!BB67-BASE!BB67 -> 0 | BC67: =NPC!BC67-BASE!BC67 -> 0 | BD67: =NPC!BD67-BASE!BD67 -> 0 | BE67: =NPC!BE67-BASE!BE67 -> 0 | BF67: =NPC!BF67-BASE!BF67 -> 0 | BG67: =NPC!BG67-BASE!BG67 -> 0 | BH67: =NPC!BH67-BASE!BH67 -> 0 | BI67: =NPC!BI67-BASE!BI67 -> 0 | BJ67: =NPC!BJ67-BASE!BJ67 -> 0 | BK67: =NPC!BK67-BASE!BK67 -> 0 | BL67: =NPC!BL67-BASE!BL67 -> 0 | BM67: =NPC!BM67-BASE!BM67 -> 0 | BN67: =NPC!BN67-BASE!BN67 -> 0 | BO67: =NPC!BO67-BASE!BO67 -> 0 | BP67: =NPC!BP67-BASE!BP67 -> 0 | BQ67: =NPC!BQ67-BASE!BQ67 -> 0 | BR67: =NPC!BR67-BASE!BR67 -> 0 | BS67: =NPC!BS67-BASE!BS67 -> 0 | BT67: =NPC!BT67-BASE!BT67 -> 0 | BU67: =NPC!BU67-BASE!BU67 -> 0 | BV67: =NPC!BV67-BASE!BV67 -> 0 | BW67: =NPC!BW67-BASE!BW67 -> 0 | BX67: =NPC!BX67-BASE!BX67 -> 0 | BY67: =NPC!BY67-BASE!BY67 -> 0 | BZ67: =NPC!BZ67-BASE!BZ67 -> 0 | CA67: =NPC!CA67-BASE!CA67 -> 0 | CB67: =NPC!CB67-BASE!CB67 -> 0 | CC67: =NPC!CC67-BASE!CC67 -> 0 | CD67: =NPC!CD67-BASE!CD67 -> 0 | CE67: =NPC!CE67-BASE!CE67 -> 0 | CF67: =NPC!CF67-BASE!CF67 -> 0 | CG67: =NPC!CG67-BASE!CG67 -> 0 | CH67: =NPC!CH67-BASE!CH67 -> 0 | CI67: =NPC!CI67-BASE!CI67 -> 0 | CJ67: =NPC!CJ67-BASE!CJ67 -> 0 | CK67: =NPC!CK67-BASE!CK67 -> 0 | CL67: =NPC!CL67-BASE!CL67 -> 0 | CM67: =NPC!CM67-BASE!CM67 -> 0 | CN67: =NPC!CN67-BASE!CN67 -> 0 | CO67: =NPC!CO67-BASE!CO67 -> 0 | CP67: =NPC!CP67-BASE!CP67 -> 0 | CQ67: =NPC!CQ67-BASE!CQ67 -> 0 | CR67: =NPC!CR67-BASE!CR67 -> 0 | CS67: =NPC!CS67-BASE!CS67 -> 0 | CT67: =NPC!CT67-BASE!CT67 -> 0 | CU67: =NPC!CU67-BASE!CU67 -> 0 | CV67: =NPC!CV67-BASE!CV67 -> 0 | CW67: =NPC!CW67-BASE!CW67 -> 0 | CX67: =NPC!CX67-BASE!CX67 -> 0 | CY67: =NPC!CY67-BASE!CY67 -> 0 | CZ67: =NPC!CZ67-BASE!CZ67 -> 0 | DA67: =NPC!DA67-BASE!DA67 -> 0 | DB67: =NPC!DB67-BASE!DB67 -> 0 | DC67: =NPC!DC67-BASE!DC67 -> 0 | DD67: =NPC!DD67-BASE!DD67 -> 0 | DE67: =NPC!DE67-BASE!DE67 -> 0 | DF67: =NPC!DF67-BASE!DF67 -> 0 | DG67: =NPC!DG67-BASE!DG67 -> 0 | DH67: =NPC!DH67-BASE!DH67 -> 0 | DI67: =NPC!DI67-BASE!DI67 -> 0 | DJ67: =NPC!DJ67-BASE!DJ67 -> 0 | DK67: =NPC!DK67-BASE!DK67 -> 0 | DL67: =NPC!DL67-BASE!DL67 -> 0 | DM67: =NPC!DM67-BASE!DM67 -> 0 | DN67: =NPC!DN67-BASE!DN67 -> 0 | DO67: =NPC!DO67-BASE!DO67 -> 0 | DP67: =NPC!DP67-BASE!DP67 -> 0 | DQ67: =NPC!DQ67-BASE!DQ67 -> 0 | DR67: =NPC!DR67-BASE!DR67 -> 0 | DS67: =NPC!DS67-BASE!DS67 -> 0 | DT67: =NPC!DT67-BASE!DT67 -> 0 | DU67: =NPC!DU67-BASE!DU67 -> 0 | DV67: =NPC!DV67-BASE!DV67 -> 0 | DW67: =NPC!DW67-BASE!DW67 -> 0 | DX67: =NPC!DX67-BASE!DX67 -> 0 | DY67: =NPC!DY67-BASE!DY67 -> 0 | DZ67: =NPC!DZ67-BASE!DZ67 -> 0 | EA67: =NPC!EA67-BASE!EA67 -> 0 | EB67: =NPC!EB67-BASE!EB67 -> 0 | EC67: =NPC!EC67-BASE!EC67 -> 0 | ED67: =NPC!ED67-BASE!ED67 -> 0 | ER67: =NPC!ER67 -> Hide Row
C68: =NPC!C68 -> Constellation Seasonal 2013-2016 | E68: =NPC!E68-BASE!E68 -> 0 | F68: =NPC!F68-BASE!F68 -> 0 | G68: =NPC!G68-BASE!G68 -> 0 | H68: =NPC!H68-BASE!H68 -> 0 | I68: =NPC!I68-BASE!I68 -> 0 | J68: =NPC!J68-BASE!J68 -> 0 | K68: =NPC!K68-BASE!K68 -> 0 | L68: =NPC!L68-BASE!L68 -> 0 | M68: =NPC!M68-BASE!M68 -> 0 | N68: =NPC!N68-BASE!N68 -> 0 | O68: =NPC!O68-BASE!O68 -> 0 | P68: =NPC!P68-BASE!P68 -> 0 | Q68: =NPC!Q68-BASE!Q68 -> 0 | R68: =NPC!R68-BASE!R68 -> 0 | S68: =NPC!S68-BASE!S68 -> 0 | T68: =NPC!T68-BASE!T68 -> 0 | U68: =NPC!U68-BASE!U68 -> 0 | V68: =NPC!V68-BASE!V68 -> 0 | W68: =NPC!W68-BASE!W68 -> 0 | X68: =NPC!X68-BASE!X68 -> 0 | Y68: =NPC!Y68-BASE!Y68 -> 0 | Z68: =NPC!Z68-BASE!Z68 -> 0 | AA68: =NPC!AA68-BASE!AA68 -> 0 | AB68: =NPC!AB68-BASE!AB68 -> 0 | AC68: =NPC!AC68-BASE!AC68 -> 0 | AD68: =NPC!AD68-BASE!AD68 -> 0 | AE68: =NPC!AE68-BASE!AE68 -> 0 | AF68: =NPC!AF68-BASE!AF68 -> 0 | AG68: =NPC!AG68-BASE!AG68 -> 0 | AH68: =NPC!AH68-BASE!AH68 -> 0 | AI68: =NPC!AI68-BASE!AI68 -> 0 | AJ68: =NPC!AJ68-BASE!AJ68 -> 0 | AK68: =NPC!AK68-BASE!AK68 -> 0 | AL68: =NPC!AL68-BASE!AL68 -> 0 | AM68: =NPC!AM68-BASE!AM68 -> 0 | AN68: =NPC!AN68-BASE!AN68 -> 0 | AO68: =NPC!AO68-BASE!AO68 -> 0 | AP68: =NPC!AP68-BASE!AP68 -> 0 | AQ68: =NPC!AQ68-BASE!AQ68 -> 0 | AR68: =NPC!AR68-BASE!AR68 -> 0 | AS68: =NPC!AS68-BASE!AS68 -> 0 | AT68: =NPC!AT68-BASE!AT68 -> 0 | AU68: =NPC!AU68-BASE!AU68 -> 0 | AV68: =NPC!AV68-BASE!AV68 -> 0 | AW68: =NPC!AW68-BASE!AW68 -> 0 | AX68: =NPC!AX68-BASE!AX68 -> 0 | AY68: =NPC!AY68-BASE!AY68 -> 0 | AZ68: =NPC!AZ68-BASE!AZ68 -> 0 | BA68: =NPC!BA68-BASE!BA68 -> 0 | BB68: =NPC!BB68-BASE!BB68 -> 0 | BC68: =NPC!BC68-BASE!BC68 -> 0 | BD68: =NPC!BD68-BASE!BD68 -> 0 | BE68: =NPC!BE68-BASE!BE68 -> 0 | BF68: =NPC!BF68-BASE!BF68 -> 0 | BG68: =NPC!BG68-BASE!BG68 -> 0 | BH68: =NPC!BH68-BASE!BH68 -> 0 | BI68: =NPC!BI68-BASE!BI68 -> 0 | BJ68: =NPC!BJ68-BASE!BJ68 -> 0 | BK68: =NPC!BK68-BASE!BK68 -> 0 | BL68: =NPC!BL68-BASE!BL68 -> 0 | BM68: =NPC!BM68-BASE!BM68 -> 0 | BN68: =NPC!BN68-BASE!BN68 -> 0 | BO68: =NPC!BO68-BASE!BO68 -> 0 | BP68: =NPC!BP68-BASE!BP68 -> 0 | BQ68: =NPC!BQ68-BASE!BQ68 -> 0 | BR68: =NPC!BR68-BASE!BR68 -> 0 | BS68: =NPC!BS68-BASE!BS68 -> 0 | BT68: =NPC!BT68-BASE!BT68 -> 0 | BU68: =NPC!BU68-BASE!BU68 -> 0 | BV68: =NPC!BV68-BASE!BV68 -> 0 | BW68: =NPC!BW68-BASE!BW68 -> 0 | BX68: =NPC!BX68-BASE!BX68 -> 0 | BY68: =NPC!BY68-BASE!BY68 -> 0 | BZ68: =NPC!BZ68-BASE!BZ68 -> 0 | CA68: =NPC!CA68-BASE!CA68 -> 0 | CB68: =NPC!CB68-BASE!CB68 -> 0 | CC68: =NPC!CC68-BASE!CC68 -> 0 | CD68: =NPC!CD68-BASE!CD68 -> 0 | CE68: =NPC!CE68-BASE!CE68 -> 0 | CF68: =NPC!CF68-BASE!CF68 -> 0 | CG68: =NPC!CG68-BASE!CG68 -> 0 | CH68: =NPC!CH68-BASE!CH68 -> 0 | CI68: =NPC!CI68-BASE!CI68 -> 0 | CJ68: =NPC!CJ68-BASE!CJ68 -> 0 | CK68: =NPC!CK68-BASE!CK68 -> 0 | CL68: =NPC!CL68-BASE!CL68 -> 0 | CM68: =NPC!CM68-BASE!CM68 -> 0 | CN68: =NPC!CN68-BASE!CN68 -> 0 | CO68: =NPC!CO68-BASE!CO68 -> 0 | CP68: =NPC!CP68-BASE!CP68 -> 0 | CQ68: =NPC!CQ68-BASE!CQ68 -> 0 | CR68: =NPC!CR68-BASE!CR68 -> 0 | CS68: =NPC!CS68-BASE!CS68 -> 0 | CT68: =NPC!CT68-BASE!CT68 -> 0 | CU68: =NPC!CU68-BASE!CU68 -> 0 | CV68: =NPC!CV68-BASE!CV68 -> 0 | CW68: =NPC!CW68-BASE!CW68 -> 0 | CX68: =NPC!CX68-BASE!CX68 -> 0 | CY68: =NPC!CY68-BASE!CY68 -> 0 | CZ68: =NPC!CZ68-BASE!CZ68 -> 0 | DA68: =NPC!DA68-BASE!DA68 -> 0 | DB68: =NPC!DB68-BASE!DB68 -> 0 | DC68: =NPC!DC68-BASE!DC68 -> 0 | DD68: =NPC!DD68-BASE!DD68 -> 0 | DE68: =NPC!DE68-BASE!DE68 -> 0 | DF68: =NPC!DF68-BASE!DF68 -> 0 | DG68: =NPC!DG68-BASE!DG68 -> 0 | DH68: =NPC!DH68-BASE!DH68 -> 0 | DI68: =NPC!DI68-BASE!DI68 -> 0 | DJ68: =NPC!DJ68-BASE!DJ68 -> 0 | DK68: =NPC!DK68-BASE!DK68 -> 0 | DL68: =NPC!DL68-BASE!DL68 -> 0 | DM68: =NPC!DM68-BASE!DM68 -> 0 | DN68: =NPC!DN68-BASE!DN68 -> 0 | DO68: =NPC!DO68-BASE!DO68 -> 0 | DP68: =NPC!DP68-BASE!DP68 -> 0 | DQ68: =NPC!DQ68-BASE!DQ68 -> 0 | DR68: =NPC!DR68-BASE!DR68 -> 0 | DS68: =NPC!DS68-BASE!DS68 -> 0 | DT68: =NPC!DT68-BASE!DT68 -> 0 | DU68: =NPC!DU68-BASE!DU68 -> 0 | DV68: =NPC!DV68-BASE!DV68 -> 0 | DW68: =NPC!DW68-BASE!DW68 -> 0 | DX68: =NPC!DX68-BASE!DX68 -> 0 | DY68: =NPC!DY68-BASE!DY68 -> 0 | DZ68: =NPC!DZ68-BASE!DZ68 -> 0 | EA68: =NPC!EA68-BASE!EA68 -> 0 | EB68: =NPC!EB68-BASE!EB68 -> 0 | EC68: =NPC!EC68-BASE!EC68 -> 0 | ED68: =NPC!ED68-BASE!ED68 -> 0 | ER68: =NPC!ER68 -> Hide Row
C69: =NPC!C69 -> Constellation p268849 | E69: =NPC!E69-BASE!E69 -> 0 | F69: =NPC!F69-BASE!F69 -> 0 | G69: =NPC!G69-BASE!G69 -> 0 | H69: =NPC!H69-BASE!H69 -> 0 | I69: =NPC!I69-BASE!I69 -> 0 | J69: =NPC!J69-BASE!J69 -> 0 | K69: =NPC!K69-BASE!K69 -> 0 | L69: =NPC!L69-BASE!L69 -> 0 | M69: =NPC!M69-BASE!M69 -> 0 | N69: =NPC!N69-BASE!N69 -> 0 | O69: =NPC!O69-BASE!O69 -> 0 | P69: =NPC!P69-BASE!P69 -> 0 | Q69: =NPC!Q69-BASE!Q69 -> 0 | R69: =NPC!R69-BASE!R69 -> 0 | S69: =NPC!S69-BASE!S69 -> 0 | T69: =NPC!T69-BASE!T69 -> 0 | U69: =NPC!U69-BASE!U69 -> 0 | V69: =NPC!V69-BASE!V69 -> 0 | W69: =NPC!W69-BASE!W69 -> 0 | X69: =NPC!X69-BASE!X69 -> 0 | Y69: =NPC!Y69-BASE!Y69 -> 0 | Z69: =NPC!Z69-BASE!Z69 -> 0 | AA69: =NPC!AA69-BASE!AA69 -> 0 | AB69: =NPC!AB69-BASE!AB69 -> 0 | AC69: =NPC!AC69-BASE!AC69 -> 0 | AD69: =NPC!AD69-BASE!AD69 -> 0 | AE69: =NPC!AE69-BASE!AE69 -> 0 | AF69: =NPC!AF69-BASE!AF69 -> 0 | AG69: =NPC!AG69-BASE!AG69 -> 0 | AH69: =NPC!AH69-BASE!AH69 -> 0 | AI69: =NPC!AI69-BASE!AI69 -> 0 | AJ69: =NPC!AJ69-BASE!AJ69 -> 0 | AK69: =NPC!AK69-BASE!AK69 -> 0 | AL69: =NPC!AL69-BASE!AL69 -> 0 | AM69: =NPC!AM69-BASE!AM69 -> 0 | AN69: =NPC!AN69-BASE!AN69 -> 0 | AO69: =NPC!AO69-BASE!AO69 -> 0 | AP69: =NPC!AP69-BASE!AP69 -> 0 | AQ69: =NPC!AQ69-BASE!AQ69 -> 0 | AR69: =NPC!AR69-BASE!AR69 -> 0 | AS69: =NPC!AS69-BASE!AS69 -> 0 | AT69: =NPC!AT69-BASE!AT69 -> 0 | AU69: =NPC!AU69-BASE!AU69 -> 0 | AV69: =NPC!AV69-BASE!AV69 -> 0 | AW69: =NPC!AW69-BASE!AW69 -> 0 | AX69: =NPC!AX69-BASE!AX69 -> 0 | AY69: =NPC!AY69-BASE!AY69 -> 0 | AZ69: =NPC!AZ69-BASE!AZ69 -> 0 | BA69: =NPC!BA69-BASE!BA69 -> 0 | BB69: =NPC!BB69-BASE!BB69 -> 0 | BC69: =NPC!BC69-BASE!BC69 -> 0 | BD69: =NPC!BD69-BASE!BD69 -> 0 | BE69: =NPC!BE69-BASE!BE69 -> 0 | BF69: =NPC!BF69-BASE!BF69 -> 0 | BG69: =NPC!BG69-BASE!BG69 -> 0 | BH69: =NPC!BH69-BASE!BH69 -> 0 | BI69: =NPC!BI69-BASE!BI69 -> 0 | BJ69: =NPC!BJ69-BASE!BJ69 -> 0 | BK69: =NPC!BK69-BASE!BK69 -> 0 | BL69: =NPC!BL69-BASE!BL69 -> 0 | BM69: =NPC!BM69-BASE!BM69 -> 0 | BN69: =NPC!BN69-BASE!BN69 -> 0 | BO69: =NPC!BO69-BASE!BO69 -> 0 | BP69: =NPC!BP69-BASE!BP69 -> 0 | BQ69: =NPC!BQ69-BASE!BQ69 -> 0 | BR69: =NPC!BR69-BASE!BR69 -> 0 | BS69: =NPC!BS69-BASE!BS69 -> 0 | BT69: =NPC!BT69-BASE!BT69 -> 0 | BU69: =NPC!BU69-BASE!BU69 -> 0 | BV69: =NPC!BV69-BASE!BV69 -> 0 | BW69: =NPC!BW69-BASE!BW69 -> 0 | BX69: =NPC!BX69-BASE!BX69 -> 0 | BY69: =NPC!BY69-BASE!BY69 -> 0 | BZ69: =NPC!BZ69-BASE!BZ69 -> 0 | CA69: =NPC!CA69-BASE!CA69 -> 0 | CB69: =NPC!CB69-BASE!CB69 -> 0 | CC69: =NPC!CC69-BASE!CC69 -> 0 | CD69: =NPC!CD69-BASE!CD69 -> 0 | CE69: =NPC!CE69-BASE!CE69 -> 0 | CF69: =NPC!CF69-BASE!CF69 -> 0 | CG69: =NPC!CG69-BASE!CG69 -> 0 | CH69: =NPC!CH69-BASE!CH69 -> 0 | CI69: =NPC!CI69-BASE!CI69 -> 0 | CJ69: =NPC!CJ69-BASE!CJ69 -> 0 | CK69: =NPC!CK69-BASE!CK69 -> 0 | CL69: =NPC!CL69-BASE!CL69 -> 0 | CM69: =NPC!CM69-BASE!CM69 -> 0 | CN69: =NPC!CN69-BASE!CN69 -> 0 | CO69: =NPC!CO69-BASE!CO69 -> 0 | CP69: =NPC!CP69-BASE!CP69 -> 0 | CQ69: =NPC!CQ69-BASE!CQ69 -> 0 | CR69: =NPC!CR69-BASE!CR69 -> 0 | CS69: =NPC!CS69-BASE!CS69 -> 0 | CT69: =NPC!CT69-BASE!CT69 -> 0 | CU69: =NPC!CU69-BASE!CU69 -> 0 | CV69: =NPC!CV69-BASE!CV69 -> 0 | CW69: =NPC!CW69-BASE!CW69 -> 0 | CX69: =NPC!CX69-BASE!CX69 -> 0 | CY69: =NPC!CY69-BASE!CY69 -> 0 | CZ69: =NPC!CZ69-BASE!CZ69 -> 0 | DA69: =NPC!DA69-BASE!DA69 -> 0 | DB69: =NPC!DB69-BASE!DB69 -> 0 | DC69: =NPC!DC69-BASE!DC69 -> 0 | DD69: =NPC!DD69-BASE!DD69 -> 0 | DE69: =NPC!DE69-BASE!DE69 -> 0 | DF69: =NPC!DF69-BASE!DF69 -> 0 | DG69: =NPC!DG69-BASE!DG69 -> 0 | DH69: =NPC!DH69-BASE!DH69 -> 0 | DI69: =NPC!DI69-BASE!DI69 -> 0 | DJ69: =NPC!DJ69-BASE!DJ69 -> 0 | DK69: =NPC!DK69-BASE!DK69 -> 0 | DL69: =NPC!DL69-BASE!DL69 -> 0 | DM69: =NPC!DM69-BASE!DM69 -> 0 | DN69: =NPC!DN69-BASE!DN69 -> 0 | DO69: =NPC!DO69-BASE!DO69 -> 0 | DP69: =NPC!DP69-BASE!DP69 -> 0 | DQ69: =NPC!DQ69-BASE!DQ69 -> 0 | DR69: =NPC!DR69-BASE!DR69 -> 0 | DS69: =NPC!DS69-BASE!DS69 -> 0 | DT69: =NPC!DT69-BASE!DT69 -> 0 | DU69: =NPC!DU69-BASE!DU69 -> 0 | DV69: =NPC!DV69-BASE!DV69 -> 0 | DW69: =NPC!DW69-BASE!DW69 -> 0 | DX69: =NPC!DX69-BASE!DX69 -> 0 | DY69: =NPC!DY69-BASE!DY69 -> 0 | DZ69: =NPC!DZ69-BASE!DZ69 -> 0 | EA69: =NPC!EA69-BASE!EA69 -> 0 | EB69: =NPC!EB69-BASE!EB69 -> 0 | EC69: =NPC!EC69-BASE!EC69 -> 0 | ED69: =NPC!ED69-BASE!ED69 -> 0 | ER69: =NPC!ER69 -> Hide Row
C70: =NPC!C70 -> Deseret Purchase p194277 | E70: =NPC!E70-BASE!E70 -> 0 | F70: =NPC!F70-BASE!F70 -> 0 | G70: =NPC!G70-BASE!G70 -> 0 | H70: =NPC!H70-BASE!H70 -> 0 | I70: =NPC!I70-BASE!I70 -> 0 | J70: =NPC!J70-BASE!J70 -> 0 | K70: =NPC!K70-BASE!K70 -> 0 | L70: =NPC!L70-BASE!L70 -> 0 | M70: =NPC!M70-BASE!M70 -> 0 | N70: =NPC!N70-BASE!N70 -> 0 | O70: =NPC!O70-BASE!O70 -> 0 | P70: =NPC!P70-BASE!P70 -> 0 | Q70: =NPC!Q70-BASE!Q70 -> 0 | R70: =NPC!R70-BASE!R70 -> 0 | S70: =NPC!S70-BASE!S70 -> 0 | T70: =NPC!T70-BASE!T70 -> 0 | U70: =NPC!U70-BASE!U70 -> 0 | V70: =NPC!V70-BASE!V70 -> 0 | W70: =NPC!W70-BASE!W70 -> 0 | X70: =NPC!X70-BASE!X70 -> 0 | Y70: =NPC!Y70-BASE!Y70 -> 0 | Z70: =NPC!Z70-BASE!Z70 -> 0 | AA70: =NPC!AA70-BASE!AA70 -> 0 | AB70: =NPC!AB70-BASE!AB70 -> 0 | AC70: =NPC!AC70-BASE!AC70 -> 0 | AD70: =NPC!AD70-BASE!AD70 -> 0 | AE70: =NPC!AE70-BASE!AE70 -> 0 | AF70: =NPC!AF70-BASE!AF70 -> 0 | AG70: =NPC!AG70-BASE!AG70 -> 0 | AH70: =NPC!AH70-BASE!AH70 -> 0 | AI70: =NPC!AI70-BASE!AI70 -> 0 | AJ70: =NPC!AJ70-BASE!AJ70 -> 0 | AK70: =NPC!AK70-BASE!AK70 -> 0 | AL70: =NPC!AL70-BASE!AL70 -> 0 | AM70: =NPC!AM70-BASE!AM70 -> 0 | AN70: =NPC!AN70-BASE!AN70 -> 0 | AO70: =NPC!AO70-BASE!AO70 -> 0 | AP70: =NPC!AP70-BASE!AP70 -> 0 | AQ70: =NPC!AQ70-BASE!AQ70 -> 0 | AR70: =NPC!AR70-BASE!AR70 -> 0 | AS70: =NPC!AS70-BASE!AS70 -> 0 | AT70: =NPC!AT70-BASE!AT70 -> 0 | AU70: =NPC!AU70-BASE!AU70 -> 0 | AV70: =NPC!AV70-BASE!AV70 -> 0 | AW70: =NPC!AW70-BASE!AW70 -> 0 | AX70: =NPC!AX70-BASE!AX70 -> 0 | AY70: =NPC!AY70-BASE!AY70 -> 0 | AZ70: =NPC!AZ70-BASE!AZ70 -> 0 | BA70: =NPC!BA70-BASE!BA70 -> 0 | BB70: =NPC!BB70-BASE!BB70 -> 0 | BC70: =NPC!BC70-BASE!BC70 -> 0 | BD70: =NPC!BD70-BASE!BD70 -> 0 | BE70: =NPC!BE70-BASE!BE70 -> 0 | BF70: =NPC!BF70-BASE!BF70 -> 0 | BG70: =NPC!BG70-BASE!BG70 -> 0 | BH70: =NPC!BH70-BASE!BH70 -> 0 | BI70: =NPC!BI70-BASE!BI70 -> 0 | BJ70: =NPC!BJ70-BASE!BJ70 -> 0 | BK70: =NPC!BK70-BASE!BK70 -> 0 | BL70: =NPC!BL70-BASE!BL70 -> 0 | BM70: =NPC!BM70-BASE!BM70 -> 0 | BN70: =NPC!BN70-BASE!BN70 -> 0 | BO70: =NPC!BO70-BASE!BO70 -> 0 | BP70: =NPC!BP70-BASE!BP70 -> 0 | BQ70: =NPC!BQ70-BASE!BQ70 -> 0 | BR70: =NPC!BR70-BASE!BR70 -> 0 | BS70: =NPC!BS70-BASE!BS70 -> 0 | BT70: =NPC!BT70-BASE!BT70 -> 0 | BU70: =NPC!BU70-BASE!BU70 -> 0 | BV70: =NPC!BV70-BASE!BV70 -> 0 | BW70: =NPC!BW70-BASE!BW70 -> 0 | BX70: =NPC!BX70-BASE!BX70 -> 0 | BY70: =NPC!BY70-BASE!BY70 -> 0 | BZ70: =NPC!BZ70-BASE!BZ70 -> 0 | CA70: =NPC!CA70-BASE!CA70 -> 0 | CB70: =NPC!CB70-BASE!CB70 -> 0 | CC70: =NPC!CC70-BASE!CC70 -> 0 | CD70: =NPC!CD70-BASE!CD70 -> 0 | CE70: =NPC!CE70-BASE!CE70 -> 0 | CF70: =NPC!CF70-BASE!CF70 -> 0 | CG70: =NPC!CG70-BASE!CG70 -> 0 | CH70: =NPC!CH70-BASE!CH70 -> 0 | CI70: =NPC!CI70-BASE!CI70 -> 0 | CJ70: =NPC!CJ70-BASE!CJ70 -> 0 | CK70: =NPC!CK70-BASE!CK70 -> 0 | CL70: =NPC!CL70-BASE!CL70 -> 0 | CM70: =NPC!CM70-BASE!CM70 -> 0 | CN70: =NPC!CN70-BASE!CN70 -> 0 | CO70: =NPC!CO70-BASE!CO70 -> 0 | CP70: =NPC!CP70-BASE!CP70 -> 0 | CQ70: =NPC!CQ70-BASE!CQ70 -> 0 | CR70: =NPC!CR70-BASE!CR70 -> 0 | CS70: =NPC!CS70-BASE!CS70 -> 0 | CT70: =NPC!CT70-BASE!CT70 -> 0 | CU70: =NPC!CU70-BASE!CU70 -> 0 | CV70: =NPC!CV70-BASE!CV70 -> 0 | CW70: =NPC!CW70-BASE!CW70 -> 0 | CX70: =NPC!CX70-BASE!CX70 -> 0 | CY70: =NPC!CY70-BASE!CY70 -> 0 | CZ70: =NPC!CZ70-BASE!CZ70 -> 0 | DA70: =NPC!DA70-BASE!DA70 -> 0 | DB70: =NPC!DB70-BASE!DB70 -> 0 | DC70: =NPC!DC70-BASE!DC70 -> 0 | DD70: =NPC!DD70-BASE!DD70 -> 0 | DE70: =NPC!DE70-BASE!DE70 -> 0 | DF70: =NPC!DF70-BASE!DF70 -> 0 | DG70: =NPC!DG70-BASE!DG70 -> 0 | DH70: =NPC!DH70-BASE!DH70 -> 0 | DI70: =NPC!DI70-BASE!DI70 -> 0 | DJ70: =NPC!DJ70-BASE!DJ70 -> 0 | DK70: =NPC!DK70-BASE!DK70 -> 0 | DL70: =NPC!DL70-BASE!DL70 -> 0 | DM70: =NPC!DM70-BASE!DM70 -> 0 | DN70: =NPC!DN70-BASE!DN70 -> 0 | DO70: =NPC!DO70-BASE!DO70 -> 0 | DP70: =NPC!DP70-BASE!DP70 -> 0 | DQ70: =NPC!DQ70-BASE!DQ70 -> 0 | DR70: =NPC!DR70-BASE!DR70 -> 0 | DS70: =NPC!DS70-BASE!DS70 -> 0 | DT70: =NPC!DT70-BASE!DT70 -> 0 | DU70: =NPC!DU70-BASE!DU70 -> 0 | DV70: =NPC!DV70-BASE!DV70 -> 0 | DW70: =NPC!DW70-BASE!DW70 -> 0 | DX70: =NPC!DX70-BASE!DX70 -> 0 | DY70: =NPC!DY70-BASE!DY70 -> 0 | DZ70: =NPC!DZ70-BASE!DZ70 -> 0 | EA70: =NPC!EA70-BASE!EA70 -> 0 | EB70: =NPC!EB70-BASE!EB70 -> 0 | EC70: =NPC!EC70-BASE!EC70 -> 0 | ED70: =NPC!ED70-BASE!ED70 -> 0 | ER70: =NPC!ER70 -> -
C71: =NPC!C71 -> Douglas PUD Settlement p38185 | E71: =NPC!E71-BASE!E71 -> 0 | F71: =NPC!F71-BASE!F71 -> 0 | G71: =NPC!G71-BASE!G71 -> 0 | H71: =NPC!H71-BASE!H71 -> 0 | I71: =NPC!I71-BASE!I71 -> 0 | J71: =NPC!J71-BASE!J71 -> 0 | K71: =NPC!K71-BASE!K71 -> 0 | L71: =NPC!L71-BASE!L71 -> 0 | M71: =NPC!M71-BASE!M71 -> 0 | N71: =NPC!N71-BASE!N71 -> 0 | O71: =NPC!O71-BASE!O71 -> 0 | P71: =NPC!P71-BASE!P71 -> 0 | Q71: =NPC!Q71-BASE!Q71 -> 0 | R71: =NPC!R71-BASE!R71 -> 0 | S71: =NPC!S71-BASE!S71 -> 0 | T71: =NPC!T71-BASE!T71 -> 0 | U71: =NPC!U71-BASE!U71 -> 0 | V71: =NPC!V71-BASE!V71 -> 0 | W71: =NPC!W71-BASE!W71 -> 0 | X71: =NPC!X71-BASE!X71 -> 0 | Y71: =NPC!Y71-BASE!Y71 -> 0 | Z71: =NPC!Z71-BASE!Z71 -> 0 | AA71: =NPC!AA71-BASE!AA71 -> 0 | AB71: =NPC!AB71-BASE!AB71 -> 0 | AC71: =NPC!AC71-BASE!AC71 -> 0 | AD71: =NPC!AD71-BASE!AD71 -> 0 | AE71: =NPC!AE71-BASE!AE71 -> 0 | AF71: =NPC!AF71-BASE!AF71 -> 0 | AG71: =NPC!AG71-BASE!AG71 -> 0 | AH71: =NPC!AH71-BASE!AH71 -> 0 | AI71: =NPC!AI71-BASE!AI71 -> 0 | AJ71: =NPC!AJ71-BASE!AJ71 -> 0 | AK71: =NPC!AK71-BASE!AK71 -> 0 | AL71: =NPC!AL71-BASE!AL71 -> 0 | AM71: =NPC!AM71-BASE!AM71 -> 0 | AN71: =NPC!AN71-BASE!AN71 -> 0 | AO71: =NPC!AO71-BASE!AO71 -> 0 | AP71: =NPC!AP71-BASE!AP71 -> 0 | AQ71: =NPC!AQ71-BASE!AQ71 -> 0 | AR71: =NPC!AR71-BASE!AR71 -> 0 | AS71: =NPC!AS71-BASE!AS71 -> 0 | AT71: =NPC!AT71-BASE!AT71 -> 0 | AU71: =NPC!AU71-BASE!AU71 -> 0 | AV71: =NPC!AV71-BASE!AV71 -> 0 | AW71: =NPC!AW71-BASE!AW71 -> 0 | AX71: =NPC!AX71-BASE!AX71 -> 0 | AY71: =NPC!AY71-BASE!AY71 -> 0 | AZ71: =NPC!AZ71-BASE!AZ71 -> 0 | BA71: =NPC!BA71-BASE!BA71 -> 0 | BB71: =NPC!BB71-BASE!BB71 -> 0 | BC71: =NPC!BC71-BASE!BC71 -> 0 | BD71: =NPC!BD71-BASE!BD71 -> 0 | BE71: =NPC!BE71-BASE!BE71 -> 0 | BF71: =NPC!BF71-BASE!BF71 -> 0 | BG71: =NPC!BG71-BASE!BG71 -> 0 | BH71: =NPC!BH71-BASE!BH71 -> 0 | BI71: =NPC!BI71-BASE!BI71 -> 0 | BJ71: =NPC!BJ71-BASE!BJ71 -> 0 | BK71: =NPC!BK71-BASE!BK71 -> 0 | BL71: =NPC!BL71-BASE!BL71 -> 0 | BM71: =NPC!BM71-BASE!BM71 -> 0 | BN71: =NPC!BN71-BASE!BN71 -> 0 | BO71: =NPC!BO71-BASE!BO71 -> 0 | BP71: =NPC!BP71-BASE!BP71 -> 0 | BQ71: =NPC!BQ71-BASE!BQ71 -> 0 | BR71: =NPC!BR71-BASE!BR71 -> 0 | BS71: =NPC!BS71-BASE!BS71 -> 0 | BT71: =NPC!BT71-BASE!BT71 -> 0 | BU71: =NPC!BU71-BASE!BU71 -> 0 | BV71: =NPC!BV71-BASE!BV71 -> 0 | BW71: =NPC!BW71-BASE!BW71 -> 0 | BX71: =NPC!BX71-BASE!BX71 -> 0 | BY71: =NPC!BY71-BASE!BY71 -> 0 | BZ71: =NPC!BZ71-BASE!BZ71 -> 0 | CA71: =NPC!CA71-BASE!CA71 -> 0 | CB71: =NPC!CB71-BASE!CB71 -> 0 | CC71: =NPC!CC71-BASE!CC71 -> 0 | CD71: =NPC!CD71-BASE!CD71 -> 0 | CE71: =NPC!CE71-BASE!CE71 -> 0 | CF71: =NPC!CF71-BASE!CF71 -> 0 | CG71: =NPC!CG71-BASE!CG71 -> 0 | CH71: =NPC!CH71-BASE!CH71 -> 0 | CI71: =NPC!CI71-BASE!CI71 -> 0 | CJ71: =NPC!CJ71-BASE!CJ71 -> 0 | CK71: =NPC!CK71-BASE!CK71 -> 0 | CL71: =NPC!CL71-BASE!CL71 -> 0 | CM71: =NPC!CM71-BASE!CM71 -> 0 | CN71: =NPC!CN71-BASE!CN71 -> 0 | CO71: =NPC!CO71-BASE!CO71 -> 0 | CP71: =NPC!CP71-BASE!CP71 -> 0 | CQ71: =NPC!CQ71-BASE!CQ71 -> 0 | CR71: =NPC!CR71-BASE!CR71 -> 0 | CS71: =NPC!CS71-BASE!CS71 -> 0 | CT71: =NPC!CT71-BASE!CT71 -> 0 | CU71: =NPC!CU71-BASE!CU71 -> 0 | CV71: =NPC!CV71-BASE!CV71 -> 0 | CW71: =NPC!CW71-BASE!CW71 -> 0 | CX71: =NPC!CX71-BASE!CX71 -> 0 | CY71: =NPC!CY71-BASE!CY71 -> 0 | CZ71: =NPC!CZ71-BASE!CZ71 -> 0 | DA71: =NPC!DA71-BASE!DA71 -> 0 | DB71: =NPC!DB71-BASE!DB71 -> 0 | DC71: =NPC!DC71-BASE!DC71 -> 0 | DD71: =NPC!DD71-BASE!DD71 -> 0 | DE71: =NPC!DE71-BASE!DE71 -> 0 | DF71: =NPC!DF71-BASE!DF71 -> 0 | DG71: =NPC!DG71-BASE!DG71 -> 0 | DH71: =NPC!DH71-BASE!DH71 -> 0 | DI71: =NPC!DI71-BASE!DI71 -> 0 | DJ71: =NPC!DJ71-BASE!DJ71 -> 0 | DK71: =NPC!DK71-BASE!DK71 -> 0 | DL71: =NPC!DL71-BASE!DL71 -> 0 | DM71: =NPC!DM71-BASE!DM71 -> 0 | DN71: =NPC!DN71-BASE!DN71 -> 0 | DO71: =NPC!DO71-BASE!DO71 -> 0 | DP71: =NPC!DP71-BASE!DP71 -> 0 | DQ71: =NPC!DQ71-BASE!DQ71 -> 0 | DR71: =NPC!DR71-BASE!DR71 -> 0 | DS71: =NPC!DS71-BASE!DS71 -> 0 | DT71: =NPC!DT71-BASE!DT71 -> 0 | DU71: =NPC!DU71-BASE!DU71 -> 0 | DV71: =NPC!DV71-BASE!DV71 -> 0 | DW71: =NPC!DW71-BASE!DW71 -> 0 | DX71: =NPC!DX71-BASE!DX71 -> 0 | DY71: =NPC!DY71-BASE!DY71 -> 0 | DZ71: =NPC!DZ71-BASE!DZ71 -> 0 | EA71: =NPC!EA71-BASE!EA71 -> 0 | EB71: =NPC!EB71-BASE!EB71 -> 0 | EC71: =NPC!EC71-BASE!EC71 -> 0 | ED71: =NPC!ED71-BASE!ED71 -> 0 | ER71: =NPC!ER71 -> Hide Row
C72: =NPC!C72 -> Georgia-Pacific Camas | E72: =NPC!E72-BASE!E72 -> 0 | F72: =NPC!F72-BASE!F72 -> 0 | G72: =NPC!G72-BASE!G72 -> 0 | H72: =NPC!H72-BASE!H72 -> 0 | I72: =NPC!I72-BASE!I72 -> 0 | J72: =NPC!J72-BASE!J72 -> 0 | K72: =NPC!K72-BASE!K72 -> 0 | L72: =NPC!L72-BASE!L72 -> 0 | M72: =NPC!M72-BASE!M72 -> 0 | N72: =NPC!N72-BASE!N72 -> 0 | O72: =NPC!O72-BASE!O72 -> 0 | P72: =NPC!P72-BASE!P72 -> 0 | Q72: =NPC!Q72-BASE!Q72 -> 0 | R72: =NPC!R72-BASE!R72 -> 0 | S72: =NPC!S72-BASE!S72 -> 0 | T72: =NPC!T72-BASE!T72 -> 0 | U72: =NPC!U72-BASE!U72 -> 0 | V72: =NPC!V72-BASE!V72 -> 0 | W72: =NPC!W72-BASE!W72 -> 0 | X72: =NPC!X72-BASE!X72 -> 0 | Y72: =NPC!Y72-BASE!Y72 -> 0 | Z72: =NPC!Z72-BASE!Z72 -> 0 | AA72: =NPC!AA72-BASE!AA72 -> 0 | AB72: =NPC!AB72-BASE!AB72 -> 0 | AC72: =NPC!AC72-BASE!AC72 -> 0 | AD72: =NPC!AD72-BASE!AD72 -> 0 | AE72: =NPC!AE72-BASE!AE72 -> 0 | AF72: =NPC!AF72-BASE!AF72 -> 0 | AG72: =NPC!AG72-BASE!AG72 -> 0 | AH72: =NPC!AH72-BASE!AH72 -> 0 | AI72: =NPC!AI72-BASE!AI72 -> 0 | AJ72: =NPC!AJ72-BASE!AJ72 -> 0 | AK72: =NPC!AK72-BASE!AK72 -> 0 | AL72: =NPC!AL72-BASE!AL72 -> 0 | AM72: =NPC!AM72-BASE!AM72 -> 0 | AN72: =NPC!AN72-BASE!AN72 -> 0 | AO72: =NPC!AO72-BASE!AO72 -> 0 | AP72: =NPC!AP72-BASE!AP72 -> 0 | AQ72: =NPC!AQ72-BASE!AQ72 -> 0 | AR72: =NPC!AR72-BASE!AR72 -> 0 | AS72: =NPC!AS72-BASE!AS72 -> 0 | AT72: =NPC!AT72-BASE!AT72 -> 0 | AU72: =NPC!AU72-BASE!AU72 -> 0 | AV72: =NPC!AV72-BASE!AV72 -> 0 | AW72: =NPC!AW72-BASE!AW72 -> 0 | AX72: =NPC!AX72-BASE!AX72 -> 0 | AY72: =NPC!AY72-BASE!AY72 -> 0 | AZ72: =NPC!AZ72-BASE!AZ72 -> 0 | BA72: =NPC!BA72-BASE!BA72 -> 0 | BB72: =NPC!BB72-BASE!BB72 -> 0 | BC72: =NPC!BC72-BASE!BC72 -> 0 | BD72: =NPC!BD72-BASE!BD72 -> 0 | BE72: =NPC!BE72-BASE!BE72 -> 0 | BF72: =NPC!BF72-BASE!BF72 -> 0 | BG72: =NPC!BG72-BASE!BG72 -> 0 | BH72: =NPC!BH72-BASE!BH72 -> 0 | BI72: =NPC!BI72-BASE!BI72 -> 0 | BJ72: =NPC!BJ72-BASE!BJ72 -> 0 | BK72: =NPC!BK72-BASE!BK72 -> 0 | BL72: =NPC!BL72-BASE!BL72 -> 0 | BM72: =NPC!BM72-BASE!BM72 -> 0 | BN72: =NPC!BN72-BASE!BN72 -> 0 | BO72: =NPC!BO72-BASE!BO72 -> 0 | BP72: =NPC!BP72-BASE!BP72 -> 0 | BQ72: =NPC!BQ72-BASE!BQ72 -> 0 | BR72: =NPC!BR72-BASE!BR72 -> 0 | BS72: =NPC!BS72-BASE!BS72 -> 0 | BT72: =NPC!BT72-BASE!BT72 -> 0 | BU72: =NPC!BU72-BASE!BU72 -> 0 | BV72: =NPC!BV72-BASE!BV72 -> 0 | BW72: =NPC!BW72-BASE!BW72 -> 0 | BX72: =NPC!BX72-BASE!BX72 -> 0 | BY72: =NPC!BY72-BASE!BY72 -> 0 | BZ72: =NPC!BZ72-BASE!BZ72 -> 0 | CA72: =NPC!CA72-BASE!CA72 -> 0 | CB72: =NPC!CB72-BASE!CB72 -> 0 | CC72: =NPC!CC72-BASE!CC72 -> 0 | CD72: =NPC!CD72-BASE!CD72 -> 0 | CE72: =NPC!CE72-BASE!CE72 -> 0 | CF72: =NPC!CF72-BASE!CF72 -> 0 | CG72: =NPC!CG72-BASE!CG72 -> 0 | CH72: =NPC!CH72-BASE!CH72 -> 0 | CI72: =NPC!CI72-BASE!CI72 -> 0 | CJ72: =NPC!CJ72-BASE!CJ72 -> 0 | CK72: =NPC!CK72-BASE!CK72 -> 0 | CL72: =NPC!CL72-BASE!CL72 -> 0 | CM72: =NPC!CM72-BASE!CM72 -> 0 | CN72: =NPC!CN72-BASE!CN72 -> 0 | CO72: =NPC!CO72-BASE!CO72 -> 0 | CP72: =NPC!CP72-BASE!CP72 -> 0 | CQ72: =NPC!CQ72-BASE!CQ72 -> 0 | CR72: =NPC!CR72-BASE!CR72 -> 0 | CS72: =NPC!CS72-BASE!CS72 -> 0 | CT72: =NPC!CT72-BASE!CT72 -> 0 | CU72: =NPC!CU72-BASE!CU72 -> 0 | CV72: =NPC!CV72-BASE!CV72 -> 0 | CW72: =NPC!CW72-BASE!CW72 -> 0 | CX72: =NPC!CX72-BASE!CX72 -> 0 | CY72: =NPC!CY72-BASE!CY72 -> 0 | CZ72: =NPC!CZ72-BASE!CZ72 -> 0 | DA72: =NPC!DA72-BASE!DA72 -> 0 | DB72: =NPC!DB72-BASE!DB72 -> 0 | DC72: =NPC!DC72-BASE!DC72 -> 0 | DD72: =NPC!DD72-BASE!DD72 -> 0 | DE72: =NPC!DE72-BASE!DE72 -> 0 | DF72: =NPC!DF72-BASE!DF72 -> 0 | DG72: =NPC!DG72-BASE!DG72 -> 0 | DH72: =NPC!DH72-BASE!DH72 -> 0 | DI72: =NPC!DI72-BASE!DI72 -> 0 | DJ72: =NPC!DJ72-BASE!DJ72 -> 0 | DK72: =NPC!DK72-BASE!DK72 -> 0 | DL72: =NPC!DL72-BASE!DL72 -> 0 | DM72: =NPC!DM72-BASE!DM72 -> 0 | DN72: =NPC!DN72-BASE!DN72 -> 0 | DO72: =NPC!DO72-BASE!DO72 -> 0 | DP72: =NPC!DP72-BASE!DP72 -> 0 | DQ72: =NPC!DQ72-BASE!DQ72 -> 0 | DR72: =NPC!DR72-BASE!DR72 -> 0 | DS72: =NPC!DS72-BASE!DS72 -> 0 | DT72: =NPC!DT72-BASE!DT72 -> 0 | DU72: =NPC!DU72-BASE!DU72 -> 0 | DV72: =NPC!DV72-BASE!DV72 -> 0 | DW72: =NPC!DW72-BASE!DW72 -> 0 | DX72: =NPC!DX72-BASE!DX72 -> 0 | DY72: =NPC!DY72-BASE!DY72 -> 0 | DZ72: =NPC!DZ72-BASE!DZ72 -> 0 | EA72: =NPC!EA72-BASE!EA72 -> 0 | EB72: =NPC!EB72-BASE!EB72 -> 0 | EC72: =NPC!EC72-BASE!EC72 -> 0 | ED72: =NPC!ED72-BASE!ED72 -> 0 | ER72: =NPC!ER72 -> Hide Row
C73: =NPC!C73 -> Gemstate p99489 | E73: =NPC!E73-BASE!E73 -> 0 | F73: =NPC!F73-BASE!F73 -> 0 | G73: =NPC!G73-BASE!G73 -> 0 | H73: =NPC!H73-BASE!H73 -> 0 | I73: =NPC!I73-BASE!I73 -> 0 | J73: =NPC!J73-BASE!J73 -> 0 | K73: =NPC!K73-BASE!K73 -> 0 | L73: =NPC!L73-BASE!L73 -> 0 | M73: =NPC!M73-BASE!M73 -> 0 | N73: =NPC!N73-BASE!N73 -> 0 | O73: =NPC!O73-BASE!O73 -> 0 | P73: =NPC!P73-BASE!P73 -> 0 | Q73: =NPC!Q73-BASE!Q73 -> 0 | R73: =NPC!R73-BASE!R73 -> 0 | S73: =NPC!S73-BASE!S73 -> 0 | T73: =NPC!T73-BASE!T73 -> 0 | U73: =NPC!U73-BASE!U73 -> 0 | V73: =NPC!V73-BASE!V73 -> 0 | W73: =NPC!W73-BASE!W73 -> 0 | X73: =NPC!X73-BASE!X73 -> 0 | Y73: =NPC!Y73-BASE!Y73 -> 0 | Z73: =NPC!Z73-BASE!Z73 -> 0 | AA73: =NPC!AA73-BASE!AA73 -> 0 | AB73: =NPC!AB73-BASE!AB73 -> 0 | AC73: =NPC!AC73-BASE!AC73 -> 0 | AD73: =NPC!AD73-BASE!AD73 -> 0 | AE73: =NPC!AE73-BASE!AE73 -> 0 | AF73: =NPC!AF73-BASE!AF73 -> 0 | AG73: =NPC!AG73-BASE!AG73 -> 0 | AH73: =NPC!AH73-BASE!AH73 -> 0 | AI73: =NPC!AI73-BASE!AI73 -> 0 | AJ73: =NPC!AJ73-BASE!AJ73 -> 0 | AK73: =NPC!AK73-BASE!AK73 -> 0 | AL73: =NPC!AL73-BASE!AL73 -> 0 | AM73: =NPC!AM73-BASE!AM73 -> 0 | AN73: =NPC!AN73-BASE!AN73 -> 0 | AO73: =NPC!AO73-BASE!AO73 -> 0 | AP73: =NPC!AP73-BASE!AP73 -> 0 | AQ73: =NPC!AQ73-BASE!AQ73 -> 0 | AR73: =NPC!AR73-BASE!AR73 -> 0 | AS73: =NPC!AS73-BASE!AS73 -> 0 | AT73: =NPC!AT73-BASE!AT73 -> 0 | AU73: =NPC!AU73-BASE!AU73 -> 0 | AV73: =NPC!AV73-BASE!AV73 -> 0 | AW73: =NPC!AW73-BASE!AW73 -> 0 | AX73: =NPC!AX73-BASE!AX73 -> 0 | AY73: =NPC!AY73-BASE!AY73 -> 0 | AZ73: =NPC!AZ73-BASE!AZ73 -> 0 | BA73: =NPC!BA73-BASE!BA73 -> 0 | BB73: =NPC!BB73-BASE!BB73 -> 0 | BC73: =NPC!BC73-BASE!BC73 -> 0 | BD73: =NPC!BD73-BASE!BD73 -> 0 | BE73: =NPC!BE73-BASE!BE73 -> 0 | BF73: =NPC!BF73-BASE!BF73 -> 0 | BG73: =NPC!BG73-BASE!BG73 -> 0 | BH73: =NPC!BH73-BASE!BH73 -> 0 | BI73: =NPC!BI73-BASE!BI73 -> 0 | BJ73: =NPC!BJ73-BASE!BJ73 -> 0 | BK73: =NPC!BK73-BASE!BK73 -> 0 | BL73: =NPC!BL73-BASE!BL73 -> 0 | BM73: =NPC!BM73-BASE!BM73 -> 0 | BN73: =NPC!BN73-BASE!BN73 -> 0 | BO73: =NPC!BO73-BASE!BO73 -> 0 | BP73: =NPC!BP73-BASE!BP73 -> 0 | BQ73: =NPC!BQ73-BASE!BQ73 -> 0 | BR73: =NPC!BR73-BASE!BR73 -> 0 | BS73: =NPC!BS73-BASE!BS73 -> 0 | BT73: =NPC!BT73-BASE!BT73 -> 0 | BU73: =NPC!BU73-BASE!BU73 -> 0 | BV73: =NPC!BV73-BASE!BV73 -> 0 | BW73: =NPC!BW73-BASE!BW73 -> 0 | BX73: =NPC!BX73-BASE!BX73 -> 0 | BY73: =NPC!BY73-BASE!BY73 -> 0 | BZ73: =NPC!BZ73-BASE!BZ73 -> 0 | CA73: =NPC!CA73-BASE!CA73 -> 0 | CB73: =NPC!CB73-BASE!CB73 -> 0 | CC73: =NPC!CC73-BASE!CC73 -> 0 | CD73: =NPC!CD73-BASE!CD73 -> 0 | CE73: =NPC!CE73-BASE!CE73 -> 0 | CF73: =NPC!CF73-BASE!CF73 -> 0 | CG73: =NPC!CG73-BASE!CG73 -> 0 | CH73: =NPC!CH73-BASE!CH73 -> 0 | CI73: =NPC!CI73-BASE!CI73 -> 0 | CJ73: =NPC!CJ73-BASE!CJ73 -> 0 | CK73: =NPC!CK73-BASE!CK73 -> 0 | CL73: =NPC!CL73-BASE!CL73 -> 0 | CM73: =NPC!CM73-BASE!CM73 -> 0 | CN73: =NPC!CN73-BASE!CN73 -> 0 | CO73: =NPC!CO73-BASE!CO73 -> 0 | CP73: =NPC!CP73-BASE!CP73 -> 0 | CQ73: =NPC!CQ73-BASE!CQ73 -> 0 | CR73: =NPC!CR73-BASE!CR73 -> 0 | CS73: =NPC!CS73-BASE!CS73 -> 0 | CT73: =NPC!CT73-BASE!CT73 -> 0 | CU73: =NPC!CU73-BASE!CU73 -> 0 | CV73: =NPC!CV73-BASE!CV73 -> 0 | CW73: =NPC!CW73-BASE!CW73 -> 0 | CX73: =NPC!CX73-BASE!CX73 -> 0 | CY73: =NPC!CY73-BASE!CY73 -> 0 | CZ73: =NPC!CZ73-BASE!CZ73 -> 0 | DA73: =NPC!DA73-BASE!DA73 -> 0 | DB73: =NPC!DB73-BASE!DB73 -> 0 | DC73: =NPC!DC73-BASE!DC73 -> 0 | DD73: =NPC!DD73-BASE!DD73 -> 0 | DE73: =NPC!DE73-BASE!DE73 -> 0 | DF73: =NPC!DF73-BASE!DF73 -> 0 | DG73: =NPC!DG73-BASE!DG73 -> 0 | DH73: =NPC!DH73-BASE!DH73 -> 0 | DI73: =NPC!DI73-BASE!DI73 -> 0 | DJ73: =NPC!DJ73-BASE!DJ73 -> 0 | DK73: =NPC!DK73-BASE!DK73 -> 0 | DL73: =NPC!DL73-BASE!DL73 -> 0 | DM73: =NPC!DM73-BASE!DM73 -> 0 | DN73: =NPC!DN73-BASE!DN73 -> 0 | DO73: =NPC!DO73-BASE!DO73 -> 0 | DP73: =NPC!DP73-BASE!DP73 -> 0 | DQ73: =NPC!DQ73-BASE!DQ73 -> 0 | DR73: =NPC!DR73-BASE!DR73 -> 0 | DS73: =NPC!DS73-BASE!DS73 -> 0 | DT73: =NPC!DT73-BASE!DT73 -> 0 | DU73: =NPC!DU73-BASE!DU73 -> 0 | DV73: =NPC!DV73-BASE!DV73 -> 0 | DW73: =NPC!DW73-BASE!DW73 -> 0 | DX73: =NPC!DX73-BASE!DX73 -> 0 | DY73: =NPC!DY73-BASE!DY73 -> 0 | DZ73: =NPC!DZ73-BASE!DZ73 -> 0 | EA73: =NPC!EA73-BASE!EA73 -> 0 | EB73: =NPC!EB73-BASE!EB73 -> 0 | EC73: =NPC!EC73-BASE!EC73 -> 0 | ED73: =NPC!ED73-BASE!ED73 -> 0 | ER73: =NPC!ER73 -> -
C74: =NPC!C74 -> Not Used - Purchase 2 | E74: =NPC!E74-BASE!E74 -> 0 | F74: =NPC!F74-BASE!F74 -> 0 | G74: =NPC!G74-BASE!G74 -> 0 | H74: =NPC!H74-BASE!H74 -> 0 | I74: =NPC!I74-BASE!I74 -> 0 | J74: =NPC!J74-BASE!J74 -> 0 | K74: =NPC!K74-BASE!K74 -> 0 | L74: =NPC!L74-BASE!L74 -> 0 | M74: =NPC!M74-BASE!M74 -> 0 | N74: =NPC!N74-BASE!N74 -> 0 | O74: =NPC!O74-BASE!O74 -> 0 | P74: =NPC!P74-BASE!P74 -> 0 | Q74: =NPC!Q74-BASE!Q74 -> 0 | R74: =NPC!R74-BASE!R74 -> 0 | S74: =NPC!S74-BASE!S74 -> 0 | T74: =NPC!T74-BASE!T74 -> 0 | U74: =NPC!U74-BASE!U74 -> 0 | V74: =NPC!V74-BASE!V74 -> 0 | W74: =NPC!W74-BASE!W74 -> 0 | X74: =NPC!X74-BASE!X74 -> 0 | Y74: =NPC!Y74-BASE!Y74 -> 0 | Z74: =NPC!Z74-BASE!Z74 -> 0 | AA74: =NPC!AA74-BASE!AA74 -> 0 | AB74: =NPC!AB74-BASE!AB74 -> 0 | AC74: =NPC!AC74-BASE!AC74 -> 0 | AD74: =NPC!AD74-BASE!AD74 -> 0 | AE74: =NPC!AE74-BASE!AE74 -> 0 | AF74: =NPC!AF74-BASE!AF74 -> 0 | AG74: =NPC!AG74-BASE!AG74 -> 0 | AH74: =NPC!AH74-BASE!AH74 -> 0 | AI74: =NPC!AI74-BASE!AI74 -> 0 | AJ74: =NPC!AJ74-BASE!AJ74 -> 0 | AK74: =NPC!AK74-BASE!AK74 -> 0 | AL74: =NPC!AL74-BASE!AL74 -> 0 | AM74: =NPC!AM74-BASE!AM74 -> 0 | AN74: =NPC!AN74-BASE!AN74 -> 0 | AO74: =NPC!AO74-BASE!AO74 -> 0 | AP74: =NPC!AP74-BASE!AP74 -> 0 | AQ74: =NPC!AQ74-BASE!AQ74 -> 0 | AR74: =NPC!AR74-BASE!AR74 -> 0 | AS74: =NPC!AS74-BASE!AS74 -> 0 | AT74: =NPC!AT74-BASE!AT74 -> 0 | AU74: =NPC!AU74-BASE!AU74 -> 0 | AV74: =NPC!AV74-BASE!AV74 -> 0 | AW74: =NPC!AW74-BASE!AW74 -> 0 | AX74: =NPC!AX74-BASE!AX74 -> 0 | AY74: =NPC!AY74-BASE!AY74 -> 0 | AZ74: =NPC!AZ74-BASE!AZ74 -> 0 | BA74: =NPC!BA74-BASE!BA74 -> 0 | BB74: =NPC!BB74-BASE!BB74 -> 0 | BC74: =NPC!BC74-BASE!BC74 -> 0 | BD74: =NPC!BD74-BASE!BD74 -> 0 | BE74: =NPC!BE74-BASE!BE74 -> 0 | BF74: =NPC!BF74-BASE!BF74 -> 0 | BG74: =NPC!BG74-BASE!BG74 -> 0 | BH74: =NPC!BH74-BASE!BH74 -> 0 | BI74: =NPC!BI74-BASE!BI74 -> 0 | BJ74: =NPC!BJ74-BASE!BJ74 -> 0 | BK74: =NPC!BK74-BASE!BK74 -> 0 | BL74: =NPC!BL74-BASE!BL74 -> 0 | BM74: =NPC!BM74-BASE!BM74 -> 0 | BN74: =NPC!BN74-BASE!BN74 -> 0 | BO74: =NPC!BO74-BASE!BO74 -> 0 | BP74: =NPC!BP74-BASE!BP74 -> 0 | BQ74: =NPC!BQ74-BASE!BQ74 -> 0 | BR74: =NPC!BR74-BASE!BR74 -> 0 | BS74: =NPC!BS74-BASE!BS74 -> 0 | BT74: =NPC!BT74-BASE!BT74 -> 0 | BU74: =NPC!BU74-BASE!BU74 -> 0 | BV74: =NPC!BV74-BASE!BV74 -> 0 | BW74: =NPC!BW74-BASE!BW74 -> 0 | BX74: =NPC!BX74-BASE!BX74 -> 0 | BY74: =NPC!BY74-BASE!BY74 -> 0 | BZ74: =NPC!BZ74-BASE!BZ74 -> 0 | CA74: =NPC!CA74-BASE!CA74 -> 0 | CB74: =NPC!CB74-BASE!CB74 -> 0 | CC74: =NPC!CC74-BASE!CC74 -> 0 | CD74: =NPC!CD74-BASE!CD74 -> 0 | CE74: =NPC!CE74-BASE!CE74 -> 0 | CF74: =NPC!CF74-BASE!CF74 -> 0 | CG74: =NPC!CG74-BASE!CG74 -> 0 | CH74: =NPC!CH74-BASE!CH74 -> 0 | CI74: =NPC!CI74-BASE!CI74 -> 0 | CJ74: =NPC!CJ74-BASE!CJ74 -> 0 | CK74: =NPC!CK74-BASE!CK74 -> 0 | CL74: =NPC!CL74-BASE!CL74 -> 0 | CM74: =NPC!CM74-BASE!CM74 -> 0 | CN74: =NPC!CN74-BASE!CN74 -> 0 | CO74: =NPC!CO74-BASE!CO74 -> 0 | CP74: =NPC!CP74-BASE!CP74 -> 0 | CQ74: =NPC!CQ74-BASE!CQ74 -> 0 | CR74: =NPC!CR74-BASE!CR74 -> 0 | CS74: =NPC!CS74-BASE!CS74 -> 0 | CT74: =NPC!CT74-BASE!CT74 -> 0 | CU74: =NPC!CU74-BASE!CU74 -> 0 | CV74: =NPC!CV74-BASE!CV74 -> 0 | CW74: =NPC!CW74-BASE!CW74 -> 0 | CX74: =NPC!CX74-BASE!CX74 -> 0 | CY74: =NPC!CY74-BASE!CY74 -> 0 | CZ74: =NPC!CZ74-BASE!CZ74 -> 0 | DA74: =NPC!DA74-BASE!DA74 -> 0 | DB74: =NPC!DB74-BASE!DB74 -> 0 | DC74: =NPC!DC74-BASE!DC74 -> 0 | DD74: =NPC!DD74-BASE!DD74 -> 0 | DE74: =NPC!DE74-BASE!DE74 -> 0 | DF74: =NPC!DF74-BASE!DF74 -> 0 | DG74: =NPC!DG74-BASE!DG74 -> 0 | DH74: =NPC!DH74-BASE!DH74 -> 0 | DI74: =NPC!DI74-BASE!DI74 -> 0 | DJ74: =NPC!DJ74-BASE!DJ74 -> 0 | DK74: =NPC!DK74-BASE!DK74 -> 0 | DL74: =NPC!DL74-BASE!DL74 -> 0 | DM74: =NPC!DM74-BASE!DM74 -> 0 | DN74: =NPC!DN74-BASE!DN74 -> 0 | DO74: =NPC!DO74-BASE!DO74 -> 0 | DP74: =NPC!DP74-BASE!DP74 -> 0 | DQ74: =NPC!DQ74-BASE!DQ74 -> 0 | DR74: =NPC!DR74-BASE!DR74 -> 0 | DS74: =NPC!DS74-BASE!DS74 -> 0 | DT74: =NPC!DT74-BASE!DT74 -> 0 | DU74: =NPC!DU74-BASE!DU74 -> 0 | DV74: =NPC!DV74-BASE!DV74 -> 0 | DW74: =NPC!DW74-BASE!DW74 -> 0 | DX74: =NPC!DX74-BASE!DX74 -> 0 | DY74: =NPC!DY74-BASE!DY74 -> 0 | DZ74: =NPC!DZ74-BASE!DZ74 -> 0 | EA74: =NPC!EA74-BASE!EA74 -> 0 | EB74: =NPC!EB74-BASE!EB74 -> 0 | EC74: =NPC!EC74-BASE!EC74 -> 0 | ED74: =NPC!ED74-BASE!ED74 -> 0 | ER74: =NPC!ER74 -> Hide Row
C75: =NPC!C75 -> Grant County 10 aMW p66274 | E75: =NPC!E75-BASE!E75 -> 0 | F75: =NPC!F75-BASE!F75 -> 0 | G75: =NPC!G75-BASE!G75 -> 0 | H75: =NPC!H75-BASE!H75 -> 0 | I75: =NPC!I75-BASE!I75 -> 0 | J75: =NPC!J75-BASE!J75 -> 0 | K75: =NPC!K75-BASE!K75 -> 0 | L75: =NPC!L75-BASE!L75 -> 0 | M75: =NPC!M75-BASE!M75 -> 0 | N75: =NPC!N75-BASE!N75 -> 0 | O75: =NPC!O75-BASE!O75 -> 0 | P75: =NPC!P75-BASE!P75 -> 0 | Q75: =NPC!Q75-BASE!Q75 -> 0 | R75: =NPC!R75-BASE!R75 -> 0 | S75: =NPC!S75-BASE!S75 -> 0 | T75: =NPC!T75-BASE!T75 -> 0 | U75: =NPC!U75-BASE!U75 -> 0 | V75: =NPC!V75-BASE!V75 -> 0 | W75: =NPC!W75-BASE!W75 -> 0 | X75: =NPC!X75-BASE!X75 -> 0 | Y75: =NPC!Y75-BASE!Y75 -> 0 | Z75: =NPC!Z75-BASE!Z75 -> 0 | AA75: =NPC!AA75-BASE!AA75 -> 0 | AB75: =NPC!AB75-BASE!AB75 -> 0 | AC75: =NPC!AC75-BASE!AC75 -> 0 | AD75: =NPC!AD75-BASE!AD75 -> 0 | AE75: =NPC!AE75-BASE!AE75 -> 0 | AF75: =NPC!AF75-BASE!AF75 -> 0 | AG75: =NPC!AG75-BASE!AG75 -> 0 | AH75: =NPC!AH75-BASE!AH75 -> 0 | AI75: =NPC!AI75-BASE!AI75 -> 0 | AJ75: =NPC!AJ75-BASE!AJ75 -> 0 | AK75: =NPC!AK75-BASE!AK75 -> 0 | AL75: =NPC!AL75-BASE!AL75 -> 0 | AM75: =NPC!AM75-BASE!AM75 -> 0 | AN75: =NPC!AN75-BASE!AN75 -> 0 | AO75: =NPC!AO75-BASE!AO75 -> 0 | AP75: =NPC!AP75-BASE!AP75 -> 0 | AQ75: =NPC!AQ75-BASE!AQ75 -> 0 | AR75: =NPC!AR75-BASE!AR75 -> 0 | AS75: =NPC!AS75-BASE!AS75 -> 0 | AT75: =NPC!AT75-BASE!AT75 -> 0 | AU75: =NPC!AU75-BASE!AU75 -> 0 | AV75: =NPC!AV75-BASE!AV75 -> 0 | AW75: =NPC!AW75-BASE!AW75 -> 0 | AX75: =NPC!AX75-BASE!AX75 -> 0 | AY75: =NPC!AY75-BASE!AY75 -> 0 | AZ75: =NPC!AZ75-BASE!AZ75 -> 0 | BA75: =NPC!BA75-BASE!BA75 -> 0 | BB75: =NPC!BB75-BASE!BB75 -> 0 | BC75: =NPC!BC75-BASE!BC75 -> 0 | BD75: =NPC!BD75-BASE!BD75 -> 0 | BE75: =NPC!BE75-BASE!BE75 -> 0 | BF75: =NPC!BF75-BASE!BF75 -> 0 | BG75: =NPC!BG75-BASE!BG75 -> 0 | BH75: =NPC!BH75-BASE!BH75 -> 0 | BI75: =NPC!BI75-BASE!BI75 -> 0 | BJ75: =NPC!BJ75-BASE!BJ75 -> 0 | BK75: =NPC!BK75-BASE!BK75 -> 0 | BL75: =NPC!BL75-BASE!BL75 -> 0 | BM75: =NPC!BM75-BASE!BM75 -> 0 | BN75: =NPC!BN75-BASE!BN75 -> 0 | BO75: =NPC!BO75-BASE!BO75 -> 0 | BP75: =NPC!BP75-BASE!BP75 -> 0 | BQ75: =NPC!BQ75-BASE!BQ75 -> 0 | BR75: =NPC!BR75-BASE!BR75 -> 0 | BS75: =NPC!BS75-BASE!BS75 -> 0 | BT75: =NPC!BT75-BASE!BT75 -> 0 | BU75: =NPC!BU75-BASE!BU75 -> 0 | BV75: =NPC!BV75-BASE!BV75 -> 0 | BW75: =NPC!BW75-BASE!BW75 -> 0 | BX75: =NPC!BX75-BASE!BX75 -> 0 | BY75: =NPC!BY75-BASE!BY75 -> 0 | BZ75: =NPC!BZ75-BASE!BZ75 -> 0 | CA75: =NPC!CA75-BASE!CA75 -> 0 | CB75: =NPC!CB75-BASE!CB75 -> 0 | CC75: =NPC!CC75-BASE!CC75 -> 0 | CD75: =NPC!CD75-BASE!CD75 -> 0 | CE75: =NPC!CE75-BASE!CE75 -> 0 | CF75: =NPC!CF75-BASE!CF75 -> 0 | CG75: =NPC!CG75-BASE!CG75 -> 0 | CH75: =NPC!CH75-BASE!CH75 -> 0 | CI75: =NPC!CI75-BASE!CI75 -> 0 | CJ75: =NPC!CJ75-BASE!CJ75 -> 0 | CK75: =NPC!CK75-BASE!CK75 -> 0 | CL75: =NPC!CL75-BASE!CL75 -> 0 | CM75: =NPC!CM75-BASE!CM75 -> 0 | CN75: =NPC!CN75-BASE!CN75 -> 0 | CO75: =NPC!CO75-BASE!CO75 -> 0 | CP75: =NPC!CP75-BASE!CP75 -> 0 | CQ75: =NPC!CQ75-BASE!CQ75 -> 0 | CR75: =NPC!CR75-BASE!CR75 -> 0 | CS75: =NPC!CS75-BASE!CS75 -> 0 | CT75: =NPC!CT75-BASE!CT75 -> 0 | CU75: =NPC!CU75-BASE!CU75 -> 0 | CV75: =NPC!CV75-BASE!CV75 -> 0 | CW75: =NPC!CW75-BASE!CW75 -> 0 | CX75: =NPC!CX75-BASE!CX75 -> 0 | CY75: =NPC!CY75-BASE!CY75 -> 0 | CZ75: =NPC!CZ75-BASE!CZ75 -> 0 | DA75: =NPC!DA75-BASE!DA75 -> 0 | DB75: =NPC!DB75-BASE!DB75 -> 0 | DC75: =NPC!DC75-BASE!DC75 -> 0 | DD75: =NPC!DD75-BASE!DD75 -> 0 | DE75: =NPC!DE75-BASE!DE75 -> 0 | DF75: =NPC!DF75-BASE!DF75 -> 0 | DG75: =NPC!DG75-BASE!DG75 -> 0 | DH75: =NPC!DH75-BASE!DH75 -> 0 | DI75: =NPC!DI75-BASE!DI75 -> 0 | DJ75: =NPC!DJ75-BASE!DJ75 -> 0 | DK75: =NPC!DK75-BASE!DK75 -> 0 | DL75: =NPC!DL75-BASE!DL75 -> 0 | DM75: =NPC!DM75-BASE!DM75 -> 0 | DN75: =NPC!DN75-BASE!DN75 -> 0 | DO75: =NPC!DO75-BASE!DO75 -> 0 | DP75: =NPC!DP75-BASE!DP75 -> 0 | DQ75: =NPC!DQ75-BASE!DQ75 -> 0 | DR75: =NPC!DR75-BASE!DR75 -> 0 | DS75: =NPC!DS75-BASE!DS75 -> 0 | DT75: =NPC!DT75-BASE!DT75 -> 0 | DU75: =NPC!DU75-BASE!DU75 -> 0 | DV75: =NPC!DV75-BASE!DV75 -> 0 | DW75: =NPC!DW75-BASE!DW75 -> 0 | DX75: =NPC!DX75-BASE!DX75 -> 0 | DY75: =NPC!DY75-BASE!DY75 -> 0 | DZ75: =NPC!DZ75-BASE!DZ75 -> 0 | EA75: =NPC!EA75-BASE!EA75 -> 0 | EB75: =NPC!EB75-BASE!EB75 -> 0 | EC75: =NPC!EC75-BASE!EC75 -> 0 | ED75: =NPC!ED75-BASE!ED75 -> 0 | ER75: =NPC!ER75 -> Hide Row
C76: =NPC!C76 -> Hermiston Purchase p99563 | E76: =NPC!E76-BASE!E76 -> 0 | F76: =NPC!F76-BASE!F76 -> 0 | G76: =NPC!G76-BASE!G76 -> 0 | H76: =NPC!H76-BASE!H76 -> 0 | I76: =NPC!I76-BASE!I76 -> 0 | J76: =NPC!J76-BASE!J76 -> 0 | K76: =NPC!K76-BASE!K76 -> 0 | L76: =NPC!L76-BASE!L76 -> 0 | M76: =NPC!M76-BASE!M76 -> 0 | N76: =NPC!N76-BASE!N76 -> 0 | O76: =NPC!O76-BASE!O76 -> 0 | P76: =NPC!P76-BASE!P76 -> 0 | Q76: =NPC!Q76-BASE!Q76 -> 0 | R76: =NPC!R76-BASE!R76 -> 0 | S76: =NPC!S76-BASE!S76 -> 0 | T76: =NPC!T76-BASE!T76 -> 0 | U76: =NPC!U76-BASE!U76 -> 0 | V76: =NPC!V76-BASE!V76 -> 0 | W76: =NPC!W76-BASE!W76 -> 0 | X76: =NPC!X76-BASE!X76 -> 0 | Y76: =NPC!Y76-BASE!Y76 -> 0 | Z76: =NPC!Z76-BASE!Z76 -> 0 | AA76: =NPC!AA76-BASE!AA76 -> 0 | AB76: =NPC!AB76-BASE!AB76 -> 0 | AC76: =NPC!AC76-BASE!AC76 -> 0 | AD76: =NPC!AD76-BASE!AD76 -> 0 | AE76: =NPC!AE76-BASE!AE76 -> 0 | AF76: =NPC!AF76-BASE!AF76 -> 0 | AG76: =NPC!AG76-BASE!AG76 -> 0 | AH76: =NPC!AH76-BASE!AH76 -> 0 | AI76: =NPC!AI76-BASE!AI76 -> 0 | AJ76: =NPC!AJ76-BASE!AJ76 -> 0 | AK76: =NPC!AK76-BASE!AK76 -> 0 | AL76: =NPC!AL76-BASE!AL76 -> 0 | AM76: =NPC!AM76-BASE!AM76 -> 0 | AN76: =NPC!AN76-BASE!AN76 -> 0 | AO76: =NPC!AO76-BASE!AO76 -> 0 | AP76: =NPC!AP76-BASE!AP76 -> 0 | AQ76: =NPC!AQ76-BASE!AQ76 -> 0 | AR76: =NPC!AR76-BASE!AR76 -> 0 | AS76: =NPC!AS76-BASE!AS76 -> 0 | AT76: =NPC!AT76-BASE!AT76 -> 0 | AU76: =NPC!AU76-BASE!AU76 -> 0 | AV76: =NPC!AV76-BASE!AV76 -> 0 | AW76: =NPC!AW76-BASE!AW76 -> 0 | AX76: =NPC!AX76-BASE!AX76 -> 0 | AY76: =NPC!AY76-BASE!AY76 -> 0 | AZ76: =NPC!AZ76-BASE!AZ76 -> 0 | BA76: =NPC!BA76-BASE!BA76 -> 0 | BB76: =NPC!BB76-BASE!BB76 -> 0 | BC76: =NPC!BC76-BASE!BC76 -> 0 | BD76: =NPC!BD76-BASE!BD76 -> 0 | BE76: =NPC!BE76-BASE!BE76 -> 0 | BF76: =NPC!BF76-BASE!BF76 -> 0 | BG76: =NPC!BG76-BASE!BG76 -> 0 | BH76: =NPC!BH76-BASE!BH76 -> 0 | BI76: =NPC!BI76-BASE!BI76 -> 0 | BJ76: =NPC!BJ76-BASE!BJ76 -> 0 | BK76: =NPC!BK76-BASE!BK76 -> 0 | BL76: =NPC!BL76-BASE!BL76 -> 0 | BM76: =NPC!BM76-BASE!BM76 -> 0 | BN76: =NPC!BN76-BASE!BN76 -> 0 | BO76: =NPC!BO76-BASE!BO76 -> 0 | BP76: =NPC!BP76-BASE!BP76 -> 0 | BQ76: =NPC!BQ76-BASE!BQ76 -> 0 | BR76: =NPC!BR76-BASE!BR76 -> 0 | BS76: =NPC!BS76-BASE!BS76 -> 0 | BT76: =NPC!BT76-BASE!BT76 -> 0 | BU76: =NPC!BU76-BASE!BU76 -> 0 | BV76: =NPC!BV76-BASE!BV76 -> 0 | BW76: =NPC!BW76-BASE!BW76 -> 0 | BX76: =NPC!BX76-BASE!BX76 -> 0 | BY76: =NPC!BY76-BASE!BY76 -> 0 | BZ76: =NPC!BZ76-BASE!BZ76 -> 0 | CA76: =NPC!CA76-BASE!CA76 -> 0 | CB76: =NPC!CB76-BASE!CB76 -> 0 | CC76: =NPC!CC76-BASE!CC76 -> 0 | CD76: =NPC!CD76-BASE!CD76 -> 0 | CE76: =NPC!CE76-BASE!CE76 -> 0 | CF76: =NPC!CF76-BASE!CF76 -> 0 | CG76: =NPC!CG76-BASE!CG76 -> 0 | CH76: =NPC!CH76-BASE!CH76 -> 0 | CI76: =NPC!CI76-BASE!CI76 -> 0 | CJ76: =NPC!CJ76-BASE!CJ76 -> 0 | CK76: =NPC!CK76-BASE!CK76 -> 0 | CL76: =NPC!CL76-BASE!CL76 -> 0 | CM76: =NPC!CM76-BASE!CM76 -> 0 | CN76: =NPC!CN76-BASE!CN76 -> 0 | CO76: =NPC!CO76-BASE!CO76 -> 0 | CP76: =NPC!CP76-BASE!CP76 -> 0 | CQ76: =NPC!CQ76-BASE!CQ76 -> 0 | CR76: =NPC!CR76-BASE!CR76 -> 0 | CS76: =NPC!CS76-BASE!CS76 -> 0 | CT76: =NPC!CT76-BASE!CT76 -> 0 | CU76: =NPC!CU76-BASE!CU76 -> 0 | CV76: =NPC!CV76-BASE!CV76 -> 0 | CW76: =NPC!CW76-BASE!CW76 -> 0 | CX76: =NPC!CX76-BASE!CX76 -> 0 | CY76: =NPC!CY76-BASE!CY76 -> 0 | CZ76: =NPC!CZ76-BASE!CZ76 -> 0 | DA76: =NPC!DA76-BASE!DA76 -> 0 | DB76: =NPC!DB76-BASE!DB76 -> 0 | DC76: =NPC!DC76-BASE!DC76 -> 0 | DD76: =NPC!DD76-BASE!DD76 -> 0 | DE76: =NPC!DE76-BASE!DE76 -> 0 | DF76: =NPC!DF76-BASE!DF76 -> 0 | DG76: =NPC!DG76-BASE!DG76 -> 0 | DH76: =NPC!DH76-BASE!DH76 -> 0 | DI76: =NPC!DI76-BASE!DI76 -> 0 | DJ76: =NPC!DJ76-BASE!DJ76 -> 0 | DK76: =NPC!DK76-BASE!DK76 -> 0 | DL76: =NPC!DL76-BASE!DL76 -> 0 | DM76: =NPC!DM76-BASE!DM76 -> 0 | DN76: =NPC!DN76-BASE!DN76 -> 0 | DO76: =NPC!DO76-BASE!DO76 -> 0 | DP76: =NPC!DP76-BASE!DP76 -> 0 | DQ76: =NPC!DQ76-BASE!DQ76 -> 0 | DR76: =NPC!DR76-BASE!DR76 -> 0 | DS76: =NPC!DS76-BASE!DS76 -> 0 | DT76: =NPC!DT76-BASE!DT76 -> 0 | DU76: =NPC!DU76-BASE!DU76 -> 0 | DV76: =NPC!DV76-BASE!DV76 -> 0 | DW76: =NPC!DW76-BASE!DW76 -> 0 | DX76: =NPC!DX76-BASE!DX76 -> 0 | DY76: =NPC!DY76-BASE!DY76 -> 0 | DZ76: =NPC!DZ76-BASE!DZ76 -> 0 | EA76: =NPC!EA76-BASE!EA76 -> 0 | EB76: =NPC!EB76-BASE!EB76 -> 0 | EC76: =NPC!EC76-BASE!EC76 -> 0 | ED76: =NPC!ED76-BASE!ED76 -> 0 | ER76: =NPC!ER76 -> 0
C77: =NPC!C77 -> Hurricane Purchase p393045 | E77: =NPC!E77-BASE!E77 -> 0 | F77: =NPC!F77-BASE!F77 -> 0 | G77: =NPC!G77-BASE!G77 -> 0 | H77: =NPC!H77-BASE!H77 -> 0 | I77: =NPC!I77-BASE!I77 -> 0 | J77: =NPC!J77-BASE!J77 -> 0 | K77: =NPC!K77-BASE!K77 -> 0 | L77: =NPC!L77-BASE!L77 -> 0 | M77: =NPC!M77-BASE!M77 -> 0 | N77: =NPC!N77-BASE!N77 -> 0 | O77: =NPC!O77-BASE!O77 -> 0 | P77: =NPC!P77-BASE!P77 -> 0 | Q77: =NPC!Q77-BASE!Q77 -> 0 | R77: =NPC!R77-BASE!R77 -> 0 | S77: =NPC!S77-BASE!S77 -> 0 | T77: =NPC!T77-BASE!T77 -> 0 | U77: =NPC!U77-BASE!U77 -> 0 | V77: =NPC!V77-BASE!V77 -> 0 | W77: =NPC!W77-BASE!W77 -> 0 | X77: =NPC!X77-BASE!X77 -> 0 | Y77: =NPC!Y77-BASE!Y77 -> 0 | Z77: =NPC!Z77-BASE!Z77 -> 0 | AA77: =NPC!AA77-BASE!AA77 -> 0 | AB77: =NPC!AB77-BASE!AB77 -> 0 | AC77: =NPC!AC77-BASE!AC77 -> 0 | AD77: =NPC!AD77-BASE!AD77 -> 0 | AE77: =NPC!AE77-BASE!AE77 -> 0 | AF77: =NPC!AF77-BASE!AF77 -> 0 | AG77: =NPC!AG77-BASE!AG77 -> 0 | AH77: =NPC!AH77-BASE!AH77 -> 0 | AI77: =NPC!AI77-BASE!AI77 -> 0 | AJ77: =NPC!AJ77-BASE!AJ77 -> 0 | AK77: =NPC!AK77-BASE!AK77 -> 0 | AL77: =NPC!AL77-BASE!AL77 -> 0 | AM77: =NPC!AM77-BASE!AM77 -> 0 | AN77: =NPC!AN77-BASE!AN77 -> 0 | AO77: =NPC!AO77-BASE!AO77 -> 0 | AP77: =NPC!AP77-BASE!AP77 -> 0 | AQ77: =NPC!AQ77-BASE!AQ77 -> 0 | AR77: =NPC!AR77-BASE!AR77 -> 0 | AS77: =NPC!AS77-BASE!AS77 -> 0 | AT77: =NPC!AT77-BASE!AT77 -> 0 | AU77: =NPC!AU77-BASE!AU77 -> 0 | AV77: =NPC!AV77-BASE!AV77 -> 0 | AW77: =NPC!AW77-BASE!AW77 -> 0 | AX77: =NPC!AX77-BASE!AX77 -> 0 | AY77: =NPC!AY77-BASE!AY77 -> 0 | AZ77: =NPC!AZ77-BASE!AZ77 -> 0 | BA77: =NPC!BA77-BASE!BA77 -> 0 | BB77: =NPC!BB77-BASE!BB77 -> 0 | BC77: =NPC!BC77-BASE!BC77 -> 0 | BD77: =NPC!BD77-BASE!BD77 -> 0 | BE77: =NPC!BE77-BASE!BE77 -> 0 | BF77: =NPC!BF77-BASE!BF77 -> 0 | BG77: =NPC!BG77-BASE!BG77 -> 0 | BH77: =NPC!BH77-BASE!BH77 -> 0 | BI77: =NPC!BI77-BASE!BI77 -> 0 | BJ77: =NPC!BJ77-BASE!BJ77 -> 0 | BK77: =NPC!BK77-BASE!BK77 -> 0 | BL77: =NPC!BL77-BASE!BL77 -> 0 | BM77: =NPC!BM77-BASE!BM77 -> 0 | BN77: =NPC!BN77-BASE!BN77 -> 0 | BO77: =NPC!BO77-BASE!BO77 -> 0 | BP77: =NPC!BP77-BASE!BP77 -> 0 | BQ77: =NPC!BQ77-BASE!BQ77 -> 0 | BR77: =NPC!BR77-BASE!BR77 -> 0 | BS77: =NPC!BS77-BASE!BS77 -> 0 | BT77: =NPC!BT77-BASE!BT77 -> 0 | BU77: =NPC!BU77-BASE!BU77 -> 0 | BV77: =NPC!BV77-BASE!BV77 -> 0 | BW77: =NPC!BW77-BASE!BW77 -> 0 | BX77: =NPC!BX77-BASE!BX77 -> 0 | BY77: =NPC!BY77-BASE!BY77 -> 0 | BZ77: =NPC!BZ77-BASE!BZ77 -> 0 | CA77: =NPC!CA77-BASE!CA77 -> 0 | CB77: =NPC!CB77-BASE!CB77 -> 0 | CC77: =NPC!CC77-BASE!CC77 -> 0 | CD77: =NPC!CD77-BASE!CD77 -> 0 | CE77: =NPC!CE77-BASE!CE77 -> 0 | CF77: =NPC!CF77-BASE!CF77 -> 0 | CG77: =NPC!CG77-BASE!CG77 -> 0 | CH77: =NPC!CH77-BASE!CH77 -> 0 | CI77: =NPC!CI77-BASE!CI77 -> 0 | CJ77: =NPC!CJ77-BASE!CJ77 -> 0 | CK77: =NPC!CK77-BASE!CK77 -> 0 | CL77: =NPC!CL77-BASE!CL77 -> 0 | CM77: =NPC!CM77-BASE!CM77 -> 0 | CN77: =NPC!CN77-BASE!CN77 -> 0 | CO77: =NPC!CO77-BASE!CO77 -> 0 | CP77: =NPC!CP77-BASE!CP77 -> 0 | CQ77: =NPC!CQ77-BASE!CQ77 -> 0 | CR77: =NPC!CR77-BASE!CR77 -> 0 | CS77: =NPC!CS77-BASE!CS77 -> 0 | CT77: =NPC!CT77-BASE!CT77 -> 0 | CU77: =NPC!CU77-BASE!CU77 -> 0 | CV77: =NPC!CV77-BASE!CV77 -> 0 | CW77: =NPC!CW77-BASE!CW77 -> 0 | CX77: =NPC!CX77-BASE!CX77 -> 0 | CY77: =NPC!CY77-BASE!CY77 -> 0 | CZ77: =NPC!CZ77-BASE!CZ77 -> 0 | DA77: =NPC!DA77-BASE!DA77 -> 0 | DB77: =NPC!DB77-BASE!DB77 -> 0 | DC77: =NPC!DC77-BASE!DC77 -> 0 | DD77: =NPC!DD77-BASE!DD77 -> 0 | DE77: =NPC!DE77-BASE!DE77 -> 0 | DF77: =NPC!DF77-BASE!DF77 -> 0 | DG77: =NPC!DG77-BASE!DG77 -> 0 | DH77: =NPC!DH77-BASE!DH77 -> 0 | DI77: =NPC!DI77-BASE!DI77 -> 0 | DJ77: =NPC!DJ77-BASE!DJ77 -> 0 | DK77: =NPC!DK77-BASE!DK77 -> 0 | DL77: =NPC!DL77-BASE!DL77 -> 0 | DM77: =NPC!DM77-BASE!DM77 -> 0 | DN77: =NPC!DN77-BASE!DN77 -> 0 | DO77: =NPC!DO77-BASE!DO77 -> 0 | DP77: =NPC!DP77-BASE!DP77 -> 0 | DQ77: =NPC!DQ77-BASE!DQ77 -> 0 | DR77: =NPC!DR77-BASE!DR77 -> 0 | DS77: =NPC!DS77-BASE!DS77 -> 0 | DT77: =NPC!DT77-BASE!DT77 -> 0 | DU77: =NPC!DU77-BASE!DU77 -> 0 | DV77: =NPC!DV77-BASE!DV77 -> 0 | DW77: =NPC!DW77-BASE!DW77 -> 0 | DX77: =NPC!DX77-BASE!DX77 -> 0 | DY77: =NPC!DY77-BASE!DY77 -> 0 | DZ77: =NPC!DZ77-BASE!DZ77 -> 0 | EA77: =NPC!EA77-BASE!EA77 -> 0 | EB77: =NPC!EB77-BASE!EB77 -> 0 | EC77: =NPC!EC77-BASE!EC77 -> 0 | ED77: =NPC!ED77-BASE!ED77 -> 0 | ER77: =NPC!ER77 -> Hide Row
C78: =NPC!C78 -> Idaho Power p278538 | E78: =NPC!E78-BASE!E78 -> 0 | F78: =NPC!F78-BASE!F78 -> 0 | G78: =NPC!G78-BASE!G78 -> 0 | H78: =NPC!H78-BASE!H78 -> 0 | I78: =NPC!I78-BASE!I78 -> 0 | J78: =NPC!J78-BASE!J78 -> 0 | K78: =NPC!K78-BASE!K78 -> 0 | L78: =NPC!L78-BASE!L78 -> 0 | M78: =NPC!M78-BASE!M78 -> 0 | N78: =NPC!N78-BASE!N78 -> 0 | O78: =NPC!O78-BASE!O78 -> 0 | P78: =NPC!P78-BASE!P78 -> 0 | Q78: =NPC!Q78-BASE!Q78 -> 0 | R78: =NPC!R78-BASE!R78 -> 0 | S78: =NPC!S78-BASE!S78 -> 0 | T78: =NPC!T78-BASE!T78 -> 0 | U78: =NPC!U78-BASE!U78 -> 0 | V78: =NPC!V78-BASE!V78 -> 0 | W78: =NPC!W78-BASE!W78 -> 0 | X78: =NPC!X78-BASE!X78 -> 0 | Y78: =NPC!Y78-BASE!Y78 -> 0 | Z78: =NPC!Z78-BASE!Z78 -> 0 | AA78: =NPC!AA78-BASE!AA78 -> 0 | AB78: =NPC!AB78-BASE!AB78 -> 0 | AC78: =NPC!AC78-BASE!AC78 -> 0 | AD78: =NPC!AD78-BASE!AD78 -> 0 | AE78: =NPC!AE78-BASE!AE78 -> 0 | AF78: =NPC!AF78-BASE!AF78 -> 0 | AG78: =NPC!AG78-BASE!AG78 -> 0 | AH78: =NPC!AH78-BASE!AH78 -> 0 | AI78: =NPC!AI78-BASE!AI78 -> 0 | AJ78: =NPC!AJ78-BASE!AJ78 -> 0 | AK78: =NPC!AK78-BASE!AK78 -> 0 | AL78: =NPC!AL78-BASE!AL78 -> 0 | AM78: =NPC!AM78-BASE!AM78 -> 0 | AN78: =NPC!AN78-BASE!AN78 -> 0 | AO78: =NPC!AO78-BASE!AO78 -> 0 | AP78: =NPC!AP78-BASE!AP78 -> 0 | AQ78: =NPC!AQ78-BASE!AQ78 -> 0 | AR78: =NPC!AR78-BASE!AR78 -> 0 | AS78: =NPC!AS78-BASE!AS78 -> 0 | AT78: =NPC!AT78-BASE!AT78 -> 0 | AU78: =NPC!AU78-BASE!AU78 -> 0 | AV78: =NPC!AV78-BASE!AV78 -> 0 | AW78: =NPC!AW78-BASE!AW78 -> 0 | AX78: =NPC!AX78-BASE!AX78 -> 0 | AY78: =NPC!AY78-BASE!AY78 -> 0 | AZ78: =NPC!AZ78-BASE!AZ78 -> 0 | BA78: =NPC!BA78-BASE!BA78 -> 0 | BB78: =NPC!BB78-BASE!BB78 -> 0 | BC78: =NPC!BC78-BASE!BC78 -> 0 | BD78: =NPC!BD78-BASE!BD78 -> 0 | BE78: =NPC!BE78-BASE!BE78 -> 0 | BF78: =NPC!BF78-BASE!BF78 -> 0 | BG78: =NPC!BG78-BASE!BG78 -> 0 | BH78: =NPC!BH78-BASE!BH78 -> 0 | BI78: =NPC!BI78-BASE!BI78 -> 0 | BJ78: =NPC!BJ78-BASE!BJ78 -> 0 | BK78: =NPC!BK78-BASE!BK78 -> 0 | BL78: =NPC!BL78-BASE!BL78 -> 0 | BM78: =NPC!BM78-BASE!BM78 -> 0 | BN78: =NPC!BN78-BASE!BN78 -> 0 | BO78: =NPC!BO78-BASE!BO78 -> 0 | BP78: =NPC!BP78-BASE!BP78 -> 0 | BQ78: =NPC!BQ78-BASE!BQ78 -> 0 | BR78: =NPC!BR78-BASE!BR78 -> 0 | BS78: =NPC!BS78-BASE!BS78 -> 0 | BT78: =NPC!BT78-BASE!BT78 -> 0 | BU78: =NPC!BU78-BASE!BU78 -> 0 | BV78: =NPC!BV78-BASE!BV78 -> 0 | BW78: =NPC!BW78-BASE!BW78 -> 0 | BX78: =NPC!BX78-BASE!BX78 -> 0 | BY78: =NPC!BY78-BASE!BY78 -> 0 | BZ78: =NPC!BZ78-BASE!BZ78 -> 0 | CA78: =NPC!CA78-BASE!CA78 -> 0 | CB78: =NPC!CB78-BASE!CB78 -> 0 | CC78: =NPC!CC78-BASE!CC78 -> 0 | CD78: =NPC!CD78-BASE!CD78 -> 0 | CE78: =NPC!CE78-BASE!CE78 -> 0 | CF78: =NPC!CF78-BASE!CF78 -> 0 | CG78: =NPC!CG78-BASE!CG78 -> 0 | CH78: =NPC!CH78-BASE!CH78 -> 0 | CI78: =NPC!CI78-BASE!CI78 -> 0 | CJ78: =NPC!CJ78-BASE!CJ78 -> 0 | CK78: =NPC!CK78-BASE!CK78 -> 0 | CL78: =NPC!CL78-BASE!CL78 -> 0 | CM78: =NPC!CM78-BASE!CM78 -> 0 | CN78: =NPC!CN78-BASE!CN78 -> 0 | CO78: =NPC!CO78-BASE!CO78 -> 0 | CP78: =NPC!CP78-BASE!CP78 -> 0 | CQ78: =NPC!CQ78-BASE!CQ78 -> 0 | CR78: =NPC!CR78-BASE!CR78 -> 0 | CS78: =NPC!CS78-BASE!CS78 -> 0 | CT78: =NPC!CT78-BASE!CT78 -> 0 | CU78: =NPC!CU78-BASE!CU78 -> 0 | CV78: =NPC!CV78-BASE!CV78 -> 0 | CW78: =NPC!CW78-BASE!CW78 -> 0 | CX78: =NPC!CX78-BASE!CX78 -> 0 | CY78: =NPC!CY78-BASE!CY78 -> 0 | CZ78: =NPC!CZ78-BASE!CZ78 -> 0 | DA78: =NPC!DA78-BASE!DA78 -> 0 | DB78: =NPC!DB78-BASE!DB78 -> 0 | DC78: =NPC!DC78-BASE!DC78 -> 0 | DD78: =NPC!DD78-BASE!DD78 -> 0 | DE78: =NPC!DE78-BASE!DE78 -> 0 | DF78: =NPC!DF78-BASE!DF78 -> 0 | DG78: =NPC!DG78-BASE!DG78 -> 0 | DH78: =NPC!DH78-BASE!DH78 -> 0 | DI78: =NPC!DI78-BASE!DI78 -> 0 | DJ78: =NPC!DJ78-BASE!DJ78 -> 0 | DK78: =NPC!DK78-BASE!DK78 -> 0 | DL78: =NPC!DL78-BASE!DL78 -> 0 | DM78: =NPC!DM78-BASE!DM78 -> 0 | DN78: =NPC!DN78-BASE!DN78 -> 0 | DO78: =NPC!DO78-BASE!DO78 -> 0 | DP78: =NPC!DP78-BASE!DP78 -> 0 | DQ78: =NPC!DQ78-BASE!DQ78 -> 0 | DR78: =NPC!DR78-BASE!DR78 -> 0 | DS78: =NPC!DS78-BASE!DS78 -> 0 | DT78: =NPC!DT78-BASE!DT78 -> 0 | DU78: =NPC!DU78-BASE!DU78 -> 0 | DV78: =NPC!DV78-BASE!DV78 -> 0 | DW78: =NPC!DW78-BASE!DW78 -> 0 | DX78: =NPC!DX78-BASE!DX78 -> 0 | DY78: =NPC!DY78-BASE!DY78 -> 0 | DZ78: =NPC!DZ78-BASE!DZ78 -> 0 | EA78: =NPC!EA78-BASE!EA78 -> 0 | EB78: =NPC!EB78-BASE!EB78 -> 0 | EC78: =NPC!EC78-BASE!EC78 -> 0 | ED78: =NPC!ED78-BASE!ED78 -> 0 | ER78: =NPC!ER78 -> Hide Row
C79: =NPC!C79 -> IPP Purchase | E79: =NPC!E79-BASE!E79 -> 0 | F79: =NPC!F79-BASE!F79 -> 0 | G79: =NPC!G79-BASE!G79 -> 0 | H79: =NPC!H79-BASE!H79 -> 0 | I79: =NPC!I79-BASE!I79 -> 0 | J79: =NPC!J79-BASE!J79 -> 0 | K79: =NPC!K79-BASE!K79 -> 0 | L79: =NPC!L79-BASE!L79 -> 0 | M79: =NPC!M79-BASE!M79 -> 0 | N79: =NPC!N79-BASE!N79 -> 0 | O79: =NPC!O79-BASE!O79 -> 0 | P79: =NPC!P79-BASE!P79 -> 0 | Q79: =NPC!Q79-BASE!Q79 -> 0 | R79: =NPC!R79-BASE!R79 -> 0 | S79: =NPC!S79-BASE!S79 -> 0 | T79: =NPC!T79-BASE!T79 -> 0 | U79: =NPC!U79-BASE!U79 -> 0 | V79: =NPC!V79-BASE!V79 -> 0 | W79: =NPC!W79-BASE!W79 -> 0 | X79: =NPC!X79-BASE!X79 -> 0 | Y79: =NPC!Y79-BASE!Y79 -> 0 | Z79: =NPC!Z79-BASE!Z79 -> 0 | AA79: =NPC!AA79-BASE!AA79 -> 0 | AB79: =NPC!AB79-BASE!AB79 -> 0 | AC79: =NPC!AC79-BASE!AC79 -> 0 | AD79: =NPC!AD79-BASE!AD79 -> 0 | AE79: =NPC!AE79-BASE!AE79 -> 0 | AF79: =NPC!AF79-BASE!AF79 -> 0 | AG79: =NPC!AG79-BASE!AG79 -> 0 | AH79: =NPC!AH79-BASE!AH79 -> 0 | AI79: =NPC!AI79-BASE!AI79 -> 0 | AJ79: =NPC!AJ79-BASE!AJ79 -> 0 | AK79: =NPC!AK79-BASE!AK79 -> 0 | AL79: =NPC!AL79-BASE!AL79 -> 0 | AM79: =NPC!AM79-BASE!AM79 -> 0 | AN79: =NPC!AN79-BASE!AN79 -> 0 | AO79: =NPC!AO79-BASE!AO79 -> 0 | AP79: =NPC!AP79-BASE!AP79 -> 0 | AQ79: =NPC!AQ79-BASE!AQ79 -> 0 | AR79: =NPC!AR79-BASE!AR79 -> 0 | AS79: =NPC!AS79-BASE!AS79 -> 0 | AT79: =NPC!AT79-BASE!AT79 -> 0 | AU79: =NPC!AU79-BASE!AU79 -> 0 | AV79: =NPC!AV79-BASE!AV79 -> 0 | AW79: =NPC!AW79-BASE!AW79 -> 0 | AX79: =NPC!AX79-BASE!AX79 -> 0 | AY79: =NPC!AY79-BASE!AY79 -> 0 | AZ79: =NPC!AZ79-BASE!AZ79 -> 0 | BA79: =NPC!BA79-BASE!BA79 -> 0 | BB79: =NPC!BB79-BASE!BB79 -> 0 | BC79: =NPC!BC79-BASE!BC79 -> 0 | BD79: =NPC!BD79-BASE!BD79 -> 0 | BE79: =NPC!BE79-BASE!BE79 -> 0 | BF79: =NPC!BF79-BASE!BF79 -> 0 | BG79: =NPC!BG79-BASE!BG79 -> 0 | BH79: =NPC!BH79-BASE!BH79 -> 0 | BI79: =NPC!BI79-BASE!BI79 -> 0 | BJ79: =NPC!BJ79-BASE!BJ79 -> 0 | BK79: =NPC!BK79-BASE!BK79 -> 0 | BL79: =NPC!BL79-BASE!BL79 -> 0 | BM79: =NPC!BM79-BASE!BM79 -> 0 | BN79: =NPC!BN79-BASE!BN79 -> 0 | BO79: =NPC!BO79-BASE!BO79 -> 0 | BP79: =NPC!BP79-BASE!BP79 -> 0 | BQ79: =NPC!BQ79-BASE!BQ79 -> 0 | BR79: =NPC!BR79-BASE!BR79 -> 0 | BS79: =NPC!BS79-BASE!BS79 -> 0 | BT79: =NPC!BT79-BASE!BT79 -> 0 | BU79: =NPC!BU79-BASE!BU79 -> 0 | BV79: =NPC!BV79-BASE!BV79 -> 0 | BW79: =NPC!BW79-BASE!BW79 -> 0 | BX79: =NPC!BX79-BASE!BX79 -> 0 | BY79: =NPC!BY79-BASE!BY79 -> 0 | BZ79: =NPC!BZ79-BASE!BZ79 -> 0 | CA79: =NPC!CA79-BASE!CA79 -> 0 | CB79: =NPC!CB79-BASE!CB79 -> 0 | CC79: =NPC!CC79-BASE!CC79 -> 0 | CD79: =NPC!CD79-BASE!CD79 -> 0 | CE79: =NPC!CE79-BASE!CE79 -> 0 | CF79: =NPC!CF79-BASE!CF79 -> 0 | CG79: =NPC!CG79-BASE!CG79 -> 0 | CH79: =NPC!CH79-BASE!CH79 -> 0 | CI79: =NPC!CI79-BASE!CI79 -> 0 | CJ79: =NPC!CJ79-BASE!CJ79 -> 0 | CK79: =NPC!CK79-BASE!CK79 -> 0 | CL79: =NPC!CL79-BASE!CL79 -> 0 | CM79: =NPC!CM79-BASE!CM79 -> 0 | CN79: =NPC!CN79-BASE!CN79 -> 0 | CO79: =NPC!CO79-BASE!CO79 -> 0 | CP79: =NPC!CP79-BASE!CP79 -> 0 | CQ79: =NPC!CQ79-BASE!CQ79 -> 0 | CR79: =NPC!CR79-BASE!CR79 -> 0 | CS79: =NPC!CS79-BASE!CS79 -> 0 | CT79: =NPC!CT79-BASE!CT79 -> 0 | CU79: =NPC!CU79-BASE!CU79 -> 0 | CV79: =NPC!CV79-BASE!CV79 -> 0 | CW79: =NPC!CW79-BASE!CW79 -> 0 | CX79: =NPC!CX79-BASE!CX79 -> 0 | CY79: =NPC!CY79-BASE!CY79 -> 0 | CZ79: =NPC!CZ79-BASE!CZ79 -> 0 | DA79: =NPC!DA79-BASE!DA79 -> 0 | DB79: =NPC!DB79-BASE!DB79 -> 0 | DC79: =NPC!DC79-BASE!DC79 -> 0 | DD79: =NPC!DD79-BASE!DD79 -> 0 | DE79: =NPC!DE79-BASE!DE79 -> 0 | DF79: =NPC!DF79-BASE!DF79 -> 0 | DG79: =NPC!DG79-BASE!DG79 -> 0 | DH79: =NPC!DH79-BASE!DH79 -> 0 | DI79: =NPC!DI79-BASE!DI79 -> 0 | DJ79: =NPC!DJ79-BASE!DJ79 -> 0 | DK79: =NPC!DK79-BASE!DK79 -> 0 | DL79: =NPC!DL79-BASE!DL79 -> 0 | DM79: =NPC!DM79-BASE!DM79 -> 0 | DN79: =NPC!DN79-BASE!DN79 -> 0 | DO79: =NPC!DO79-BASE!DO79 -> 0 | DP79: =NPC!DP79-BASE!DP79 -> 0 | DQ79: =NPC!DQ79-BASE!DQ79 -> 0 | DR79: =NPC!DR79-BASE!DR79 -> 0 | DS79: =NPC!DS79-BASE!DS79 -> 0 | DT79: =NPC!DT79-BASE!DT79 -> 0 | DU79: =NPC!DU79-BASE!DU79 -> 0 | DV79: =NPC!DV79-BASE!DV79 -> 0 | DW79: =NPC!DW79-BASE!DW79 -> 0 | DX79: =NPC!DX79-BASE!DX79 -> 0 | DY79: =NPC!DY79-BASE!DY79 -> 0 | DZ79: =NPC!DZ79-BASE!DZ79 -> 0 | EA79: =NPC!EA79-BASE!EA79 -> 0 | EB79: =NPC!EB79-BASE!EB79 -> 0 | EC79: =NPC!EC79-BASE!EC79 -> 0 | ED79: =NPC!ED79-BASE!ED79 -> 0 | ER79: =NPC!ER79 -> -
C80: =NPC!C80 -> Kennecott Generation Incentive | E80: =NPC!E80-BASE!E80 -> 0 | F80: =NPC!F80-BASE!F80 -> 0 | G80: =NPC!G80-BASE!G80 -> 0 | H80: =NPC!H80-BASE!H80 -> 0 | I80: =NPC!I80-BASE!I80 -> 0 | J80: =NPC!J80-BASE!J80 -> 0 | K80: =NPC!K80-BASE!K80 -> 0 | L80: =NPC!L80-BASE!L80 -> 0 | M80: =NPC!M80-BASE!M80 -> 0 | N80: =NPC!N80-BASE!N80 -> 0 | O80: =NPC!O80-BASE!O80 -> 0 | P80: =NPC!P80-BASE!P80 -> 0 | Q80: =NPC!Q80-BASE!Q80 -> 0 | R80: =NPC!R80-BASE!R80 -> 0 | S80: =NPC!S80-BASE!S80 -> 0 | T80: =NPC!T80-BASE!T80 -> 0 | U80: =NPC!U80-BASE!U80 -> 0 | V80: =NPC!V80-BASE!V80 -> 0 | W80: =NPC!W80-BASE!W80 -> 0 | X80: =NPC!X80-BASE!X80 -> 0 | Y80: =NPC!Y80-BASE!Y80 -> 0 | Z80: =NPC!Z80-BASE!Z80 -> 0 | AA80: =NPC!AA80-BASE!AA80 -> 0 | AB80: =NPC!AB80-BASE!AB80 -> 0 | AC80: =NPC!AC80-BASE!AC80 -> 0 | AD80: =NPC!AD80-BASE!AD80 -> 0 | AE80: =NPC!AE80-BASE!AE80 -> 0 | AF80: =NPC!AF80-BASE!AF80 -> 0 | AG80: =NPC!AG80-BASE!AG80 -> 0 | AH80: =NPC!AH80-BASE!AH80 -> 0 | AI80: =NPC!AI80-BASE!AI80 -> 0 | AJ80: =NPC!AJ80-BASE!AJ80 -> 0 | AK80: =NPC!AK80-BASE!AK80 -> 0 | AL80: =NPC!AL80-BASE!AL80 -> 0 | AM80: =NPC!AM80-BASE!AM80 -> 0 | AN80: =NPC!AN80-BASE!AN80 -> 0 | AO80: =NPC!AO80-BASE!AO80 -> 0 | AP80: =NPC!AP80-BASE!AP80 -> 0 | AQ80: =NPC!AQ80-BASE!AQ80 -> 0 | AR80: =NPC!AR80-BASE!AR80 -> 0 | AS80: =NPC!AS80-BASE!AS80 -> 0 | AT80: =NPC!AT80-BASE!AT80 -> 0 | AU80: =NPC!AU80-BASE!AU80 -> 0 | AV80: =NPC!AV80-BASE!AV80 -> 0 | AW80: =NPC!AW80-BASE!AW80 -> 0 | AX80: =NPC!AX80-BASE!AX80 -> 0 | AY80: =NPC!AY80-BASE!AY80 -> 0 | AZ80: =NPC!AZ80-BASE!AZ80 -> 0 | BA80: =NPC!BA80-BASE!BA80 -> 0 | BB80: =NPC!BB80-BASE!BB80 -> 0 | BC80: =NPC!BC80-BASE!BC80 -> 0 | BD80: =NPC!BD80-BASE!BD80 -> 0 | BE80: =NPC!BE80-BASE!BE80 -> 0 | BF80: =NPC!BF80-BASE!BF80 -> 0 | BG80: =NPC!BG80-BASE!BG80 -> 0 | BH80: =NPC!BH80-BASE!BH80 -> 0 | BI80: =NPC!BI80-BASE!BI80 -> 0 | BJ80: =NPC!BJ80-BASE!BJ80 -> 0 | BK80: =NPC!BK80-BASE!BK80 -> 0 | BL80: =NPC!BL80-BASE!BL80 -> 0 | BM80: =NPC!BM80-BASE!BM80 -> 0 | BN80: =NPC!BN80-BASE!BN80 -> 0 | BO80: =NPC!BO80-BASE!BO80 -> 0 | BP80: =NPC!BP80-BASE!BP80 -> 0 | BQ80: =NPC!BQ80-BASE!BQ80 -> 0 | BR80: =NPC!BR80-BASE!BR80 -> 0 | BS80: =NPC!BS80-BASE!BS80 -> 0 | BT80: =NPC!BT80-BASE!BT80 -> 0 | BU80: =NPC!BU80-BASE!BU80 -> 0 | BV80: =NPC!BV80-BASE!BV80 -> 0 | BW80: =NPC!BW80-BASE!BW80 -> 0 | BX80: =NPC!BX80-BASE!BX80 -> 0 | BY80: =NPC!BY80-BASE!BY80 -> 0 | BZ80: =NPC!BZ80-BASE!BZ80 -> 0 | CA80: =NPC!CA80-BASE!CA80 -> 0 | CB80: =NPC!CB80-BASE!CB80 -> 0 | CC80: =NPC!CC80-BASE!CC80 -> 0 | CD80: =NPC!CD80-BASE!CD80 -> 0 | CE80: =NPC!CE80-BASE!CE80 -> 0 | CF80: =NPC!CF80-BASE!CF80 -> 0 | CG80: =NPC!CG80-BASE!CG80 -> 0 | CH80: =NPC!CH80-BASE!CH80 -> 0 | CI80: =NPC!CI80-BASE!CI80 -> 0 | CJ80: =NPC!CJ80-BASE!CJ80 -> 0 | CK80: =NPC!CK80-BASE!CK80 -> 0 | CL80: =NPC!CL80-BASE!CL80 -> 0 | CM80: =NPC!CM80-BASE!CM80 -> 0 | CN80: =NPC!CN80-BASE!CN80 -> 0 | CO80: =NPC!CO80-BASE!CO80 -> 0 | CP80: =NPC!CP80-BASE!CP80 -> 0 | CQ80: =NPC!CQ80-BASE!CQ80 -> 0 | CR80: =NPC!CR80-BASE!CR80 -> 0 | CS80: =NPC!CS80-BASE!CS80 -> 0 | CT80: =NPC!CT80-BASE!CT80 -> 0 | CU80: =NPC!CU80-BASE!CU80 -> 0 | CV80: =NPC!CV80-BASE!CV80 -> 0 | CW80: =NPC!CW80-BASE!CW80 -> 0 | CX80: =NPC!CX80-BASE!CX80 -> 0 | CY80: =NPC!CY80-BASE!CY80 -> 0 | CZ80: =NPC!CZ80-BASE!CZ80 -> 0 | DA80: =NPC!DA80-BASE!DA80 -> 0 | DB80: =NPC!DB80-BASE!DB80 -> 0 | DC80: =NPC!DC80-BASE!DC80 -> 0 | DD80: =NPC!DD80-BASE!DD80 -> 0 | DE80: =NPC!DE80-BASE!DE80 -> 0 | DF80: =NPC!DF80-BASE!DF80 -> 0 | DG80: =NPC!DG80-BASE!DG80 -> 0 | DH80: =NPC!DH80-BASE!DH80 -> 0 | DI80: =NPC!DI80-BASE!DI80 -> 0 | DJ80: =NPC!DJ80-BASE!DJ80 -> 0 | DK80: =NPC!DK80-BASE!DK80 -> 0 | DL80: =NPC!DL80-BASE!DL80 -> 0 | DM80: =NPC!DM80-BASE!DM80 -> 0 | DN80: =NPC!DN80-BASE!DN80 -> 0 | DO80: =NPC!DO80-BASE!DO80 -> 0 | DP80: =NPC!DP80-BASE!DP80 -> 0 | DQ80: =NPC!DQ80-BASE!DQ80 -> 0 | DR80: =NPC!DR80-BASE!DR80 -> 0 | DS80: =NPC!DS80-BASE!DS80 -> 0 | DT80: =NPC!DT80-BASE!DT80 -> 0 | DU80: =NPC!DU80-BASE!DU80 -> 0 | DV80: =NPC!DV80-BASE!DV80 -> 0 | DW80: =NPC!DW80-BASE!DW80 -> 0 | DX80: =NPC!DX80-BASE!DX80 -> 0 | DY80: =NPC!DY80-BASE!DY80 -> 0 | DZ80: =NPC!DZ80-BASE!DZ80 -> 0 | EA80: =NPC!EA80-BASE!EA80 -> 0 | EB80: =NPC!EB80-BASE!EB80 -> 0 | EC80: =NPC!EC80-BASE!EC80 -> 0 | ED80: =NPC!ED80-BASE!ED80 -> 0 | ER80: =NPC!ER80 -> Hide Row
C81: =NPC!C81 -> LADWP p491303-4 | E81: =NPC!E81-BASE!E81 -> 0 | F81: =NPC!F81-BASE!F81 -> 0 | G81: =NPC!G81-BASE!G81 -> 0 | H81: =NPC!H81-BASE!H81 -> 0 | I81: =NPC!I81-BASE!I81 -> 0 | J81: =NPC!J81-BASE!J81 -> 0 | K81: =NPC!K81-BASE!K81 -> 0 | L81: =NPC!L81-BASE!L81 -> 0 | M81: =NPC!M81-BASE!M81 -> 0 | N81: =NPC!N81-BASE!N81 -> 0 | O81: =NPC!O81-BASE!O81 -> 0 | P81: =NPC!P81-BASE!P81 -> 0 | Q81: =NPC!Q81-BASE!Q81 -> 0 | R81: =NPC!R81-BASE!R81 -> 0 | S81: =NPC!S81-BASE!S81 -> 0 | T81: =NPC!T81-BASE!T81 -> 0 | U81: =NPC!U81-BASE!U81 -> 0 | V81: =NPC!V81-BASE!V81 -> 0 | W81: =NPC!W81-BASE!W81 -> 0 | X81: =NPC!X81-BASE!X81 -> 0 | Y81: =NPC!Y81-BASE!Y81 -> 0 | Z81: =NPC!Z81-BASE!Z81 -> 0 | AA81: =NPC!AA81-BASE!AA81 -> 0 | AB81: =NPC!AB81-BASE!AB81 -> 0 | AC81: =NPC!AC81-BASE!AC81 -> 0 | AD81: =NPC!AD81-BASE!AD81 -> 0 | AE81: =NPC!AE81-BASE!AE81 -> 0 | AF81: =NPC!AF81-BASE!AF81 -> 0 | AG81: =NPC!AG81-BASE!AG81 -> 0 | AH81: =NPC!AH81-BASE!AH81 -> 0 | AI81: =NPC!AI81-BASE!AI81 -> 0 | AJ81: =NPC!AJ81-BASE!AJ81 -> 0 | AK81: =NPC!AK81-BASE!AK81 -> 0 | AL81: =NPC!AL81-BASE!AL81 -> 0 | AM81: =NPC!AM81-BASE!AM81 -> 0 | AN81: =NPC!AN81-BASE!AN81 -> 0 | AO81: =NPC!AO81-BASE!AO81 -> 0 | AP81: =NPC!AP81-BASE!AP81 -> 0 | AQ81: =NPC!AQ81-BASE!AQ81 -> 0 | AR81: =NPC!AR81-BASE!AR81 -> 0 | AS81: =NPC!AS81-BASE!AS81 -> 0 | AT81: =NPC!AT81-BASE!AT81 -> 0 | AU81: =NPC!AU81-BASE!AU81 -> 0 | AV81: =NPC!AV81-BASE!AV81 -> 0 | AW81: =NPC!AW81-BASE!AW81 -> 0 | AX81: =NPC!AX81-BASE!AX81 -> 0 | AY81: =NPC!AY81-BASE!AY81 -> 0 | AZ81: =NPC!AZ81-BASE!AZ81 -> 0 | BA81: =NPC!BA81-BASE!BA81 -> 0 | BB81: =NPC!BB81-BASE!BB81 -> 0 | BC81: =NPC!BC81-BASE!BC81 -> 0 | BD81: =NPC!BD81-BASE!BD81 -> 0 | BE81: =NPC!BE81-BASE!BE81 -> 0 | BF81: =NPC!BF81-BASE!BF81 -> 0 | BG81: =NPC!BG81-BASE!BG81 -> 0 | BH81: =NPC!BH81-BASE!BH81 -> 0 | BI81: =NPC!BI81-BASE!BI81 -> 0 | BJ81: =NPC!BJ81-BASE!BJ81 -> 0 | BK81: =NPC!BK81-BASE!BK81 -> 0 | BL81: =NPC!BL81-BASE!BL81 -> 0 | BM81: =NPC!BM81-BASE!BM81 -> 0 | BN81: =NPC!BN81-BASE!BN81 -> 0 | BO81: =NPC!BO81-BASE!BO81 -> 0 | BP81: =NPC!BP81-BASE!BP81 -> 0 | BQ81: =NPC!BQ81-BASE!BQ81 -> 0 | BR81: =NPC!BR81-BASE!BR81 -> 0 | BS81: =NPC!BS81-BASE!BS81 -> 0 | BT81: =NPC!BT81-BASE!BT81 -> 0 | BU81: =NPC!BU81-BASE!BU81 -> 0 | BV81: =NPC!BV81-BASE!BV81 -> 0 | BW81: =NPC!BW81-BASE!BW81 -> 0 | BX81: =NPC!BX81-BASE!BX81 -> 0 | BY81: =NPC!BY81-BASE!BY81 -> 0 | BZ81: =NPC!BZ81-BASE!BZ81 -> 0 | CA81: =NPC!CA81-BASE!CA81 -> 0 | CB81: =NPC!CB81-BASE!CB81 -> 0 | CC81: =NPC!CC81-BASE!CC81 -> 0 | CD81: =NPC!CD81-BASE!CD81 -> 0 | CE81: =NPC!CE81-BASE!CE81 -> 0 | CF81: =NPC!CF81-BASE!CF81 -> 0 | CG81: =NPC!CG81-BASE!CG81 -> 0 | CH81: =NPC!CH81-BASE!CH81 -> 0 | CI81: =NPC!CI81-BASE!CI81 -> 0 | CJ81: =NPC!CJ81-BASE!CJ81 -> 0 | CK81: =NPC!CK81-BASE!CK81 -> 0 | CL81: =NPC!CL81-BASE!CL81 -> 0 | CM81: =NPC!CM81-BASE!CM81 -> 0 | CN81: =NPC!CN81-BASE!CN81 -> 0 | CO81: =NPC!CO81-BASE!CO81 -> 0 | CP81: =NPC!CP81-BASE!CP81 -> 0 | CQ81: =NPC!CQ81-BASE!CQ81 -> 0 | CR81: =NPC!CR81-BASE!CR81 -> 0 | CS81: =NPC!CS81-BASE!CS81 -> 0 | CT81: =NPC!CT81-BASE!CT81 -> 0 | CU81: =NPC!CU81-BASE!CU81 -> 0 | CV81: =NPC!CV81-BASE!CV81 -> 0 | CW81: =NPC!CW81-BASE!CW81 -> 0 | CX81: =NPC!CX81-BASE!CX81 -> 0 | CY81: =NPC!CY81-BASE!CY81 -> 0 | CZ81: =NPC!CZ81-BASE!CZ81 -> 0 | DA81: =NPC!DA81-BASE!DA81 -> 0 | DB81: =NPC!DB81-BASE!DB81 -> 0 | DC81: =NPC!DC81-BASE!DC81 -> 0 | DD81: =NPC!DD81-BASE!DD81 -> 0 | DE81: =NPC!DE81-BASE!DE81 -> 0 | DF81: =NPC!DF81-BASE!DF81 -> 0 | DG81: =NPC!DG81-BASE!DG81 -> 0 | DH81: =NPC!DH81-BASE!DH81 -> 0 | DI81: =NPC!DI81-BASE!DI81 -> 0 | DJ81: =NPC!DJ81-BASE!DJ81 -> 0 | DK81: =NPC!DK81-BASE!DK81 -> 0 | DL81: =NPC!DL81-BASE!DL81 -> 0 | DM81: =NPC!DM81-BASE!DM81 -> 0 | DN81: =NPC!DN81-BASE!DN81 -> 0 | DO81: =NPC!DO81-BASE!DO81 -> 0 | DP81: =NPC!DP81-BASE!DP81 -> 0 | DQ81: =NPC!DQ81-BASE!DQ81 -> 0 | DR81: =NPC!DR81-BASE!DR81 -> 0 | DS81: =NPC!DS81-BASE!DS81 -> 0 | DT81: =NPC!DT81-BASE!DT81 -> 0 | DU81: =NPC!DU81-BASE!DU81 -> 0 | DV81: =NPC!DV81-BASE!DV81 -> 0 | DW81: =NPC!DW81-BASE!DW81 -> 0 | DX81: =NPC!DX81-BASE!DX81 -> 0 | DY81: =NPC!DY81-BASE!DY81 -> 0 | DZ81: =NPC!DZ81-BASE!DZ81 -> 0 | EA81: =NPC!EA81-BASE!EA81 -> 0 | EB81: =NPC!EB81-BASE!EB81 -> 0 | EC81: =NPC!EC81-BASE!EC81 -> 0 | ED81: =NPC!ED81-BASE!ED81 -> 0 | ER81: =NPC!ER81 -> Hide Row
C82: =NPC!C82 -> MagCorp p229846 | E82: =NPC!E82-BASE!E82 -> 0 | F82: =NPC!F82-BASE!F82 -> 0 | G82: =NPC!G82-BASE!G82 -> 0 | H82: =NPC!H82-BASE!H82 -> 0 | I82: =NPC!I82-BASE!I82 -> 0 | J82: =NPC!J82-BASE!J82 -> 0 | K82: =NPC!K82-BASE!K82 -> 0 | L82: =NPC!L82-BASE!L82 -> 0 | M82: =NPC!M82-BASE!M82 -> 0 | N82: =NPC!N82-BASE!N82 -> 0 | O82: =NPC!O82-BASE!O82 -> 0 | P82: =NPC!P82-BASE!P82 -> 0 | Q82: =NPC!Q82-BASE!Q82 -> 0 | R82: =NPC!R82-BASE!R82 -> 0 | S82: =NPC!S82-BASE!S82 -> 0 | T82: =NPC!T82-BASE!T82 -> 0 | U82: =NPC!U82-BASE!U82 -> 0 | V82: =NPC!V82-BASE!V82 -> 0 | W82: =NPC!W82-BASE!W82 -> 0 | X82: =NPC!X82-BASE!X82 -> 0 | Y82: =NPC!Y82-BASE!Y82 -> 0 | Z82: =NPC!Z82-BASE!Z82 -> 0 | AA82: =NPC!AA82-BASE!AA82 -> 0 | AB82: =NPC!AB82-BASE!AB82 -> 0 | AC82: =NPC!AC82-BASE!AC82 -> 0 | AD82: =NPC!AD82-BASE!AD82 -> 0 | AE82: =NPC!AE82-BASE!AE82 -> 0 | AF82: =NPC!AF82-BASE!AF82 -> 0 | AG82: =NPC!AG82-BASE!AG82 -> 0 | AH82: =NPC!AH82-BASE!AH82 -> 0 | AI82: =NPC!AI82-BASE!AI82 -> 0 | AJ82: =NPC!AJ82-BASE!AJ82 -> 0 | AK82: =NPC!AK82-BASE!AK82 -> 0 | AL82: =NPC!AL82-BASE!AL82 -> 0 | AM82: =NPC!AM82-BASE!AM82 -> 0 | AN82: =NPC!AN82-BASE!AN82 -> 0 | AO82: =NPC!AO82-BASE!AO82 -> 0 | AP82: =NPC!AP82-BASE!AP82 -> 0 | AQ82: =NPC!AQ82-BASE!AQ82 -> 0 | AR82: =NPC!AR82-BASE!AR82 -> 0 | AS82: =NPC!AS82-BASE!AS82 -> 0 | AT82: =NPC!AT82-BASE!AT82 -> 0 | AU82: =NPC!AU82-BASE!AU82 -> 0 | AV82: =NPC!AV82-BASE!AV82 -> 0 | AW82: =NPC!AW82-BASE!AW82 -> 0 | AX82: =NPC!AX82-BASE!AX82 -> 0 | AY82: =NPC!AY82-BASE!AY82 -> 0 | AZ82: =NPC!AZ82-BASE!AZ82 -> 0 | BA82: =NPC!BA82-BASE!BA82 -> 0 | BB82: =NPC!BB82-BASE!BB82 -> 0 | BC82: =NPC!BC82-BASE!BC82 -> 0 | BD82: =NPC!BD82-BASE!BD82 -> 0 | BE82: =NPC!BE82-BASE!BE82 -> 0 | BF82: =NPC!BF82-BASE!BF82 -> 0 | BG82: =NPC!BG82-BASE!BG82 -> 0 | BH82: =NPC!BH82-BASE!BH82 -> 0 | BI82: =NPC!BI82-BASE!BI82 -> 0 | BJ82: =NPC!BJ82-BASE!BJ82 -> 0 | BK82: =NPC!BK82-BASE!BK82 -> 0 | BL82: =NPC!BL82-BASE!BL82 -> 0 | BM82: =NPC!BM82-BASE!BM82 -> 0 | BN82: =NPC!BN82-BASE!BN82 -> 0 | BO82: =NPC!BO82-BASE!BO82 -> 0 | BP82: =NPC!BP82-BASE!BP82 -> 0 | BQ82: =NPC!BQ82-BASE!BQ82 -> 0 | BR82: =NPC!BR82-BASE!BR82 -> 0 | BS82: =NPC!BS82-BASE!BS82 -> 0 | BT82: =NPC!BT82-BASE!BT82 -> 0 | BU82: =NPC!BU82-BASE!BU82 -> 0 | BV82: =NPC!BV82-BASE!BV82 -> 0 | BW82: =NPC!BW82-BASE!BW82 -> 0 | BX82: =NPC!BX82-BASE!BX82 -> 0 | BY82: =NPC!BY82-BASE!BY82 -> 0 | BZ82: =NPC!BZ82-BASE!BZ82 -> 0 | CA82: =NPC!CA82-BASE!CA82 -> 0 | CB82: =NPC!CB82-BASE!CB82 -> 0 | CC82: =NPC!CC82-BASE!CC82 -> 0 | CD82: =NPC!CD82-BASE!CD82 -> 0 | CE82: =NPC!CE82-BASE!CE82 -> 0 | CF82: =NPC!CF82-BASE!CF82 -> 0 | CG82: =NPC!CG82-BASE!CG82 -> 0 | CH82: =NPC!CH82-BASE!CH82 -> 0 | CI82: =NPC!CI82-BASE!CI82 -> 0 | CJ82: =NPC!CJ82-BASE!CJ82 -> 0 | CK82: =NPC!CK82-BASE!CK82 -> 0 | CL82: =NPC!CL82-BASE!CL82 -> 0 | CM82: =NPC!CM82-BASE!CM82 -> 0 | CN82: =NPC!CN82-BASE!CN82 -> 0 | CO82: =NPC!CO82-BASE!CO82 -> 0 | CP82: =NPC!CP82-BASE!CP82 -> 0 | CQ82: =NPC!CQ82-BASE!CQ82 -> 0 | CR82: =NPC!CR82-BASE!CR82 -> 0 | CS82: =NPC!CS82-BASE!CS82 -> 0 | CT82: =NPC!CT82-BASE!CT82 -> 0 | CU82: =NPC!CU82-BASE!CU82 -> 0 | CV82: =NPC!CV82-BASE!CV82 -> 0 | CW82: =NPC!CW82-BASE!CW82 -> 0 | CX82: =NPC!CX82-BASE!CX82 -> 0 | CY82: =NPC!CY82-BASE!CY82 -> 0 | CZ82: =NPC!CZ82-BASE!CZ82 -> 0 | DA82: =NPC!DA82-BASE!DA82 -> 0 | DB82: =NPC!DB82-BASE!DB82 -> 0 | DC82: =NPC!DC82-BASE!DC82 -> 0 | DD82: =NPC!DD82-BASE!DD82 -> 0 | DE82: =NPC!DE82-BASE!DE82 -> 0 | DF82: =NPC!DF82-BASE!DF82 -> 0 | DG82: =NPC!DG82-BASE!DG82 -> 0 | DH82: =NPC!DH82-BASE!DH82 -> 0 | DI82: =NPC!DI82-BASE!DI82 -> 0 | DJ82: =NPC!DJ82-BASE!DJ82 -> 0 | DK82: =NPC!DK82-BASE!DK82 -> 0 | DL82: =NPC!DL82-BASE!DL82 -> 0 | DM82: =NPC!DM82-BASE!DM82 -> 0 | DN82: =NPC!DN82-BASE!DN82 -> 0 | DO82: =NPC!DO82-BASE!DO82 -> 0 | DP82: =NPC!DP82-BASE!DP82 -> 0 | DQ82: =NPC!DQ82-BASE!DQ82 -> 0 | DR82: =NPC!DR82-BASE!DR82 -> 0 | DS82: =NPC!DS82-BASE!DS82 -> 0 | DT82: =NPC!DT82-BASE!DT82 -> 0 | DU82: =NPC!DU82-BASE!DU82 -> 0 | DV82: =NPC!DV82-BASE!DV82 -> 0 | DW82: =NPC!DW82-BASE!DW82 -> 0 | DX82: =NPC!DX82-BASE!DX82 -> 0 | DY82: =NPC!DY82-BASE!DY82 -> 0 | DZ82: =NPC!DZ82-BASE!DZ82 -> 0 | EA82: =NPC!EA82-BASE!EA82 -> 0 | EB82: =NPC!EB82-BASE!EB82 -> 0 | EC82: =NPC!EC82-BASE!EC82 -> 0 | ED82: =NPC!ED82-BASE!ED82 -> 0 | ER82: =NPC!ER82 -> Hide Row
C83: =NPC!C83 -> MagCorp Reserves p510378 | E83: =NPC!E83-BASE!E83 -> 0 | F83: =NPC!F83-BASE!F83 -> 0 | G83: =NPC!G83-BASE!G83 -> 0 | H83: =NPC!H83-BASE!H83 -> 0 | I83: =NPC!I83-BASE!I83 -> 0 | J83: =NPC!J83-BASE!J83 -> 0 | K83: =NPC!K83-BASE!K83 -> 0 | L83: =NPC!L83-BASE!L83 -> 0 | M83: =NPC!M83-BASE!M83 -> 0 | N83: =NPC!N83-BASE!N83 -> 0 | O83: =NPC!O83-BASE!O83 -> 0 | P83: =NPC!P83-BASE!P83 -> 0 | Q83: =NPC!Q83-BASE!Q83 -> 0 | R83: =NPC!R83-BASE!R83 -> 0 | S83: =NPC!S83-BASE!S83 -> 0 | T83: =NPC!T83-BASE!T83 -> 0 | U83: =NPC!U83-BASE!U83 -> 0 | V83: =NPC!V83-BASE!V83 -> 0 | W83: =NPC!W83-BASE!W83 -> 0 | X83: =NPC!X83-BASE!X83 -> 0 | Y83: =NPC!Y83-BASE!Y83 -> 0 | Z83: =NPC!Z83-BASE!Z83 -> 0 | AA83: =NPC!AA83-BASE!AA83 -> 0 | AB83: =NPC!AB83-BASE!AB83 -> 0 | AC83: =NPC!AC83-BASE!AC83 -> 0 | AD83: =NPC!AD83-BASE!AD83 -> 0 | AE83: =NPC!AE83-BASE!AE83 -> 0 | AF83: =NPC!AF83-BASE!AF83 -> 0 | AG83: =NPC!AG83-BASE!AG83 -> 0 | AH83: =NPC!AH83-BASE!AH83 -> 0 | AI83: =NPC!AI83-BASE!AI83 -> 0 | AJ83: =NPC!AJ83-BASE!AJ83 -> 0 | AK83: =NPC!AK83-BASE!AK83 -> 0 | AL83: =NPC!AL83-BASE!AL83 -> 0 | AM83: =NPC!AM83-BASE!AM83 -> 0 | AN83: =NPC!AN83-BASE!AN83 -> 0 | AO83: =NPC!AO83-BASE!AO83 -> 0 | AP83: =NPC!AP83-BASE!AP83 -> 0 | AQ83: =NPC!AQ83-BASE!AQ83 -> 0 | AR83: =NPC!AR83-BASE!AR83 -> 0 | AS83: =NPC!AS83-BASE!AS83 -> 0 | AT83: =NPC!AT83-BASE!AT83 -> 0 | AU83: =NPC!AU83-BASE!AU83 -> 0 | AV83: =NPC!AV83-BASE!AV83 -> 0 | AW83: =NPC!AW83-BASE!AW83 -> 0 | AX83: =NPC!AX83-BASE!AX83 -> 0 | AY83: =NPC!AY83-BASE!AY83 -> 0 | AZ83: =NPC!AZ83-BASE!AZ83 -> 0 | BA83: =NPC!BA83-BASE!BA83 -> 0 | BB83: =NPC!BB83-BASE!BB83 -> 0 | BC83: =NPC!BC83-BASE!BC83 -> 0 | BD83: =NPC!BD83-BASE!BD83 -> 0 | BE83: =NPC!BE83-BASE!BE83 -> 0 | BF83: =NPC!BF83-BASE!BF83 -> 0 | BG83: =NPC!BG83-BASE!BG83 -> 0 | BH83: =NPC!BH83-BASE!BH83 -> 0 | BI83: =NPC!BI83-BASE!BI83 -> 0 | BJ83: =NPC!BJ83-BASE!BJ83 -> 0 | BK83: =NPC!BK83-BASE!BK83 -> 0 | BL83: =NPC!BL83-BASE!BL83 -> 0 | BM83: =NPC!BM83-BASE!BM83 -> 0 | BN83: =NPC!BN83-BASE!BN83 -> 0 | BO83: =NPC!BO83-BASE!BO83 -> 0 | BP83: =NPC!BP83-BASE!BP83 -> 0 | BQ83: =NPC!BQ83-BASE!BQ83 -> 0 | BR83: =NPC!BR83-BASE!BR83 -> 0 | BS83: =NPC!BS83-BASE!BS83 -> 0 | BT83: =NPC!BT83-BASE!BT83 -> 0 | BU83: =NPC!BU83-BASE!BU83 -> 0 | BV83: =NPC!BV83-BASE!BV83 -> 0 | BW83: =NPC!BW83-BASE!BW83 -> 0 | BX83: =NPC!BX83-BASE!BX83 -> 0 | BY83: =NPC!BY83-BASE!BY83 -> 0 | BZ83: =NPC!BZ83-BASE!BZ83 -> 0 | CA83: =NPC!CA83-BASE!CA83 -> 0 | CB83: =NPC!CB83-BASE!CB83 -> 0 | CC83: =NPC!CC83-BASE!CC83 -> 0 | CD83: =NPC!CD83-BASE!CD83 -> 0 | CE83: =NPC!CE83-BASE!CE83 -> 0 | CF83: =NPC!CF83-BASE!CF83 -> 0 | CG83: =NPC!CG83-BASE!CG83 -> 0 | CH83: =NPC!CH83-BASE!CH83 -> 0 | CI83: =NPC!CI83-BASE!CI83 -> 0 | CJ83: =NPC!CJ83-BASE!CJ83 -> 0 | CK83: =NPC!CK83-BASE!CK83 -> 0 | CL83: =NPC!CL83-BASE!CL83 -> 0 | CM83: =NPC!CM83-BASE!CM83 -> 0 | CN83: =NPC!CN83-BASE!CN83 -> 0 | CO83: =NPC!CO83-BASE!CO83 -> 0 | CP83: =NPC!CP83-BASE!CP83 -> 0 | CQ83: =NPC!CQ83-BASE!CQ83 -> 0 | CR83: =NPC!CR83-BASE!CR83 -> 0 | CS83: =NPC!CS83-BASE!CS83 -> 0 | CT83: =NPC!CT83-BASE!CT83 -> 0 | CU83: =NPC!CU83-BASE!CU83 -> 0 | CV83: =NPC!CV83-BASE!CV83 -> 0 | CW83: =NPC!CW83-BASE!CW83 -> 0 | CX83: =NPC!CX83-BASE!CX83 -> 0 | CY83: =NPC!CY83-BASE!CY83 -> 0 | CZ83: =NPC!CZ83-BASE!CZ83 -> 0 | DA83: =NPC!DA83-BASE!DA83 -> 0 | DB83: =NPC!DB83-BASE!DB83 -> 0 | DC83: =NPC!DC83-BASE!DC83 -> 0 | DD83: =NPC!DD83-BASE!DD83 -> 0 | DE83: =NPC!DE83-BASE!DE83 -> 0 | DF83: =NPC!DF83-BASE!DF83 -> 0 | DG83: =NPC!DG83-BASE!DG83 -> 0 | DH83: =NPC!DH83-BASE!DH83 -> 0 | DI83: =NPC!DI83-BASE!DI83 -> 0 | DJ83: =NPC!DJ83-BASE!DJ83 -> 0 | DK83: =NPC!DK83-BASE!DK83 -> 0 | DL83: =NPC!DL83-BASE!DL83 -> 0 | DM83: =NPC!DM83-BASE!DM83 -> 0 | DN83: =NPC!DN83-BASE!DN83 -> 0 | DO83: =NPC!DO83-BASE!DO83 -> 0 | DP83: =NPC!DP83-BASE!DP83 -> 0 | DQ83: =NPC!DQ83-BASE!DQ83 -> 0 | DR83: =NPC!DR83-BASE!DR83 -> 0 | DS83: =NPC!DS83-BASE!DS83 -> 0 | DT83: =NPC!DT83-BASE!DT83 -> 0 | DU83: =NPC!DU83-BASE!DU83 -> 0 | DV83: =NPC!DV83-BASE!DV83 -> 0 | DW83: =NPC!DW83-BASE!DW83 -> 0 | DX83: =NPC!DX83-BASE!DX83 -> 0 | DY83: =NPC!DY83-BASE!DY83 -> 0 | DZ83: =NPC!DZ83-BASE!DZ83 -> 0 | EA83: =NPC!EA83-BASE!EA83 -> 0 | EB83: =NPC!EB83-BASE!EB83 -> 0 | EC83: =NPC!EC83-BASE!EC83 -> 0 | ED83: =NPC!ED83-BASE!ED83 -> 0 | ER83: =NPC!ER83 -> -
C84: =NPC!C84 -> Not Used - Purchase 3 | E84: =NPC!E84-BASE!E84 -> 0 | F84: =NPC!F84-BASE!F84 -> 0 | G84: =NPC!G84-BASE!G84 -> 0 | H84: =NPC!H84-BASE!H84 -> 0 | I84: =NPC!I84-BASE!I84 -> 0 | J84: =NPC!J84-BASE!J84 -> 0 | K84: =NPC!K84-BASE!K84 -> 0 | L84: =NPC!L84-BASE!L84 -> 0 | M84: =NPC!M84-BASE!M84 -> 0 | N84: =NPC!N84-BASE!N84 -> 0 | O84: =NPC!O84-BASE!O84 -> 0 | P84: =NPC!P84-BASE!P84 -> 0 | Q84: =NPC!Q84-BASE!Q84 -> 0 | R84: =NPC!R84-BASE!R84 -> 0 | S84: =NPC!S84-BASE!S84 -> 0 | T84: =NPC!T84-BASE!T84 -> 0 | U84: =NPC!U84-BASE!U84 -> 0 | V84: =NPC!V84-BASE!V84 -> 0 | W84: =NPC!W84-BASE!W84 -> 0 | X84: =NPC!X84-BASE!X84 -> 0 | Y84: =NPC!Y84-BASE!Y84 -> 0 | Z84: =NPC!Z84-BASE!Z84 -> 0 | AA84: =NPC!AA84-BASE!AA84 -> 0 | AB84: =NPC!AB84-BASE!AB84 -> 0 | AC84: =NPC!AC84-BASE!AC84 -> 0 | AD84: =NPC!AD84-BASE!AD84 -> 0 | AE84: =NPC!AE84-BASE!AE84 -> 0 | AF84: =NPC!AF84-BASE!AF84 -> 0 | AG84: =NPC!AG84-BASE!AG84 -> 0 | AH84: =NPC!AH84-BASE!AH84 -> 0 | AI84: =NPC!AI84-BASE!AI84 -> 0 | AJ84: =NPC!AJ84-BASE!AJ84 -> 0 | AK84: =NPC!AK84-BASE!AK84 -> 0 | AL84: =NPC!AL84-BASE!AL84 -> 0 | AM84: =NPC!AM84-BASE!AM84 -> 0 | AN84: =NPC!AN84-BASE!AN84 -> 0 | AO84: =NPC!AO84-BASE!AO84 -> 0 | AP84: =NPC!AP84-BASE!AP84 -> 0 | AQ84: =NPC!AQ84-BASE!AQ84 -> 0 | AR84: =NPC!AR84-BASE!AR84 -> 0 | AS84: =NPC!AS84-BASE!AS84 -> 0 | AT84: =NPC!AT84-BASE!AT84 -> 0 | AU84: =NPC!AU84-BASE!AU84 -> 0 | AV84: =NPC!AV84-BASE!AV84 -> 0 | AW84: =NPC!AW84-BASE!AW84 -> 0 | AX84: =NPC!AX84-BASE!AX84 -> 0 | AY84: =NPC!AY84-BASE!AY84 -> 0 | AZ84: =NPC!AZ84-BASE!AZ84 -> 0 | BA84: =NPC!BA84-BASE!BA84 -> 0 | BB84: =NPC!BB84-BASE!BB84 -> 0 | BC84: =NPC!BC84-BASE!BC84 -> 0 | BD84: =NPC!BD84-BASE!BD84 -> 0 | BE84: =NPC!BE84-BASE!BE84 -> 0 | BF84: =NPC!BF84-BASE!BF84 -> 0 | BG84: =NPC!BG84-BASE!BG84 -> 0 | BH84: =NPC!BH84-BASE!BH84 -> 0 | BI84: =NPC!BI84-BASE!BI84 -> 0 | BJ84: =NPC!BJ84-BASE!BJ84 -> 0 | BK84: =NPC!BK84-BASE!BK84 -> 0 | BL84: =NPC!BL84-BASE!BL84 -> 0 | BM84: =NPC!BM84-BASE!BM84 -> 0 | BN84: =NPC!BN84-BASE!BN84 -> 0 | BO84: =NPC!BO84-BASE!BO84 -> 0 | BP84: =NPC!BP84-BASE!BP84 -> 0 | BQ84: =NPC!BQ84-BASE!BQ84 -> 0 | BR84: =NPC!BR84-BASE!BR84 -> 0 | BS84: =NPC!BS84-BASE!BS84 -> 0 | BT84: =NPC!BT84-BASE!BT84 -> 0 | BU84: =NPC!BU84-BASE!BU84 -> 0 | BV84: =NPC!BV84-BASE!BV84 -> 0 | BW84: =NPC!BW84-BASE!BW84 -> 0 | BX84: =NPC!BX84-BASE!BX84 -> 0 | BY84: =NPC!BY84-BASE!BY84 -> 0 | BZ84: =NPC!BZ84-BASE!BZ84 -> 0 | CA84: =NPC!CA84-BASE!CA84 -> 0 | CB84: =NPC!CB84-BASE!CB84 -> 0 | CC84: =NPC!CC84-BASE!CC84 -> 0 | CD84: =NPC!CD84-BASE!CD84 -> 0 | CE84: =NPC!CE84-BASE!CE84 -> 0 | CF84: =NPC!CF84-BASE!CF84 -> 0 | CG84: =NPC!CG84-BASE!CG84 -> 0 | CH84: =NPC!CH84-BASE!CH84 -> 0 | CI84: =NPC!CI84-BASE!CI84 -> 0 | CJ84: =NPC!CJ84-BASE!CJ84 -> 0 | CK84: =NPC!CK84-BASE!CK84 -> 0 | CL84: =NPC!CL84-BASE!CL84 -> 0 | CM84: =NPC!CM84-BASE!CM84 -> 0 | CN84: =NPC!CN84-BASE!CN84 -> 0 | CO84: =NPC!CO84-BASE!CO84 -> 0 | CP84: =NPC!CP84-BASE!CP84 -> 0 | CQ84: =NPC!CQ84-BASE!CQ84 -> 0 | CR84: =NPC!CR84-BASE!CR84 -> 0 | CS84: =NPC!CS84-BASE!CS84 -> 0 | CT84: =NPC!CT84-BASE!CT84 -> 0 | CU84: =NPC!CU84-BASE!CU84 -> 0 | CV84: =NPC!CV84-BASE!CV84 -> 0 | CW84: =NPC!CW84-BASE!CW84 -> 0 | CX84: =NPC!CX84-BASE!CX84 -> 0 | CY84: =NPC!CY84-BASE!CY84 -> 0 | CZ84: =NPC!CZ84-BASE!CZ84 -> 0 | DA84: =NPC!DA84-BASE!DA84 -> 0 | DB84: =NPC!DB84-BASE!DB84 -> 0 | DC84: =NPC!DC84-BASE!DC84 -> 0 | DD84: =NPC!DD84-BASE!DD84 -> 0 | DE84: =NPC!DE84-BASE!DE84 -> 0 | DF84: =NPC!DF84-BASE!DF84 -> 0 | DG84: =NPC!DG84-BASE!DG84 -> 0 | DH84: =NPC!DH84-BASE!DH84 -> 0 | DI84: =NPC!DI84-BASE!DI84 -> 0 | DJ84: =NPC!DJ84-BASE!DJ84 -> 0 | DK84: =NPC!DK84-BASE!DK84 -> 0 | DL84: =NPC!DL84-BASE!DL84 -> 0 | DM84: =NPC!DM84-BASE!DM84 -> 0 | DN84: =NPC!DN84-BASE!DN84 -> 0 | DO84: =NPC!DO84-BASE!DO84 -> 0 | DP84: =NPC!DP84-BASE!DP84 -> 0 | DQ84: =NPC!DQ84-BASE!DQ84 -> 0 | DR84: =NPC!DR84-BASE!DR84 -> 0 | DS84: =NPC!DS84-BASE!DS84 -> 0 | DT84: =NPC!DT84-BASE!DT84 -> 0 | DU84: =NPC!DU84-BASE!DU84 -> 0 | DV84: =NPC!DV84-BASE!DV84 -> 0 | DW84: =NPC!DW84-BASE!DW84 -> 0 | DX84: =NPC!DX84-BASE!DX84 -> 0 | DY84: =NPC!DY84-BASE!DY84 -> 0 | DZ84: =NPC!DZ84-BASE!DZ84 -> 0 | EA84: =NPC!EA84-BASE!EA84 -> 0 | EB84: =NPC!EB84-BASE!EB84 -> 0 | EC84: =NPC!EC84-BASE!EC84 -> 0 | ED84: =NPC!ED84-BASE!ED84 -> 0 | ER84: =NPC!ER84 -> Hide Row
C85: =NPC!C85 -> Morgan Stanley p189046 | E85: =NPC!E85-BASE!E85 -> 0 | F85: =NPC!F85-BASE!F85 -> 0 | G85: =NPC!G85-BASE!G85 -> 0 | H85: =NPC!H85-BASE!H85 -> 0 | I85: =NPC!I85-BASE!I85 -> 0 | J85: =NPC!J85-BASE!J85 -> 0 | K85: =NPC!K85-BASE!K85 -> 0 | L85: =NPC!L85-BASE!L85 -> 0 | M85: =NPC!M85-BASE!M85 -> 0 | N85: =NPC!N85-BASE!N85 -> 0 | O85: =NPC!O85-BASE!O85 -> 0 | P85: =NPC!P85-BASE!P85 -> 0 | Q85: =NPC!Q85-BASE!Q85 -> 0 | R85: =NPC!R85-BASE!R85 -> 0 | S85: =NPC!S85-BASE!S85 -> 0 | T85: =NPC!T85-BASE!T85 -> 0 | U85: =NPC!U85-BASE!U85 -> 0 | V85: =NPC!V85-BASE!V85 -> 0 | W85: =NPC!W85-BASE!W85 -> 0 | X85: =NPC!X85-BASE!X85 -> 0 | Y85: =NPC!Y85-BASE!Y85 -> 0 | Z85: =NPC!Z85-BASE!Z85 -> 0 | AA85: =NPC!AA85-BASE!AA85 -> 0 | AB85: =NPC!AB85-BASE!AB85 -> 0 | AC85: =NPC!AC85-BASE!AC85 -> 0 | AD85: =NPC!AD85-BASE!AD85 -> 0 | AE85: =NPC!AE85-BASE!AE85 -> 0 | AF85: =NPC!AF85-BASE!AF85 -> 0 | AG85: =NPC!AG85-BASE!AG85 -> 0 | AH85: =NPC!AH85-BASE!AH85 -> 0 | AI85: =NPC!AI85-BASE!AI85 -> 0 | AJ85: =NPC!AJ85-BASE!AJ85 -> 0 | AK85: =NPC!AK85-BASE!AK85 -> 0 | AL85: =NPC!AL85-BASE!AL85 -> 0 | AM85: =NPC!AM85-BASE!AM85 -> 0 | AN85: =NPC!AN85-BASE!AN85 -> 0 | AO85: =NPC!AO85-BASE!AO85 -> 0 | AP85: =NPC!AP85-BASE!AP85 -> 0 | AQ85: =NPC!AQ85-BASE!AQ85 -> 0 | AR85: =NPC!AR85-BASE!AR85 -> 0 | AS85: =NPC!AS85-BASE!AS85 -> 0 | AT85: =NPC!AT85-BASE!AT85 -> 0 | AU85: =NPC!AU85-BASE!AU85 -> 0 | AV85: =NPC!AV85-BASE!AV85 -> 0 | AW85: =NPC!AW85-BASE!AW85 -> 0 | AX85: =NPC!AX85-BASE!AX85 -> 0 | AY85: =NPC!AY85-BASE!AY85 -> 0 | AZ85: =NPC!AZ85-BASE!AZ85 -> 0 | BA85: =NPC!BA85-BASE!BA85 -> 0 | BB85: =NPC!BB85-BASE!BB85 -> 0 | BC85: =NPC!BC85-BASE!BC85 -> 0 | BD85: =NPC!BD85-BASE!BD85 -> 0 | BE85: =NPC!BE85-BASE!BE85 -> 0 | BF85: =NPC!BF85-BASE!BF85 -> 0 | BG85: =NPC!BG85-BASE!BG85 -> 0 | BH85: =NPC!BH85-BASE!BH85 -> 0 | BI85: =NPC!BI85-BASE!BI85 -> 0 | BJ85: =NPC!BJ85-BASE!BJ85 -> 0 | BK85: =NPC!BK85-BASE!BK85 -> 0 | BL85: =NPC!BL85-BASE!BL85 -> 0 | BM85: =NPC!BM85-BASE!BM85 -> 0 | BN85: =NPC!BN85-BASE!BN85 -> 0 | BO85: =NPC!BO85-BASE!BO85 -> 0 | BP85: =NPC!BP85-BASE!BP85 -> 0 | BQ85: =NPC!BQ85-BASE!BQ85 -> 0 | BR85: =NPC!BR85-BASE!BR85 -> 0 | BS85: =NPC!BS85-BASE!BS85 -> 0 | BT85: =NPC!BT85-BASE!BT85 -> 0 | BU85: =NPC!BU85-BASE!BU85 -> 0 | BV85: =NPC!BV85-BASE!BV85 -> 0 | BW85: =NPC!BW85-BASE!BW85 -> 0 | BX85: =NPC!BX85-BASE!BX85 -> 0 | BY85: =NPC!BY85-BASE!BY85 -> 0 | BZ85: =NPC!BZ85-BASE!BZ85 -> 0 | CA85: =NPC!CA85-BASE!CA85 -> 0 | CB85: =NPC!CB85-BASE!CB85 -> 0 | CC85: =NPC!CC85-BASE!CC85 -> 0 | CD85: =NPC!CD85-BASE!CD85 -> 0 | CE85: =NPC!CE85-BASE!CE85 -> 0 | CF85: =NPC!CF85-BASE!CF85 -> 0 | CG85: =NPC!CG85-BASE!CG85 -> 0 | CH85: =NPC!CH85-BASE!CH85 -> 0 | CI85: =NPC!CI85-BASE!CI85 -> 0 | CJ85: =NPC!CJ85-BASE!CJ85 -> 0 | CK85: =NPC!CK85-BASE!CK85 -> 0 | CL85: =NPC!CL85-BASE!CL85 -> 0 | CM85: =NPC!CM85-BASE!CM85 -> 0 | CN85: =NPC!CN85-BASE!CN85 -> 0 | CO85: =NPC!CO85-BASE!CO85 -> 0 | CP85: =NPC!CP85-BASE!CP85 -> 0 | CQ85: =NPC!CQ85-BASE!CQ85 -> 0 | CR85: =NPC!CR85-BASE!CR85 -> 0 | CS85: =NPC!CS85-BASE!CS85 -> 0 | CT85: =NPC!CT85-BASE!CT85 -> 0 | CU85: =NPC!CU85-BASE!CU85 -> 0 | CV85: =NPC!CV85-BASE!CV85 -> 0 | CW85: =NPC!CW85-BASE!CW85 -> 0 | CX85: =NPC!CX85-BASE!CX85 -> 0 | CY85: =NPC!CY85-BASE!CY85 -> 0 | CZ85: =NPC!CZ85-BASE!CZ85 -> 0 | DA85: =NPC!DA85-BASE!DA85 -> 0 | DB85: =NPC!DB85-BASE!DB85 -> 0 | DC85: =NPC!DC85-BASE!DC85 -> 0 | DD85: =NPC!DD85-BASE!DD85 -> 0 | DE85: =NPC!DE85-BASE!DE85 -> 0 | DF85: =NPC!DF85-BASE!DF85 -> 0 | DG85: =NPC!DG85-BASE!DG85 -> 0 | DH85: =NPC!DH85-BASE!DH85 -> 0 | DI85: =NPC!DI85-BASE!DI85 -> 0 | DJ85: =NPC!DJ85-BASE!DJ85 -> 0 | DK85: =NPC!DK85-BASE!DK85 -> 0 | DL85: =NPC!DL85-BASE!DL85 -> 0 | DM85: =NPC!DM85-BASE!DM85 -> 0 | DN85: =NPC!DN85-BASE!DN85 -> 0 | DO85: =NPC!DO85-BASE!DO85 -> 0 | DP85: =NPC!DP85-BASE!DP85 -> 0 | DQ85: =NPC!DQ85-BASE!DQ85 -> 0 | DR85: =NPC!DR85-BASE!DR85 -> 0 | DS85: =NPC!DS85-BASE!DS85 -> 0 | DT85: =NPC!DT85-BASE!DT85 -> 0 | DU85: =NPC!DU85-BASE!DU85 -> 0 | DV85: =NPC!DV85-BASE!DV85 -> 0 | DW85: =NPC!DW85-BASE!DW85 -> 0 | DX85: =NPC!DX85-BASE!DX85 -> 0 | DY85: =NPC!DY85-BASE!DY85 -> 0 | DZ85: =NPC!DZ85-BASE!DZ85 -> 0 | EA85: =NPC!EA85-BASE!EA85 -> 0 | EB85: =NPC!EB85-BASE!EB85 -> 0 | EC85: =NPC!EC85-BASE!EC85 -> 0 | ED85: =NPC!ED85-BASE!ED85 -> 0 | ER85: =NPC!ER85 -> Hide Row
